{"text_format":"1","workbook":"xlsx","n_sheets":8,"sheets":["Notes","Summary","Engagement Score Breakdown","Engagement Score","Advocacy","Involvement","Motivation","BS"],"not_rendered":{"charts":0,"images":0,"macros":1,"external_links":2,"defined_names":19,"comments":0,"pivot_tables":0},"unopened":[],"bounds":{"document_bytes":16777216,"sheet_cells":100000,"rows_first":2000,"rows_last":500,"rows_between":2000,"halvings":0,"cell_chars":16384,"cell_head_chars":4096},"cells_cut":0,"cells_raw":0,"read":"whole","date_system":"1900"}

{"sheet":"Notes","index":0,"n_rows":3,"n_cols":1,"rows_kept":3,"cut":false,"hidden":false,"merged":[]}
[]
["National Quarterly Pulse Survey Data - Q2 2022-23"]
[": "]

{"sheet":"Summary","index":1,"n_rows":36,"n_cols":5,"rows_kept":36,"cut":false,"hidden":false,"merged":[[5,1,5,3],[7,2,7,4]]}
[]
[]
[]
[null,"National level headline figures for Quarter 2"]
[]
[null,"187 NHS service providers submitted to Q2 2022-23"]
[]
[null,null,"Quarter 2"]
[null,null,"Response count","Head Count","Score"]
[null,"Engagement",127021,1180653,6.6151309238954923]
[null,"Engagement Score - Acute and Acute & Community Trusts",84442,860520,6.3727449644150784]
[null,"Engagement Score - Acute Specialist Trusts",2846,27481,6.7038914332840571]
[null,"Engagement Score - Ambulance Trusts",3181,33668,5.3207028067452269]
[null,"Engagement Score - Community Trusts",5941,43130,6.8462602929631498]
[null,"Engagement Score - Mental Health & Learning Disability and Mental Health, Learning Disability & Community Trusts",30611,215854,6.7382630057709028]
[]
[null,"Motivation",127539,1180653,6.7365733880094201]
[null,"Motivation Score - Acute and Acute & Community Trusts",84780,860520,6.5363152528559931]
[null,"Motivation Score - Acute Specialist Trusts",2852,27481,6.5705038744520534]
[null,"Motivation Score - Ambulance Trusts",3186,33668,5.6549111270467929]
[null,"Motivation Score - Community Trusts",5952,43130,6.8639920745561414]
[null,"Motivation Score - Mental Health & Learning Disability and Mental Health, Learning Disability & Community Trusts",30769,215854,6.8407377033068126]
[]
[null,"Advocacy",127366,1180653,6.6465998251757403]
[null,"Advocacy Score - Acute and Acute & Community Trusts",84679,860520,6.3145073490487551]
[null,"Advocacy Score - Acute Specialist Trusts",2861,27481,7.1632746598934629]
[null,"Advocacy Score - Ambulance Trusts",3181,33668,5.4472545761762703]
[null,"Advocacy Score - Community Trusts",5960,43130,6.971589353782603]
[null,"Advocacy Score - Mental Health & Learning Disability and Mental Health, Learning Disability & Community Trusts",30685,215854,6.6392823332713391]
[]
[null,"Involvement",127641,1180653,6.4622195585013174]
[null,"Involvement Score - Acute and Acute & Community Trusts",84844,860520,6.2674122913404879]
[null,"Involvement Score - Acute Specialist Trusts",2862,27481,6.3778957655066568]
[null,"Involvement Score - Ambulance Trusts",3187,33668,4.8599427170126228]
[null,"Involvement Score - Community Trusts",5972,43130,6.7031994505507058]
[null,"Involvement Score - Mental Health & Learning Disability and Mental Health, Learning Disability & Community Trusts",30776,215854,6.7347689807345548]

{"sheet":"Engagement Score Breakdown","index":2,"n_rows":196,"n_cols":13,"rows_kept":196,"cut":false,"hidden":false,"merged":[[6,12,7,12],[6,6,7,6],[6,7,7,7],[6,8,7,8],[6,9,7,9],[6,10,7,10],[6,11,7,11],[6,5,7,5],[6,0,7,0],[6,1,7,1],[6,2,7,2],[6,3,7,3],[6,4,7,4]]}
[]
[]
[]
[]
[]
[]
["Region Code","Region Name","STP Code","STP Name","Org Code","Org Name","Care Setting","Total Responses","HSCIC Workforce Headcount","Engagement Score","Advocacy","Involvement","Motivation"]
[]
[null,null,null,null,null,null,"England",127021,1180653,6.6151309238954923,6.6465998251757403,6.4622195585013174,6.7365733880094201]
["Y56","LONDON COMMISSIONING REGION","QKK",{"$f":"VLOOKUP(C10,'[2]From July 2022'!$D:$E,2,0)","v":"NHS SOUTH EAST LONDON INTEGRATED CARE BOARD"},"RJ1","GUY'S AND ST THOMAS' NHS FOUNDATION TRUST","Acute and Acute & Community Trusts",2705,22169,6.9244828256609052,7.4957374254049443,6.4714880078316197,6.8062230437461491]
["Y56","LONDON COMMISSIONING REGION","QKK",{"$f":"VLOOKUP(C11,'[2]From July 2022'!$D:$E,2,0)","v":"NHS SOUTH EAST LONDON INTEGRATED CARE BOARD"},"RJZ","KING'S COLLEGE HOSPITAL NHS FOUNDATION TRUST","Acute and Acute & Community Trusts",1285,13297,6.4831387808041505,6.7107652399481195,6.2918287937743189,6.4468223086900123]
["Y56","LONDON COMMISSIONING REGION","QKK",{"$f":"VLOOKUP(C12,'[2]From July 2022'!$D:$E,2,0)","v":"NHS SOUTH EAST LONDON INTEGRATED CARE BOARD"},"RJ2","LEWISHAM AND GREENWICH NHS TRUST","Acute and Acute & Community Trusts",433,6850,6.023222992045163,5.8294842186297151,5.9699769053117784,6.2702078521939955]
["Y56","LONDON COMMISSIONING REGION","QKK",{"$f":"VLOOKUP(C13,'[2]From July 2022'!$D:$E,2,0)","v":"NHS SOUTH EAST LONDON INTEGRATED CARE BOARD"},"RV5","SOUTH LONDON AND MAUDSLEY NHS FOUNDATION TRUST","Mental Health & Learning Disability and Mental Health, Learning Disability & Community Trusts",195,5486,6.5470085470085477,6.1623931623931627,7.0641025641025639,6.4145299145299139]
["Y56","LONDON COMMISSIONING REGION","QMF",{"$f":"VLOOKUP(C14,'[2]From July 2022'!$D:$E,2,0)","v":"NHS NORTH EAST LONDON INTEGRATED CARE BOARD"},"R1H","BARTS HEALTH NHS TRUST","Acute and Acute & Community Trusts",435,17203,6.0114942528735638,5.9176245210727965,5.8869731800766285,6.2298850574712645]
["Y56","LONDON COMMISSIONING REGION","QMF",{"$f":"VLOOKUP(C15,'[2]From July 2022'!$D:$E,2,0)","v":"NHS NORTH EAST LONDON INTEGRATED CARE BOARD"},"RWK","EAST LONDON NHS FOUNDATION TRUST","Mental Health & Learning Disability and Mental Health, Learning Disability & Community Trusts",906,6545,7.1391381490719228,7.2976453274466522,6.9678932178932174,7.1518759018759015]
["Y56","LONDON COMMISSIONING REGION","QMF",{"$f":"VLOOKUP(C16,'[2]From July 2022'!$D:$E,2,0)","v":"NHS NORTH EAST LONDON INTEGRATED CARE BOARD"},"RQX","HOMERTON HEALTHCARE NHS FOUNDATION TRUST","Acute and Acute & Community Trusts",693,3922,6.8500714643426237,7.1683191690273835,6.6346609767662406,6.747234247234247]
["Y56","LONDON COMMISSIONING REGION","QMF",{"$f":"VLOOKUP(C17,'[2]From July 2022'!$D:$E,2,0)","v":"NHS NORTH EAST LONDON INTEGRATED CARE BOARD"},"RAT","NORTH EAST LONDON NHS FOUNDATION TRUST","Mental Health & Learning Disability and Mental Health, Learning Disability & Community Trusts",616,6702,6.6761363636363633,6.6423160173160172,6.5963203463203461,6.7897727272727275]
["Y56","LONDON COMMISSIONING REGION","QMJ",{"$f":"VLOOKUP(C18,'[2]From July 2022'!$D:$E,2,0)","v":"NHS NORTH CENTRAL LONDON INTEGRATED CARE BOARD"},"RRP","BARNET, ENFIELD AND HARINGEY MENTAL HEALTH NHS TRUST","Mental Health & Learning Disability and Mental Health, Learning Disability & Community Trusts",154,3407,6.0822510822510827,5.4437229437229444,6.3095238095238093,6.4935064935064934]
["Y56","LONDON COMMISSIONING REGION","QMJ",{"$f":"VLOOKUP(C19,'[2]From July 2022'!$D:$E,2,0)","v":"NHS NORTH CENTRAL LONDON INTEGRATED CARE BOARD"},"TAF","CAMDEN AND ISLINGTON NHS FOUNDATION TRUST","Mental Health & Learning Disability and Mental Health, Learning Disability & Community Trusts",444,2293,6.884820129676517,6.7849099099099099,6.8395879323031643,7.0299625468164795]
["Y56","LONDON COMMISSIONING REGION","QMJ",{"$f":"VLOOKUP(C20,'[2]From July 2022'!$D:$E,2,0)","v":"NHS NORTH CENTRAL LONDON INTEGRATED CARE BOARD"},"RP4","GREAT ORMOND STREET HOSPITAL FOR CHILDREN NHS FOUNDATION TRUST","Acute Specialist Trusts",954,5520,7.0033967203778529,7.4566874566874564,6.661469161469161,6.8920335429769395]
["Y56","LONDON COMMISSIONING REGION","QMJ",{"$f":"VLOOKUP(C21,'[2]From July 2022'!$D:$E,2,0)","v":"NHS NORTH CENTRAL LONDON INTEGRATED CARE BOARD"},"RP6","MOORFIELDS EYE HOSPITAL NHS FOUNDATION TRUST","Acute Specialist Trusts",31,2283,5.672043010752688,5.591397849462366,5.564516129032258,5.860215053763441]
["Y56","LONDON COMMISSIONING REGION","QMJ",{"$f":"VLOOKUP(C22,'[2]From July 2022'!$D:$E,2,0)","v":"NHS NORTH CENTRAL LONDON INTEGRATED CARE BOARD"},"RAP","NORTH MIDDLESEX UNIVERSITY HOSPITAL NHS TRUST","Acute and Acute & Community Trusts",658,3818,6.4659392515190399,6.0331825037707389,6.38515196811161,6.9794832826747717]
["Y56","LONDON COMMISSIONING REGION","QMJ",{"$f":"VLOOKUP(C23,'[2]From July 2022'!$D:$E,2,0)","v":"NHS NORTH CENTRAL LONDON INTEGRATED CARE BOARD"},"RAL","ROYAL FREE LONDON NHS FOUNDATION TRUST","Acute and Acute & Community Trusts",672,10684,5.9850363756613758,5.9598214285714288,5.6845238095238093,6.3107638888888884]
["Y56","LONDON COMMISSIONING REGION","QMJ",{"$f":"VLOOKUP(C24,'[2]From July 2022'!$D:$E,2,0)","v":"NHS NORTH CENTRAL LONDON INTEGRATED CARE BOARD"},"RNK","TAVISTOCK AND PORTMAN NHS FOUNDATION TRUST","Mental Health & Learning Disability and Mental Health, Learning Disability & Community Trusts",95,767,5.2953216374269001,4.8421052631578947,5.5964912280701746,5.4473684210526319]
["Y56","LONDON COMMISSIONING REGION","QMJ",{"$f":"VLOOKUP(C25,'[2]From July 2022'!$D:$E,2,0)","v":"NHS NORTH CENTRAL LONDON INTEGRATED CARE BOARD"},"RRV","UNIVERSITY COLLEGE LONDON HOSPITALS NHS FOUNDATION TRUST","Acute and Acute & Community Trusts",508,10115,7.1576990376202971,7.6804461942257216,6.9947506561679793,6.7979002624671923]
["Y56","LONDON COMMISSIONING REGION","QMJ",{"$f":"VLOOKUP(C26,'[2]From July 2022'!$D:$E,2,0)","v":"NHS NORTH CENTRAL LONDON INTEGRATED CARE BOARD"},"RKE","WHITTINGTON HEALTH NHS TRUST","Acute and Acute & Community Trusts",688,4464,6.5273740310077519,6.4474321705426352,6.3832364341085279,6.7514534883720927]
["Y56","LONDON COMMISSIONING REGION","QRV",{"$f":"VLOOKUP(C27,'[2]From July 2022'!$D:$E,2,0)","v":"NHS NORTH WEST LONDON INTEGRATED CARE BOARD"},"RYX","CENTRAL LONDON COMMUNITY HEALTHCARE NHS TRUST","Community Trusts",223,4376,6.9170403587443943,6.6031390134529149,7.051569506726457,7.0964125560538118]
["Y56","LONDON COMMISSIONING REGION","QRV",{"$f":"VLOOKUP(C28,'[2]From July 2022'!$D:$E,2,0)","v":"NHS NORTH WEST LONDON INTEGRATED CARE BOARD"},"RYJ","IMPERIAL COLLEGE HEALTHCARE NHS TRUST","Acute and Acute & Community Trusts",91,12988,6.2545787545787546,6.2912087912087911,6.0714285714285712,6.4010989010989015]
["Y56","LONDON COMMISSIONING REGION","QRV",{"$f":"VLOOKUP(C29,'[2]From July 2022'!$D:$E,2,0)","v":"NHS NORTH WEST LONDON INTEGRATED CARE BOARD"},"RAN","ROYAL NATIONAL ORTHOPAEDIC HOSPITAL NHS TRUST","Acute Specialist Trusts",74,1574,7.0533033033033048,7.4774774774774784,7.0270270270270272,6.6554054054054053]
["Y56","LONDON COMMISSIONING REGION","QRV",{"$f":"VLOOKUP(C30,'[2]From July 2022'!$D:$E,2,0)","v":"NHS NORTH WEST LONDON INTEGRATED CARE BOARD"},"RAS","THE HILLINGDON HOSPITALS NHS FOUNDATION TRUST","Acute and Acute & Community Trusts",62,3572,6.7025089605734776,5.92741935483871,7.150537634408602,7.029569892473118]
["Y56","LONDON COMMISSIONING REGION","QRV",{"$f":"VLOOKUP(C31,'[2]From July 2022'!$D:$E,2,0)","v":"NHS NORTH WEST LONDON INTEGRATED CARE BOARD"},"RPY","THE ROYAL MARSDEN NHS FOUNDATION TRUST","Acute Specialist Trusts",362,4293,6.6973603437691835,7.3158379373848987,6.4203499079189683,6.3558931860036836]
["Y56","LONDON COMMISSIONING REGION","QWE",{"$f":"VLOOKUP(C32,'[2]From July 2022'!$D:$E,2,0)","v":"NHS SOUTH WEST LONDON INTEGRATED CARE BOARD"},"RVR","EPSOM AND ST HELIER UNIVERSITY HOSPITALS NHS TRUST","Acute and Acute & Community Trusts",521,6858,6.0119428449562804,5.8173384516954574,5.7933461292386443,6.4251439539347412]
["Y56","LONDON COMMISSIONING REGION","QWE",{"$f":"VLOOKUP(C33,'[2]From July 2022'!$D:$E,2,0)","v":"NHS SOUTH WEST LONDON INTEGRATED CARE BOARD"},"RY9","HOUNSLOW AND RICHMOND COMMUNITY HEALTHCARE NHS TRUST","Community Trusts",96,1244,7.0949074074074074,7.213541666666667,6.9618055555555562,7.109375]
["Y56","LONDON COMMISSIONING REGION","QWE",{"$f":"VLOOKUP(C34,'[2]From July 2022'!$D:$E,2,0)","v":"NHS SOUTH WEST LONDON INTEGRATED CARE BOARD"},"RQY","SOUTH WEST LONDON AND ST GEORGE'S MENTAL HEALTH NHS TRUST","Mental Health & Learning Disability and Mental Health, Learning Disability & Community Trusts",126,2612,6.7283950617283947,6.5740740740740744,6.9642857142857144,6.6468253968253972]
["Y56","LONDON COMMISSIONING REGION","QWE",{"$f":"VLOOKUP(C35,'[2]From July 2022'!$D:$E,2,0)","v":"NHS SOUTH WEST LONDON INTEGRATED CARE BOARD"},"RJ7","ST GEORGE'S UNIVERSITY HOSPITALS NHS FOUNDATION TRUST","Acute and Acute & Community Trusts",901,9298,6.1971266494018993,6.205142434332223,5.9702182759896418,6.4160192378838321]
["Y58","SOUTH WEST COMMISSIONING REGION","QJK",{"$f":"VLOOKUP(C36,'[2]From July 2022'!$D:$E,2,0)","v":"NHS DEVON INTEGRATED CARE BOARD"},"RWV","DEVON PARTNERSHIP NHS TRUST","Mental Health & Learning Disability and Mental Health, Learning Disability & Community Trusts",94,3602,6.9001182033096926,6.6755319148936172,7.0921985815602833,6.9326241134751765]
["Y58","SOUTH WEST COMMISSIONING REGION","QJK",{"$f":"VLOOKUP(C37,'[2]From July 2022'!$D:$E,2,0)","v":"NHS DEVON INTEGRATED CARE BOARD"},"RBZ","NORTHERN DEVON HEALTHCARE NHS TRUST","Acute and Acute & Community Trusts",1336,0,6.6873691828901114,6.8051397205588815,6.5605609332340533,6.6964068948773967]
["Y58","SOUTH WEST COMMISSIONING REGION","QJK",{"$f":"VLOOKUP(C38,'[2]From July 2022'!$D:$E,2,0)","v":"NHS DEVON INTEGRATED CARE BOARD"},"RA9","TORBAY AND SOUTH DEVON NHS FOUNDATION TRUST","Acute and Acute & Community Trusts",208,6744,5.9513767482517492,5.8409090909090908,5.8934294871794872,6.1197916666666661]
["Y58","SOUTH WEST COMMISSIONING REGION","QJK",{"$f":"VLOOKUP(C39,'[2]From July 2022'!$D:$E,2,0)","v":"NHS DEVON INTEGRATED CARE BOARD"},"RK9","UNIVERSITY HOSPITALS PLYMOUTH NHS TRUST","Acute and Acute & Community Trusts",1321,9376,6.4931615682728889,6.4224572004028202,6.2623012869038606,6.794726217511986]
["Y58","SOUTH WEST COMMISSIONING REGION","QOX",{"$f":"VLOOKUP(C40,'[2]From July 2022'!$D:$E,2,0)","v":"NHS BATH AND NORTH EAST SOMERSET, SWINDON AND WILTSHIRE INTEGRATED CARE BOARD"},"RVN","AVON AND WILTSHIRE MENTAL HEALTH PARTNERSHIP NHS TRUST","Mental Health & Learning Disability and Mental Health, Learning Disability & Community Trusts",256,4555,6.0536024305555562,5.625,6.25,6.285807291666667]
["Y58","SOUTH WEST COMMISSIONING REGION","QOX",{"$f":"VLOOKUP(C41,'[2]From July 2022'!$D:$E,2,0)","v":"NHS BATH AND NORTH EAST SOMERSET, SWINDON AND WILTSHIRE INTEGRATED CARE BOARD"},"RN3","GREAT WESTERN HOSPITALS NHS FOUNDATION TRUST","Acute and Acute & Community Trusts",1252,5305,6.5191787407021531,6.4237220447284349,6.3116797900262469,6.8221343873517784]
["Y58","SOUTH WEST COMMISSIONING REGION","QOX",{"$f":"VLOOKUP(C42,'[2]From July 2022'!$D:$E,2,0)","v":"NHS BATH AND NORTH EAST SOMERSET, SWINDON AND WILTSHIRE INTEGRATED CARE BOARD"},"RNZ","SALISBURY NHS FOUNDATION TRUST","Acute and Acute & Community Trusts",274,3875,5.7968369829683697,5.6082725060827254,5.6843065693430654,6.0979318734793182]
["Y58","SOUTH WEST COMMISSIONING REGION","QR1",{"$f":"VLOOKUP(C43,'[2]From July 2022'!$D:$E,2,0)","v":"NHS GLOUCESTERSHIRE INTEGRATED CARE BOARD"},"RTQ","GLOUCESTERSHIRE HEALTH AND CARE NHS FOUNDATION TRUST","Mental Health & Learning Disability and Mental Health, Learning Disability & Community Trusts",69,4513,7.14975845410628,7.1859903381642507,7.2463768115942031,7.016908212560387]
["Y58","SOUTH WEST COMMISSIONING REGION","QR1",{"$f":"VLOOKUP(C44,'[2]From July 2022'!$D:$E,2,0)","v":"NHS GLOUCESTERSHIRE INTEGRATED CARE BOARD"},"RTE","GLOUCESTERSHIRE HOSPITALS NHS FOUNDATION TRUST","Acute and Acute & Community Trusts",943,8225,5.8118389920927624,5.4536645525017624,5.6618946624248858,6.3199577613516364]
["Y58","SOUTH WEST COMMISSIONING REGION","QSL",{"$f":"VLOOKUP(C45,'[2]From July 2022'!$D:$E,2,0)","v":"NHS SOMERSET INTEGRATED CARE BOARD"},"RH5","SOMERSET NHS FOUNDATION TRUST","Acute and Acute & Community Trusts",634,9671,6.9343673326323163,7.0754468980021024,6.7797055730809666,6.94794952681388]
["Y58","SOUTH WEST COMMISSIONING REGION","QSL",{"$f":"VLOOKUP(C46,'[2]From July 2022'!$D:$E,2,0)","v":"NHS SOMERSET INTEGRATED CARE BOARD"},"RA4","YEOVIL DISTRICT HOSPITAL NHS FOUNDATION TRUST","Acute and Acute & Community Trusts",239,2715,6.5574151557415163,6.6562064156206411,6.3528591352859136,6.6631799163179917]
["Y58","SOUTH WEST COMMISSIONING REGION","QT6",{"$f":"VLOOKUP(C47,'[2]From July 2022'!$D:$E,2,0)","v":"NHS CORNWALL AND THE ISLES OF SCILLY INTEGRATED CARE BOARD"},"RJ8","CORNWALL PARTNERSHIP NHS FOUNDATION TRUST","Mental Health & Learning Disability and Mental Health, Learning Disability & Community Trusts",16,4113,5.677083333333333,5.9375,5.052083333333333,6.041666666666667]
["Y58","SOUTH WEST COMMISSIONING REGION","QT6",{"$f":"VLOOKUP(C48,'[2]From July 2022'!$D:$E,2,0)","v":"NHS CORNWALL AND THE ISLES OF SCILLY INTEGRATED CARE BOARD"},"REF","ROYAL CORNWALL HOSPITALS NHS TRUST","Acute and Acute & Community Trusts",783,6833,6.386744005442492,6.1089825457641549,6.5512494705633202,6.5]
["Y58","SOUTH WEST COMMISSIONING REGION","QUY",{"$f":"VLOOKUP(C49,'[2]From July 2022'!$D:$E,2,0)","v":"NHS BRISTOL, NORTH SOMERSET AND SOUTH GLOUCESTERSHIRE INTEGRATED CARE BOARD"},"RVJ","NORTH BRISTOL NHS TRUST","Acute and Acute & Community Trusts",302,9308,6.417885166000044,6.6859823399558502,6.3383002207505523,6.2293729372937294]
["Y58","SOUTH WEST COMMISSIONING REGION","QUY",{"$f":"VLOOKUP(C50,'[2]From July 2022'!$D:$E,2,0)","v":"NHS BRISTOL, NORTH SOMERSET AND SOUTH GLOUCESTERSHIRE INTEGRATED CARE BOARD"},"RA7","UNIVERSITY HOSPITALS BRISTOL AND WESTON NHS FOUNDATION TRUST","Acute and Acute & Community Trusts",1212,11560,6.8578107810781077,7.0221397139713977,6.7141089108910892,6.8371837183718362]
["Y58","SOUTH WEST COMMISSIONING REGION","QVV",{"$f":"VLOOKUP(C51,'[2]From July 2022'!$D:$E,2,0)","v":"NHS DORSET INTEGRATED CARE BOARD"},"RBD","DORSET COUNTY HOSPITAL NHS FOUNDATION TRUST","Acute and Acute & Community Trusts",476,3212,6.7997198879551819,6.6999299719887953,6.924019607843138,6.7752100840336134]
["Y58","SOUTH WEST COMMISSIONING REGION","QVV",{"$f":"VLOOKUP(C52,'[2]From July 2022'!$D:$E,2,0)","v":"NHS DORSET INTEGRATED CARE BOARD"},"RDY","DORSET HEALTHCARE UNIVERSITY NHS FOUNDATION TRUST","Mental Health & Learning Disability and Mental Health, Learning Disability & Community Trusts",1074,6427,6.8544382371198012,6.8234016139044069,6.6076970825574177,7.1322160148975788]
["Y58","SOUTH WEST COMMISSIONING REGION","QVV",{"$f":"VLOOKUP(C53,'[2]From July 2022'!$D:$E,2,0)","v":"NHS DORSET INTEGRATED CARE BOARD"},"R0D","UNIVERSITY HOSPITALS DORSET NHS FOUNDATION TRUST","Acute and Acute & Community Trusts",179,9217,5.6486654252017381,5.7076350093109864,5.3351955307262573,5.9031657355679705]
["Y59","SOUTH EAST COMMISSIONING REGION","QKS",{"$f":"VLOOKUP(C54,'[2]From July 2022'!$D:$E,2,0)","v":"NHS KENT AND MEDWAY INTEGRATED CARE BOARD"},"RN7","DARTFORD AND GRAVESHAM NHS TRUST","Acute and Acute & Community Trusts",230,3966,6.4842995169082123,6.7572463768115947,6.1050724637681162,6.5905797101449268]
["Y59","SOUTH EAST COMMISSIONING REGION","QKS",{"$f":"VLOOKUP(C55,'[2]From July 2022'!$D:$E,2,0)","v":"NHS KENT AND MEDWAY INTEGRATED CARE BOARD"},"RVV","EAST KENT HOSPITALS UNIVERSITY NHS FOUNDATION TRUST","Acute and Acute & Community Trusts",2456,10356,6.3425112114168352,5.9602334419109662,6.2815378454144977,6.7857623469250434]
["Y59","SOUTH EAST COMMISSIONING REGION","QKS",{"$f":"VLOOKUP(C56,'[2]From July 2022'!$D:$E,2,0)","v":"NHS KENT AND MEDWAY INTEGRATED CARE BOARD"},"RXY","KENT AND MEDWAY NHS AND SOCIAL CARE PARTNERSHIP TRUST","Mental Health & Learning Disability and Mental Health, Learning Disability & Community Trusts",174,3451,6.5118135376756063,6.1829501915708809,6.7385057471264371,6.6139846743295019]
["Y59","SOUTH EAST COMMISSIONING REGION","QKS",{"$f":"VLOOKUP(C57,'[2]From July 2022'!$D:$E,2,0)","v":"NHS KENT AND MEDWAY INTEGRATED CARE BOARD"},"RYY","KENT COMMUNITY HEALTH NHS FOUNDATION TRUST","Community Trusts",820,4913,6.7046070460704605,6.8638211382113816,6.5904471544715451,6.6595528455284549]
["Y59","SOUTH EAST COMMISSIONING REGION","QKS",{"$f":"VLOOKUP(C58,'[2]From July 2022'!$D:$E,2,0)","v":"NHS KENT AND MEDWAY INTEGRATED CARE BOARD"},"RWF","MAIDSTONE AND TUNBRIDGE WELLS NHS TRUST","Acute and Acute & Community Trusts",1039,6709,6.9428403379317727,7.1703561116458134,6.6097208854667953,7.0484440166827076]
["Y59","SOUTH EAST COMMISSIONING REGION","QKS",{"$f":"VLOOKUP(C59,'[2]From July 2022'!$D:$E,2,0)","v":"NHS KENT AND MEDWAY INTEGRATED CARE BOARD"},"RPA","MEDWAY NHS FOUNDATION TRUST","Acute and Acute & Community Trusts",41,4620,5.48780487804878,5.0609756097560972,5.3658536585365857,6.0365853658536581]
["Y59","SOUTH EAST COMMISSIONING REGION","QNQ",{"$f":"VLOOKUP(C60,'[2]From July 2022'!$D:$E,2,0)","v":"NHS FRIMLEY INTEGRATED CARE BOARD"},"RWX","BERKSHIRE HEALTHCARE NHS FOUNDATION TRUST","Mental Health & Learning Disability and Mental Health, Learning Disability & Community Trusts",1527,4670,7.3415702758677766,7.5594848286400351,7.176286208387376,7.2889397905759159]
["Y59","SOUTH EAST COMMISSIONING REGION","QNQ",{"$f":"VLOOKUP(C61,'[2]From July 2022'!$D:$E,2,0)","v":"NHS FRIMLEY INTEGRATED CARE BOARD"},"RDU","FRIMLEY HEALTH NHS FOUNDATION TRUST","Acute and Acute & Community Trusts",1499,9971,6.6046610714129086,6.7094729819879921,6.3263296126066972,6.7781806196440346]
["Y59","SOUTH EAST COMMISSIONING REGION","QNX",{"$f":"VLOOKUP(C62,'[2]From July 2022'!$D:$E,2,0)","v":"NHS SUSSEX INTEGRATED CARE BOARD"},"RXC","EAST SUSSEX HEALTHCARE NHS TRUST","Acute and Acute & Community Trusts",301,7875,6.1664820967146552,6.1074197120708744,5.9939091915836107,6.3981173864894796]
["Y59","SOUTH EAST COMMISSIONING REGION","QNX",{"$f":"VLOOKUP(C63,'[2]From July 2022'!$D:$E,2,0)","v":"NHS SUSSEX INTEGRATED CARE BOARD"},"RPC","QUEEN VICTORIA HOSPITAL NHS FOUNDATION TRUST","Acute Specialist Trusts",159,1074,7.2781271837875607,7.8144654088050318,6.8134171907756809,7.2064989517819704]
["Y59","SOUTH EAST COMMISSIONING REGION","QNX",{"$f":"VLOOKUP(C64,'[2]From July 2022'!$D:$E,2,0)","v":"NHS SUSSEX INTEGRATED CARE BOARD"},"RYD","SOUTH EAST COAST AMBULANCE SERVICE NHS FOUNDATION TRUST","Ambulance Trusts",111,4198,4.3143143143143137,4.1441441441441444,3.8813813813813813,4.9174174174174174]
["Y59","SOUTH EAST COMMISSIONING REGION","QNX",{"$f":"VLOOKUP(C65,'[2]From July 2022'!$D:$E,2,0)","v":"NHS SUSSEX INTEGRATED CARE BOARD"},"RDR","SUSSEX COMMUNITY NHS FOUNDATION TRUST","Community Trusts",90,5318,6.9197530864197532,6.9907407407407405,6.8425925925925934,6.9259259259259265]
["Y59","SOUTH EAST COMMISSIONING REGION","QNX",{"$f":"VLOOKUP(C66,'[2]From July 2022'!$D:$E,2,0)","v":"NHS SUSSEX INTEGRATED CARE BOARD"},"RX2","SUSSEX PARTNERSHIP NHS FOUNDATION TRUST","Mental Health & Learning Disability and Mental Health, Learning Disability & Community Trusts",187,5533,6.3532382650029717,6.0427807486631018,6.5062388591800362,6.5106951871657754]
["Y59","SOUTH EAST COMMISSIONING REGION","QNX",{"$f":"VLOOKUP(C67,'[2]From July 2022'!$D:$E,2,0)","v":"NHS SUSSEX INTEGRATED CARE BOARD"},"RYR","UNIVERSITY HOSPITALS SUSSEX NHS FOUNDATION TRUST","Acute and Acute & Community Trusts",220,16095,5.2601010101010104,4.8598484848484853,5.4545454545454541,5.4659090909090908]
["Y59","SOUTH EAST COMMISSIONING REGION","QRL",{"$f":"VLOOKUP(C68,'[2]From July 2022'!$D:$E,2,0)","v":"NHS HAMPSHIRE AND ISLE OF WIGHT INTEGRATED CARE BOARD"},"RN5","HAMPSHIRE HOSPITALS NHS FOUNDATION TRUST","Acute and Acute & Community Trusts",816,7394,6.4253131808278861,6.2571486928104569,6.3582516339869279,6.6605392156862742]
["Y59","SOUTH EAST COMMISSIONING REGION","QRL",{"$f":"VLOOKUP(C69,'[2]From July 2022'!$D:$E,2,0)","v":"NHS HAMPSHIRE AND ISLE OF WIGHT INTEGRATED CARE BOARD"},"R1F","ISLE OF WIGHT NHS TRUST","Acute and Acute & Community Trusts",482,3620,6.6600718233203109,6.3267770876466534,6.604683195592286,7.0487551867219915]
["Y59","SOUTH EAST COMMISSIONING REGION","QRL",{"$f":"VLOOKUP(C70,'[2]From July 2022'!$D:$E,2,0)","v":"NHS HAMPSHIRE AND ISLE OF WIGHT INTEGRATED CARE BOARD"},"RHU","PORTSMOUTH HOSPITALS UNIVERSITY NATIONAL HEALTH SERVICE TRUST","Acute and Acute & Community Trusts",1032,7994,6.3961563307493536,6.4316860465116283,6.2209302325581399,6.5358527131782944]
["Y59","SOUTH EAST COMMISSIONING REGION","QRL",{"$f":"VLOOKUP(C71,'[2]From July 2022'!$D:$E,2,0)","v":"NHS HAMPSHIRE AND ISLE OF WIGHT INTEGRATED CARE BOARD"},"R1C","SOLENT NHS TRUST","Mental Health & Learning Disability and Mental Health, Learning Disability & Community Trusts",429,4041,7.2429422429422443,7.4883449883449886,7.1289821289821296,7.1114996114996121]
["Y59","SOUTH EAST COMMISSIONING REGION","QRL",{"$f":"VLOOKUP(C72,'[2]From July 2022'!$D:$E,2,0)","v":"NHS HAMPSHIRE AND ISLE OF WIGHT INTEGRATED CARE BOARD"},"RW1","SOUTHERN HEALTH NHS FOUNDATION TRUST","Mental Health & Learning Disability and Mental Health, Learning Disability & Community Trusts",1830,6321,6.9751587012461336,6.7493333333333334,7.4234972677595632,6.7526455026455023]
["Y59","SOUTH EAST COMMISSIONING REGION","QRL",{"$f":"VLOOKUP(C73,'[2]From July 2022'!$D:$E,2,0)","v":"NHS HAMPSHIRE AND ISLE OF WIGHT INTEGRATED CARE BOARD"},"RHM","UNIVERSITY HOSPITAL SOUTHAMPTON NHS FOUNDATION TRUST","Acute and Acute & Community Trusts",2809,12425,7.0432295877592646,7.5175032633202807,6.7193199199905864,6.8928655799669274]
["Y59","SOUTH EAST COMMISSIONING REGION","QU9",{"$f":"VLOOKUP(C74,'[2]From July 2022'!$D:$E,2,0)","v":"NHS BUCKINGHAMSHIRE, OXFORDSHIRE AND BERKSHIRE WEST INTEGRATED CARE BOARD"},"RXQ","BUCKINGHAMSHIRE HEALTHCARE NHS TRUST","Acute and Acute & Community Trusts",705,6239,6.6544523246650904,6.6359338061465714,6.4988179669030739,6.8286052009456268]
["Y59","SOUTH EAST COMMISSIONING REGION","QU9",{"$f":"VLOOKUP(C75,'[2]From July 2022'!$D:$E,2,0)","v":"NHS BUCKINGHAMSHIRE, OXFORDSHIRE AND BERKSHIRE WEST INTEGRATED CARE BOARD"},"RNU","OXFORD HEALTH NHS FOUNDATION TRUST","Mental Health & Learning Disability and Mental Health, Learning Disability & Community Trusts",1002,6072,6.7445664227101361,6.8055555555555562,6.6009647371922826,6.8271789753825676]
["Y59","SOUTH EAST COMMISSIONING REGION","QU9",{"$f":"VLOOKUP(C76,'[2]From July 2022'!$D:$E,2,0)","v":"NHS BUCKINGHAMSHIRE, OXFORDSHIRE AND BERKSHIRE WEST INTEGRATED CARE BOARD"},"RTH","OXFORD UNIVERSITY HOSPITALS NHS FOUNDATION TRUST","Acute and Acute & Community Trusts",2220,13438,6.7976084697018342,6.9527027027027026,6.5764662212323683,6.8636564851704298]
["Y59","SOUTH EAST COMMISSIONING REGION","QU9",{"$f":"VLOOKUP(C77,'[2]From July 2022'!$D:$E,2,0)","v":"NHS BUCKINGHAMSHIRE, OXFORDSHIRE AND BERKSHIRE WEST INTEGRATED CARE BOARD"},"RHW","ROYAL BERKSHIRE NHS FOUNDATION TRUST","Acute and Acute & Community Trusts",143,5899,6.287878787878789,6.596736596736597,5.9673659673659678,6.2995337995337994]
["Y59","SOUTH EAST COMMISSIONING REGION","QU9",{"$f":"VLOOKUP(C78,'[2]From July 2022'!$D:$E,2,0)","v":"NHS BUCKINGHAMSHIRE, OXFORDSHIRE AND BERKSHIRE WEST INTEGRATED CARE BOARD"},"RYE","SOUTH CENTRAL AMBULANCE SERVICE NHS FOUNDATION TRUST","Ambulance Trusts",277,4516,5.4502607300441239,5.5655836341756926,5.0421179302045731,5.7430806257521052]
["Y60","MIDLANDS COMMISSIONING REGION","QGH",{"$f":"VLOOKUP(C79,'[2]From July 2022'!$D:$E,2,0)","v":"NHS HEREFORDSHIRE AND WORCESTERSHIRE INTEGRATED CARE BOARD"},"R1A","HEREFORDSHIRE AND WORCESTERSHIRE HEALTH AND CARE NHS TRUST","Mental Health & Learning Disability and Mental Health, Learning Disability & Community Trusts",372,4434,6.7913799923767053,6.588471849865952,6.7314566577301163,7.0542114695340494]
["Y60","MIDLANDS COMMISSIONING REGION","QGH",{"$f":"VLOOKUP(C80,'[2]From July 2022'!$D:$E,2,0)","v":"NHS HEREFORDSHIRE AND WORCESTERSHIRE INTEGRATED CARE BOARD"},"RWP","WORCESTERSHIRE ACUTE HOSPITALS NHS TRUST","Acute and Acute & Community Trusts",259,6633,6.1700986700986702,5.9845559845559846,6.1068211068211067,6.4189189189189193]
["Y60","MIDLANDS COMMISSIONING REGION","QGH",{"$f":"VLOOKUP(C81,'[2]From July 2022'!$D:$E,2,0)","v":"NHS HEREFORDSHIRE AND WORCESTERSHIRE INTEGRATED CARE BOARD"},"RLQ","WYE VALLEY NHS TRUST","Acute and Acute & Community Trusts",474,3642,6.3748241912798882,6.1040787623066111,6.5101969057665263,6.5101969057665263]
["Y60","MIDLANDS COMMISSIONING REGION","QHL",{"$f":"VLOOKUP(C82,'[2]From July 2022'!$D:$E,2,0)","v":"NHS BIRMINGHAM AND SOLIHULL INTEGRATED CARE BOARD"},"RYW","BIRMINGHAM COMMUNITY HEALTHCARE NHS FOUNDATION TRUST","Community Trusts",620,4888,6.3875448028673842,6.278225806451613,6.318548387096774,6.5658602150537639]
["Y60","MIDLANDS COMMISSIONING REGION","QHL",{"$f":"VLOOKUP(C83,'[2]From July 2022'!$D:$E,2,0)","v":"NHS BIRMINGHAM AND SOLIHULL INTEGRATED CARE BOARD"},"RRJ","THE ROYAL ORTHOPAEDIC HOSPITAL NHS FOUNDATION TRUST","Acute Specialist Trusts",408,1218,7.0731394774686587,7.6345381526104426,6.6404358353510897,6.9444444444444446]
["Y60","MIDLANDS COMMISSIONING REGION","QHL",{"$f":"VLOOKUP(C84,'[2]From July 2022'!$D:$E,2,0)","v":"NHS BIRMINGHAM AND SOLIHULL INTEGRATED CARE BOARD"},"RRK","UNIVERSITY HOSPITALS BIRMINGHAM NHS FOUNDATION TRUST","Acute and Acute & Community Trusts",1907,21568,5.8044655779808139,5.5943016955077791,5.7525331935709296,6.066561844863732]
["Y60","MIDLANDS COMMISSIONING REGION","QJ2",{"$f":"VLOOKUP(C85,'[2]From July 2022'!$D:$E,2,0)","v":"NHS DERBY AND DERBYSHIRE INTEGRATED CARE BOARD"},"RFS","CHESTERFIELD ROYAL HOSPITAL NHS FOUNDATION TRUST","Acute and Acute & Community Trusts",44,3968,6.7297979797979792,6.7613636363636367,6.7234848484848477,6.7045454545454541]
["Y60","MIDLANDS COMMISSIONING REGION","QJ2",{"$f":"VLOOKUP(C86,'[2]From July 2022'!$D:$E,2,0)","v":"NHS DERBY AND DERBYSHIRE INTEGRATED CARE BOARD"},"RY8","DERBYSHIRE COMMUNITY HEALTH SERVICES NHS FOUNDATION TRUST","Community Trusts",1422,4235,7.3915838046920932,7.8053035589672017,7.0434984880204707,7.325949367088608]
["Y60","MIDLANDS COMMISSIONING REGION","QJ2",{"$f":"VLOOKUP(C87,'[2]From July 2022'!$D:$E,2,0)","v":"NHS DERBY AND DERBYSHIRE INTEGRATED CARE BOARD"},"RXM","DERBYSHIRE HEALTHCARE NHS FOUNDATION TRUST","Mental Health & Learning Disability and Mental Health, Learning Disability & Community Trusts",828,2839,7.2513547513235634,7.3657852564102564,7.1197604790419158,7.2685185185185182]
["Y60","MIDLANDS COMMISSIONING REGION","QJ2",{"$f":"VLOOKUP(C88,'[2]From July 2022'!$D:$E,2,0)","v":"NHS DERBY AND DERBYSHIRE INTEGRATED CARE BOARD"},"RTG","UNIVERSITY HOSPITALS OF DERBY AND BURTON NHS FOUNDATION TRUST","Acute and Acute & Community Trusts",1817,13473,6.4188947093392139,6.6341077085533264,6.0470555861309849,6.575520833333333]
["Y60","MIDLANDS COMMISSIONING REGION","QJM",{"$f":"VLOOKUP(C89,'[2]From July 2022'!$D:$E,2,0)","v":"NHS LINCOLNSHIRE INTEGRATED CARE BOARD"},"RY5","LINCOLNSHIRE COMMUNITY HEALTH SERVICES NHS TRUST","Community Trusts",809,2245,7.233709421144094,7.4248042851256697,6.9714459295261237,7.3048780487804876]
["Y60","MIDLANDS COMMISSIONING REGION","QJM",{"$f":"VLOOKUP(C90,'[2]From July 2022'!$D:$E,2,0)","v":"NHS LINCOLNSHIRE INTEGRATED CARE BOARD"},"RP7","LINCOLNSHIRE PARTNERSHIP NHS FOUNDATION TRUST","Mental Health & Learning Disability and Mental Health, Learning Disability & Community Trusts",844,2351,7.2093849919789266,7.368680884676146,7.0253286929621037,7.23414539829853]
["Y60","MIDLANDS COMMISSIONING REGION","QJM",{"$f":"VLOOKUP(C91,'[2]From July 2022'!$D:$E,2,0)","v":"NHS LINCOLNSHIRE INTEGRATED CARE BOARD"},"RWD","UNITED LINCOLNSHIRE HOSPITALS NHS TRUST","Acute and Acute & Community Trusts",2141,8389,6.3670812543192659,6.0956718044527483,6.2066974595842952,6.7988744989207524]
["Y60","MIDLANDS COMMISSIONING REGION","QK1",{"$f":"VLOOKUP(C92,'[2]From July 2022'!$D:$E,2,0)","v":"NHS LEICESTER, LEICESTERSHIRE AND RUTLAND INTEGRATED CARE BOARD"},"RT5","LEICESTERSHIRE PARTNERSHIP NHS TRUST","Mental Health & Learning Disability and Mental Health, Learning Disability & Community Trusts",904,5558,6.399643559488692,6.132005899705014,6.4159292035398234,6.6509955752212386]
["Y60","MIDLANDS COMMISSIONING REGION","QK1",{"$f":"VLOOKUP(C93,'[2]From July 2022'!$D:$E,2,0)","v":"NHS LEICESTER, LEICESTERSHIRE AND RUTLAND INTEGRATED CARE BOARD"},"RWE","UNIVERSITY HOSPITALS OF LEICESTER NHS TRUST","Acute and Acute & Community Trusts",49,16152,7.029478458049887,7.2789115646258509,6.462585034013606,7.3469387755102042]
["Y60","MIDLANDS COMMISSIONING REGION","QNC",{"$f":"VLOOKUP(C94,'[2]From July 2022'!$D:$E,2,0)","v":"NHS STAFFORDSHIRE AND STOKE-ON-TRENT INTEGRATED CARE BOARD"},"RRE","MIDLANDS PARTNERSHIP NHS FOUNDATION TRUST","Mental Health & Learning Disability and Mental Health, Learning Disability & Community Trusts",826,9008,7.4184381924768941,7.5775896815800081,7.3335351089588379,7.3441897868918371]
["Y60","MIDLANDS COMMISSIONING REGION","QOC",{"$f":"VLOOKUP(C95,'[2]From July 2022'!$D:$E,2,0)","v":"NHS SHROPSHIRE, TELFORD AND WREKIN INTEGRATED CARE BOARD"},"R1D","SHROPSHIRE COMMUNITY HEALTH NHS TRUST","Community Trusts",17,1559,6.0457516339869279,6.3235294117647056,6.1764705882352944,5.6372549019607838]
["Y60","MIDLANDS COMMISSIONING REGION","QOC",{"$f":"VLOOKUP(C96,'[2]From July 2022'!$D:$E,2,0)","v":"NHS SHROPSHIRE, TELFORD AND WREKIN INTEGRATED CARE BOARD"},"RL1","THE ROBERT JONES AND AGNES HUNT ORTHOPAEDIC HOSPITAL NHS FOUNDATION TRUST","Acute Specialist Trusts",10,1618,5.6388888888888893,6.75,4.5833333333333339,5.5833333333333339]
["Y60","MIDLANDS COMMISSIONING REGION","QOC",{"$f":"VLOOKUP(C97,'[2]From July 2022'!$D:$E,2,0)","v":"NHS SHROPSHIRE, TELFORD AND WREKIN INTEGRATED CARE BOARD"},"RXW","THE SHREWSBURY AND TELFORD HOSPITAL NHS TRUST","Acute and Acute & Community Trusts",1193,6873,6.0249604172487663,5.4533389214864485,6.0603520536462696,6.561190276613579]
["Y60","MIDLANDS COMMISSIONING REGION","QPM",{"$f":"VLOOKUP(C98,'[2]From July 2022'!$D:$E,2,0)","v":"NHS NORTHAMPTONSHIRE INTEGRATED CARE BOARD"},"RNQ","KETTERING GENERAL HOSPITAL NHS FOUNDATION TRUST","Acute and Acute & Community Trusts",1244,4791,6.2287214044559542,6.168005354752343,6.2051899411449973,6.312968917470525]
["Y60","MIDLANDS COMMISSIONING REGION","QPM",{"$f":"VLOOKUP(C99,'[2]From July 2022'!$D:$E,2,0)","v":"NHS NORTHAMPTONSHIRE INTEGRATED CARE BOARD"},"RNS","NORTHAMPTON GENERAL HOSPITAL NHS TRUST","Acute and Acute & Community Trusts",1213,5584,6.1649011256258204,6.2235504259411929,6.1079156395508081,6.1632373113854593]
["Y60","MIDLANDS COMMISSIONING REGION","QPM",{"$f":"VLOOKUP(C100,'[2]From July 2022'!$D:$E,2,0)","v":"NHS NORTHAMPTONSHIRE INTEGRATED CARE BOARD"},"RP1","NORTHAMPTONSHIRE HEALTHCARE NHS FOUNDATION TRUST","Mental Health & Learning Disability and Mental Health, Learning Disability & Community Trusts",1494,4485,7.3146656313507465,7.555778670236502,7.0731573157315735,7.3150609080841633]
["Y60","MIDLANDS COMMISSIONING REGION","QT1",{"$f":"VLOOKUP(C101,'[2]From July 2022'!$D:$E,2,0)","v":"NHS NOTTINGHAM AND NOTTINGHAMSHIRE INTEGRATED CARE BOARD"},"RX9","EAST MIDLANDS AMBULANCE SERVICE NHS TRUST","Ambulance Trusts",203,3960,5.3188286808976466,5.4105090311986856,4.8973727422003286,5.6486042692939247]
["Y60","MIDLANDS COMMISSIONING REGION","QT1",{"$f":"VLOOKUP(C102,'[2]From July 2022'!$D:$E,2,0)","v":"NHS NOTTINGHAM AND NOTTINGHAMSHIRE INTEGRATED CARE BOARD"},"RX1","NOTTINGHAM UNIVERSITY HOSPITALS NHS TRUST","Acute and Acute & Community Trusts",2407,17419,6.3786179199556843,6.2834095000692418,6.3606148732862486,6.4918293865115642]
["Y60","MIDLANDS COMMISSIONING REGION","QT1",{"$f":"VLOOKUP(C103,'[2]From July 2022'!$D:$E,2,0)","v":"NHS NOTTINGHAM AND NOTTINGHAMSHIRE INTEGRATED CARE BOARD"},"RHA","NOTTINGHAMSHIRE HEALTHCARE NHS FOUNDATION TRUST","Mental Health & Learning Disability and Mental Health, Learning Disability & Community Trusts",716,8875,6.4481041254901141,6.5386405959031659,6.5074384007438395,6.2982333798233379]
["Y60","MIDLANDS COMMISSIONING REGION","QT1",{"$f":"VLOOKUP(C104,'[2]From July 2022'!$D:$E,2,0)","v":"NHS NOTTINGHAM AND NOTTINGHAMSHIRE INTEGRATED CARE BOARD"},"RK5","SHERWOOD FOREST HOSPITALS NHS FOUNDATION TRUST","Acute and Acute & Community Trusts",1302,5618,7.0959098980384283,7.6366641240783109,6.7447516641065022,6.906313905930471]
["Y60","MIDLANDS COMMISSIONING REGION","QUA",{"$f":"VLOOKUP(C105,'[2]From July 2022'!$D:$E,2,0)","v":"NHS BLACK COUNTRY INTEGRATED CARE BOARD"},"RXT","BIRMINGHAM AND SOLIHULL MENTAL HEALTH NHS FOUNDATION TRUST","Mental Health & Learning Disability and Mental Health, Learning Disability & Community Trusts",316,4438,6.0407876230661044,5.7885021097046412,5.9704641350210972,6.3633966244725739]
["Y60","MIDLANDS COMMISSIONING REGION","QUA",{"$f":"VLOOKUP(C106,'[2]From July 2022'!$D:$E,2,0)","v":"NHS BLACK COUNTRY INTEGRATED CARE BOARD"},"TAJ","BLACK COUNTRY HEALTHCARE NHS FOUNDATION TRUST","Mental Health & Learning Disability and Mental Health, Learning Disability & Community Trusts",508,3621,6.3194444444444455,6.215551181102362,6.2352362204724407,6.5075459317585302]
["Y60","MIDLANDS COMMISSIONING REGION","QUA",{"$f":"VLOOKUP(C107,'[2]From July 2022'!$D:$E,2,0)","v":"NHS BLACK COUNTRY INTEGRATED CARE BOARD"},"RYK","DUDLEY INTEGRATED HEALTH AND CARE NHS TRUST","Acute and Acute & Community Trusts",61,401,6.7987249544626591,6.9808743169398904,6.4890710382513657,6.9262295081967213]
["Y60","MIDLANDS COMMISSIONING REGION","QUA",{"$f":"VLOOKUP(C108,'[2]From July 2022'!$D:$E,2,0)","v":"NHS BLACK COUNTRY INTEGRATED CARE BOARD"},"RXK","SANDWELL AND WEST BIRMINGHAM HOSPITALS NHS TRUST","Acute and Acute & Community Trusts",1554,7301,6.6167515865839048,6.4876119092234017,6.4605621984476613,6.9020806520806524]
["Y60","MIDLANDS COMMISSIONING REGION","QUA",{"$f":"VLOOKUP(C109,'[2]From July 2022'!$D:$E,2,0)","v":"NHS BLACK COUNTRY INTEGRATED CARE BOARD"},"RNA","THE DUDLEY GROUP NHS FOUNDATION TRUST","Acute and Acute & Community Trusts",360,5467,6.435185185185186,6.3055555555555554,6.4629629629629628,6.5370370370370372]
["Y60","MIDLANDS COMMISSIONING REGION","QUA",{"$f":"VLOOKUP(C110,'[2]From July 2022'!$D:$E,2,0)","v":"NHS BLACK COUNTRY INTEGRATED CARE BOARD"},"RL4","THE ROYAL WOLVERHAMPTON NHS TRUST","Acute and Acute & Community Trusts",204,10270,6.7088779956427018,6.9893790849673199,6.5359477124183005,6.6013071895424842]
["Y60","MIDLANDS COMMISSIONING REGION","QUA",{"$f":"VLOOKUP(C111,'[2]From July 2022'!$D:$E,2,0)","v":"NHS BLACK COUNTRY INTEGRATED CARE BOARD"},"RBK","WALSALL HEALTHCARE NHS TRUST","Acute and Acute & Community Trusts",853,4595,6.21987755633711,6.1283704572098472,6.174286830793279,6.3569753810082066]
["Y60","MIDLANDS COMMISSIONING REGION","QWU",{"$f":"VLOOKUP(C112,'[2]From July 2022'!$D:$E,2,0)","v":"NHS COVENTRY AND WARWICKSHIRE INTEGRATED CARE BOARD"},"RYG","COVENTRY AND WARWICKSHIRE PARTNERSHIP NHS TRUST","Mental Health & Learning Disability and Mental Health, Learning Disability & Community Trusts",176,3972,6.5356691919191912,6.4393939393939386,6.4109848484848477,6.7566287878787881]
["Y60","MIDLANDS COMMISSIONING REGION","QWU",{"$f":"VLOOKUP(C113,'[2]From July 2022'!$D:$E,2,0)","v":"NHS COVENTRY AND WARWICKSHIRE INTEGRATED CARE BOARD"},"RLT","GEORGE ELIOT HOSPITAL NHS TRUST","Acute and Acute & Community Trusts",318,2659,6.2386443046820403,6.25,6.2080712788259964,6.2578616352201255]
["Y60","MIDLANDS COMMISSIONING REGION","QWU",{"$f":"VLOOKUP(C114,'[2]From July 2022'!$D:$E,2,0)","v":"NHS COVENTRY AND WARWICKSHIRE INTEGRATED CARE BOARD"},"RJC","SOUTH WARWICKSHIRE NHS FOUNDATION TRUST","Acute and Acute & Community Trusts",222,4891,6.786786786786787,7.1546546546546539,6.4527027027027026,6.7530030030030037]
["Y60","MIDLANDS COMMISSIONING REGION","QWU",{"$f":"VLOOKUP(C115,'[2]From July 2022'!$D:$E,2,0)","v":"NHS COVENTRY AND WARWICKSHIRE INTEGRATED CARE BOARD"},"RKB","UNIVERSITY HOSPITALS COVENTRY AND WARWICKSHIRE NHS TRUST","Acute and Acute & Community Trusts",77,9237,6.0137085137085142,6.1255411255411261,5.8225108225108224,6.0930735930735933]
["Y61","EAST OF ENGLAND COMMISSIONING REGION","QH8",{"$f":"VLOOKUP(C116,'[2]From July 2022'!$D:$E,2,0)","v":"NHS MID AND SOUTH ESSEX INTEGRATED CARE BOARD"},"R1L","ESSEX PARTNERSHIP UNIVERSITY NHS FOUNDATION TRUST","Mental Health & Learning Disability and Mental Health, Learning Disability & Community Trusts",449,5894,6.442712199950507,6.3882702301410541,6.3994060876020793,6.5404602821083886]
["Y61","EAST OF ENGLAND COMMISSIONING REGION","QHG",{"$f":"VLOOKUP(C117,'[2]From July 2022'!$D:$E,2,0)","v":"NHS BEDFORDSHIRE, LUTON AND MILTON KEYNES INTEGRATED CARE BOARD"},"RD8","MILTON KEYNES UNIVERSITY HOSPITAL NHS FOUNDATION TRUST","Acute and Acute & Community Trusts",162,3805,6.2019890260630994,6.1882716049382713,6.0956790123456788,6.32201646090535]
["Y61","EAST OF ENGLAND COMMISSIONING REGION","QJG",{"$f":"VLOOKUP(C118,'[2]From July 2022'!$D:$E,2,0)","v":"NHS SUFFOLK AND NORTH EAST ESSEX INTEGRATED CARE BOARD"},"RDE","EAST SUFFOLK AND NORTH ESSEX NHS FOUNDATION TRUST","Acute and Acute & Community Trusts",47,11162,5.7328605200945626,5.4432624113475176,5.9397163120567376,5.8156028368794326]
["Y61","EAST OF ENGLAND COMMISSIONING REGION","QJG",{"$f":"VLOOKUP(C119,'[2]From July 2022'!$D:$E,2,0)","v":"NHS SUFFOLK AND NORTH EAST ESSEX INTEGRATED CARE BOARD"},"RGR","WEST SUFFOLK NHS FOUNDATION TRUST","Acute and Acute & Community Trusts",1321,4779,6.9459679610457927,7.0546303305576581,6.753824931025834,7.0294486215538843]
["Y61","EAST OF ENGLAND COMMISSIONING REGION","QM7",{"$f":"VLOOKUP(C120,'[2]From July 2022'!$D:$E,2,0)","v":"NHS HERTFORDSHIRE AND WEST ESSEX INTEGRATED CARE BOARD"},"RWH","EAST AND NORTH HERTFORDSHIRE NHS TRUST","Acute and Acute & Community Trusts",120,6324,6.208333333333333,5.9097222222222223,6.354166666666667,6.3611111111111116]
["Y61","EAST OF ENGLAND COMMISSIONING REGION","QM7",{"$f":"VLOOKUP(C121,'[2]From July 2022'!$D:$E,2,0)","v":"NHS HERTFORDSHIRE AND WEST ESSEX INTEGRATED CARE BOARD"},"RY4","HERTFORDSHIRE COMMUNITY NHS TRUST","Community Trusts",117,2680,6.7331433998100669,6.7307692307692308,6.5811965811965809,6.8874643874643882]
["Y61","EAST OF ENGLAND COMMISSIONING REGION","QM7",{"$f":"VLOOKUP(C122,'[2]From July 2022'!$D:$E,2,0)","v":"NHS HERTFORDSHIRE AND WEST ESSEX INTEGRATED CARE BOARD"},"RWR","HERTFORDSHIRE PARTNERSHIP UNIVERSITY NHS FOUNDATION TRUST","Mental Health & Learning Disability and Mental Health, Learning Disability & Community Trusts",646,3659,7.2474260928609624,7.4948717948717958,6.9930340557275539,7.2543724279835384]
["Y61","EAST OF ENGLAND COMMISSIONING REGION","QM7",{"$f":"VLOOKUP(C123,'[2]From July 2022'!$D:$E,2,0)","v":"NHS HERTFORDSHIRE AND WEST ESSEX INTEGRATED CARE BOARD"},"RQW","THE PRINCESS ALEXANDRA HOSPITAL NHS TRUST","Acute and Acute & Community Trusts",267,3739,6.1548064918851439,5.4868913857677901,6.4076154806491878,6.5699126092384521]
["Y61","EAST OF ENGLAND COMMISSIONING REGION","QM7",{"$f":"VLOOKUP(C124,'[2]From July 2022'!$D:$E,2,0)","v":"NHS HERTFORDSHIRE AND WEST ESSEX INTEGRATED CARE BOARD"},"RWG","WEST HERTFORDSHIRE TEACHING HOSPITALS NHS TRUST","Acute and Acute & Community Trusts",645,5221,6.0288544358311809,5.7416020671834627,5.9547803617571065,6.3901808785529717]
["Y61","EAST OF ENGLAND COMMISSIONING REGION","QMM",{"$f":"VLOOKUP(C125,'[2]From July 2022'!$D:$E,2,0)","v":"NHS NORFOLK AND WAVENEY INTEGRATED CARE BOARD"},"RM1","NORFOLK AND NORWICH UNIVERSITY HOSPITALS NHS FOUNDATION TRUST","Acute and Acute & Community Trusts",186,8926,5.4256272401433705,4.8431899641577063,5.470430107526882,5.9632616487455206]
["Y61","EAST OF ENGLAND COMMISSIONING REGION","QMM",{"$f":"VLOOKUP(C126,'[2]From July 2022'!$D:$E,2,0)","v":"NHS NORFOLK AND WAVENEY INTEGRATED CARE BOARD"},"RMY","NORFOLK AND SUFFOLK NHS FOUNDATION TRUST","Mental Health & Learning Disability and Mental Health, Learning Disability & Community Trusts",1083,4681,6.5228835537152712,6.0026161895967984,6.7020795660036168,6.8639549055453992]
["Y61","EAST OF ENGLAND COMMISSIONING REGION","QMM",{"$f":"VLOOKUP(C127,'[2]From July 2022'!$D:$E,2,0)","v":"NHS NORFOLK AND WAVENEY INTEGRATED CARE BOARD"},"RY3","NORFOLK COMMUNITY HEALTH AND CARE NHS TRUST","Community Trusts",276,2363,7.0923913043478253,7.2644927536231885,6.9172705314009661,7.095410628019323]
["Y61","EAST OF ENGLAND COMMISSIONING REGION","QMM",{"$f":"VLOOKUP(C128,'[2]From July 2022'!$D:$E,2,0)","v":"NHS NORFOLK AND WAVENEY INTEGRATED CARE BOARD"},"RCX","THE QUEEN ELIZABETH HOSPITAL, KING'S LYNN, NHS FOUNDATION TRUST","Acute and Acute & Community Trusts",406,3741,5.8223864258347007,5.1990968801313633,5.8415435139573066,6.4265188834154348]
["Y61","EAST OF ENGLAND COMMISSIONING REGION","QUE",{"$f":"VLOOKUP(C129,'[2]From July 2022'!$D:$E,2,0)","v":"NHS CAMBRIDGESHIRE AND PETERBOROUGH INTEGRATED CARE BOARD"},"RGT","CAMBRIDGE UNIVERSITY HOSPITALS NHS FOUNDATION TRUST","Acute and Acute & Community Trusts",3724,11468,6.8465207532191812,7.3111349803079131,6.3430356193514088,6.8853916599982217]
["Y61","EAST OF ENGLAND COMMISSIONING REGION","QUE",{"$f":"VLOOKUP(C130,'[2]From July 2022'!$D:$E,2,0)","v":"NHS CAMBRIDGESHIRE AND PETERBOROUGH INTEGRATED CARE BOARD"},"RT1","CAMBRIDGESHIRE AND PETERBOROUGH NHS FOUNDATION TRUST","Mental Health & Learning Disability and Mental Health, Learning Disability & Community Trusts",2275,4368,7.2857142857142856,7.3571428571428568,7.1681318681318684,7.3318681318681316]
["Y61","EAST OF ENGLAND COMMISSIONING REGION","QUE",{"$f":"VLOOKUP(C131,'[2]From July 2022'!$D:$E,2,0)","v":"NHS CAMBRIDGESHIRE AND PETERBOROUGH INTEGRATED CARE BOARD"},"RYV","CAMBRIDGESHIRE COMMUNITY SERVICES NHS TRUST","Community Trusts",89,2775,7.4126092384519353,7.9213483146067416,6.8164794007490634,7.5]
["Y61","EAST OF ENGLAND COMMISSIONING REGION","QUE",{"$f":"VLOOKUP(C132,'[2]From July 2022'!$D:$E,2,0)","v":"NHS CAMBRIDGESHIRE AND PETERBOROUGH INTEGRATED CARE BOARD"},"RYC","EAST OF ENGLAND AMBULANCE SERVICE NHS TRUST","Ambulance Trusts",1120,5575,4.902281746031746,4.8303571428571432,4.4055059523809526,5.4709821428571432]
["Y61","EAST OF ENGLAND COMMISSIONING REGION","QUE",{"$f":"VLOOKUP(C133,'[2]From July 2022'!$D:$E,2,0)","v":"NHS CAMBRIDGESHIRE AND PETERBOROUGH INTEGRATED CARE BOARD"},"RGN","NORTH WEST ANGLIA NHS FOUNDATION TRUST","Acute and Acute & Community Trusts",359,6935,5.6979263385948613,5.4015784586815228,5.6429897864438257,6.0492107706592382]
["Y62","NORTH WEST COMMISSIONING REGION","QE1",{"$f":"VLOOKUP(C134,'[2]From July 2022'!$D:$E,2,0)","v":"NHS LANCASHIRE AND SOUTH CUMBRIA INTEGRATED CARE BOARD"},"RXL","BLACKPOOL TEACHING HOSPITALS NHS FOUNDATION TRUST","Acute and Acute & Community Trusts",265,7856,6.7547169811320762,6.5188679245283021,6.8301886792452828,6.9150943396226419]
["Y62","NORTH WEST COMMISSIONING REGION","QE1",{"$f":"VLOOKUP(C135,'[2]From July 2022'!$D:$E,2,0)","v":"NHS LANCASHIRE AND SOUTH CUMBRIA INTEGRATED CARE BOARD"},"RXR","EAST LANCASHIRE HOSPITALS NHS TRUST","Acute and Acute & Community Trusts",27,9614,6.4917695473251031,6.666666666666667,6.2345679012345681,6.5740740740740744]
["Y62","NORTH WEST COMMISSIONING REGION","QE1",{"$f":"VLOOKUP(C136,'[2]From July 2022'!$D:$E,2,0)","v":"NHS LANCASHIRE AND SOUTH CUMBRIA INTEGRATED CARE BOARD"},"RW5","LANCASHIRE & SOUTH CUMBRIA NHS FOUNDATION TRUST","Mental Health & Learning Disability and Mental Health, Learning Disability & Community Trusts",1070,7066,6.8169781931464177,6.6160436137071654,6.7702492211838008,7.064641744548287]
["Y62","NORTH WEST COMMISSIONING REGION","QE1",{"$f":"VLOOKUP(C137,'[2]From July 2022'!$D:$E,2,0)","v":"NHS LANCASHIRE AND SOUTH CUMBRIA INTEGRATED CARE BOARD"},"RXN","LANCASHIRE TEACHING HOSPITALS NHS FOUNDATION TRUST","Acute and Acute & Community Trusts",1370,9294,6.7704288422525742,6.6867396593673973,6.7225791101594101,6.9019677572309144]
["Y62","NORTH WEST COMMISSIONING REGION","QE1",{"$f":"VLOOKUP(C138,'[2]From July 2022'!$D:$E,2,0)","v":"NHS LANCASHIRE AND SOUTH CUMBRIA INTEGRATED CARE BOARD"},"RTX","UNIVERSITY HOSPITALS OF MORECAMBE BAY NHS FOUNDATION TRUST","Acute and Acute & Community Trusts",348,7106,6.4838761174968065,6.240421455938697,6.6235632183908049,6.5876436781609193]
["Y62","NORTH WEST COMMISSIONING REGION","QOP",{"$f":"VLOOKUP(C139,'[2]From July 2022'!$D:$E,2,0)","v":"NHS GREATER MANCHESTER INTEGRATED CARE BOARD"},"RMC","BOLTON NHS FOUNDATION TRUST","Acute and Acute & Community Trusts",1200,6357,7.2497685185185183,7.2868055555555546,7.135416666666667,7.3270833333333334]
["Y62","NORTH WEST COMMISSIONING REGION","QOP",{"$f":"VLOOKUP(C140,'[2]From July 2022'!$D:$E,2,0)","v":"NHS GREATER MANCHESTER INTEGRATED CARE BOARD"},"RXV","GREATER MANCHESTER MENTAL HEALTH NHS FOUNDATION TRUST","Mental Health & Learning Disability and Mental Health, Learning Disability & Community Trusts",1309,6258,6.6608739806680317,6.403743315508021,6.7615635997988948,6.8173150266971776]
["Y62","NORTH WEST COMMISSIONING REGION","QOP",{"$f":"VLOOKUP(C141,'[2]From July 2022'!$D:$E,2,0)","v":"NHS GREATER MANCHESTER INTEGRATED CARE BOARD"},"R0A","MANCHESTER UNIVERSITY NHS FOUNDATION TRUST","Acute and Acute & Community Trusts",3639,27674,6.5333971768973846,6.5258471881529934,6.3845486111111107,6.6897957314280481]
["Y62","NORTH WEST COMMISSIONING REGION","QOP",{"$f":"VLOOKUP(C142,'[2]From July 2022'!$D:$E,2,0)","v":"NHS GREATER MANCHESTER INTEGRATED CARE BOARD"},"RX7","NORTH WEST AMBULANCE SERVICE NHS TRUST","Ambulance Trusts",850,6686,6.1802687125751179,6.450980392156862,5.69898753894081,6.3908382066276808]
["Y62","NORTH WEST COMMISSIONING REGION","QOP",{"$f":"VLOOKUP(C143,'[2]From July 2022'!$D:$E,2,0)","v":"NHS GREATER MANCHESTER INTEGRATED CARE BOARD"},"RM3","NORTHERN CARE ALLIANCE NHS FOUNDATION TRUST","Acute and Acute & Community Trusts",2227,19067,6.1515242229207203,6.1435413860200567,6.1427929950606197,6.1682382876814845]
["Y62","NORTH WEST COMMISSIONING REGION","QOP",{"$f":"VLOOKUP(C144,'[2]From July 2022'!$D:$E,2,0)","v":"NHS GREATER MANCHESTER INTEGRATED CARE BOARD"},"RT2","PENNINE CARE NHS FOUNDATION TRUST","Mental Health & Learning Disability and Mental Health, Learning Disability & Community Trusts",204,3614,6.3248910675381262,6.0702614379084965,6.409313725490196,6.4950980392156863]
["Y62","NORTH WEST COMMISSIONING REGION","QOP",{"$f":"VLOOKUP(C145,'[2]From July 2022'!$D:$E,2,0)","v":"NHS GREATER MANCHESTER INTEGRATED CARE BOARD"},"RMP","TAMESIDE AND GLOSSOP INTEGRATED CARE NHS FOUNDATION TRUST","Acute and Acute & Community Trusts",66,4061,6.0101010101010104,5.5808080808080804,5.9217171717171713,6.5277777777777777]
["Y62","NORTH WEST COMMISSIONING REGION","QOP",{"$f":"VLOOKUP(C146,'[2]From July 2022'!$D:$E,2,0)","v":"NHS GREATER MANCHESTER INTEGRATED CARE BOARD"},"RBV","THE CHRISTIE NHS FOUNDATION TRUST","Acute Specialist Trusts",122,3271,6.4981785063752282,7.056010928961749,6.3456284153005464,6.0928961748633883]
["Y62","NORTH WEST COMMISSIONING REGION","QOP",{"$f":"VLOOKUP(C147,'[2]From July 2022'!$D:$E,2,0)","v":"NHS GREATER MANCHESTER INTEGRATED CARE BOARD"},"RRF","WRIGHTINGTON, WIGAN AND LEIGH NHS FOUNDATION TRUST","Acute and Acute & Community Trusts",91,6789,6.7979242979242978,6.7673992673992682,6.7948717948717956,6.8315018315018312]
["Y62","NORTH WEST COMMISSIONING REGION","QYG",{"$f":"VLOOKUP(C148,'[2]From July 2022'!$D:$E,2,0)","v":"NHS CHESHIRE AND MERSEYSIDE INTEGRATED CARE BOARD"},"RBS","ALDER HEY CHILDREN'S NHS FOUNDATION TRUST","Acute and Acute & Community Trusts",340,4147,6.9150326797385624,7.4068627450980395,6.4950980392156863,6.8431372549019605]
["Y62","NORTH WEST COMMISSIONING REGION","QYG",{"$f":"VLOOKUP(C149,'[2]From July 2022'!$D:$E,2,0)","v":"NHS CHESHIRE AND MERSEYSIDE INTEGRATED CARE BOARD"},"RY2","BRIDGEWATER COMMUNITY HEALTHCARE NHS FOUNDATION TRUST","Community Trusts",228,1484,6.628898635477583,6.6520467836257318,6.4619883040935671,6.7726608187134509]
["Y62","NORTH WEST COMMISSIONING REGION","QYG",{"$f":"VLOOKUP(C150,'[2]From July 2022'!$D:$E,2,0)","v":"NHS CHESHIRE AND MERSEYSIDE INTEGRATED CARE BOARD"},"RXA","CHESHIRE AND WIRRAL PARTNERSHIP NHS FOUNDATION TRUST","Mental Health & Learning Disability and Mental Health, Learning Disability & Community Trusts",680,4047,7.1260372215550767,7.2290759554910498,6.8978102189781021,7.2512254901960782]
["Y62","NORTH WEST COMMISSIONING REGION","QYG",{"$f":"VLOOKUP(C151,'[2]From July 2022'!$D:$E,2,0)","v":"NHS CHESHIRE AND MERSEYSIDE INTEGRATED CARE BOARD"},"RJR","COUNTESS OF CHESTER HOSPITAL NHS FOUNDATION TRUST","Acute and Acute & Community Trusts",329,4488,5.6019925700776767,5.1089159067882468,5.7168186423505567,5.9802431610942248]
["Y62","NORTH WEST COMMISSIONING REGION","QYG",{"$f":"VLOOKUP(C152,'[2]From July 2022'!$D:$E,2,0)","v":"NHS CHESHIRE AND MERSEYSIDE INTEGRATED CARE BOARD"},"RJN","EAST CHESHIRE NHS TRUST","Acute and Acute & Community Trusts",49,2549,6.2585034013605449,5.9013605442176873,6.2414965986394551,6.6326530612244898]
["Y62","NORTH WEST COMMISSIONING REGION","QYG",{"$f":"VLOOKUP(C153,'[2]From July 2022'!$D:$E,2,0)","v":"NHS CHESHIRE AND MERSEYSIDE INTEGRATED CARE BOARD"},"RBQ","LIVERPOOL HEART AND CHEST HOSPITAL NHS FOUNDATION TRUST","Acute Specialist Trusts",48,1888,7.3495370370370372,8.0555555555555554,6.8923611111111107,7.1006944444444438]
["Y62","NORTH WEST COMMISSIONING REGION","QYG",{"$f":"VLOOKUP(C154,'[2]From July 2022'!$D:$E,2,0)","v":"NHS CHESHIRE AND MERSEYSIDE INTEGRATED CARE BOARD"},"REM","LIVERPOOL UNIVERSITY HOSPITALS NHS FOUNDATION TRUST","Acute and Acute & Community Trusts",1684,13593,6.3033087039462332,6.2838773491592486,6.1306014150943398,6.4954473475851149]
["Y62","NORTH WEST COMMISSIONING REGION","QYG",{"$f":"VLOOKUP(C155,'[2]From July 2022'!$D:$E,2,0)","v":"NHS CHESHIRE AND MERSEYSIDE INTEGRATED CARE BOARD"},"REP","LIVERPOOL WOMEN'S NHS FOUNDATION TRUST","Acute Specialist Trusts",201,1598,5.9148050007610911,5.7587064676616917,5.625,6.3607085346215788]
["Y62","NORTH WEST COMMISSIONING REGION","QYG",{"$f":"VLOOKUP(C156,'[2]From July 2022'!$D:$E,2,0)","v":"NHS CHESHIRE AND MERSEYSIDE INTEGRATED CARE BOARD"},"RW4","MERSEY CARE NHS FOUNDATION TRUST","Mental Health & Learning Disability and Mental Health, Learning Disability & Community Trusts",2715,10479,7.0201437894184684,6.9157791651364917,6.8753836709637817,7.26926853215513]
["Y62","NORTH WEST COMMISSIONING REGION","QYG",{"$f":"VLOOKUP(C157,'[2]From July 2022'!$D:$E,2,0)","v":"NHS CHESHIRE AND MERSEYSIDE INTEGRATED CARE BOARD"},"RBT","MID CHESHIRE HOSPITALS NHS FOUNDATION TRUST","Acute and Acute & Community Trusts",337,5119,6.7969007583250907,6.8199802176063304,6.7012858555885266,6.8694362017804158]
["Y62","NORTH WEST COMMISSIONING REGION","QYG",{"$f":"VLOOKUP(C158,'[2]From July 2022'!$D:$E,2,0)","v":"NHS CHESHIRE AND MERSEYSIDE INTEGRATED CARE BOARD"},"RVY","SOUTHPORT AND ORMSKIRK HOSPITAL NHS TRUST","Acute and Acute & Community Trusts",247,3339,6.2714439946018894,5.64,6.1466666666666674,7.0276653171390011]
["Y62","NORTH WEST COMMISSIONING REGION","QYG",{"$f":"VLOOKUP(C159,'[2]From July 2022'!$D:$E,2,0)","v":"NHS CHESHIRE AND MERSEYSIDE INTEGRATED CARE BOARD"},"RBN","ST HELENS AND KNOWSLEY TEACHING HOSPITALS NHS TRUST","Acute and Acute & Community Trusts",241,6818,6.4430613185799901,6.7219917012448134,6.2586445366528354,6.3485477178423233]
["Y62","NORTH WEST COMMISSIONING REGION","QYG",{"$f":"VLOOKUP(C160,'[2]From July 2022'!$D:$E,2,0)","v":"NHS CHESHIRE AND MERSEYSIDE INTEGRATED CARE BOARD"},"REN","THE CLATTERBRIDGE CANCER CENTRE NHS FOUNDATION TRUST","Acute Specialist Trusts",393,1629,7.1614362454057101,7.6081424936386766,6.9274809160305342,6.9486853265479223]
["Y62","NORTH WEST COMMISSIONING REGION","QYG",{"$f":"VLOOKUP(C161,'[2]From July 2022'!$D:$E,2,0)","v":"NHS CHESHIRE AND MERSEYSIDE INTEGRATED CARE BOARD"},"RET","THE WALTON CENTRE NHS FOUNDATION TRUST","Acute Specialist Trusts",84,1515,7.106481481481481,7.4404761904761907,7.0337301587301591,6.8452380952380949]
["Y62","NORTH WEST COMMISSIONING REGION","QYG",{"$f":"VLOOKUP(C162,'[2]From July 2022'!$D:$E,2,0)","v":"NHS CHESHIRE AND MERSEYSIDE INTEGRATED CARE BOARD"},"RWW","WARRINGTON AND HALTON TEACHING HOSPITALS NHS FOUNDATION TRUST","Acute and Acute & Community Trusts",65,4380,6.4401709401709404,6.3333333333333339,6.7307692307692308,6.2564102564102564]
["Y62","NORTH WEST COMMISSIONING REGION","QYG",{"$f":"VLOOKUP(C163,'[2]From July 2022'!$D:$E,2,0)","v":"NHS CHESHIRE AND MERSEYSIDE INTEGRATED CARE BOARD"},"RY7","WIRRAL COMMUNITY HEALTH AND CARE NHS FOUNDATION TRUST","Community Trusts",199,1904,6.4740368509212729,6.5368509212730315,6.4740368509212729,6.4112227805695134]
["Y62","NORTH WEST COMMISSIONING REGION","QYG",{"$f":"VLOOKUP(C164,'[2]From July 2022'!$D:$E,2,0)","v":"NHS CHESHIRE AND MERSEYSIDE INTEGRATED CARE BOARD"},"RBL","WIRRAL UNIVERSITY TEACHING HOSPITAL NHS FOUNDATION TRUST","Acute and Acute & Community Trusts",28,6619,5.1984126984126986,4.8809523809523805,4.9107142857142856,5.8035714285714288]
["Y63","NORTH EAST AND YORKSHIRE COMMISSIONING REGION","QF7",{"$f":"VLOOKUP(C165,'[2]From July 2022'!$D:$E,2,0)","v":"NHS SOUTH YORKSHIRE INTEGRATED CARE BOARD"},"RFF","BARNSLEY HOSPITAL NHS FOUNDATION TRUST","Acute and Acute & Community Trusts",341,4083,6.5795047246660152,6.5102639296187688,6.5762463343108504,6.6520039100684265]
["Y63","NORTH EAST AND YORKSHIRE COMMISSIONING REGION","QF7",{"$f":"VLOOKUP(C166,'[2]From July 2022'!$D:$E,2,0)","v":"NHS SOUTH YORKSHIRE INTEGRATED CARE BOARD"},"RP5","DONCASTER AND BASSETLAW TEACHING HOSPITALS NHS FOUNDATION TRUST","Acute and Acute & Community Trusts",495,6583,6.0308641975308648,5.9713804713804715,5.9326599326599325,6.1885521885521886]
["Y63","NORTH EAST AND YORKSHIRE COMMISSIONING REGION","QF7",{"$f":"VLOOKUP(C167,'[2]From July 2022'!$D:$E,2,0)","v":"NHS SOUTH YORKSHIRE INTEGRATED CARE BOARD"},"RXE","ROTHERHAM DONCASTER AND SOUTH HUMBER NHS FOUNDATION TRUST","Mental Health & Learning Disability and Mental Health, Learning Disability & Community Trusts",127,3572,6.8963254593175849,6.9619422572178475,6.7847769028871392,6.9422572178477688]
["Y63","NORTH EAST AND YORKSHIRE COMMISSIONING REGION","QF7",{"$f":"VLOOKUP(C168,'[2]From July 2022'!$D:$E,2,0)","v":"NHS SOUTH YORKSHIRE INTEGRATED CARE BOARD"},"RCU","SHEFFIELD CHILDREN'S NHS FOUNDATION TRUST","Acute and Acute & Community Trusts",119,3724,6.9444444444444455,7.3389355742296924,6.757703081232493,6.7366946778711485]
["Y63","NORTH EAST AND YORKSHIRE COMMISSIONING REGION","QF7",{"$f":"VLOOKUP(C169,'[2]From July 2022'!$D:$E,2,0)","v":"NHS SOUTH YORKSHIRE INTEGRATED CARE BOARD"},"TAH","SHEFFIELD HEALTH & SOCIAL CARE NHS FOUNDATION TRUST","Mental Health & Learning Disability and Mental Health, Learning Disability & Community Trusts",190,2529,6.2383040935672511,5.6140350877192988,6.4868421052631575,6.6140350877192988]
["Y63","NORTH EAST AND YORKSHIRE COMMISSIONING REGION","QF7",{"$f":"VLOOKUP(C170,'[2]From July 2022'!$D:$E,2,0)","v":"NHS SOUTH YORKSHIRE INTEGRATED CARE BOARD"},"RHQ","SHEFFIELD TEACHING HOSPITALS NHS FOUNDATION TRUST","Acute and Acute & Community Trusts",809,17279,6.2944650460101634,6.5234857849196537,6.0805521219612695,6.2793572311495671]
["Y63","NORTH EAST AND YORKSHIRE COMMISSIONING REGION","QF7",{"$f":"VLOOKUP(C171,'[2]From July 2022'!$D:$E,2,0)","v":"NHS SOUTH YORKSHIRE INTEGRATED CARE BOARD"},"RFR","THE ROTHERHAM NHS FOUNDATION TRUST","Acute and Acute & Community Trusts",613,4700,6.2266630415080657,5.9081022294725392,6.3607939097335509,6.411092985318108]
["Y63","NORTH EAST AND YORKSHIRE COMMISSIONING REGION","QHM",{"$f":"VLOOKUP(C172,'[2]From July 2022'!$D:$E,2,0)","v":"NHS NORTH EAST AND NORTH CUMBRIA INTEGRATED CARE BOARD"},"RXP","COUNTY DURHAM AND DARLINGTON NHS FOUNDATION TRUST","Acute and Acute & Community Trusts",1080,7667,6.2386831275720169,6.1288580246913584,6.091049382716049,6.4961419753086416]
["Y63","NORTH EAST AND YORKSHIRE COMMISSIONING REGION","QHM",{"$f":"VLOOKUP(C173,'[2]From July 2022'!$D:$E,2,0)","v":"NHS NORTH EAST AND NORTH CUMBRIA INTEGRATED CARE BOARD"},"RX4","CUMBRIA, NORTHUMBERLAND, TYNE AND WEAR NHS FOUNDATION TRUST","Mental Health & Learning Disability and Mental Health, Learning Disability & Community Trusts",341,7475,6.7106549364613883,6.6202346041055717,6.6593352883675472,6.8523949169110452]
["Y63","NORTH EAST AND YORKSHIRE COMMISSIONING REGION","QHM",{"$f":"VLOOKUP(C174,'[2]From July 2022'!$D:$E,2,0)","v":"NHS NORTH EAST AND NORTH CUMBRIA INTEGRATED CARE BOARD"},"RR7","GATESHEAD HEALTH NHS FOUNDATION TRUST","Acute and Acute & Community Trusts",85,4937,6.3529411764705879,6.4803921568627452,6.4411764705882355,6.1372549019607838]
["Y63","NORTH EAST AND YORKSHIRE COMMISSIONING REGION","QHM",{"$f":"VLOOKUP(C175,'[2]From July 2022'!$D:$E,2,0)","v":"NHS NORTH EAST AND NORTH CUMBRIA INTEGRATED CARE BOARD"},"RNN","NORTH CUMBRIA INTEGRATED CARE NHS FOUNDATION TRUST","Acute and Acute & Community Trusts",16,6701,5.6597222222222214,4.583333333333333,6.40625,5.989583333333333]
["Y63","NORTH EAST AND YORKSHIRE COMMISSIONING REGION","QHM",{"$f":"VLOOKUP(C176,'[2]From July 2022'!$D:$E,2,0)","v":"NHS NORTH EAST AND NORTH CUMBRIA INTEGRATED CARE BOARD"},"RX6","NORTH EAST AMBULANCE SERVICE NHS FOUNDATION TRUST","Ambulance Trusts",225,2941,5.3419753086419748,5.7629629629629635,4.7777777777777777,5.4851851851851858]
["Y63","NORTH EAST AND YORKSHIRE COMMISSIONING REGION","QHM",{"$f":"VLOOKUP(C177,'[2]From July 2022'!$D:$E,2,0)","v":"NHS NORTH EAST AND NORTH CUMBRIA INTEGRATED CARE BOARD"},"RVW","NORTH TEES AND HARTLEPOOL NHS FOUNDATION TRUST","Acute and Acute & Community Trusts",193,5503,6.3126079447322967,6.3687392055267704,6.2392055267702942,6.3298791018998273]
["Y63","NORTH EAST AND YORKSHIRE COMMISSIONING REGION","QHM",{"$f":"VLOOKUP(C178,'[2]From July 2022'!$D:$E,2,0)","v":"NHS NORTH EAST AND NORTH CUMBRIA INTEGRATED CARE BOARD"},"RTF","NORTHUMBRIA HEALTHCARE NHS FOUNDATION TRUST","Acute and Acute & Community Trusts",3844,8414,7.0597756966123262,7.6031911203607354,6.661680541103018,6.9144554283732225]
["Y63","NORTH EAST AND YORKSHIRE COMMISSIONING REGION","QHM",{"$f":"VLOOKUP(C179,'[2]From July 2022'!$D:$E,2,0)","v":"NHS NORTH EAST AND NORTH CUMBRIA INTEGRATED CARE BOARD"},"RTR","SOUTH TEES HOSPITALS NHS FOUNDATION TRUST","Acute and Acute & Community Trusts",10,9570,6.833333333333333,6.833333333333333,6.833333333333333,6.833333333333333]
["Y63","NORTH EAST AND YORKSHIRE COMMISSIONING REGION","QHM",{"$f":"VLOOKUP(C180,'[2]From July 2022'!$D:$E,2,0)","v":"NHS NORTH EAST AND NORTH CUMBRIA INTEGRATED CARE BOARD"},"R0B","SOUTH TYNESIDE AND SUNDERLAND NHS FOUNDATION TRUST","Acute and Acute & Community Trusts",430,8896,6.3417312661498704,6.4050387596899219,6.1492248062015502,6.4709302325581399]
["Y63","NORTH EAST AND YORKSHIRE COMMISSIONING REGION","QHM",{"$f":"VLOOKUP(C181,'[2]From July 2022'!$D:$E,2,0)","v":"NHS NORTH EAST AND NORTH CUMBRIA INTEGRATED CARE BOARD"},"RX3","TEES, ESK AND WEAR VALLEYS NHS FOUNDATION TRUST","Mental Health & Learning Disability and Mental Health, Learning Disability & Community Trusts",2054,7604,6.7482203115554036,6.5238558909444988,6.774490941157608,6.9463141025641031]
["Y63","NORTH EAST AND YORKSHIRE COMMISSIONING REGION","QHM",{"$f":"VLOOKUP(C182,'[2]From July 2022'!$D:$E,2,0)","v":"NHS NORTH EAST AND NORTH CUMBRIA INTEGRATED CARE BOARD"},"RTD","THE NEWCASTLE UPON TYNE HOSPITALS NHS FOUNDATION TRUST","Acute and Acute & Community Trusts",535,16274,6.3888888888888884,6.9049844236760123,6.0171339563862922,6.2445482866043616]
["Y63","NORTH EAST AND YORKSHIRE COMMISSIONING REGION","QOQ",{"$f":"VLOOKUP(C183,'[2]From July 2022'!$D:$E,2,0)","v":"NHS HUMBER AND NORTH YORKSHIRE INTEGRATED CARE BOARD"},"RCD","HARROGATE AND DISTRICT NHS FOUNDATION TRUST","Acute and Acute & Community Trusts",1220,4729,6.9069495618427617,6.7199453551912569,6.7741496598639461,7.2267536704730828]
["Y63","NORTH EAST AND YORKSHIRE COMMISSIONING REGION","QOQ",{"$f":"VLOOKUP(C184,'[2]From July 2022'!$D:$E,2,0)","v":"NHS HUMBER AND NORTH YORKSHIRE INTEGRATED CARE BOARD"},"RWA","HULL UNIVERSITY TEACHING HOSPITALS NHS TRUST","Acute and Acute & Community Trusts",1473,8825,6.4635847864566811,6.4030323602625021,6.335,6.6527219991075413]
["Y63","NORTH EAST AND YORKSHIRE COMMISSIONING REGION","QOQ",{"$f":"VLOOKUP(C185,'[2]From July 2022'!$D:$E,2,0)","v":"NHS HUMBER AND NORTH YORKSHIRE INTEGRATED CARE BOARD"},"RV9","HUMBER TEACHING NHS FOUNDATION TRUST","Mental Health & Learning Disability and Mental Health, Learning Disability & Community Trusts",591,3062,7.0836682078025675,7.0292299044406965,7.0489038785834737,7.1728708403835313]
["Y63","NORTH EAST AND YORKSHIRE COMMISSIONING REGION","QOQ",{"$f":"VLOOKUP(C186,'[2]From July 2022'!$D:$E,2,0)","v":"NHS HUMBER AND NORTH YORKSHIRE INTEGRATED CARE BOARD"},"RJL","NORTHERN LINCOLNSHIRE AND GOOLE NHS FOUNDATION TRUST","Acute and Acute & Community Trusts",318,6514,5.4690775681341721,4.9030398322851152,5.4061844863731663,6.0980083857442349]
["Y63","NORTH EAST AND YORKSHIRE COMMISSIONING REGION","QOQ",{"$f":"VLOOKUP(C187,'[2]From July 2022'!$D:$E,2,0)","v":"NHS HUMBER AND NORTH YORKSHIRE INTEGRATED CARE BOARD"},"RCB","YORK AND SCARBOROUGH TEACHING HOSPITALS NHS FOUNDATION TRUST","Acute and Acute & Community Trusts",155,9445,5.3154121863799277,4.6881720430107521,5.5053763440860219,5.7526881720430101]
["Y63","NORTH EAST AND YORKSHIRE COMMISSIONING REGION","QWO",{"$f":"VLOOKUP(C188,'[2]From July 2022'!$D:$E,2,0)","v":"NHS WEST YORKSHIRE INTEGRATED CARE BOARD"},"RCF","AIREDALE NHS FOUNDATION TRUST","Acute and Acute & Community Trusts",163,3486,6.6905248807089288,6.7331288343558287,6.6002044989775044,6.7382413087934552]
["Y63","NORTH EAST AND YORKSHIRE COMMISSIONING REGION","QWO",{"$f":"VLOOKUP(C189,'[2]From July 2022'!$D:$E,2,0)","v":"NHS WEST YORKSHIRE INTEGRATED CARE BOARD"},"TAD","BRADFORD DISTRICT CARE NHS FOUNDATION TRUST","Mental Health & Learning Disability and Mental Health, Learning Disability & Community Trusts",399,3247,6.7921518259489124,6.7293233082706765,6.7622610141313375,6.8848711554447215]
["Y63","NORTH EAST AND YORKSHIRE COMMISSIONING REGION","QWO",{"$f":"VLOOKUP(C190,'[2]From July 2022'!$D:$E,2,0)","v":"NHS WEST YORKSHIRE INTEGRATED CARE BOARD"},"RAE","BRADFORD TEACHING HOSPITALS NHS FOUNDATION TRUST","Acute and Acute & Community Trusts",164,6226,6.5565718157181578,6.524390243902439,6.4430894308943092,6.7022357723577244]
["Y63","NORTH EAST AND YORKSHIRE COMMISSIONING REGION","QWO",{"$f":"VLOOKUP(C191,'[2]From July 2022'!$D:$E,2,0)","v":"NHS WEST YORKSHIRE INTEGRATED CARE BOARD"},"RWY","CALDERDALE AND HUDDERSFIELD NHS FOUNDATION TRUST","Acute and Acute & Community Trusts",236,6344,6.2511770244821081,6.253531073446327,6.2394067796610173,6.2605932203389827]
["Y63","NORTH EAST AND YORKSHIRE COMMISSIONING REGION","QWO",{"$f":"VLOOKUP(C192,'[2]From July 2022'!$D:$E,2,0)","v":"NHS WEST YORKSHIRE INTEGRATED CARE BOARD"},"RGD","LEEDS AND YORK PARTNERSHIP NHS FOUNDATION TRUST","Mental Health & Learning Disability and Mental Health, Learning Disability & Community Trusts",132,3088,6.900252525252526,6.7739898989898988,7.1212121212121211,6.8055555555555562]
["Y63","NORTH EAST AND YORKSHIRE COMMISSIONING REGION","QWO",{"$f":"VLOOKUP(C193,'[2]From July 2022'!$D:$E,2,0)","v":"NHS WEST YORKSHIRE INTEGRATED CARE BOARD"},"RY6","LEEDS COMMUNITY HEALTHCARE NHS TRUST","Community Trusts",935,3146,6.8116671111429001,6.9936373276776242,6.6374424371236271,6.8039215686274517]
["Y63","NORTH EAST AND YORKSHIRE COMMISSIONING REGION","QWO",{"$f":"VLOOKUP(C194,'[2]From July 2022'!$D:$E,2,0)","v":"NHS WEST YORKSHIRE INTEGRATED CARE BOARD"},"RXF","MID YORKSHIRE HOSPITALS NHS TRUST","Acute and Acute & Community Trusts",1850,8839,6.5579665742615925,6.4238738738738732,6.3365453247680223,6.9134805241428827]
["Y63","NORTH EAST AND YORKSHIRE COMMISSIONING REGION","QWO",{"$f":"VLOOKUP(C195,'[2]From July 2022'!$D:$E,2,0)","v":"NHS WEST YORKSHIRE INTEGRATED CARE BOARD"},"RXG","SOUTH WEST YORKSHIRE PARTNERSHIP NHS FOUNDATION TRUST","Mental Health & Learning Disability and Mental Health, Learning Disability & Community Trusts",168,4520,7.5183639366331674,7.6438492063492065,7.4654832347140045,7.4457593688362911]
["Y63","NORTH EAST AND YORKSHIRE COMMISSIONING REGION","QWO",{"$f":"VLOOKUP(C196,'[2]From July 2022'!$D:$E,2,0)","v":"NHS WEST YORKSHIRE INTEGRATED CARE BOARD"},"RX8","YORKSHIRE AMBULANCE SERVICE NHS TRUST","Ambulance Trusts",395,5792,5.7369901547116733,5.9662447257383961,5.3164556962025316,5.9282700421940921]

{"sheet":"Engagement Score","index":3,"n_rows":196,"n_cols":10,"rows_kept":196,"cut":false,"hidden":false,"merged":[[6,5,7,5],[6,6,7,6],[6,7,7,7],[6,8,7,8],[6,9,7,9],[6,0,7,0],[6,1,7,1],[6,2,7,2],[6,3,7,3],[6,4,7,4]]}
[]
[]
[]
[]
[]
[]
["Region Code","Region Name","STP Code","STP Name","Org Code","Org Name","Care Setting","Total Responses","HSCIC Workforce Headcount","Engagement Score"]
[]
[null,null,null,null,null,null,"England",127021,1180653,6.6151309238954923]
["Y56","LONDON COMMISSIONING REGION","QKK","NHS SOUTH EAST LONDON INTEGRATED CARE BOARD","RJ1","GUY'S AND ST THOMAS' NHS FOUNDATION TRUST","Acute and Acute & Community Trusts",2705,22169,6.9244828256609052]
["Y56","LONDON COMMISSIONING REGION","QKK","NHS SOUTH EAST LONDON INTEGRATED CARE BOARD","RJZ","KING'S COLLEGE HOSPITAL NHS FOUNDATION TRUST","Acute and Acute & Community Trusts",1285,13297,6.4831387808041505]
["Y56","LONDON COMMISSIONING REGION","QKK","NHS SOUTH EAST LONDON INTEGRATED CARE BOARD","RJ2","LEWISHAM AND GREENWICH NHS TRUST","Acute and Acute & Community Trusts",433,6850,6.023222992045163]
["Y56","LONDON COMMISSIONING REGION","QKK","NHS SOUTH EAST LONDON INTEGRATED CARE BOARD","RV5","SOUTH LONDON AND MAUDSLEY NHS FOUNDATION TRUST","Mental Health & Learning Disability and Mental Health, Learning Disability & Community Trusts",195,5486,6.5470085470085477]
["Y56","LONDON COMMISSIONING REGION","QMF","NHS NORTH EAST LONDON INTEGRATED CARE BOARD","R1H","BARTS HEALTH NHS TRUST","Acute and Acute & Community Trusts",435,17203,6.0114942528735638]
["Y56","LONDON COMMISSIONING REGION","QMF","NHS NORTH EAST LONDON INTEGRATED CARE BOARD","RWK","EAST LONDON NHS FOUNDATION TRUST","Mental Health & Learning Disability and Mental Health, Learning Disability & Community Trusts",906,6545,7.1391381490719228]
["Y56","LONDON COMMISSIONING REGION","QMF","NHS NORTH EAST LONDON INTEGRATED CARE BOARD","RQX","HOMERTON HEALTHCARE NHS FOUNDATION TRUST","Acute and Acute & Community Trusts",693,3922,6.8500714643426237]
["Y56","LONDON COMMISSIONING REGION","QMF","NHS NORTH EAST LONDON INTEGRATED CARE BOARD","RAT","NORTH EAST LONDON NHS FOUNDATION TRUST","Mental Health & Learning Disability and Mental Health, Learning Disability & Community Trusts",616,6702,6.6761363636363633]
["Y56","LONDON COMMISSIONING REGION","QMJ","NHS NORTH CENTRAL LONDON INTEGRATED CARE BOARD","RRP","BARNET, ENFIELD AND HARINGEY MENTAL HEALTH NHS TRUST","Mental Health & Learning Disability and Mental Health, Learning Disability & Community Trusts",154,3407,6.0822510822510827]
["Y56","LONDON COMMISSIONING REGION","QMJ","NHS NORTH CENTRAL LONDON INTEGRATED CARE BOARD","TAF","CAMDEN AND ISLINGTON NHS FOUNDATION TRUST","Mental Health & Learning Disability and Mental Health, Learning Disability & Community Trusts",444,2293,6.884820129676517]
["Y56","LONDON COMMISSIONING REGION","QMJ","NHS NORTH CENTRAL LONDON INTEGRATED CARE BOARD","RP4","GREAT ORMOND STREET HOSPITAL FOR CHILDREN NHS FOUNDATION TRUST","Acute Specialist Trusts",954,5520,7.0033967203778529]
["Y56","LONDON COMMISSIONING REGION","QMJ","NHS NORTH CENTRAL LONDON INTEGRATED CARE BOARD","RP6","MOORFIELDS EYE HOSPITAL NHS FOUNDATION TRUST","Acute Specialist Trusts",31,2283,5.672043010752688]
["Y56","LONDON COMMISSIONING REGION","QMJ","NHS NORTH CENTRAL LONDON INTEGRATED CARE BOARD","RAP","NORTH MIDDLESEX UNIVERSITY HOSPITAL NHS TRUST","Acute and Acute & Community Trusts",658,3818,6.4659392515190399]
["Y56","LONDON COMMISSIONING REGION","QMJ","NHS NORTH CENTRAL LONDON INTEGRATED CARE BOARD","RAL","ROYAL FREE LONDON NHS FOUNDATION TRUST","Acute and Acute & Community Trusts",672,10684,5.9850363756613758]
["Y56","LONDON COMMISSIONING REGION","QMJ","NHS NORTH CENTRAL LONDON INTEGRATED CARE BOARD","RNK","TAVISTOCK AND PORTMAN NHS FOUNDATION TRUST","Mental Health & Learning Disability and Mental Health, Learning Disability & Community Trusts",95,767,5.2953216374269001]
["Y56","LONDON COMMISSIONING REGION","QMJ","NHS NORTH CENTRAL LONDON INTEGRATED CARE BOARD","RRV","UNIVERSITY COLLEGE LONDON HOSPITALS NHS FOUNDATION TRUST","Acute and Acute & Community Trusts",508,10115,7.1576990376202971]
["Y56","LONDON COMMISSIONING REGION","QMJ","NHS NORTH CENTRAL LONDON INTEGRATED CARE BOARD","RKE","WHITTINGTON HEALTH NHS TRUST","Acute and Acute & Community Trusts",688,4464,6.5273740310077519]
["Y56","LONDON COMMISSIONING REGION","QRV","NHS NORTH WEST LONDON INTEGRATED CARE BOARD","RYX","CENTRAL LONDON COMMUNITY HEALTHCARE NHS TRUST","Community Trusts",223,4376,6.9170403587443943]
["Y56","LONDON COMMISSIONING REGION","QRV","NHS NORTH WEST LONDON INTEGRATED CARE BOARD","RYJ","IMPERIAL COLLEGE HEALTHCARE NHS TRUST","Acute and Acute & Community Trusts",91,12988,6.2545787545787546]
["Y56","LONDON COMMISSIONING REGION","QRV","NHS NORTH WEST LONDON INTEGRATED CARE BOARD","RAN","ROYAL NATIONAL ORTHOPAEDIC HOSPITAL NHS TRUST","Acute Specialist Trusts",74,1574,7.0533033033033048]
["Y56","LONDON COMMISSIONING REGION","QRV","NHS NORTH WEST LONDON INTEGRATED CARE BOARD","RAS","THE HILLINGDON HOSPITALS NHS FOUNDATION TRUST","Acute and Acute & Community Trusts",62,3572,6.7025089605734776]
["Y56","LONDON COMMISSIONING REGION","QRV","NHS NORTH WEST LONDON INTEGRATED CARE BOARD","RPY","THE ROYAL MARSDEN NHS FOUNDATION TRUST","Acute Specialist Trusts",362,4293,6.6973603437691835]
["Y56","LONDON COMMISSIONING REGION","QWE","NHS SOUTH WEST LONDON INTEGRATED CARE BOARD","RVR","EPSOM AND ST HELIER UNIVERSITY HOSPITALS NHS TRUST","Acute and Acute & Community Trusts",521,6858,6.0119428449562804]
["Y56","LONDON COMMISSIONING REGION","QWE","NHS SOUTH WEST LONDON INTEGRATED CARE BOARD","RY9","HOUNSLOW AND RICHMOND COMMUNITY HEALTHCARE NHS TRUST","Community Trusts",96,1244,7.0949074074074074]
["Y56","LONDON COMMISSIONING REGION","QWE","NHS SOUTH WEST LONDON INTEGRATED CARE BOARD","RQY","SOUTH WEST LONDON AND ST GEORGE'S MENTAL HEALTH NHS TRUST","Mental Health & Learning Disability and Mental Health, Learning Disability & Community Trusts",126,2612,6.7283950617283947]
["Y56","LONDON COMMISSIONING REGION","QWE","NHS SOUTH WEST LONDON INTEGRATED CARE BOARD","RJ7","ST GEORGE'S UNIVERSITY HOSPITALS NHS FOUNDATION TRUST","Acute and Acute & Community Trusts",901,9298,6.1971266494018993]
["Y58","SOUTH WEST COMMISSIONING REGION","QJK","NHS DEVON INTEGRATED CARE BOARD","RWV","DEVON PARTNERSHIP NHS TRUST","Mental Health & Learning Disability and Mental Health, Learning Disability & Community Trusts",94,3602,6.9001182033096926]
["Y58","SOUTH WEST COMMISSIONING REGION","QJK","NHS DEVON INTEGRATED CARE BOARD","RBZ","NORTHERN DEVON HEALTHCARE NHS TRUST","Acute and Acute & Community Trusts",1336,0,6.6873691828901114]
["Y58","SOUTH WEST COMMISSIONING REGION","QJK","NHS DEVON INTEGRATED CARE BOARD","RA9","TORBAY AND SOUTH DEVON NHS FOUNDATION TRUST","Acute and Acute & Community Trusts",208,6744,5.9513767482517492]
["Y58","SOUTH WEST COMMISSIONING REGION","QJK","NHS DEVON INTEGRATED CARE BOARD","RK9","UNIVERSITY HOSPITALS PLYMOUTH NHS TRUST","Acute and Acute & Community Trusts",1321,9376,6.4931615682728889]
["Y58","SOUTH WEST COMMISSIONING REGION","QOX","NHS BATH AND NORTH EAST SOMERSET, SWINDON AND WILTSHIRE INTEGRATED CARE BOARD","RVN","AVON AND WILTSHIRE MENTAL HEALTH PARTNERSHIP NHS TRUST","Mental Health & Learning Disability and Mental Health, Learning Disability & Community Trusts",256,4555,6.0536024305555562]
["Y58","SOUTH WEST COMMISSIONING REGION","QOX","NHS BATH AND NORTH EAST SOMERSET, SWINDON AND WILTSHIRE INTEGRATED CARE BOARD","RN3","GREAT WESTERN HOSPITALS NHS FOUNDATION TRUST","Acute and Acute & Community Trusts",1252,5305,6.5191787407021531]
["Y58","SOUTH WEST COMMISSIONING REGION","QOX","NHS BATH AND NORTH EAST SOMERSET, SWINDON AND WILTSHIRE INTEGRATED CARE BOARD","RNZ","SALISBURY NHS FOUNDATION TRUST","Acute and Acute & Community Trusts",274,3875,5.7968369829683697]
["Y58","SOUTH WEST COMMISSIONING REGION","QR1","NHS GLOUCESTERSHIRE INTEGRATED CARE BOARD","RTQ","GLOUCESTERSHIRE HEALTH AND CARE NHS FOUNDATION TRUST","Mental Health & Learning Disability and Mental Health, Learning Disability & Community Trusts",69,4513,7.14975845410628]
["Y58","SOUTH WEST COMMISSIONING REGION","QR1","NHS GLOUCESTERSHIRE INTEGRATED CARE BOARD","RTE","GLOUCESTERSHIRE HOSPITALS NHS FOUNDATION TRUST","Acute and Acute & Community Trusts",943,8225,5.8118389920927624]
["Y58","SOUTH WEST COMMISSIONING REGION","QSL","NHS SOMERSET INTEGRATED CARE BOARD","RH5","SOMERSET NHS FOUNDATION TRUST","Acute and Acute & Community Trusts",634,9671,6.9343673326323163]
["Y58","SOUTH WEST COMMISSIONING REGION","QSL","NHS SOMERSET INTEGRATED CARE BOARD","RA4","YEOVIL DISTRICT HOSPITAL NHS FOUNDATION TRUST","Acute and Acute & Community Trusts",239,2715,6.5574151557415163]
["Y58","SOUTH WEST COMMISSIONING REGION","QT6","NHS CORNWALL AND THE ISLES OF SCILLY INTEGRATED CARE BOARD","RJ8","CORNWALL PARTNERSHIP NHS FOUNDATION TRUST","Mental Health & Learning Disability and Mental Health, Learning Disability & Community Trusts",16,4113,5.677083333333333]
["Y58","SOUTH WEST COMMISSIONING REGION","QT6","NHS CORNWALL AND THE ISLES OF SCILLY INTEGRATED CARE BOARD","REF","ROYAL CORNWALL HOSPITALS NHS TRUST","Acute and Acute & Community Trusts",783,6833,6.386744005442492]
["Y58","SOUTH WEST COMMISSIONING REGION","QUY","NHS BRISTOL, NORTH SOMERSET AND SOUTH GLOUCESTERSHIRE INTEGRATED CARE BOARD","RVJ","NORTH BRISTOL NHS TRUST","Acute and Acute & Community Trusts",302,9308,6.417885166000044]
["Y58","SOUTH WEST COMMISSIONING REGION","QUY","NHS BRISTOL, NORTH SOMERSET AND SOUTH GLOUCESTERSHIRE INTEGRATED CARE BOARD","RA7","UNIVERSITY HOSPITALS BRISTOL AND WESTON NHS FOUNDATION TRUST","Acute and Acute & Community Trusts",1212,11560,6.8578107810781077]
["Y58","SOUTH WEST COMMISSIONING REGION","QVV","NHS DORSET INTEGRATED CARE BOARD","RBD","DORSET COUNTY HOSPITAL NHS FOUNDATION TRUST","Acute and Acute & Community Trusts",476,3212,6.7997198879551819]
["Y58","SOUTH WEST COMMISSIONING REGION","QVV","NHS DORSET INTEGRATED CARE BOARD","RDY","DORSET HEALTHCARE UNIVERSITY NHS FOUNDATION TRUST","Mental Health & Learning Disability and Mental Health, Learning Disability & Community Trusts",1074,6427,6.8544382371198012]
["Y58","SOUTH WEST COMMISSIONING REGION","QVV","NHS DORSET INTEGRATED CARE BOARD","R0D","UNIVERSITY HOSPITALS DORSET NHS FOUNDATION TRUST","Acute and Acute & Community Trusts",179,9217,5.6486654252017381]
["Y59","SOUTH EAST COMMISSIONING REGION","QKS","NHS KENT AND MEDWAY INTEGRATED CARE BOARD","RN7","DARTFORD AND GRAVESHAM NHS TRUST","Acute and Acute & Community Trusts",230,3966,6.4842995169082123]
["Y59","SOUTH EAST COMMISSIONING REGION","QKS","NHS KENT AND MEDWAY INTEGRATED CARE BOARD","RVV","EAST KENT HOSPITALS UNIVERSITY NHS FOUNDATION TRUST","Acute and Acute & Community Trusts",2456,10356,6.3425112114168352]
["Y59","SOUTH EAST COMMISSIONING REGION","QKS","NHS KENT AND MEDWAY INTEGRATED CARE BOARD","RXY","KENT AND MEDWAY NHS AND SOCIAL CARE PARTNERSHIP TRUST","Mental Health & Learning Disability and Mental Health, Learning Disability & Community Trusts",174,3451,6.5118135376756063]
["Y59","SOUTH EAST COMMISSIONING REGION","QKS","NHS KENT AND MEDWAY INTEGRATED CARE BOARD","RYY","KENT COMMUNITY HEALTH NHS FOUNDATION TRUST","Community Trusts",820,4913,6.7046070460704605]
["Y59","SOUTH EAST COMMISSIONING REGION","QKS","NHS KENT AND MEDWAY INTEGRATED CARE BOARD","RWF","MAIDSTONE AND TUNBRIDGE WELLS NHS TRUST","Acute and Acute & Community Trusts",1039,6709,6.9428403379317727]
["Y59","SOUTH EAST COMMISSIONING REGION","QKS","NHS KENT AND MEDWAY INTEGRATED CARE BOARD","RPA","MEDWAY NHS FOUNDATION TRUST","Acute and Acute & Community Trusts",41,4620,5.48780487804878]
["Y59","SOUTH EAST COMMISSIONING REGION","QNQ","NHS FRIMLEY INTEGRATED CARE BOARD","RWX","BERKSHIRE HEALTHCARE NHS FOUNDATION TRUST","Mental Health & Learning Disability and Mental Health, Learning Disability & Community Trusts",1527,4670,7.3415702758677766]
["Y59","SOUTH EAST COMMISSIONING REGION","QNQ","NHS FRIMLEY INTEGRATED CARE BOARD","RDU","FRIMLEY HEALTH NHS FOUNDATION TRUST","Acute and Acute & Community Trusts",1499,9971,6.6046610714129086]
["Y59","SOUTH EAST COMMISSIONING REGION","QNX","NHS SUSSEX INTEGRATED CARE BOARD","RXC","EAST SUSSEX HEALTHCARE NHS TRUST","Acute and Acute & Community Trusts",301,7875,6.1664820967146552]
["Y59","SOUTH EAST COMMISSIONING REGION","QNX","NHS SUSSEX INTEGRATED CARE BOARD","RPC","QUEEN VICTORIA HOSPITAL NHS FOUNDATION TRUST","Acute Specialist Trusts",159,1074,7.2781271837875607]
["Y59","SOUTH EAST COMMISSIONING REGION","QNX","NHS SUSSEX INTEGRATED CARE BOARD","RYD","SOUTH EAST COAST AMBULANCE SERVICE NHS FOUNDATION TRUST","Ambulance Trusts",111,4198,4.3143143143143137]
["Y59","SOUTH EAST COMMISSIONING REGION","QNX","NHS SUSSEX INTEGRATED CARE BOARD","RDR","SUSSEX COMMUNITY NHS FOUNDATION TRUST","Community Trusts",90,5318,6.9197530864197532]
["Y59","SOUTH EAST COMMISSIONING REGION","QNX","NHS SUSSEX INTEGRATED CARE BOARD","RX2","SUSSEX PARTNERSHIP NHS FOUNDATION TRUST","Mental Health & Learning Disability and Mental Health, Learning Disability & Community Trusts",187,5533,6.3532382650029717]
["Y59","SOUTH EAST COMMISSIONING REGION","QNX","NHS SUSSEX INTEGRATED CARE BOARD","RYR","UNIVERSITY HOSPITALS SUSSEX NHS FOUNDATION TRUST","Acute and Acute & Community Trusts",220,16095,5.2601010101010104]
["Y59","SOUTH EAST COMMISSIONING REGION","QRL","NHS HAMPSHIRE AND ISLE OF WIGHT INTEGRATED CARE BOARD","RN5","HAMPSHIRE HOSPITALS NHS FOUNDATION TRUST","Acute and Acute & Community Trusts",816,7394,6.4253131808278861]
["Y59","SOUTH EAST COMMISSIONING REGION","QRL","NHS HAMPSHIRE AND ISLE OF WIGHT INTEGRATED CARE BOARD","R1F","ISLE OF WIGHT NHS TRUST","Acute and Acute & Community Trusts",482,3620,6.6600718233203109]
["Y59","SOUTH EAST COMMISSIONING REGION","QRL","NHS HAMPSHIRE AND ISLE OF WIGHT INTEGRATED CARE BOARD","RHU","PORTSMOUTH HOSPITALS UNIVERSITY NATIONAL HEALTH SERVICE TRUST","Acute and Acute & Community Trusts",1032,7994,6.3961563307493536]
["Y59","SOUTH EAST COMMISSIONING REGION","QRL","NHS HAMPSHIRE AND ISLE OF WIGHT INTEGRATED CARE BOARD","R1C","SOLENT NHS TRUST","Mental Health & Learning Disability and Mental Health, Learning Disability & Community Trusts",429,4041,7.2429422429422443]
["Y59","SOUTH EAST COMMISSIONING REGION","QRL","NHS HAMPSHIRE AND ISLE OF WIGHT INTEGRATED CARE BOARD","RW1","SOUTHERN HEALTH NHS FOUNDATION TRUST","Mental Health & Learning Disability and Mental Health, Learning Disability & Community Trusts",1830,6321,6.9751587012461336]
["Y59","SOUTH EAST COMMISSIONING REGION","QRL","NHS HAMPSHIRE AND ISLE OF WIGHT INTEGRATED CARE BOARD","RHM","UNIVERSITY HOSPITAL SOUTHAMPTON NHS FOUNDATION TRUST","Acute and Acute & Community Trusts",2809,12425,7.0432295877592646]
["Y59","SOUTH EAST COMMISSIONING REGION","QU9","NHS BUCKINGHAMSHIRE, OXFORDSHIRE AND BERKSHIRE WEST INTEGRATED CARE BOARD","RXQ","BUCKINGHAMSHIRE HEALTHCARE NHS TRUST","Acute and Acute & Community Trusts",705,6239,6.6544523246650904]
["Y59","SOUTH EAST COMMISSIONING REGION","QU9","NHS BUCKINGHAMSHIRE, OXFORDSHIRE AND BERKSHIRE WEST INTEGRATED CARE BOARD","RNU","OXFORD HEALTH NHS FOUNDATION TRUST","Mental Health & Learning Disability and Mental Health, Learning Disability & Community Trusts",1002,6072,6.7445664227101361]
["Y59","SOUTH EAST COMMISSIONING REGION","QU9","NHS BUCKINGHAMSHIRE, OXFORDSHIRE AND BERKSHIRE WEST INTEGRATED CARE BOARD","RTH","OXFORD UNIVERSITY HOSPITALS NHS FOUNDATION TRUST","Acute and Acute & Community Trusts",2220,13438,6.7976084697018342]
["Y59","SOUTH EAST COMMISSIONING REGION","QU9","NHS BUCKINGHAMSHIRE, OXFORDSHIRE AND BERKSHIRE WEST INTEGRATED CARE BOARD","RHW","ROYAL BERKSHIRE NHS FOUNDATION TRUST","Acute and Acute & Community Trusts",143,5899,6.287878787878789]
["Y59","SOUTH EAST COMMISSIONING REGION","QU9","NHS BUCKINGHAMSHIRE, OXFORDSHIRE AND BERKSHIRE WEST INTEGRATED CARE BOARD","RYE","SOUTH CENTRAL AMBULANCE SERVICE NHS FOUNDATION TRUST","Ambulance Trusts",277,4516,5.4502607300441239]
["Y60","MIDLANDS COMMISSIONING REGION","QGH","NHS HEREFORDSHIRE AND WORCESTERSHIRE INTEGRATED CARE BOARD","R1A","HEREFORDSHIRE AND WORCESTERSHIRE HEALTH AND CARE NHS TRUST","Mental Health & Learning Disability and Mental Health, Learning Disability & Community Trusts",372,4434,6.7913799923767053]
["Y60","MIDLANDS COMMISSIONING REGION","QGH","NHS HEREFORDSHIRE AND WORCESTERSHIRE INTEGRATED CARE BOARD","RWP","WORCESTERSHIRE ACUTE HOSPITALS NHS TRUST","Acute and Acute & Community Trusts",259,6633,6.1700986700986702]
["Y60","MIDLANDS COMMISSIONING REGION","QGH","NHS HEREFORDSHIRE AND WORCESTERSHIRE INTEGRATED CARE BOARD","RLQ","WYE VALLEY NHS TRUST","Acute and Acute & Community Trusts",474,3642,6.3748241912798882]
["Y60","MIDLANDS COMMISSIONING REGION","QHL","NHS BIRMINGHAM AND SOLIHULL INTEGRATED CARE BOARD","RYW","BIRMINGHAM COMMUNITY HEALTHCARE NHS FOUNDATION TRUST","Community Trusts",620,4888,6.3875448028673842]
["Y60","MIDLANDS COMMISSIONING REGION","QHL","NHS BIRMINGHAM AND SOLIHULL INTEGRATED CARE BOARD","RRJ","THE ROYAL ORTHOPAEDIC HOSPITAL NHS FOUNDATION TRUST","Acute Specialist Trusts",408,1218,7.0731394774686587]
["Y60","MIDLANDS COMMISSIONING REGION","QHL","NHS BIRMINGHAM AND SOLIHULL INTEGRATED CARE BOARD","RRK","UNIVERSITY HOSPITALS BIRMINGHAM NHS FOUNDATION TRUST","Acute and Acute & Community Trusts",1907,21568,5.8044655779808139]
["Y60","MIDLANDS COMMISSIONING REGION","QJ2","NHS DERBY AND DERBYSHIRE INTEGRATED CARE BOARD","RFS","CHESTERFIELD ROYAL HOSPITAL NHS FOUNDATION TRUST","Acute and Acute & Community Trusts",44,3968,6.7297979797979792]
["Y60","MIDLANDS COMMISSIONING REGION","QJ2","NHS DERBY AND DERBYSHIRE INTEGRATED CARE BOARD","RY8","DERBYSHIRE COMMUNITY HEALTH SERVICES NHS FOUNDATION TRUST","Community Trusts",1422,4235,7.3915838046920932]
["Y60","MIDLANDS COMMISSIONING REGION","QJ2","NHS DERBY AND DERBYSHIRE INTEGRATED CARE BOARD","RXM","DERBYSHIRE HEALTHCARE NHS FOUNDATION TRUST","Mental Health & Learning Disability and Mental Health, Learning Disability & Community Trusts",828,2839,7.2513547513235634]
["Y60","MIDLANDS COMMISSIONING REGION","QJ2","NHS DERBY AND DERBYSHIRE INTEGRATED CARE BOARD","RTG","UNIVERSITY HOSPITALS OF DERBY AND BURTON NHS FOUNDATION TRUST","Acute and Acute & Community Trusts",1817,13473,6.4188947093392139]
["Y60","MIDLANDS COMMISSIONING REGION","QJM","NHS LINCOLNSHIRE INTEGRATED CARE BOARD","RY5","LINCOLNSHIRE COMMUNITY HEALTH SERVICES NHS TRUST","Community Trusts",809,2245,7.233709421144094]
["Y60","MIDLANDS COMMISSIONING REGION","QJM","NHS LINCOLNSHIRE INTEGRATED CARE BOARD","RP7","LINCOLNSHIRE PARTNERSHIP NHS FOUNDATION TRUST","Mental Health & Learning Disability and Mental Health, Learning Disability & Community Trusts",844,2351,7.2093849919789266]
["Y60","MIDLANDS COMMISSIONING REGION","QJM","NHS LINCOLNSHIRE INTEGRATED CARE BOARD","RWD","UNITED LINCOLNSHIRE HOSPITALS NHS TRUST","Acute and Acute & Community Trusts",2141,8389,6.3670812543192659]
["Y60","MIDLANDS COMMISSIONING REGION","QK1","NHS LEICESTER, LEICESTERSHIRE AND RUTLAND INTEGRATED CARE BOARD","RT5","LEICESTERSHIRE PARTNERSHIP NHS TRUST","Mental Health & Learning Disability and Mental Health, Learning Disability & Community Trusts",904,5558,6.399643559488692]
["Y60","MIDLANDS COMMISSIONING REGION","QK1","NHS LEICESTER, LEICESTERSHIRE AND RUTLAND INTEGRATED CARE BOARD","RWE","UNIVERSITY HOSPITALS OF LEICESTER NHS TRUST","Acute and Acute & Community Trusts",49,16152,7.029478458049887]
["Y60","MIDLANDS COMMISSIONING REGION","QNC","NHS STAFFORDSHIRE AND STOKE-ON-TRENT INTEGRATED CARE BOARD","RRE","MIDLANDS PARTNERSHIP NHS FOUNDATION TRUST","Mental Health & Learning Disability and Mental Health, Learning Disability & Community Trusts",826,9008,7.4184381924768941]
["Y60","MIDLANDS COMMISSIONING REGION","QOC","NHS SHROPSHIRE, TELFORD AND WREKIN INTEGRATED CARE BOARD","R1D","SHROPSHIRE COMMUNITY HEALTH NHS TRUST","Community Trusts",17,1559,6.0457516339869279]
["Y60","MIDLANDS COMMISSIONING REGION","QOC","NHS SHROPSHIRE, TELFORD AND WREKIN INTEGRATED CARE BOARD","RL1","THE ROBERT JONES AND AGNES HUNT ORTHOPAEDIC HOSPITAL NHS FOUNDATION TRUST","Acute Specialist Trusts",10,1618,5.6388888888888893]
["Y60","MIDLANDS COMMISSIONING REGION","QOC","NHS SHROPSHIRE, TELFORD AND WREKIN INTEGRATED CARE BOARD","RXW","THE SHREWSBURY AND TELFORD HOSPITAL NHS TRUST","Acute and Acute & Community Trusts",1193,6873,6.0249604172487663]
["Y60","MIDLANDS COMMISSIONING REGION","QPM","NHS NORTHAMPTONSHIRE INTEGRATED CARE BOARD","RNQ","KETTERING GENERAL HOSPITAL NHS FOUNDATION TRUST","Acute and Acute & Community Trusts",1244,4791,6.2287214044559542]
["Y60","MIDLANDS COMMISSIONING REGION","QPM","NHS NORTHAMPTONSHIRE INTEGRATED CARE BOARD","RNS","NORTHAMPTON GENERAL HOSPITAL NHS TRUST","Acute and Acute & Community Trusts",1213,5584,6.1649011256258204]
["Y60","MIDLANDS COMMISSIONING REGION","QPM","NHS NORTHAMPTONSHIRE INTEGRATED CARE BOARD","RP1","NORTHAMPTONSHIRE HEALTHCARE NHS FOUNDATION TRUST","Mental Health & Learning Disability and Mental Health, Learning Disability & Community Trusts",1494,4485,7.3146656313507465]
["Y60","MIDLANDS COMMISSIONING REGION","QT1","NHS NOTTINGHAM AND NOTTINGHAMSHIRE INTEGRATED CARE BOARD","RX9","EAST MIDLANDS AMBULANCE SERVICE NHS TRUST","Ambulance Trusts",203,3960,5.3188286808976466]
["Y60","MIDLANDS COMMISSIONING REGION","QT1","NHS NOTTINGHAM AND NOTTINGHAMSHIRE INTEGRATED CARE BOARD","RX1","NOTTINGHAM UNIVERSITY HOSPITALS NHS TRUST","Acute and Acute & Community Trusts",2407,17419,6.3786179199556843]
["Y60","MIDLANDS COMMISSIONING REGION","QT1","NHS NOTTINGHAM AND NOTTINGHAMSHIRE INTEGRATED CARE BOARD","RHA","NOTTINGHAMSHIRE HEALTHCARE NHS FOUNDATION TRUST","Mental Health & Learning Disability and Mental Health, Learning Disability & Community Trusts",716,8875,6.4481041254901141]
["Y60","MIDLANDS COMMISSIONING REGION","QT1","NHS NOTTINGHAM AND NOTTINGHAMSHIRE INTEGRATED CARE BOARD","RK5","SHERWOOD FOREST HOSPITALS NHS FOUNDATION TRUST","Acute and Acute & Community Trusts",1302,5618,7.0959098980384283]
["Y60","MIDLANDS COMMISSIONING REGION","QUA","NHS BLACK COUNTRY INTEGRATED CARE BOARD","RXT","BIRMINGHAM AND SOLIHULL MENTAL HEALTH NHS FOUNDATION TRUST","Mental Health & Learning Disability and Mental Health, Learning Disability & Community Trusts",316,4438,6.0407876230661044]
["Y60","MIDLANDS COMMISSIONING REGION","QUA","NHS BLACK COUNTRY INTEGRATED CARE BOARD","TAJ","BLACK COUNTRY HEALTHCARE NHS FOUNDATION TRUST","Mental Health & Learning Disability and Mental Health, Learning Disability & Community Trusts",508,3621,6.3194444444444455]
["Y60","MIDLANDS COMMISSIONING REGION","QUA","NHS BLACK COUNTRY INTEGRATED CARE BOARD","RYK","DUDLEY INTEGRATED HEALTH AND CARE NHS TRUST","Acute and Acute & Community Trusts",61,401,6.7987249544626591]
["Y60","MIDLANDS COMMISSIONING REGION","QUA","NHS BLACK COUNTRY INTEGRATED CARE BOARD","RXK","SANDWELL AND WEST BIRMINGHAM HOSPITALS NHS TRUST","Acute and Acute & Community Trusts",1554,7301,6.6167515865839048]
["Y60","MIDLANDS COMMISSIONING REGION","QUA","NHS BLACK COUNTRY INTEGRATED CARE BOARD","RNA","THE DUDLEY GROUP NHS FOUNDATION TRUST","Acute and Acute & Community Trusts",360,5467,6.435185185185186]
["Y60","MIDLANDS COMMISSIONING REGION","QUA","NHS BLACK COUNTRY INTEGRATED CARE BOARD","RL4","THE ROYAL WOLVERHAMPTON NHS TRUST","Acute and Acute & Community Trusts",204,10270,6.7088779956427018]
["Y60","MIDLANDS COMMISSIONING REGION","QUA","NHS BLACK COUNTRY INTEGRATED CARE BOARD","RBK","WALSALL HEALTHCARE NHS TRUST","Acute and Acute & Community Trusts",853,4595,6.21987755633711]
["Y60","MIDLANDS COMMISSIONING REGION","QWU","NHS COVENTRY AND WARWICKSHIRE INTEGRATED CARE BOARD","RYG","COVENTRY AND WARWICKSHIRE PARTNERSHIP NHS TRUST","Mental Health & Learning Disability and Mental Health, Learning Disability & Community Trusts",176,3972,6.5356691919191912]
["Y60","MIDLANDS COMMISSIONING REGION","QWU","NHS COVENTRY AND WARWICKSHIRE INTEGRATED CARE BOARD","RLT","GEORGE ELIOT HOSPITAL NHS TRUST","Acute and Acute & Community Trusts",318,2659,6.2386443046820403]
["Y60","MIDLANDS COMMISSIONING REGION","QWU","NHS COVENTRY AND WARWICKSHIRE INTEGRATED CARE BOARD","RJC","SOUTH WARWICKSHIRE NHS FOUNDATION TRUST","Acute and Acute & Community Trusts",222,4891,6.786786786786787]
["Y60","MIDLANDS COMMISSIONING REGION","QWU","NHS COVENTRY AND WARWICKSHIRE INTEGRATED CARE BOARD","RKB","UNIVERSITY HOSPITALS COVENTRY AND WARWICKSHIRE NHS TRUST","Acute and Acute & Community Trusts",77,9237,6.0137085137085142]
["Y61","EAST OF ENGLAND COMMISSIONING REGION","QH8","NHS MID AND SOUTH ESSEX INTEGRATED CARE BOARD","R1L","ESSEX PARTNERSHIP UNIVERSITY NHS FOUNDATION TRUST","Mental Health & Learning Disability and Mental Health, Learning Disability & Community Trusts",449,5894,6.442712199950507]
["Y61","EAST OF ENGLAND COMMISSIONING REGION","QHG","NHS BEDFORDSHIRE, LUTON AND MILTON KEYNES INTEGRATED CARE BOARD","RD8","MILTON KEYNES UNIVERSITY HOSPITAL NHS FOUNDATION TRUST","Acute and Acute & Community Trusts",162,3805,6.2019890260630994]
["Y61","EAST OF ENGLAND COMMISSIONING REGION","QJG","NHS SUFFOLK AND NORTH EAST ESSEX INTEGRATED CARE BOARD","RDE","EAST SUFFOLK AND NORTH ESSEX NHS FOUNDATION TRUST","Acute and Acute & Community Trusts",47,11162,5.7328605200945626]
["Y61","EAST OF ENGLAND COMMISSIONING REGION","QJG","NHS SUFFOLK AND NORTH EAST ESSEX INTEGRATED CARE BOARD","RGR","WEST SUFFOLK NHS FOUNDATION TRUST","Acute and Acute & Community Trusts",1321,4779,6.9459679610457927]
["Y61","EAST OF ENGLAND COMMISSIONING REGION","QM7","NHS HERTFORDSHIRE AND WEST ESSEX INTEGRATED CARE BOARD","RWH","EAST AND NORTH HERTFORDSHIRE NHS TRUST","Acute and Acute & Community Trusts",120,6324,6.208333333333333]
["Y61","EAST OF ENGLAND COMMISSIONING REGION","QM7","NHS HERTFORDSHIRE AND WEST ESSEX INTEGRATED CARE BOARD","RY4","HERTFORDSHIRE COMMUNITY NHS TRUST","Community Trusts",117,2680,6.7331433998100669]
["Y61","EAST OF ENGLAND COMMISSIONING REGION","QM7","NHS HERTFORDSHIRE AND WEST ESSEX INTEGRATED CARE BOARD","RWR","HERTFORDSHIRE PARTNERSHIP UNIVERSITY NHS FOUNDATION TRUST","Mental Health & Learning Disability and Mental Health, Learning Disability & Community Trusts",646,3659,7.2474260928609624]
["Y61","EAST OF ENGLAND COMMISSIONING REGION","QM7","NHS HERTFORDSHIRE AND WEST ESSEX INTEGRATED CARE BOARD","RQW","THE PRINCESS ALEXANDRA HOSPITAL NHS TRUST","Acute and Acute & Community Trusts",267,3739,6.1548064918851439]
["Y61","EAST OF ENGLAND COMMISSIONING REGION","QM7","NHS HERTFORDSHIRE AND WEST ESSEX INTEGRATED CARE BOARD","RWG","WEST HERTFORDSHIRE TEACHING HOSPITALS NHS TRUST","Acute and Acute & Community Trusts",645,5221,6.0288544358311809]
["Y61","EAST OF ENGLAND COMMISSIONING REGION","QMM","NHS NORFOLK AND WAVENEY INTEGRATED CARE BOARD","RM1","NORFOLK AND NORWICH UNIVERSITY HOSPITALS NHS FOUNDATION TRUST","Acute and Acute & Community Trusts",186,8926,5.4256272401433705]
["Y61","EAST OF ENGLAND COMMISSIONING REGION","QMM","NHS NORFOLK AND WAVENEY INTEGRATED CARE BOARD","RMY","NORFOLK AND SUFFOLK NHS FOUNDATION TRUST","Mental Health & Learning Disability and Mental Health, Learning Disability & Community Trusts",1083,4681,6.5228835537152712]
["Y61","EAST OF ENGLAND COMMISSIONING REGION","QMM","NHS NORFOLK AND WAVENEY INTEGRATED CARE BOARD","RY3","NORFOLK COMMUNITY HEALTH AND CARE NHS TRUST","Community Trusts",276,2363,7.0923913043478253]
["Y61","EAST OF ENGLAND COMMISSIONING REGION","QMM","NHS NORFOLK AND WAVENEY INTEGRATED CARE BOARD","RCX","THE QUEEN ELIZABETH HOSPITAL, KING'S LYNN, NHS FOUNDATION TRUST","Acute and Acute & Community Trusts",406,3741,5.8223864258347007]
["Y61","EAST OF ENGLAND COMMISSIONING REGION","QUE","NHS CAMBRIDGESHIRE AND PETERBOROUGH INTEGRATED CARE BOARD","RGT","CAMBRIDGE UNIVERSITY HOSPITALS NHS FOUNDATION TRUST","Acute and Acute & Community Trusts",3724,11468,6.8465207532191812]
["Y61","EAST OF ENGLAND COMMISSIONING REGION","QUE","NHS CAMBRIDGESHIRE AND PETERBOROUGH INTEGRATED CARE BOARD","RT1","CAMBRIDGESHIRE AND PETERBOROUGH NHS FOUNDATION TRUST","Mental Health & Learning Disability and Mental Health, Learning Disability & Community Trusts",2275,4368,7.2857142857142856]
["Y61","EAST OF ENGLAND COMMISSIONING REGION","QUE","NHS CAMBRIDGESHIRE AND PETERBOROUGH INTEGRATED CARE BOARD","RYV","CAMBRIDGESHIRE COMMUNITY SERVICES NHS TRUST","Community Trusts",89,2775,7.4126092384519353]
["Y61","EAST OF ENGLAND COMMISSIONING REGION","QUE","NHS CAMBRIDGESHIRE AND PETERBOROUGH INTEGRATED CARE BOARD","RYC","EAST OF ENGLAND AMBULANCE SERVICE NHS TRUST","Ambulance Trusts",1120,5575,4.902281746031746]
["Y61","EAST OF ENGLAND COMMISSIONING REGION","QUE","NHS CAMBRIDGESHIRE AND PETERBOROUGH INTEGRATED CARE BOARD","RGN","NORTH WEST ANGLIA NHS FOUNDATION TRUST","Acute and Acute & Community Trusts",359,6935,5.6979263385948613]
["Y62","NORTH WEST COMMISSIONING REGION","QE1","NHS LANCASHIRE AND SOUTH CUMBRIA INTEGRATED CARE BOARD","RXL","BLACKPOOL TEACHING HOSPITALS NHS FOUNDATION TRUST","Acute and Acute & Community Trusts",265,7856,6.7547169811320762]
["Y62","NORTH WEST COMMISSIONING REGION","QE1","NHS LANCASHIRE AND SOUTH CUMBRIA INTEGRATED CARE BOARD","RXR","EAST LANCASHIRE HOSPITALS NHS TRUST","Acute and Acute & Community Trusts",27,9614,6.4917695473251031]
["Y62","NORTH WEST COMMISSIONING REGION","QE1","NHS LANCASHIRE AND SOUTH CUMBRIA INTEGRATED CARE BOARD","RW5","LANCASHIRE & SOUTH CUMBRIA NHS FOUNDATION TRUST","Mental Health & Learning Disability and Mental Health, Learning Disability & Community Trusts",1070,7066,6.8169781931464177]
["Y62","NORTH WEST COMMISSIONING REGION","QE1","NHS LANCASHIRE AND SOUTH CUMBRIA INTEGRATED CARE BOARD","RXN","LANCASHIRE TEACHING HOSPITALS NHS FOUNDATION TRUST","Acute and Acute & Community Trusts",1370,9294,6.7704288422525742]
["Y62","NORTH WEST COMMISSIONING REGION","QE1","NHS LANCASHIRE AND SOUTH CUMBRIA INTEGRATED CARE BOARD","RTX","UNIVERSITY HOSPITALS OF MORECAMBE BAY NHS FOUNDATION TRUST","Acute and Acute & Community Trusts",348,7106,6.4838761174968065]
["Y62","NORTH WEST COMMISSIONING REGION","QOP","NHS GREATER MANCHESTER INTEGRATED CARE BOARD","RMC","BOLTON NHS FOUNDATION TRUST","Acute and Acute & Community Trusts",1200,6357,7.2497685185185183]
["Y62","NORTH WEST COMMISSIONING REGION","QOP","NHS GREATER MANCHESTER INTEGRATED CARE BOARD","RXV","GREATER MANCHESTER MENTAL HEALTH NHS FOUNDATION TRUST","Mental Health & Learning Disability and Mental Health, Learning Disability & Community Trusts",1309,6258,6.6608739806680317]
["Y62","NORTH WEST COMMISSIONING REGION","QOP","NHS GREATER MANCHESTER INTEGRATED CARE BOARD","R0A","MANCHESTER UNIVERSITY NHS FOUNDATION TRUST","Acute and Acute & Community Trusts",3639,27674,6.5333971768973846]
["Y62","NORTH WEST COMMISSIONING REGION","QOP","NHS GREATER MANCHESTER INTEGRATED CARE BOARD","RX7","NORTH WEST AMBULANCE SERVICE NHS TRUST","Ambulance Trusts",850,6686,6.1802687125751179]
["Y62","NORTH WEST COMMISSIONING REGION","QOP","NHS GREATER MANCHESTER INTEGRATED CARE BOARD","RM3","NORTHERN CARE ALLIANCE NHS FOUNDATION TRUST","Acute and Acute & Community Trusts",2227,19067,6.1515242229207203]
["Y62","NORTH WEST COMMISSIONING REGION","QOP","NHS GREATER MANCHESTER INTEGRATED CARE BOARD","RT2","PENNINE CARE NHS FOUNDATION TRUST","Mental Health & Learning Disability and Mental Health, Learning Disability & Community Trusts",204,3614,6.3248910675381262]
["Y62","NORTH WEST COMMISSIONING REGION","QOP","NHS GREATER MANCHESTER INTEGRATED CARE BOARD","RMP","TAMESIDE AND GLOSSOP INTEGRATED CARE NHS FOUNDATION TRUST","Acute and Acute & Community Trusts",66,4061,6.0101010101010104]
["Y62","NORTH WEST COMMISSIONING REGION","QOP","NHS GREATER MANCHESTER INTEGRATED CARE BOARD","RBV","THE CHRISTIE NHS FOUNDATION TRUST","Acute Specialist Trusts",122,3271,6.4981785063752282]
["Y62","NORTH WEST COMMISSIONING REGION","QOP","NHS GREATER MANCHESTER INTEGRATED CARE BOARD","RRF","WRIGHTINGTON, WIGAN AND LEIGH NHS FOUNDATION TRUST","Acute and Acute & Community Trusts",91,6789,6.7979242979242978]
["Y62","NORTH WEST COMMISSIONING REGION","QYG","NHS CHESHIRE AND MERSEYSIDE INTEGRATED CARE BOARD","RBS","ALDER HEY CHILDREN'S NHS FOUNDATION TRUST","Acute and Acute & Community Trusts",340,4147,6.9150326797385624]
["Y62","NORTH WEST COMMISSIONING REGION","QYG","NHS CHESHIRE AND MERSEYSIDE INTEGRATED CARE BOARD","RY2","BRIDGEWATER COMMUNITY HEALTHCARE NHS FOUNDATION TRUST","Community Trusts",228,1484,6.628898635477583]
["Y62","NORTH WEST COMMISSIONING REGION","QYG","NHS CHESHIRE AND MERSEYSIDE INTEGRATED CARE BOARD","RXA","CHESHIRE AND WIRRAL PARTNERSHIP NHS FOUNDATION TRUST","Mental Health & Learning Disability and Mental Health, Learning Disability & Community Trusts",680,4047,7.1260372215550767]
["Y62","NORTH WEST COMMISSIONING REGION","QYG","NHS CHESHIRE AND MERSEYSIDE INTEGRATED CARE BOARD","RJR","COUNTESS OF CHESTER HOSPITAL NHS FOUNDATION TRUST","Acute and Acute & Community Trusts",329,4488,5.6019925700776767]
["Y62","NORTH WEST COMMISSIONING REGION","QYG","NHS CHESHIRE AND MERSEYSIDE INTEGRATED CARE BOARD","RJN","EAST CHESHIRE NHS TRUST","Acute and Acute & Community Trusts",49,2549,6.2585034013605449]
["Y62","NORTH WEST COMMISSIONING REGION","QYG","NHS CHESHIRE AND MERSEYSIDE INTEGRATED CARE BOARD","RBQ","LIVERPOOL HEART AND CHEST HOSPITAL NHS FOUNDATION TRUST","Acute Specialist Trusts",48,1888,7.3495370370370372]
["Y62","NORTH WEST COMMISSIONING REGION","QYG","NHS CHESHIRE AND MERSEYSIDE INTEGRATED CARE BOARD","REM","LIVERPOOL UNIVERSITY HOSPITALS NHS FOUNDATION TRUST","Acute and Acute & Community Trusts",1684,13593,6.3033087039462332]
["Y62","NORTH WEST COMMISSIONING REGION","QYG","NHS CHESHIRE AND MERSEYSIDE INTEGRATED CARE BOARD","REP","LIVERPOOL WOMEN'S NHS FOUNDATION TRUST","Acute Specialist Trusts",201,1598,5.9148050007610911]
["Y62","NORTH WEST COMMISSIONING REGION","QYG","NHS CHESHIRE AND MERSEYSIDE INTEGRATED CARE BOARD","RW4","MERSEY CARE NHS FOUNDATION TRUST","Mental Health & Learning Disability and Mental Health, Learning Disability & Community Trusts",2715,10479,7.0201437894184684]
["Y62","NORTH WEST COMMISSIONING REGION","QYG","NHS CHESHIRE AND MERSEYSIDE INTEGRATED CARE BOARD","RBT","MID CHESHIRE HOSPITALS NHS FOUNDATION TRUST","Acute and Acute & Community Trusts",337,5119,6.7969007583250907]
["Y62","NORTH WEST COMMISSIONING REGION","QYG","NHS CHESHIRE AND MERSEYSIDE INTEGRATED CARE BOARD","RVY","SOUTHPORT AND ORMSKIRK HOSPITAL NHS TRUST","Acute and Acute & Community Trusts",247,3339,6.2714439946018894]
["Y62","NORTH WEST COMMISSIONING REGION","QYG","NHS CHESHIRE AND MERSEYSIDE INTEGRATED CARE BOARD","RBN","ST HELENS AND KNOWSLEY TEACHING HOSPITALS NHS TRUST","Acute and Acute & Community Trusts",241,6818,6.4430613185799901]
["Y62","NORTH WEST COMMISSIONING REGION","QYG","NHS CHESHIRE AND MERSEYSIDE INTEGRATED CARE BOARD","REN","THE CLATTERBRIDGE CANCER CENTRE NHS FOUNDATION TRUST","Acute Specialist Trusts",393,1629,7.1614362454057101]
["Y62","NORTH WEST COMMISSIONING REGION","QYG","NHS CHESHIRE AND MERSEYSIDE INTEGRATED CARE BOARD","RET","THE WALTON CENTRE NHS FOUNDATION TRUST","Acute Specialist Trusts",84,1515,7.106481481481481]
["Y62","NORTH WEST COMMISSIONING REGION","QYG","NHS CHESHIRE AND MERSEYSIDE INTEGRATED CARE BOARD","RWW","WARRINGTON AND HALTON TEACHING HOSPITALS NHS FOUNDATION TRUST","Acute and Acute & Community Trusts",65,4380,6.4401709401709404]
["Y62","NORTH WEST COMMISSIONING REGION","QYG","NHS CHESHIRE AND MERSEYSIDE INTEGRATED CARE BOARD","RY7","WIRRAL COMMUNITY HEALTH AND CARE NHS FOUNDATION TRUST","Community Trusts",199,1904,6.4740368509212729]
["Y62","NORTH WEST COMMISSIONING REGION","QYG","NHS CHESHIRE AND MERSEYSIDE INTEGRATED CARE BOARD","RBL","WIRRAL UNIVERSITY TEACHING HOSPITAL NHS FOUNDATION TRUST","Acute and Acute & Community Trusts",28,6619,5.1984126984126986]
["Y63","NORTH EAST AND YORKSHIRE COMMISSIONING REGION","QF7","NHS SOUTH YORKSHIRE INTEGRATED CARE BOARD","RFF","BARNSLEY HOSPITAL NHS FOUNDATION TRUST","Acute and Acute & Community Trusts",341,4083,6.5795047246660152]
["Y63","NORTH EAST AND YORKSHIRE COMMISSIONING REGION","QF7","NHS SOUTH YORKSHIRE INTEGRATED CARE BOARD","RP5","DONCASTER AND BASSETLAW TEACHING HOSPITALS NHS FOUNDATION TRUST","Acute and Acute & Community Trusts",495,6583,6.0308641975308648]
["Y63","NORTH EAST AND YORKSHIRE COMMISSIONING REGION","QF7","NHS SOUTH YORKSHIRE INTEGRATED CARE BOARD","RXE","ROTHERHAM DONCASTER AND SOUTH HUMBER NHS FOUNDATION TRUST","Mental Health & Learning Disability and Mental Health, Learning Disability & Community Trusts",127,3572,6.8963254593175849]
["Y63","NORTH EAST AND YORKSHIRE COMMISSIONING REGION","QF7","NHS SOUTH YORKSHIRE INTEGRATED CARE BOARD","RCU","SHEFFIELD CHILDREN'S NHS FOUNDATION TRUST","Acute and Acute & Community Trusts",119,3724,6.9444444444444455]
["Y63","NORTH EAST AND YORKSHIRE COMMISSIONING REGION","QF7","NHS SOUTH YORKSHIRE INTEGRATED CARE BOARD","TAH","SHEFFIELD HEALTH & SOCIAL CARE NHS FOUNDATION TRUST","Mental Health & Learning Disability and Mental Health, Learning Disability & Community Trusts",190,2529,6.2383040935672511]
["Y63","NORTH EAST AND YORKSHIRE COMMISSIONING REGION","QF7","NHS SOUTH YORKSHIRE INTEGRATED CARE BOARD","RHQ","SHEFFIELD TEACHING HOSPITALS NHS FOUNDATION TRUST","Acute and Acute & Community Trusts",809,17279,6.2944650460101634]
["Y63","NORTH EAST AND YORKSHIRE COMMISSIONING REGION","QF7","NHS SOUTH YORKSHIRE INTEGRATED CARE BOARD","RFR","THE ROTHERHAM NHS FOUNDATION TRUST","Acute and Acute & Community Trusts",613,4700,6.2266630415080657]
["Y63","NORTH EAST AND YORKSHIRE COMMISSIONING REGION","QHM","NHS NORTH EAST AND NORTH CUMBRIA INTEGRATED CARE BOARD","RXP","COUNTY DURHAM AND DARLINGTON NHS FOUNDATION TRUST","Acute and Acute & Community Trusts",1080,7667,6.2386831275720169]
["Y63","NORTH EAST AND YORKSHIRE COMMISSIONING REGION","QHM","NHS NORTH EAST AND NORTH CUMBRIA INTEGRATED CARE BOARD","RX4","CUMBRIA, NORTHUMBERLAND, TYNE AND WEAR NHS FOUNDATION TRUST","Mental Health & Learning Disability and Mental Health, Learning Disability & Community Trusts",341,7475,6.7106549364613883]
["Y63","NORTH EAST AND YORKSHIRE COMMISSIONING REGION","QHM","NHS NORTH EAST AND NORTH CUMBRIA INTEGRATED CARE BOARD","RR7","GATESHEAD HEALTH NHS FOUNDATION TRUST","Acute and Acute & Community Trusts",85,4937,6.3529411764705879]
["Y63","NORTH EAST AND YORKSHIRE COMMISSIONING REGION","QHM","NHS NORTH EAST AND NORTH CUMBRIA INTEGRATED CARE BOARD","RNN","NORTH CUMBRIA INTEGRATED CARE NHS FOUNDATION TRUST","Acute and Acute & Community Trusts",16,6701,5.6597222222222214]
["Y63","NORTH EAST AND YORKSHIRE COMMISSIONING REGION","QHM","NHS NORTH EAST AND NORTH CUMBRIA INTEGRATED CARE BOARD","RX6","NORTH EAST AMBULANCE SERVICE NHS FOUNDATION TRUST","Ambulance Trusts",225,2941,5.3419753086419748]
["Y63","NORTH EAST AND YORKSHIRE COMMISSIONING REGION","QHM","NHS NORTH EAST AND NORTH CUMBRIA INTEGRATED CARE BOARD","RVW","NORTH TEES AND HARTLEPOOL NHS FOUNDATION TRUST","Acute and Acute & Community Trusts",193,5503,6.3126079447322967]
["Y63","NORTH EAST AND YORKSHIRE COMMISSIONING REGION","QHM","NHS NORTH EAST AND NORTH CUMBRIA INTEGRATED CARE BOARD","RTF","NORTHUMBRIA HEALTHCARE NHS FOUNDATION TRUST","Acute and Acute & Community Trusts",3844,8414,7.0597756966123262]
["Y63","NORTH EAST AND YORKSHIRE COMMISSIONING REGION","QHM","NHS NORTH EAST AND NORTH CUMBRIA INTEGRATED CARE BOARD","RTR","SOUTH TEES HOSPITALS NHS FOUNDATION TRUST","Acute and Acute & Community Trusts",10,9570,6.833333333333333]
["Y63","NORTH EAST AND YORKSHIRE COMMISSIONING REGION","QHM","NHS NORTH EAST AND NORTH CUMBRIA INTEGRATED CARE BOARD","R0B","SOUTH TYNESIDE AND SUNDERLAND NHS FOUNDATION TRUST","Acute and Acute & Community Trusts",430,8896,6.3417312661498704]
["Y63","NORTH EAST AND YORKSHIRE COMMISSIONING REGION","QHM","NHS NORTH EAST AND NORTH CUMBRIA INTEGRATED CARE BOARD","RX3","TEES, ESK AND WEAR VALLEYS NHS FOUNDATION TRUST","Mental Health & Learning Disability and Mental Health, Learning Disability & Community Trusts",2054,7604,6.7482203115554036]
["Y63","NORTH EAST AND YORKSHIRE COMMISSIONING REGION","QHM","NHS NORTH EAST AND NORTH CUMBRIA INTEGRATED CARE BOARD","RTD","THE NEWCASTLE UPON TYNE HOSPITALS NHS FOUNDATION TRUST","Acute and Acute & Community Trusts",535,16274,6.3888888888888884]
["Y63","NORTH EAST AND YORKSHIRE COMMISSIONING REGION","QOQ","NHS HUMBER AND NORTH YORKSHIRE INTEGRATED CARE BOARD","RCD","HARROGATE AND DISTRICT NHS FOUNDATION TRUST","Acute and Acute & Community Trusts",1220,4729,6.9069495618427617]
["Y63","NORTH EAST AND YORKSHIRE COMMISSIONING REGION","QOQ","NHS HUMBER AND NORTH YORKSHIRE INTEGRATED CARE BOARD","RWA","HULL UNIVERSITY TEACHING HOSPITALS NHS TRUST","Acute and Acute & Community Trusts",1473,8825,6.4635847864566811]
["Y63","NORTH EAST AND YORKSHIRE COMMISSIONING REGION","QOQ","NHS HUMBER AND NORTH YORKSHIRE INTEGRATED CARE BOARD","RV9","HUMBER TEACHING NHS FOUNDATION TRUST","Mental Health & Learning Disability and Mental Health, Learning Disability & Community Trusts",591,3062,7.0836682078025675]
["Y63","NORTH EAST AND YORKSHIRE COMMISSIONING REGION","QOQ","NHS HUMBER AND NORTH YORKSHIRE INTEGRATED CARE BOARD","RJL","NORTHERN LINCOLNSHIRE AND GOOLE NHS FOUNDATION TRUST","Acute and Acute & Community Trusts",318,6514,5.4690775681341721]
["Y63","NORTH EAST AND YORKSHIRE COMMISSIONING REGION","QOQ","NHS HUMBER AND NORTH YORKSHIRE INTEGRATED CARE BOARD","RCB","YORK AND SCARBOROUGH TEACHING HOSPITALS NHS FOUNDATION TRUST","Acute and Acute & Community Trusts",155,9445,5.3154121863799277]
["Y63","NORTH EAST AND YORKSHIRE COMMISSIONING REGION","QWO","NHS WEST YORKSHIRE INTEGRATED CARE BOARD","RCF","AIREDALE NHS FOUNDATION TRUST","Acute and Acute & Community Trusts",163,3486,6.6905248807089288]
["Y63","NORTH EAST AND YORKSHIRE COMMISSIONING REGION","QWO","NHS WEST YORKSHIRE INTEGRATED CARE BOARD","TAD","BRADFORD DISTRICT CARE NHS FOUNDATION TRUST","Mental Health & Learning Disability and Mental Health, Learning Disability & Community Trusts",399,3247,6.7921518259489124]
["Y63","NORTH EAST AND YORKSHIRE COMMISSIONING REGION","QWO","NHS WEST YORKSHIRE INTEGRATED CARE BOARD","RAE","BRADFORD TEACHING HOSPITALS NHS FOUNDATION TRUST","Acute and Acute & Community Trusts",164,6226,6.5565718157181578]
["Y63","NORTH EAST AND YORKSHIRE COMMISSIONING REGION","QWO","NHS WEST YORKSHIRE INTEGRATED CARE BOARD","RWY","CALDERDALE AND HUDDERSFIELD NHS FOUNDATION TRUST","Acute and Acute & Community Trusts",236,6344,6.2511770244821081]
["Y63","NORTH EAST AND YORKSHIRE COMMISSIONING REGION","QWO","NHS WEST YORKSHIRE INTEGRATED CARE BOARD","RGD","LEEDS AND YORK PARTNERSHIP NHS FOUNDATION TRUST","Mental Health & Learning Disability and Mental Health, Learning Disability & Community Trusts",132,3088,6.900252525252526]
["Y63","NORTH EAST AND YORKSHIRE COMMISSIONING REGION","QWO","NHS WEST YORKSHIRE INTEGRATED CARE BOARD","RY6","LEEDS COMMUNITY HEALTHCARE NHS TRUST","Community Trusts",935,3146,6.8116671111429001]
["Y63","NORTH EAST AND YORKSHIRE COMMISSIONING REGION","QWO","NHS WEST YORKSHIRE INTEGRATED CARE BOARD","RXF","MID YORKSHIRE HOSPITALS NHS TRUST","Acute and Acute & Community Trusts",1850,8839,6.5579665742615925]
["Y63","NORTH EAST AND YORKSHIRE COMMISSIONING REGION","QWO","NHS WEST YORKSHIRE INTEGRATED CARE BOARD","RXG","SOUTH WEST YORKSHIRE PARTNERSHIP NHS FOUNDATION TRUST","Mental Health & Learning Disability and Mental Health, Learning Disability & Community Trusts",168,4520,7.5183639366331674]
["Y63","NORTH EAST AND YORKSHIRE COMMISSIONING REGION","QWO","NHS WEST YORKSHIRE INTEGRATED CARE BOARD","RX8","YORKSHIRE AMBULANCE SERVICE NHS TRUST","Ambulance Trusts",395,5792,5.7369901547116733]

{"sheet":"Advocacy","index":4,"n_rows":196,"n_cols":10,"rows_kept":196,"cut":false,"hidden":false,"merged":[[6,6,7,6],[6,7,7,7],[6,8,7,8],[6,9,7,9],[6,5,7,5],[6,0,7,0],[6,1,7,1],[6,2,7,2],[6,3,7,3],[6,4,7,4]]}
[]
[]
[]
[]
[]
[]
["Region Code","Region Name","STP Code","STP Name","Org Code","Org Name","Care Setting","Total Responses","HSCIC Workforce Headcount","Advocacy Score"]
[]
[null,null,null,null,null,"England",null,127366,1180653,6.6465998251757403]
["Y56","LONDON COMMISSIONING REGION","QKK","NHS SOUTH EAST LONDON INTEGRATED CARE BOARD","RJ1","GUY'S AND ST THOMAS' NHS FOUNDATION TRUST","Acute and Acute & Community Trusts",2737,22169,7.4957374254049443]
["Y56","LONDON COMMISSIONING REGION","QKK","NHS SOUTH EAST LONDON INTEGRATED CARE BOARD","RJZ","KING'S COLLEGE HOSPITAL NHS FOUNDATION TRUST","Acute and Acute & Community Trusts",1285,13297,6.7107652399481195]
["Y56","LONDON COMMISSIONING REGION","QKK","NHS SOUTH EAST LONDON INTEGRATED CARE BOARD","RJ2","LEWISHAM AND GREENWICH NHS TRUST","Acute and Acute & Community Trusts",433,6850,5.8294842186297151]
["Y56","LONDON COMMISSIONING REGION","QKK","NHS SOUTH EAST LONDON INTEGRATED CARE BOARD","RV5","SOUTH LONDON AND MAUDSLEY NHS FOUNDATION TRUST","Mental Health & Learning Disability and Mental Health, Learning Disability & Community Trusts",195,5486,6.1623931623931627]
["Y56","LONDON COMMISSIONING REGION","QMF","NHS NORTH EAST LONDON INTEGRATED CARE BOARD","R1H","BARTS HEALTH NHS TRUST","Acute and Acute & Community Trusts",435,17203,5.9176245210727965]
["Y56","LONDON COMMISSIONING REGION","QMF","NHS NORTH EAST LONDON INTEGRATED CARE BOARD","RWK","EAST LONDON NHS FOUNDATION TRUST","Mental Health & Learning Disability and Mental Health, Learning Disability & Community Trusts",906,6545,7.2976453274466522]
["Y56","LONDON COMMISSIONING REGION","QMF","NHS NORTH EAST LONDON INTEGRATED CARE BOARD","RQX","HOMERTON HEALTHCARE NHS FOUNDATION TRUST","Acute and Acute & Community Trusts",706,3922,7.1683191690273835]
["Y56","LONDON COMMISSIONING REGION","QMF","NHS NORTH EAST LONDON INTEGRATED CARE BOARD","RAT","NORTH EAST LONDON NHS FOUNDATION TRUST","Mental Health & Learning Disability and Mental Health, Learning Disability & Community Trusts",616,6702,6.6423160173160172]
["Y56","LONDON COMMISSIONING REGION","QMJ","NHS NORTH CENTRAL LONDON INTEGRATED CARE BOARD","RRP","BARNET, ENFIELD AND HARINGEY MENTAL HEALTH NHS TRUST","Mental Health & Learning Disability and Mental Health, Learning Disability & Community Trusts",154,3407,5.4437229437229444]
["Y56","LONDON COMMISSIONING REGION","QMJ","NHS NORTH CENTRAL LONDON INTEGRATED CARE BOARD","TAF","CAMDEN AND ISLINGTON NHS FOUNDATION TRUST","Mental Health & Learning Disability and Mental Health, Learning Disability & Community Trusts",444,2293,6.7849099099099099]
["Y56","LONDON COMMISSIONING REGION","QMJ","NHS NORTH CENTRAL LONDON INTEGRATED CARE BOARD","RP4","GREAT ORMOND STREET HOSPITAL FOR CHILDREN NHS FOUNDATION TRUST","Acute Specialist Trusts",962,5520,7.4566874566874564]
["Y56","LONDON COMMISSIONING REGION","QMJ","NHS NORTH CENTRAL LONDON INTEGRATED CARE BOARD","RP6","MOORFIELDS EYE HOSPITAL NHS FOUNDATION TRUST","Acute Specialist Trusts",31,2283,5.591397849462366]
["Y56","LONDON COMMISSIONING REGION","QMJ","NHS NORTH CENTRAL LONDON INTEGRATED CARE BOARD","RAP","NORTH MIDDLESEX UNIVERSITY HOSPITAL NHS TRUST","Acute and Acute & Community Trusts",663,3818,6.0331825037707389]
["Y56","LONDON COMMISSIONING REGION","QMJ","NHS NORTH CENTRAL LONDON INTEGRATED CARE BOARD","RAL","ROYAL FREE LONDON NHS FOUNDATION TRUST","Acute and Acute & Community Trusts",672,10684,5.9598214285714288]
["Y56","LONDON COMMISSIONING REGION","QMJ","NHS NORTH CENTRAL LONDON INTEGRATED CARE BOARD","RNK","TAVISTOCK AND PORTMAN NHS FOUNDATION TRUST","Mental Health & Learning Disability and Mental Health, Learning Disability & Community Trusts",95,767,4.8421052631578947]
["Y56","LONDON COMMISSIONING REGION","QMJ","NHS NORTH CENTRAL LONDON INTEGRATED CARE BOARD","RRV","UNIVERSITY COLLEGE LONDON HOSPITALS NHS FOUNDATION TRUST","Acute and Acute & Community Trusts",508,10115,7.6804461942257216]
["Y56","LONDON COMMISSIONING REGION","QMJ","NHS NORTH CENTRAL LONDON INTEGRATED CARE BOARD","RKE","WHITTINGTON HEALTH NHS TRUST","Acute and Acute & Community Trusts",688,4464,6.4474321705426352]
["Y56","LONDON COMMISSIONING REGION","QRV","NHS NORTH WEST LONDON INTEGRATED CARE BOARD","RYX","CENTRAL LONDON COMMUNITY HEALTHCARE NHS TRUST","Community Trusts",223,4376,6.6031390134529149]
["Y56","LONDON COMMISSIONING REGION","QRV","NHS NORTH WEST LONDON INTEGRATED CARE BOARD","RYJ","IMPERIAL COLLEGE HEALTHCARE NHS TRUST","Acute and Acute & Community Trusts",91,12988,6.2912087912087911]
["Y56","LONDON COMMISSIONING REGION","QRV","NHS NORTH WEST LONDON INTEGRATED CARE BOARD","RAN","ROYAL NATIONAL ORTHOPAEDIC HOSPITAL NHS TRUST","Acute Specialist Trusts",74,1574,7.4774774774774784]
["Y56","LONDON COMMISSIONING REGION","QRV","NHS NORTH WEST LONDON INTEGRATED CARE BOARD","RAS","THE HILLINGDON HOSPITALS NHS FOUNDATION TRUST","Acute and Acute & Community Trusts",62,3572,5.92741935483871]
["Y56","LONDON COMMISSIONING REGION","QRV","NHS NORTH WEST LONDON INTEGRATED CARE BOARD","RPY","THE ROYAL MARSDEN NHS FOUNDATION TRUST","Acute Specialist Trusts",362,4293,7.3158379373848987]
["Y56","LONDON COMMISSIONING REGION","QWE","NHS SOUTH WEST LONDON INTEGRATED CARE BOARD","RVR","EPSOM AND ST HELIER UNIVERSITY HOSPITALS NHS TRUST","Acute and Acute & Community Trusts",521,6858,5.8173384516954574]
["Y56","LONDON COMMISSIONING REGION","QWE","NHS SOUTH WEST LONDON INTEGRATED CARE BOARD","RY9","HOUNSLOW AND RICHMOND COMMUNITY HEALTHCARE NHS TRUST","Community Trusts",96,1244,7.213541666666667]
["Y56","LONDON COMMISSIONING REGION","QWE","NHS SOUTH WEST LONDON INTEGRATED CARE BOARD","RQY","SOUTH WEST LONDON AND ST GEORGE'S MENTAL HEALTH NHS TRUST","Mental Health & Learning Disability and Mental Health, Learning Disability & Community Trusts",126,2612,6.5740740740740744]
["Y56","LONDON COMMISSIONING REGION","QWE","NHS SOUTH WEST LONDON INTEGRATED CARE BOARD","RJ7","ST GEORGE'S UNIVERSITY HOSPITALS NHS FOUNDATION TRUST","Acute and Acute & Community Trusts",901,9298,6.205142434332223]
["Y58","SOUTH WEST COMMISSIONING REGION","QJK","NHS DEVON INTEGRATED CARE BOARD","RWV","DEVON PARTNERSHIP NHS TRUST","Mental Health & Learning Disability and Mental Health, Learning Disability & Community Trusts",94,3602,6.6755319148936172]
["Y58","SOUTH WEST COMMISSIONING REGION","QJK","NHS DEVON INTEGRATED CARE BOARD","RBZ","NORTHERN DEVON HEALTHCARE NHS TRUST","Acute and Acute & Community Trusts",1336,0,6.8051397205588815]
["Y58","SOUTH WEST COMMISSIONING REGION","QJK","NHS DEVON INTEGRATED CARE BOARD","RA9","TORBAY AND SOUTH DEVON NHS FOUNDATION TRUST","Acute and Acute & Community Trusts",220,6744,5.8409090909090908]
["Y58","SOUTH WEST COMMISSIONING REGION","QJK","NHS DEVON INTEGRATED CARE BOARD","RK9","UNIVERSITY HOSPITALS PLYMOUTH NHS TRUST","Acute and Acute & Community Trusts",1324,9376,6.4224572004028202]
["Y58","SOUTH WEST COMMISSIONING REGION","QOX","NHS BATH AND NORTH EAST SOMERSET, SWINDON AND WILTSHIRE INTEGRATED CARE BOARD","RVN","AVON AND WILTSHIRE MENTAL HEALTH PARTNERSHIP NHS TRUST","Mental Health & Learning Disability and Mental Health, Learning Disability & Community Trusts",256,4555,5.625]
["Y58","SOUTH WEST COMMISSIONING REGION","QOX","NHS BATH AND NORTH EAST SOMERSET, SWINDON AND WILTSHIRE INTEGRATED CARE BOARD","RN3","GREAT WESTERN HOSPITALS NHS FOUNDATION TRUST","Acute and Acute & Community Trusts",1252,5305,6.4237220447284349]
["Y58","SOUTH WEST COMMISSIONING REGION","QOX","NHS BATH AND NORTH EAST SOMERSET, SWINDON AND WILTSHIRE INTEGRATED CARE BOARD","RNZ","SALISBURY NHS FOUNDATION TRUST","Acute and Acute & Community Trusts",274,3875,5.6082725060827254]
["Y58","SOUTH WEST COMMISSIONING REGION","QR1","NHS GLOUCESTERSHIRE INTEGRATED CARE BOARD","RTQ","GLOUCESTERSHIRE HEALTH AND CARE NHS FOUNDATION TRUST","Mental Health & Learning Disability and Mental Health, Learning Disability & Community Trusts",69,4513,7.1859903381642507]
["Y58","SOUTH WEST COMMISSIONING REGION","QR1","NHS GLOUCESTERSHIRE INTEGRATED CARE BOARD","RTE","GLOUCESTERSHIRE HOSPITALS NHS FOUNDATION TRUST","Acute and Acute & Community Trusts",946,8225,5.4536645525017624]
["Y58","SOUTH WEST COMMISSIONING REGION","QSL","NHS SOMERSET INTEGRATED CARE BOARD","RH5","SOMERSET NHS FOUNDATION TRUST","Acute and Acute & Community Trusts",634,9671,7.0754468980021024]
["Y58","SOUTH WEST COMMISSIONING REGION","QSL","NHS SOMERSET INTEGRATED CARE BOARD","RA4","YEOVIL DISTRICT HOSPITAL NHS FOUNDATION TRUST","Acute and Acute & Community Trusts",239,2715,6.6562064156206411]
["Y58","SOUTH WEST COMMISSIONING REGION","QT6","NHS CORNWALL AND THE ISLES OF SCILLY INTEGRATED CARE BOARD","RJ8","CORNWALL PARTNERSHIP NHS FOUNDATION TRUST","Mental Health & Learning Disability and Mental Health, Learning Disability & Community Trusts",16,4113,5.9375]
["Y58","SOUTH WEST COMMISSIONING REGION","QT6","NHS CORNWALL AND THE ISLES OF SCILLY INTEGRATED CARE BOARD","REF","ROYAL CORNWALL HOSPITALS NHS TRUST","Acute and Acute & Community Trusts",783,6833,6.1089825457641549]
["Y58","SOUTH WEST COMMISSIONING REGION","QUY","NHS BRISTOL, NORTH SOMERSET AND SOUTH GLOUCESTERSHIRE INTEGRATED CARE BOARD","RVJ","NORTH BRISTOL NHS TRUST","Acute and Acute & Community Trusts",302,9308,6.6859823399558502]
["Y58","SOUTH WEST COMMISSIONING REGION","QUY","NHS BRISTOL, NORTH SOMERSET AND SOUTH GLOUCESTERSHIRE INTEGRATED CARE BOARD","RA7","UNIVERSITY HOSPITALS BRISTOL AND WESTON NHS FOUNDATION TRUST","Acute and Acute & Community Trusts",1212,11560,7.0221397139713977]
["Y58","SOUTH WEST COMMISSIONING REGION","QVV","NHS DORSET INTEGRATED CARE BOARD","RBD","DORSET COUNTY HOSPITAL NHS FOUNDATION TRUST","Acute and Acute & Community Trusts",476,3212,6.6999299719887953]
["Y58","SOUTH WEST COMMISSIONING REGION","QVV","NHS DORSET INTEGRATED CARE BOARD","RDY","DORSET HEALTHCARE UNIVERSITY NHS FOUNDATION TRUST","Mental Health & Learning Disability and Mental Health, Learning Disability & Community Trusts",1074,6427,6.8234016139044069]
["Y58","SOUTH WEST COMMISSIONING REGION","QVV","NHS DORSET INTEGRATED CARE BOARD","R0D","UNIVERSITY HOSPITALS DORSET NHS FOUNDATION TRUST","Acute and Acute & Community Trusts",179,9217,5.7076350093109864]
["Y59","SOUTH EAST COMMISSIONING REGION","QKS","NHS KENT AND MEDWAY INTEGRATED CARE BOARD","RN7","DARTFORD AND GRAVESHAM NHS TRUST","Acute and Acute & Community Trusts",230,3966,6.7572463768115947]
["Y59","SOUTH EAST COMMISSIONING REGION","QKS","NHS KENT AND MEDWAY INTEGRATED CARE BOARD","RVV","EAST KENT HOSPITALS UNIVERSITY NHS FOUNDATION TRUST","Acute and Acute & Community Trusts",2456,10356,5.9602334419109662]
["Y59","SOUTH EAST COMMISSIONING REGION","QKS","NHS KENT AND MEDWAY INTEGRATED CARE BOARD","RXY","KENT AND MEDWAY NHS AND SOCIAL CARE PARTNERSHIP TRUST","Mental Health & Learning Disability and Mental Health, Learning Disability & Community Trusts",174,3451,6.1829501915708809]
["Y59","SOUTH EAST COMMISSIONING REGION","QKS","NHS KENT AND MEDWAY INTEGRATED CARE BOARD","RYY","KENT COMMUNITY HEALTH NHS FOUNDATION TRUST","Community Trusts",820,4913,6.8638211382113816]
["Y59","SOUTH EAST COMMISSIONING REGION","QKS","NHS KENT AND MEDWAY INTEGRATED CARE BOARD","RWF","MAIDSTONE AND TUNBRIDGE WELLS NHS TRUST","Acute and Acute & Community Trusts",1039,6709,7.1703561116458134]
["Y59","SOUTH EAST COMMISSIONING REGION","QKS","NHS KENT AND MEDWAY INTEGRATED CARE BOARD","RPA","MEDWAY NHS FOUNDATION TRUST","Acute and Acute & Community Trusts",41,4620,5.0609756097560972]
["Y59","SOUTH EAST COMMISSIONING REGION","QNQ","NHS FRIMLEY INTEGRATED CARE BOARD","RWX","BERKSHIRE HEALTHCARE NHS FOUNDATION TRUST","Mental Health & Learning Disability and Mental Health, Learning Disability & Community Trusts",1527,4670,7.5594848286400351]
["Y59","SOUTH EAST COMMISSIONING REGION","QNQ","NHS FRIMLEY INTEGRATED CARE BOARD","RDU","FRIMLEY HEALTH NHS FOUNDATION TRUST","Acute and Acute & Community Trusts",1499,9971,6.7094729819879921]
["Y59","SOUTH EAST COMMISSIONING REGION","QNX","NHS SUSSEX INTEGRATED CARE BOARD","RXC","EAST SUSSEX HEALTHCARE NHS TRUST","Acute and Acute & Community Trusts",301,7875,6.1074197120708744]
["Y59","SOUTH EAST COMMISSIONING REGION","QNX","NHS SUSSEX INTEGRATED CARE BOARD","RPC","QUEEN VICTORIA HOSPITAL NHS FOUNDATION TRUST","Acute Specialist Trusts",159,1074,7.8144654088050318]
["Y59","SOUTH EAST COMMISSIONING REGION","QNX","NHS SUSSEX INTEGRATED CARE BOARD","RYD","SOUTH EAST COAST AMBULANCE SERVICE NHS FOUNDATION TRUST","Ambulance Trusts",111,4198,4.1441441441441444]
["Y59","SOUTH EAST COMMISSIONING REGION","QNX","NHS SUSSEX INTEGRATED CARE BOARD","RDR","SUSSEX COMMUNITY NHS FOUNDATION TRUST","Community Trusts",90,5318,6.9907407407407405]
["Y59","SOUTH EAST COMMISSIONING REGION","QNX","NHS SUSSEX INTEGRATED CARE BOARD","RX2","SUSSEX PARTNERSHIP NHS FOUNDATION TRUST","Mental Health & Learning Disability and Mental Health, Learning Disability & Community Trusts",187,5533,6.0427807486631018]
["Y59","SOUTH EAST COMMISSIONING REGION","QNX","NHS SUSSEX INTEGRATED CARE BOARD","RYR","UNIVERSITY HOSPITALS SUSSEX NHS FOUNDATION TRUST","Acute and Acute & Community Trusts",220,16095,4.8598484848484853]
["Y59","SOUTH EAST COMMISSIONING REGION","QRL","NHS HAMPSHIRE AND ISLE OF WIGHT INTEGRATED CARE BOARD","RN5","HAMPSHIRE HOSPITALS NHS FOUNDATION TRUST","Acute and Acute & Community Trusts",816,7394,6.2571486928104569]
["Y59","SOUTH EAST COMMISSIONING REGION","QRL","NHS HAMPSHIRE AND ISLE OF WIGHT INTEGRATED CARE BOARD","R1F","ISLE OF WIGHT NHS TRUST","Acute and Acute & Community Trusts",483,3620,6.3267770876466534]
["Y59","SOUTH EAST COMMISSIONING REGION","QRL","NHS HAMPSHIRE AND ISLE OF WIGHT INTEGRATED CARE BOARD","RHU","PORTSMOUTH HOSPITALS UNIVERSITY NATIONAL HEALTH SERVICE TRUST","Acute and Acute & Community Trusts",1032,7994,6.4316860465116283]
["Y59","SOUTH EAST COMMISSIONING REGION","QRL","NHS HAMPSHIRE AND ISLE OF WIGHT INTEGRATED CARE BOARD","R1C","SOLENT NHS TRUST","Mental Health & Learning Disability and Mental Health, Learning Disability & Community Trusts",429,4041,7.4883449883449886]
["Y59","SOUTH EAST COMMISSIONING REGION","QRL","NHS HAMPSHIRE AND ISLE OF WIGHT INTEGRATED CARE BOARD","RW1","SOUTHERN HEALTH NHS FOUNDATION TRUST","Mental Health & Learning Disability and Mental Health, Learning Disability & Community Trusts",1875,6321,6.7493333333333334]
["Y59","SOUTH EAST COMMISSIONING REGION","QRL","NHS HAMPSHIRE AND ISLE OF WIGHT INTEGRATED CARE BOARD","RHM","UNIVERSITY HOSPITAL SOUTHAMPTON NHS FOUNDATION TRUST","Acute and Acute & Community Trusts",2809,12425,7.5175032633202807]
["Y59","SOUTH EAST COMMISSIONING REGION","QU9","NHS BUCKINGHAMSHIRE, OXFORDSHIRE AND BERKSHIRE WEST INTEGRATED CARE BOARD","RXQ","BUCKINGHAMSHIRE HEALTHCARE NHS TRUST","Acute and Acute & Community Trusts",705,6239,6.6359338061465714]
["Y59","SOUTH EAST COMMISSIONING REGION","QU9","NHS BUCKINGHAMSHIRE, OXFORDSHIRE AND BERKSHIRE WEST INTEGRATED CARE BOARD","RNU","OXFORD HEALTH NHS FOUNDATION TRUST","Mental Health & Learning Disability and Mental Health, Learning Disability & Community Trusts",1002,6072,6.8055555555555562]
["Y59","SOUTH EAST COMMISSIONING REGION","QU9","NHS BUCKINGHAMSHIRE, OXFORDSHIRE AND BERKSHIRE WEST INTEGRATED CARE BOARD","RTH","OXFORD UNIVERSITY HOSPITALS NHS FOUNDATION TRUST","Acute and Acute & Community Trusts",2220,13438,6.9527027027027026]
["Y59","SOUTH EAST COMMISSIONING REGION","QU9","NHS BUCKINGHAMSHIRE, OXFORDSHIRE AND BERKSHIRE WEST INTEGRATED CARE BOARD","RHW","ROYAL BERKSHIRE NHS FOUNDATION TRUST","Acute and Acute & Community Trusts",143,5899,6.596736596736597]
["Y59","SOUTH EAST COMMISSIONING REGION","QU9","NHS BUCKINGHAMSHIRE, OXFORDSHIRE AND BERKSHIRE WEST INTEGRATED CARE BOARD","RYE","SOUTH CENTRAL AMBULANCE SERVICE NHS FOUNDATION TRUST","Ambulance Trusts",277,4516,5.5655836341756926]
["Y60","MIDLANDS COMMISSIONING REGION","QGH","NHS HEREFORDSHIRE AND WORCESTERSHIRE INTEGRATED CARE BOARD","R1A","HEREFORDSHIRE AND WORCESTERSHIRE HEALTH AND CARE NHS TRUST","Mental Health & Learning Disability and Mental Health, Learning Disability & Community Trusts",373,4434,6.588471849865952]
["Y60","MIDLANDS COMMISSIONING REGION","QGH","NHS HEREFORDSHIRE AND WORCESTERSHIRE INTEGRATED CARE BOARD","RWP","WORCESTERSHIRE ACUTE HOSPITALS NHS TRUST","Acute and Acute & Community Trusts",259,6633,5.9845559845559846]
["Y60","MIDLANDS COMMISSIONING REGION","QGH","NHS HEREFORDSHIRE AND WORCESTERSHIRE INTEGRATED CARE BOARD","RLQ","WYE VALLEY NHS TRUST","Acute and Acute & Community Trusts",474,3642,6.1040787623066111]
["Y60","MIDLANDS COMMISSIONING REGION","QHL","NHS BIRMINGHAM AND SOLIHULL INTEGRATED CARE BOARD","RYW","BIRMINGHAM COMMUNITY HEALTHCARE NHS FOUNDATION TRUST","Community Trusts",620,4888,6.278225806451613]
["Y60","MIDLANDS COMMISSIONING REGION","QHL","NHS BIRMINGHAM AND SOLIHULL INTEGRATED CARE BOARD","RRJ","THE ROYAL ORTHOPAEDIC HOSPITAL NHS FOUNDATION TRUST","Acute Specialist Trusts",415,1218,7.6345381526104426]
["Y60","MIDLANDS COMMISSIONING REGION","QHL","NHS BIRMINGHAM AND SOLIHULL INTEGRATED CARE BOARD","RRK","UNIVERSITY HOSPITALS BIRMINGHAM NHS FOUNDATION TRUST","Acute and Acute & Community Trusts",1907,21568,5.5943016955077791]
["Y60","MIDLANDS COMMISSIONING REGION","QJ2","NHS DERBY AND DERBYSHIRE INTEGRATED CARE BOARD","RFS","CHESTERFIELD ROYAL HOSPITAL NHS FOUNDATION TRUST","Acute and Acute & Community Trusts",44,3968,6.7613636363636367]
["Y60","MIDLANDS COMMISSIONING REGION","QJ2","NHS DERBY AND DERBYSHIRE INTEGRATED CARE BOARD","RY8","DERBYSHIRE COMMUNITY HEALTH SERVICES NHS FOUNDATION TRUST","Community Trusts",1433,4235,7.8053035589672017]
["Y60","MIDLANDS COMMISSIONING REGION","QJ2","NHS DERBY AND DERBYSHIRE INTEGRATED CARE BOARD","RXM","DERBYSHIRE HEALTHCARE NHS FOUNDATION TRUST","Mental Health & Learning Disability and Mental Health, Learning Disability & Community Trusts",832,2839,7.3657852564102564]
["Y60","MIDLANDS COMMISSIONING REGION","QJ2","NHS DERBY AND DERBYSHIRE INTEGRATED CARE BOARD","RTG","UNIVERSITY HOSPITALS OF DERBY AND BURTON NHS FOUNDATION TRUST","Acute and Acute & Community Trusts",1894,13473,6.6341077085533264]
["Y60","MIDLANDS COMMISSIONING REGION","QJM","NHS LINCOLNSHIRE INTEGRATED CARE BOARD","RY5","LINCOLNSHIRE COMMUNITY HEALTH SERVICES NHS TRUST","Community Trusts",809,2245,7.4248042851256697]
["Y60","MIDLANDS COMMISSIONING REGION","QJM","NHS LINCOLNSHIRE INTEGRATED CARE BOARD","RP7","LINCOLNSHIRE PARTNERSHIP NHS FOUNDATION TRUST","Mental Health & Learning Disability and Mental Health, Learning Disability & Community Trusts",844,2351,7.368680884676146]
["Y60","MIDLANDS COMMISSIONING REGION","QJM","NHS LINCOLNSHIRE INTEGRATED CARE BOARD","RWD","UNITED LINCOLNSHIRE HOSPITALS NHS TRUST","Acute and Acute & Community Trusts",2141,8389,6.0956718044527483]
["Y60","MIDLANDS COMMISSIONING REGION","QK1","NHS LEICESTER, LEICESTERSHIRE AND RUTLAND INTEGRATED CARE BOARD","RT5","LEICESTERSHIRE PARTNERSHIP NHS TRUST","Mental Health & Learning Disability and Mental Health, Learning Disability & Community Trusts",904,5558,6.132005899705014]
["Y60","MIDLANDS COMMISSIONING REGION","QK1","NHS LEICESTER, LEICESTERSHIRE AND RUTLAND INTEGRATED CARE BOARD","RWE","UNIVERSITY HOSPITALS OF LEICESTER NHS TRUST","Acute and Acute & Community Trusts",49,16152,7.2789115646258509]
["Y60","MIDLANDS COMMISSIONING REGION","QNC","NHS STAFFORDSHIRE AND STOKE-ON-TRENT INTEGRATED CARE BOARD","RRE","MIDLANDS PARTNERSHIP NHS FOUNDATION TRUST","Mental Health & Learning Disability and Mental Health, Learning Disability & Community Trusts",827,9008,7.5775896815800081]
["Y60","MIDLANDS COMMISSIONING REGION","QOC","NHS SHROPSHIRE, TELFORD AND WREKIN INTEGRATED CARE BOARD","R1D","SHROPSHIRE COMMUNITY HEALTH NHS TRUST","Community Trusts",17,1559,6.3235294117647056]
["Y60","MIDLANDS COMMISSIONING REGION","QOC","NHS SHROPSHIRE, TELFORD AND WREKIN INTEGRATED CARE BOARD","RL1","THE ROBERT JONES AND AGNES HUNT ORTHOPAEDIC HOSPITAL NHS FOUNDATION TRUST","Acute Specialist Trusts",10,1618,6.75]
["Y60","MIDLANDS COMMISSIONING REGION","QOC","NHS SHROPSHIRE, TELFORD AND WREKIN INTEGRATED CARE BOARD","RXW","THE SHREWSBURY AND TELFORD HOSPITAL NHS TRUST","Acute and Acute & Community Trusts",1193,6873,5.4533389214864485]
["Y60","MIDLANDS COMMISSIONING REGION","QPM","NHS NORTHAMPTONSHIRE INTEGRATED CARE BOARD","RNQ","KETTERING GENERAL HOSPITAL NHS FOUNDATION TRUST","Acute and Acute & Community Trusts",1245,4791,6.168005354752343]
["Y60","MIDLANDS COMMISSIONING REGION","QPM","NHS NORTHAMPTONSHIRE INTEGRATED CARE BOARD","RNS","NORTHAMPTON GENERAL HOSPITAL NHS TRUST","Acute and Acute & Community Trusts",1213,5584,6.2235504259411929]
["Y60","MIDLANDS COMMISSIONING REGION","QPM","NHS NORTHAMPTONSHIRE INTEGRATED CARE BOARD","RP1","NORTHAMPTONSHIRE HEALTHCARE NHS FOUNDATION TRUST","Mental Health & Learning Disability and Mental Health, Learning Disability & Community Trusts",1494,4485,7.555778670236502]
["Y60","MIDLANDS COMMISSIONING REGION","QT1","NHS NOTTINGHAM AND NOTTINGHAMSHIRE INTEGRATED CARE BOARD","RX9","EAST MIDLANDS AMBULANCE SERVICE NHS TRUST","Ambulance Trusts",203,3960,5.4105090311986856]
["Y60","MIDLANDS COMMISSIONING REGION","QT1","NHS NOTTINGHAM AND NOTTINGHAMSHIRE INTEGRATED CARE BOARD","RX1","NOTTINGHAM UNIVERSITY HOSPITALS NHS TRUST","Acute and Acute & Community Trusts",2407,17419,6.2834095000692418]
["Y60","MIDLANDS COMMISSIONING REGION","QT1","NHS NOTTINGHAM AND NOTTINGHAMSHIRE INTEGRATED CARE BOARD","RHA","NOTTINGHAMSHIRE HEALTHCARE NHS FOUNDATION TRUST","Mental Health & Learning Disability and Mental Health, Learning Disability & Community Trusts",716,8875,6.5386405959031659]
["Y60","MIDLANDS COMMISSIONING REGION","QT1","NHS NOTTINGHAM AND NOTTINGHAMSHIRE INTEGRATED CARE BOARD","RK5","SHERWOOD FOREST HOSPITALS NHS FOUNDATION TRUST","Acute and Acute & Community Trusts",1311,5618,7.6366641240783109]
["Y60","MIDLANDS COMMISSIONING REGION","QUA","NHS BLACK COUNTRY INTEGRATED CARE BOARD","RXT","BIRMINGHAM AND SOLIHULL MENTAL HEALTH NHS FOUNDATION TRUST","Mental Health & Learning Disability and Mental Health, Learning Disability & Community Trusts",316,4438,5.7885021097046412]
["Y60","MIDLANDS COMMISSIONING REGION","QUA","NHS BLACK COUNTRY INTEGRATED CARE BOARD","TAJ","BLACK COUNTRY HEALTHCARE NHS FOUNDATION TRUST","Mental Health & Learning Disability and Mental Health, Learning Disability & Community Trusts",508,3621,6.215551181102362]
["Y60","MIDLANDS COMMISSIONING REGION","QUA","NHS BLACK COUNTRY INTEGRATED CARE BOARD","RYK","DUDLEY INTEGRATED HEALTH AND CARE NHS TRUST","Acute and Acute & Community Trusts",61,401,6.9808743169398904]
["Y60","MIDLANDS COMMISSIONING REGION","QUA","NHS BLACK COUNTRY INTEGRATED CARE BOARD","RXK","SANDWELL AND WEST BIRMINGHAM HOSPITALS NHS TRUST","Acute and Acute & Community Trusts",1601,7301,6.4876119092234017]
["Y60","MIDLANDS COMMISSIONING REGION","QUA","NHS BLACK COUNTRY INTEGRATED CARE BOARD","RNA","THE DUDLEY GROUP NHS FOUNDATION TRUST","Acute and Acute & Community Trusts",360,5467,6.3055555555555554]
["Y60","MIDLANDS COMMISSIONING REGION","QUA","NHS BLACK COUNTRY INTEGRATED CARE BOARD","RL4","THE ROYAL WOLVERHAMPTON NHS TRUST","Acute and Acute & Community Trusts",204,10270,6.9893790849673199]
["Y60","MIDLANDS COMMISSIONING REGION","QUA","NHS BLACK COUNTRY INTEGRATED CARE BOARD","RBK","WALSALL HEALTHCARE NHS TRUST","Acute and Acute & Community Trusts",853,4595,6.1283704572098472]
["Y60","MIDLANDS COMMISSIONING REGION","QWU","NHS COVENTRY AND WARWICKSHIRE INTEGRATED CARE BOARD","RYG","COVENTRY AND WARWICKSHIRE PARTNERSHIP NHS TRUST","Mental Health & Learning Disability and Mental Health, Learning Disability & Community Trusts",176,3972,6.4393939393939386]
["Y60","MIDLANDS COMMISSIONING REGION","QWU","NHS COVENTRY AND WARWICKSHIRE INTEGRATED CARE BOARD","RLT","GEORGE ELIOT HOSPITAL NHS TRUST","Acute and Acute & Community Trusts",318,2659,6.25]
["Y60","MIDLANDS COMMISSIONING REGION","QWU","NHS COVENTRY AND WARWICKSHIRE INTEGRATED CARE BOARD","RJC","SOUTH WARWICKSHIRE NHS FOUNDATION TRUST","Acute and Acute & Community Trusts",222,4891,7.1546546546546539]
["Y60","MIDLANDS COMMISSIONING REGION","QWU","NHS COVENTRY AND WARWICKSHIRE INTEGRATED CARE BOARD","RKB","UNIVERSITY HOSPITALS COVENTRY AND WARWICKSHIRE NHS TRUST","Acute and Acute & Community Trusts",77,9237,6.1255411255411261]
["Y61","EAST OF ENGLAND COMMISSIONING REGION","QH8","NHS MID AND SOUTH ESSEX INTEGRATED CARE BOARD","R1L","ESSEX PARTNERSHIP UNIVERSITY NHS FOUNDATION TRUST","Mental Health & Learning Disability and Mental Health, Learning Disability & Community Trusts",449,5894,6.3882702301410541]
["Y61","EAST OF ENGLAND COMMISSIONING REGION","QHG","NHS BEDFORDSHIRE, LUTON AND MILTON KEYNES INTEGRATED CARE BOARD","RD8","MILTON KEYNES UNIVERSITY HOSPITAL NHS FOUNDATION TRUST","Acute and Acute & Community Trusts",162,3805,6.1882716049382713]
["Y61","EAST OF ENGLAND COMMISSIONING REGION","QJG","NHS SUFFOLK AND NORTH EAST ESSEX INTEGRATED CARE BOARD","RDE","EAST SUFFOLK AND NORTH ESSEX NHS FOUNDATION TRUST","Acute and Acute & Community Trusts",47,11162,5.4432624113475176]
["Y61","EAST OF ENGLAND COMMISSIONING REGION","QJG","NHS SUFFOLK AND NORTH EAST ESSEX INTEGRATED CARE BOARD","RGR","WEST SUFFOLK NHS FOUNDATION TRUST","Acute and Acute & Community Trusts",1321,4779,7.0546303305576581]
["Y61","EAST OF ENGLAND COMMISSIONING REGION","QM7","NHS HERTFORDSHIRE AND WEST ESSEX INTEGRATED CARE BOARD","RWH","EAST AND NORTH HERTFORDSHIRE NHS TRUST","Acute and Acute & Community Trusts",120,6324,5.9097222222222223]
["Y61","EAST OF ENGLAND COMMISSIONING REGION","QM7","NHS HERTFORDSHIRE AND WEST ESSEX INTEGRATED CARE BOARD","RY4","HERTFORDSHIRE COMMUNITY NHS TRUST","Community Trusts",117,2680,6.7307692307692308]
["Y61","EAST OF ENGLAND COMMISSIONING REGION","QM7","NHS HERTFORDSHIRE AND WEST ESSEX INTEGRATED CARE BOARD","RWR","HERTFORDSHIRE PARTNERSHIP UNIVERSITY NHS FOUNDATION TRUST","Mental Health & Learning Disability and Mental Health, Learning Disability & Community Trusts",650,3659,7.4948717948717958]
["Y61","EAST OF ENGLAND COMMISSIONING REGION","QM7","NHS HERTFORDSHIRE AND WEST ESSEX INTEGRATED CARE BOARD","RQW","THE PRINCESS ALEXANDRA HOSPITAL NHS TRUST","Acute and Acute & Community Trusts",267,3739,5.4868913857677901]
["Y61","EAST OF ENGLAND COMMISSIONING REGION","QM7","NHS HERTFORDSHIRE AND WEST ESSEX INTEGRATED CARE BOARD","RWG","WEST HERTFORDSHIRE TEACHING HOSPITALS NHS TRUST","Acute and Acute & Community Trusts",645,5221,5.7416020671834627]
["Y61","EAST OF ENGLAND COMMISSIONING REGION","QMM","NHS NORFOLK AND WAVENEY INTEGRATED CARE BOARD","RM1","NORFOLK AND NORWICH UNIVERSITY HOSPITALS NHS FOUNDATION TRUST","Acute and Acute & Community Trusts",186,8926,4.8431899641577063]
["Y61","EAST OF ENGLAND COMMISSIONING REGION","QMM","NHS NORFOLK AND WAVENEY INTEGRATED CARE BOARD","RMY","NORFOLK AND SUFFOLK NHS FOUNDATION TRUST","Mental Health & Learning Disability and Mental Health, Learning Disability & Community Trusts",1083,4681,6.0026161895967984]
["Y61","EAST OF ENGLAND COMMISSIONING REGION","QMM","NHS NORFOLK AND WAVENEY INTEGRATED CARE BOARD","RY3","NORFOLK COMMUNITY HEALTH AND CARE NHS TRUST","Community Trusts",276,2363,7.2644927536231885]
["Y61","EAST OF ENGLAND COMMISSIONING REGION","QMM","NHS NORFOLK AND WAVENEY INTEGRATED CARE BOARD","RCX","THE QUEEN ELIZABETH HOSPITAL, KING'S LYNN, NHS FOUNDATION TRUST","Acute and Acute & Community Trusts",406,3741,5.1990968801313633]
["Y61","EAST OF ENGLAND COMMISSIONING REGION","QUE","NHS CAMBRIDGESHIRE AND PETERBOROUGH INTEGRATED CARE BOARD","RGT","CAMBRIDGE UNIVERSITY HOSPITALS NHS FOUNDATION TRUST","Acute and Acute & Community Trusts",3724,11468,7.3111349803079131]
["Y61","EAST OF ENGLAND COMMISSIONING REGION","QUE","NHS CAMBRIDGESHIRE AND PETERBOROUGH INTEGRATED CARE BOARD","RT1","CAMBRIDGESHIRE AND PETERBOROUGH NHS FOUNDATION TRUST","Mental Health & Learning Disability and Mental Health, Learning Disability & Community Trusts",2275,4368,7.3571428571428568]
["Y61","EAST OF ENGLAND COMMISSIONING REGION","QUE","NHS CAMBRIDGESHIRE AND PETERBOROUGH INTEGRATED CARE BOARD","RYV","CAMBRIDGESHIRE COMMUNITY SERVICES NHS TRUST","Community Trusts",89,2775,7.9213483146067416]
["Y61","EAST OF ENGLAND COMMISSIONING REGION","QUE","NHS CAMBRIDGESHIRE AND PETERBOROUGH INTEGRATED CARE BOARD","RYC","EAST OF ENGLAND AMBULANCE SERVICE NHS TRUST","Ambulance Trusts",1120,5575,4.8303571428571432]
["Y61","EAST OF ENGLAND COMMISSIONING REGION","QUE","NHS CAMBRIDGESHIRE AND PETERBOROUGH INTEGRATED CARE BOARD","RGN","NORTH WEST ANGLIA NHS FOUNDATION TRUST","Acute and Acute & Community Trusts",359,6935,5.4015784586815228]
["Y62","NORTH WEST COMMISSIONING REGION","QE1","NHS LANCASHIRE AND SOUTH CUMBRIA INTEGRATED CARE BOARD","RXL","BLACKPOOL TEACHING HOSPITALS NHS FOUNDATION TRUST","Acute and Acute & Community Trusts",265,7856,6.5188679245283021]
["Y62","NORTH WEST COMMISSIONING REGION","QE1","NHS LANCASHIRE AND SOUTH CUMBRIA INTEGRATED CARE BOARD","RXR","EAST LANCASHIRE HOSPITALS NHS TRUST","Acute and Acute & Community Trusts",27,9614,6.666666666666667]
["Y62","NORTH WEST COMMISSIONING REGION","QE1","NHS LANCASHIRE AND SOUTH CUMBRIA INTEGRATED CARE BOARD","RW5","LANCASHIRE & SOUTH CUMBRIA NHS FOUNDATION TRUST","Mental Health & Learning Disability and Mental Health, Learning Disability & Community Trusts",1070,7066,6.6160436137071654]
["Y62","NORTH WEST COMMISSIONING REGION","QE1","NHS LANCASHIRE AND SOUTH CUMBRIA INTEGRATED CARE BOARD","RXN","LANCASHIRE TEACHING HOSPITALS NHS FOUNDATION TRUST","Acute and Acute & Community Trusts",1370,9294,6.6867396593673973]
["Y62","NORTH WEST COMMISSIONING REGION","QE1","NHS LANCASHIRE AND SOUTH CUMBRIA INTEGRATED CARE BOARD","RTX","UNIVERSITY HOSPITALS OF MORECAMBE BAY NHS FOUNDATION TRUST","Acute and Acute & Community Trusts",348,7106,6.240421455938697]
["Y62","NORTH WEST COMMISSIONING REGION","QOP","NHS GREATER MANCHESTER INTEGRATED CARE BOARD","RMC","BOLTON NHS FOUNDATION TRUST","Acute and Acute & Community Trusts",1200,6357,7.2868055555555546]
["Y62","NORTH WEST COMMISSIONING REGION","QOP","NHS GREATER MANCHESTER INTEGRATED CARE BOARD","RXV","GREATER MANCHESTER MENTAL HEALTH NHS FOUNDATION TRUST","Mental Health & Learning Disability and Mental Health, Learning Disability & Community Trusts",1309,6258,6.403743315508021]
["Y62","NORTH WEST COMMISSIONING REGION","QOP","NHS GREATER MANCHESTER INTEGRATED CARE BOARD","R0A","MANCHESTER UNIVERSITY NHS FOUNDATION TRUST","Acute and Acute & Community Trusts",3669,27674,6.5258471881529934]
["Y62","NORTH WEST COMMISSIONING REGION","QOP","NHS GREATER MANCHESTER INTEGRATED CARE BOARD","RX7","NORTH WEST AMBULANCE SERVICE NHS TRUST","Ambulance Trusts",850,6686,6.450980392156862]
["Y62","NORTH WEST COMMISSIONING REGION","QOP","NHS GREATER MANCHESTER INTEGRATED CARE BOARD","RM3","NORTHERN CARE ALLIANCE NHS FOUNDATION TRUST","Acute and Acute & Community Trusts",2227,19067,6.1435413860200567]
["Y62","NORTH WEST COMMISSIONING REGION","QOP","NHS GREATER MANCHESTER INTEGRATED CARE BOARD","RT2","PENNINE CARE NHS FOUNDATION TRUST","Mental Health & Learning Disability and Mental Health, Learning Disability & Community Trusts",204,3614,6.0702614379084965]
["Y62","NORTH WEST COMMISSIONING REGION","QOP","NHS GREATER MANCHESTER INTEGRATED CARE BOARD","RMP","TAMESIDE AND GLOSSOP INTEGRATED CARE NHS FOUNDATION TRUST","Acute and Acute & Community Trusts",66,4061,5.5808080808080804]
["Y62","NORTH WEST COMMISSIONING REGION","QOP","NHS GREATER MANCHESTER INTEGRATED CARE BOARD","RBV","THE CHRISTIE NHS FOUNDATION TRUST","Acute Specialist Trusts",122,3271,7.056010928961749]
["Y62","NORTH WEST COMMISSIONING REGION","QOP","NHS GREATER MANCHESTER INTEGRATED CARE BOARD","RRF","WRIGHTINGTON, WIGAN AND LEIGH NHS FOUNDATION TRUST","Acute and Acute & Community Trusts",91,6789,6.7673992673992682]
["Y62","NORTH WEST COMMISSIONING REGION","QYG","NHS CHESHIRE AND MERSEYSIDE INTEGRATED CARE BOARD","RBS","ALDER HEY CHILDREN'S NHS FOUNDATION TRUST","Acute and Acute & Community Trusts",340,4147,7.4068627450980395]
["Y62","NORTH WEST COMMISSIONING REGION","QYG","NHS CHESHIRE AND MERSEYSIDE INTEGRATED CARE BOARD","RY2","BRIDGEWATER COMMUNITY HEALTHCARE NHS FOUNDATION TRUST","Community Trusts",228,1484,6.6520467836257318]
["Y62","NORTH WEST COMMISSIONING REGION","QYG","NHS CHESHIRE AND MERSEYSIDE INTEGRATED CARE BOARD","RXA","CHESHIRE AND WIRRAL PARTNERSHIP NHS FOUNDATION TRUST","Mental Health & Learning Disability and Mental Health, Learning Disability & Community Trusts",689,4047,7.2290759554910498]
["Y62","NORTH WEST COMMISSIONING REGION","QYG","NHS CHESHIRE AND MERSEYSIDE INTEGRATED CARE BOARD","RJR","COUNTESS OF CHESTER HOSPITAL NHS FOUNDATION TRUST","Acute and Acute & Community Trusts",329,4488,5.1089159067882468]
["Y62","NORTH WEST COMMISSIONING REGION","QYG","NHS CHESHIRE AND MERSEYSIDE INTEGRATED CARE BOARD","RJN","EAST CHESHIRE NHS TRUST","Acute and Acute & Community Trusts",49,2549,5.9013605442176873]
["Y62","NORTH WEST COMMISSIONING REGION","QYG","NHS CHESHIRE AND MERSEYSIDE INTEGRATED CARE BOARD","RBQ","LIVERPOOL HEART AND CHEST HOSPITAL NHS FOUNDATION TRUST","Acute Specialist Trusts",48,1888,8.0555555555555554]
["Y62","NORTH WEST COMMISSIONING REGION","QYG","NHS CHESHIRE AND MERSEYSIDE INTEGRATED CARE BOARD","REM","LIVERPOOL UNIVERSITY HOSPITALS NHS FOUNDATION TRUST","Acute and Acute & Community Trusts",1685,13593,6.2838773491592486]
["Y62","NORTH WEST COMMISSIONING REGION","QYG","NHS CHESHIRE AND MERSEYSIDE INTEGRATED CARE BOARD","REP","LIVERPOOL WOMEN'S NHS FOUNDATION TRUST","Acute Specialist Trusts",201,1598,5.7587064676616917]
["Y62","NORTH WEST COMMISSIONING REGION","QYG","NHS CHESHIRE AND MERSEYSIDE INTEGRATED CARE BOARD","RW4","MERSEY CARE NHS FOUNDATION TRUST","Mental Health & Learning Disability and Mental Health, Learning Disability & Community Trusts",2723,10479,6.9157791651364917]
["Y62","NORTH WEST COMMISSIONING REGION","QYG","NHS CHESHIRE AND MERSEYSIDE INTEGRATED CARE BOARD","RBT","MID CHESHIRE HOSPITALS NHS FOUNDATION TRUST","Acute and Acute & Community Trusts",337,5119,6.8199802176063304]
["Y62","NORTH WEST COMMISSIONING REGION","QYG","NHS CHESHIRE AND MERSEYSIDE INTEGRATED CARE BOARD","RVY","SOUTHPORT AND ORMSKIRK HOSPITAL NHS TRUST","Acute and Acute & Community Trusts",250,3339,5.64]
["Y62","NORTH WEST COMMISSIONING REGION","QYG","NHS CHESHIRE AND MERSEYSIDE INTEGRATED CARE BOARD","RBN","ST HELENS AND KNOWSLEY TEACHING HOSPITALS NHS TRUST","Acute and Acute & Community Trusts",241,6818,6.7219917012448134]
["Y62","NORTH WEST COMMISSIONING REGION","QYG","NHS CHESHIRE AND MERSEYSIDE INTEGRATED CARE BOARD","REN","THE CLATTERBRIDGE CANCER CENTRE NHS FOUNDATION TRUST","Acute Specialist Trusts",393,1629,7.6081424936386766]
["Y62","NORTH WEST COMMISSIONING REGION","QYG","NHS CHESHIRE AND MERSEYSIDE INTEGRATED CARE BOARD","RET","THE WALTON CENTRE NHS FOUNDATION TRUST","Acute Specialist Trusts",84,1515,7.4404761904761907]
["Y62","NORTH WEST COMMISSIONING REGION","QYG","NHS CHESHIRE AND MERSEYSIDE INTEGRATED CARE BOARD","RWW","WARRINGTON AND HALTON TEACHING HOSPITALS NHS FOUNDATION TRUST","Acute and Acute & Community Trusts",65,4380,6.3333333333333339]
["Y62","NORTH WEST COMMISSIONING REGION","QYG","NHS CHESHIRE AND MERSEYSIDE INTEGRATED CARE BOARD","RY7","WIRRAL COMMUNITY HEALTH AND CARE NHS FOUNDATION TRUST","Community Trusts",199,1904,6.5368509212730315]
["Y62","NORTH WEST COMMISSIONING REGION","QYG","NHS CHESHIRE AND MERSEYSIDE INTEGRATED CARE BOARD","RBL","WIRRAL UNIVERSITY TEACHING HOSPITAL NHS FOUNDATION TRUST","Acute and Acute & Community Trusts",28,6619,4.8809523809523805]
["Y63","NORTH EAST AND YORKSHIRE COMMISSIONING REGION","QF7","NHS SOUTH YORKSHIRE INTEGRATED CARE BOARD","RFF","BARNSLEY HOSPITAL NHS FOUNDATION TRUST","Acute and Acute & Community Trusts",341,4083,6.5102639296187688]
["Y63","NORTH EAST AND YORKSHIRE COMMISSIONING REGION","QF7","NHS SOUTH YORKSHIRE INTEGRATED CARE BOARD","RP5","DONCASTER AND BASSETLAW TEACHING HOSPITALS NHS FOUNDATION TRUST","Acute and Acute & Community Trusts",495,6583,5.9713804713804715]
["Y63","NORTH EAST AND YORKSHIRE COMMISSIONING REGION","QF7","NHS SOUTH YORKSHIRE INTEGRATED CARE BOARD","RXE","ROTHERHAM DONCASTER AND SOUTH HUMBER NHS FOUNDATION TRUST","Mental Health & Learning Disability and Mental Health, Learning Disability & Community Trusts",127,3572,6.9619422572178475]
["Y63","NORTH EAST AND YORKSHIRE COMMISSIONING REGION","QF7","NHS SOUTH YORKSHIRE INTEGRATED CARE BOARD","RCU","SHEFFIELD CHILDREN'S NHS FOUNDATION TRUST","Acute and Acute & Community Trusts",119,3724,7.3389355742296924]
["Y63","NORTH EAST AND YORKSHIRE COMMISSIONING REGION","QF7","NHS SOUTH YORKSHIRE INTEGRATED CARE BOARD","TAH","SHEFFIELD HEALTH & SOCIAL CARE NHS FOUNDATION TRUST","Mental Health & Learning Disability and Mental Health, Learning Disability & Community Trusts",190,2529,5.6140350877192988]
["Y63","NORTH EAST AND YORKSHIRE COMMISSIONING REGION","QF7","NHS SOUTH YORKSHIRE INTEGRATED CARE BOARD","RHQ","SHEFFIELD TEACHING HOSPITALS NHS FOUNDATION TRUST","Acute and Acute & Community Trusts",809,17279,6.5234857849196537]
["Y63","NORTH EAST AND YORKSHIRE COMMISSIONING REGION","QF7","NHS SOUTH YORKSHIRE INTEGRATED CARE BOARD","RFR","THE ROTHERHAM NHS FOUNDATION TRUST","Acute and Acute & Community Trusts",613,4700,5.9081022294725392]
["Y63","NORTH EAST AND YORKSHIRE COMMISSIONING REGION","QHM","NHS NORTH EAST AND NORTH CUMBRIA INTEGRATED CARE BOARD","RXP","COUNTY DURHAM AND DARLINGTON NHS FOUNDATION TRUST","Acute and Acute & Community Trusts",1080,7667,6.1288580246913584]
["Y63","NORTH EAST AND YORKSHIRE COMMISSIONING REGION","QHM","NHS NORTH EAST AND NORTH CUMBRIA INTEGRATED CARE BOARD","RX4","CUMBRIA, NORTHUMBERLAND, TYNE AND WEAR NHS FOUNDATION TRUST","Mental Health & Learning Disability and Mental Health, Learning Disability & Community Trusts",341,7475,6.6202346041055717]
["Y63","NORTH EAST AND YORKSHIRE COMMISSIONING REGION","QHM","NHS NORTH EAST AND NORTH CUMBRIA INTEGRATED CARE BOARD","RR7","GATESHEAD HEALTH NHS FOUNDATION TRUST","Acute and Acute & Community Trusts",85,4937,6.4803921568627452]
["Y63","NORTH EAST AND YORKSHIRE COMMISSIONING REGION","QHM","NHS NORTH EAST AND NORTH CUMBRIA INTEGRATED CARE BOARD","RNN","NORTH CUMBRIA INTEGRATED CARE NHS FOUNDATION TRUST","Acute and Acute & Community Trusts",16,6701,4.583333333333333]
["Y63","NORTH EAST AND YORKSHIRE COMMISSIONING REGION","QHM","NHS NORTH EAST AND NORTH CUMBRIA INTEGRATED CARE BOARD","RX6","NORTH EAST AMBULANCE SERVICE NHS FOUNDATION TRUST","Ambulance Trusts",225,2941,5.7629629629629635]
["Y63","NORTH EAST AND YORKSHIRE COMMISSIONING REGION","QHM","NHS NORTH EAST AND NORTH CUMBRIA INTEGRATED CARE BOARD","RVW","NORTH TEES AND HARTLEPOOL NHS FOUNDATION TRUST","Acute and Acute & Community Trusts",193,5503,6.3687392055267704]
["Y63","NORTH EAST AND YORKSHIRE COMMISSIONING REGION","QHM","NHS NORTH EAST AND NORTH CUMBRIA INTEGRATED CARE BOARD","RTF","NORTHUMBRIA HEALTHCARE NHS FOUNDATION TRUST","Acute and Acute & Community Trusts",3844,8414,7.6031911203607354]
["Y63","NORTH EAST AND YORKSHIRE COMMISSIONING REGION","QHM","NHS NORTH EAST AND NORTH CUMBRIA INTEGRATED CARE BOARD","RTR","SOUTH TEES HOSPITALS NHS FOUNDATION TRUST","Acute and Acute & Community Trusts",10,9570,6.833333333333333]
["Y63","NORTH EAST AND YORKSHIRE COMMISSIONING REGION","QHM","NHS NORTH EAST AND NORTH CUMBRIA INTEGRATED CARE BOARD","R0B","SOUTH TYNESIDE AND SUNDERLAND NHS FOUNDATION TRUST","Acute and Acute & Community Trusts",430,8896,6.4050387596899219]
["Y63","NORTH EAST AND YORKSHIRE COMMISSIONING REGION","QHM","NHS NORTH EAST AND NORTH CUMBRIA INTEGRATED CARE BOARD","RX3","TEES, ESK AND WEAR VALLEYS NHS FOUNDATION TRUST","Mental Health & Learning Disability and Mental Health, Learning Disability & Community Trusts",2054,7604,6.5238558909444988]
["Y63","NORTH EAST AND YORKSHIRE COMMISSIONING REGION","QHM","NHS NORTH EAST AND NORTH CUMBRIA INTEGRATED CARE BOARD","RTD","THE NEWCASTLE UPON TYNE HOSPITALS NHS FOUNDATION TRUST","Acute and Acute & Community Trusts",535,16274,6.9049844236760123]
["Y63","NORTH EAST AND YORKSHIRE COMMISSIONING REGION","QOQ","NHS HUMBER AND NORTH YORKSHIRE INTEGRATED CARE BOARD","RCD","HARROGATE AND DISTRICT NHS FOUNDATION TRUST","Acute and Acute & Community Trusts",1220,4729,6.7199453551912569]
["Y63","NORTH EAST AND YORKSHIRE COMMISSIONING REGION","QOQ","NHS HUMBER AND NORTH YORKSHIRE INTEGRATED CARE BOARD","RWA","HULL UNIVERSITY TEACHING HOSPITALS NHS TRUST","Acute and Acute & Community Trusts",1473,8825,6.4030323602625021]
["Y63","NORTH EAST AND YORKSHIRE COMMISSIONING REGION","QOQ","NHS HUMBER AND NORTH YORKSHIRE INTEGRATED CARE BOARD","RV9","HUMBER TEACHING NHS FOUNDATION TRUST","Mental Health & Learning Disability and Mental Health, Learning Disability & Community Trusts",593,3062,7.0292299044406965]
["Y63","NORTH EAST AND YORKSHIRE COMMISSIONING REGION","QOQ","NHS HUMBER AND NORTH YORKSHIRE INTEGRATED CARE BOARD","RJL","NORTHERN LINCOLNSHIRE AND GOOLE NHS FOUNDATION TRUST","Acute and Acute & Community Trusts",318,6514,4.9030398322851152]
["Y63","NORTH EAST AND YORKSHIRE COMMISSIONING REGION","QOQ","NHS HUMBER AND NORTH YORKSHIRE INTEGRATED CARE BOARD","RCB","YORK AND SCARBOROUGH TEACHING HOSPITALS NHS FOUNDATION TRUST","Acute and Acute & Community Trusts",155,9445,4.6881720430107521]
["Y63","NORTH EAST AND YORKSHIRE COMMISSIONING REGION","QWO","NHS WEST YORKSHIRE INTEGRATED CARE BOARD","RCF","AIREDALE NHS FOUNDATION TRUST","Acute and Acute & Community Trusts",163,3486,6.7331288343558287]
["Y63","NORTH EAST AND YORKSHIRE COMMISSIONING REGION","QWO","NHS WEST YORKSHIRE INTEGRATED CARE BOARD","TAD","BRADFORD DISTRICT CARE NHS FOUNDATION TRUST","Mental Health & Learning Disability and Mental Health, Learning Disability & Community Trusts",399,3247,6.7293233082706765]
["Y63","NORTH EAST AND YORKSHIRE COMMISSIONING REGION","QWO","NHS WEST YORKSHIRE INTEGRATED CARE BOARD","RAE","BRADFORD TEACHING HOSPITALS NHS FOUNDATION TRUST","Acute and Acute & Community Trusts",164,6226,6.524390243902439]
["Y63","NORTH EAST AND YORKSHIRE COMMISSIONING REGION","QWO","NHS WEST YORKSHIRE INTEGRATED CARE BOARD","RWY","CALDERDALE AND HUDDERSFIELD NHS FOUNDATION TRUST","Acute and Acute & Community Trusts",236,6344,6.253531073446327]
["Y63","NORTH EAST AND YORKSHIRE COMMISSIONING REGION","QWO","NHS WEST YORKSHIRE INTEGRATED CARE BOARD","RGD","LEEDS AND YORK PARTNERSHIP NHS FOUNDATION TRUST","Mental Health & Learning Disability and Mental Health, Learning Disability & Community Trusts",132,3088,6.7739898989898988]
["Y63","NORTH EAST AND YORKSHIRE COMMISSIONING REGION","QWO","NHS WEST YORKSHIRE INTEGRATED CARE BOARD","RY6","LEEDS COMMUNITY HEALTHCARE NHS TRUST","Community Trusts",943,3146,6.9936373276776242]
["Y63","NORTH EAST AND YORKSHIRE COMMISSIONING REGION","QWO","NHS WEST YORKSHIRE INTEGRATED CARE BOARD","RXF","MID YORKSHIRE HOSPITALS NHS TRUST","Acute and Acute & Community Trusts",1850,8839,6.4238738738738732]
["Y63","NORTH EAST AND YORKSHIRE COMMISSIONING REGION","QWO","NHS WEST YORKSHIRE INTEGRATED CARE BOARD","RXG","SOUTH WEST YORKSHIRE PARTNERSHIP NHS FOUNDATION TRUST","Mental Health & Learning Disability and Mental Health, Learning Disability & Community Trusts",168,4520,7.6438492063492065]
["Y63","NORTH EAST AND YORKSHIRE COMMISSIONING REGION","QWO","NHS WEST YORKSHIRE INTEGRATED CARE BOARD","RX8","YORKSHIRE AMBULANCE SERVICE NHS TRUST","Ambulance Trusts",395,5792,5.9662447257383961]

{"sheet":"Involvement","index":5,"n_rows":196,"n_cols":10,"rows_kept":196,"cut":false,"hidden":false,"merged":[[6,6,7,6],[6,7,7,7],[6,8,7,8],[6,9,7,9],[6,5,7,5],[6,0,7,0],[6,1,7,1],[6,2,7,2],[6,3,7,3],[6,4,7,4]]}
[]
[]
[]
[]
[]
[]
["Region Code","Region Name","STP Code","STP Name","Org Code","Org Name","Care Setting","Total Responses","HSCIC Workforce Headcount","Involvement Score"]
[]
[null,null,null,null,null,"England",null,127641,1180653,6.4622195585013174]
["Y56","LONDON COMMISSIONING REGION","QKK","NHS SOUTH EAST LONDON INTEGRATED CARE BOARD","RJ1","GUY'S AND ST THOMAS' NHS FOUNDATION TRUST","Acute and Acute & Community Trusts",2724,22169,6.4714880078316197]
["Y56","LONDON COMMISSIONING REGION","QKK","NHS SOUTH EAST LONDON INTEGRATED CARE BOARD","RJZ","KING'S COLLEGE HOSPITAL NHS FOUNDATION TRUST","Acute and Acute & Community Trusts",1285,13297,6.2918287937743189]
["Y56","LONDON COMMISSIONING REGION","QKK","NHS SOUTH EAST LONDON INTEGRATED CARE BOARD","RJ2","LEWISHAM AND GREENWICH NHS TRUST","Acute and Acute & Community Trusts",433,6850,5.9699769053117784]
["Y56","LONDON COMMISSIONING REGION","QKK","NHS SOUTH EAST LONDON INTEGRATED CARE BOARD","RV5","SOUTH LONDON AND MAUDSLEY NHS FOUNDATION TRUST","Mental Health & Learning Disability and Mental Health, Learning Disability & Community Trusts",195,5486,7.0641025641025639]
["Y56","LONDON COMMISSIONING REGION","QMF","NHS NORTH EAST LONDON INTEGRATED CARE BOARD","R1H","BARTS HEALTH NHS TRUST","Acute and Acute & Community Trusts",435,17203,5.8869731800766285]
["Y56","LONDON COMMISSIONING REGION","QMF","NHS NORTH EAST LONDON INTEGRATED CARE BOARD","RWK","EAST LONDON NHS FOUNDATION TRUST","Mental Health & Learning Disability and Mental Health, Learning Disability & Community Trusts",924,6545,6.9678932178932174]
["Y56","LONDON COMMISSIONING REGION","QMF","NHS NORTH EAST LONDON INTEGRATED CARE BOARD","RQX","HOMERTON HEALTHCARE NHS FOUNDATION TRUST","Acute and Acute & Community Trusts",703,3922,6.6346609767662406]
["Y56","LONDON COMMISSIONING REGION","QMF","NHS NORTH EAST LONDON INTEGRATED CARE BOARD","RAT","NORTH EAST LONDON NHS FOUNDATION TRUST","Mental Health & Learning Disability and Mental Health, Learning Disability & Community Trusts",616,6702,6.5963203463203461]
["Y56","LONDON COMMISSIONING REGION","QMJ","NHS NORTH CENTRAL LONDON INTEGRATED CARE BOARD","RRP","BARNET, ENFIELD AND HARINGEY MENTAL HEALTH NHS TRUST","Mental Health & Learning Disability and Mental Health, Learning Disability & Community Trusts",154,3407,6.3095238095238093]
["Y56","LONDON COMMISSIONING REGION","QMJ","NHS NORTH CENTRAL LONDON INTEGRATED CARE BOARD","TAF","CAMDEN AND ISLINGTON NHS FOUNDATION TRUST","Mental Health & Learning Disability and Mental Health, Learning Disability & Community Trusts",453,2293,6.8395879323031643]
["Y56","LONDON COMMISSIONING REGION","QMJ","NHS NORTH CENTRAL LONDON INTEGRATED CARE BOARD","RP4","GREAT ORMOND STREET HOSPITAL FOR CHILDREN NHS FOUNDATION TRUST","Acute Specialist Trusts",962,5520,6.661469161469161]
["Y56","LONDON COMMISSIONING REGION","QMJ","NHS NORTH CENTRAL LONDON INTEGRATED CARE BOARD","RP6","MOORFIELDS EYE HOSPITAL NHS FOUNDATION TRUST","Acute Specialist Trusts",31,2283,5.564516129032258]
["Y56","LONDON COMMISSIONING REGION","QMJ","NHS NORTH CENTRAL LONDON INTEGRATED CARE BOARD","RAP","NORTH MIDDLESEX UNIVERSITY HOSPITAL NHS TRUST","Acute and Acute & Community Trusts",669,3818,6.38515196811161]
["Y56","LONDON COMMISSIONING REGION","QMJ","NHS NORTH CENTRAL LONDON INTEGRATED CARE BOARD","RAL","ROYAL FREE LONDON NHS FOUNDATION TRUST","Acute and Acute & Community Trusts",672,10684,5.6845238095238093]
["Y56","LONDON COMMISSIONING REGION","QMJ","NHS NORTH CENTRAL LONDON INTEGRATED CARE BOARD","RNK","TAVISTOCK AND PORTMAN NHS FOUNDATION TRUST","Mental Health & Learning Disability and Mental Health, Learning Disability & Community Trusts",95,767,5.5964912280701746]
["Y56","LONDON COMMISSIONING REGION","QMJ","NHS NORTH CENTRAL LONDON INTEGRATED CARE BOARD","RRV","UNIVERSITY COLLEGE LONDON HOSPITALS NHS FOUNDATION TRUST","Acute and Acute & Community Trusts",508,10115,6.9947506561679793]
["Y56","LONDON COMMISSIONING REGION","QMJ","NHS NORTH CENTRAL LONDON INTEGRATED CARE BOARD","RKE","WHITTINGTON HEALTH NHS TRUST","Acute and Acute & Community Trusts",688,4464,6.3832364341085279]
["Y56","LONDON COMMISSIONING REGION","QRV","NHS NORTH WEST LONDON INTEGRATED CARE BOARD","RYX","CENTRAL LONDON COMMUNITY HEALTHCARE NHS TRUST","Community Trusts",223,4376,7.051569506726457]
["Y56","LONDON COMMISSIONING REGION","QRV","NHS NORTH WEST LONDON INTEGRATED CARE BOARD","RYJ","IMPERIAL COLLEGE HEALTHCARE NHS TRUST","Acute and Acute & Community Trusts",91,12988,6.0714285714285712]
["Y56","LONDON COMMISSIONING REGION","QRV","NHS NORTH WEST LONDON INTEGRATED CARE BOARD","RAN","ROYAL NATIONAL ORTHOPAEDIC HOSPITAL NHS TRUST","Acute Specialist Trusts",74,1574,7.0270270270270272]
["Y56","LONDON COMMISSIONING REGION","QRV","NHS NORTH WEST LONDON INTEGRATED CARE BOARD","RAS","THE HILLINGDON HOSPITALS NHS FOUNDATION TRUST","Acute and Acute & Community Trusts",62,3572,7.150537634408602]
["Y56","LONDON COMMISSIONING REGION","QRV","NHS NORTH WEST LONDON INTEGRATED CARE BOARD","RPY","THE ROYAL MARSDEN NHS FOUNDATION TRUST","Acute Specialist Trusts",362,4293,6.4203499079189683]
["Y56","LONDON COMMISSIONING REGION","QWE","NHS SOUTH WEST LONDON INTEGRATED CARE BOARD","RVR","EPSOM AND ST HELIER UNIVERSITY HOSPITALS NHS TRUST","Acute and Acute & Community Trusts",521,6858,5.7933461292386443]
["Y56","LONDON COMMISSIONING REGION","QWE","NHS SOUTH WEST LONDON INTEGRATED CARE BOARD","RY9","HOUNSLOW AND RICHMOND COMMUNITY HEALTHCARE NHS TRUST","Community Trusts",96,1244,6.9618055555555562]
["Y56","LONDON COMMISSIONING REGION","QWE","NHS SOUTH WEST LONDON INTEGRATED CARE BOARD","RQY","SOUTH WEST LONDON AND ST GEORGE'S MENTAL HEALTH NHS TRUST","Mental Health & Learning Disability and Mental Health, Learning Disability & Community Trusts",126,2612,6.9642857142857144]
["Y56","LONDON COMMISSIONING REGION","QWE","NHS SOUTH WEST LONDON INTEGRATED CARE BOARD","RJ7","ST GEORGE'S UNIVERSITY HOSPITALS NHS FOUNDATION TRUST","Acute and Acute & Community Trusts",901,9298,5.9702182759896418]
["Y58","SOUTH WEST COMMISSIONING REGION","QJK","NHS DEVON INTEGRATED CARE BOARD","RWV","DEVON PARTNERSHIP NHS TRUST","Mental Health & Learning Disability and Mental Health, Learning Disability & Community Trusts",94,3602,7.0921985815602833]
["Y58","SOUTH WEST COMMISSIONING REGION","QJK","NHS DEVON INTEGRATED CARE BOARD","RBZ","NORTHERN DEVON HEALTHCARE NHS TRUST","Acute and Acute & Community Trusts",1343,0,6.5605609332340533]
["Y58","SOUTH WEST COMMISSIONING REGION","QJK","NHS DEVON INTEGRATED CARE BOARD","RA9","TORBAY AND SOUTH DEVON NHS FOUNDATION TRUST","Acute and Acute & Community Trusts",208,6744,5.8934294871794872]
["Y58","SOUTH WEST COMMISSIONING REGION","QJK","NHS DEVON INTEGRATED CARE BOARD","RK9","UNIVERSITY HOSPITALS PLYMOUTH NHS TRUST","Acute and Acute & Community Trusts",1321,9376,6.2623012869038606]
["Y58","SOUTH WEST COMMISSIONING REGION","QOX","NHS BATH AND NORTH EAST SOMERSET, SWINDON AND WILTSHIRE INTEGRATED CARE BOARD","RVN","AVON AND WILTSHIRE MENTAL HEALTH PARTNERSHIP NHS TRUST","Mental Health & Learning Disability and Mental Health, Learning Disability & Community Trusts",256,4555,6.25]
["Y58","SOUTH WEST COMMISSIONING REGION","QOX","NHS BATH AND NORTH EAST SOMERSET, SWINDON AND WILTSHIRE INTEGRATED CARE BOARD","RN3","GREAT WESTERN HOSPITALS NHS FOUNDATION TRUST","Acute and Acute & Community Trusts",1270,5305,6.3116797900262469]
["Y58","SOUTH WEST COMMISSIONING REGION","QOX","NHS BATH AND NORTH EAST SOMERSET, SWINDON AND WILTSHIRE INTEGRATED CARE BOARD","RNZ","SALISBURY NHS FOUNDATION TRUST","Acute and Acute & Community Trusts",274,3875,5.6843065693430654]
["Y58","SOUTH WEST COMMISSIONING REGION","QR1","NHS GLOUCESTERSHIRE INTEGRATED CARE BOARD","RTQ","GLOUCESTERSHIRE HEALTH AND CARE NHS FOUNDATION TRUST","Mental Health & Learning Disability and Mental Health, Learning Disability & Community Trusts",69,4513,7.2463768115942031]
["Y58","SOUTH WEST COMMISSIONING REGION","QR1","NHS GLOUCESTERSHIRE INTEGRATED CARE BOARD","RTE","GLOUCESTERSHIRE HOSPITALS NHS FOUNDATION TRUST","Acute and Acute & Community Trusts",943,8225,5.6618946624248858]
["Y58","SOUTH WEST COMMISSIONING REGION","QSL","NHS SOMERSET INTEGRATED CARE BOARD","RH5","SOMERSET NHS FOUNDATION TRUST","Acute and Acute & Community Trusts",634,9671,6.7797055730809666]
["Y58","SOUTH WEST COMMISSIONING REGION","QSL","NHS SOMERSET INTEGRATED CARE BOARD","RA4","YEOVIL DISTRICT HOSPITAL NHS FOUNDATION TRUST","Acute and Acute & Community Trusts",239,2715,6.3528591352859136]
["Y58","SOUTH WEST COMMISSIONING REGION","QT6","NHS CORNWALL AND THE ISLES OF SCILLY INTEGRATED CARE BOARD","RJ8","CORNWALL PARTNERSHIP NHS FOUNDATION TRUST","Mental Health & Learning Disability and Mental Health, Learning Disability & Community Trusts",16,4113,5.052083333333333]
["Y58","SOUTH WEST COMMISSIONING REGION","QT6","NHS CORNWALL AND THE ISLES OF SCILLY INTEGRATED CARE BOARD","REF","ROYAL CORNWALL HOSPITALS NHS TRUST","Acute and Acute & Community Trusts",787,6833,6.5512494705633202]
["Y58","SOUTH WEST COMMISSIONING REGION","QUY","NHS BRISTOL, NORTH SOMERSET AND SOUTH GLOUCESTERSHIRE INTEGRATED CARE BOARD","RVJ","NORTH BRISTOL NHS TRUST","Acute and Acute & Community Trusts",302,9308,6.3383002207505523]
["Y58","SOUTH WEST COMMISSIONING REGION","QUY","NHS BRISTOL, NORTH SOMERSET AND SOUTH GLOUCESTERSHIRE INTEGRATED CARE BOARD","RA7","UNIVERSITY HOSPITALS BRISTOL AND WESTON NHS FOUNDATION TRUST","Acute and Acute & Community Trusts",1212,11560,6.7141089108910892]
["Y58","SOUTH WEST COMMISSIONING REGION","QVV","NHS DORSET INTEGRATED CARE BOARD","RBD","DORSET COUNTY HOSPITAL NHS FOUNDATION TRUST","Acute and Acute & Community Trusts",476,3212,6.924019607843138]
["Y58","SOUTH WEST COMMISSIONING REGION","QVV","NHS DORSET INTEGRATED CARE BOARD","RDY","DORSET HEALTHCARE UNIVERSITY NHS FOUNDATION TRUST","Mental Health & Learning Disability and Mental Health, Learning Disability & Community Trusts",1074,6427,6.6076970825574177]
["Y58","SOUTH WEST COMMISSIONING REGION","QVV","NHS DORSET INTEGRATED CARE BOARD","R0D","UNIVERSITY HOSPITALS DORSET NHS FOUNDATION TRUST","Acute and Acute & Community Trusts",179,9217,5.3351955307262573]
["Y59","SOUTH EAST COMMISSIONING REGION","QKS","NHS KENT AND MEDWAY INTEGRATED CARE BOARD","RN7","DARTFORD AND GRAVESHAM NHS TRUST","Acute and Acute & Community Trusts",230,3966,6.1050724637681162]
["Y59","SOUTH EAST COMMISSIONING REGION","QKS","NHS KENT AND MEDWAY INTEGRATED CARE BOARD","RVV","EAST KENT HOSPITALS UNIVERSITY NHS FOUNDATION TRUST","Acute and Acute & Community Trusts",2497,10356,6.2815378454144977]
["Y59","SOUTH EAST COMMISSIONING REGION","QKS","NHS KENT AND MEDWAY INTEGRATED CARE BOARD","RXY","KENT AND MEDWAY NHS AND SOCIAL CARE PARTNERSHIP TRUST","Mental Health & Learning Disability and Mental Health, Learning Disability & Community Trusts",174,3451,6.7385057471264371]
["Y59","SOUTH EAST COMMISSIONING REGION","QKS","NHS KENT AND MEDWAY INTEGRATED CARE BOARD","RYY","KENT COMMUNITY HEALTH NHS FOUNDATION TRUST","Community Trusts",820,4913,6.5904471544715451]
["Y59","SOUTH EAST COMMISSIONING REGION","QKS","NHS KENT AND MEDWAY INTEGRATED CARE BOARD","RWF","MAIDSTONE AND TUNBRIDGE WELLS NHS TRUST","Acute and Acute & Community Trusts",1039,6709,6.6097208854667953]
["Y59","SOUTH EAST COMMISSIONING REGION","QKS","NHS KENT AND MEDWAY INTEGRATED CARE BOARD","RPA","MEDWAY NHS FOUNDATION TRUST","Acute and Acute & Community Trusts",41,4620,5.3658536585365857]
["Y59","SOUTH EAST COMMISSIONING REGION","QNQ","NHS FRIMLEY INTEGRATED CARE BOARD","RWX","BERKSHIRE HEALTHCARE NHS FOUNDATION TRUST","Mental Health & Learning Disability and Mental Health, Learning Disability & Community Trusts",1542,4670,7.176286208387376]
["Y59","SOUTH EAST COMMISSIONING REGION","QNQ","NHS FRIMLEY INTEGRATED CARE BOARD","RDU","FRIMLEY HEALTH NHS FOUNDATION TRUST","Acute and Acute & Community Trusts",1523,9971,6.3263296126066972]
["Y59","SOUTH EAST COMMISSIONING REGION","QNX","NHS SUSSEX INTEGRATED CARE BOARD","RXC","EAST SUSSEX HEALTHCARE NHS TRUST","Acute and Acute & Community Trusts",301,7875,5.9939091915836107]
["Y59","SOUTH EAST COMMISSIONING REGION","QNX","NHS SUSSEX INTEGRATED CARE BOARD","RPC","QUEEN VICTORIA HOSPITAL NHS FOUNDATION TRUST","Acute Specialist Trusts",159,1074,6.8134171907756809]
["Y59","SOUTH EAST COMMISSIONING REGION","QNX","NHS SUSSEX INTEGRATED CARE BOARD","RYD","SOUTH EAST COAST AMBULANCE SERVICE NHS FOUNDATION TRUST","Ambulance Trusts",111,4198,3.8813813813813813]
["Y59","SOUTH EAST COMMISSIONING REGION","QNX","NHS SUSSEX INTEGRATED CARE BOARD","RDR","SUSSEX COMMUNITY NHS FOUNDATION TRUST","Community Trusts",90,5318,6.8425925925925934]
["Y59","SOUTH EAST COMMISSIONING REGION","QNX","NHS SUSSEX INTEGRATED CARE BOARD","RX2","SUSSEX PARTNERSHIP NHS FOUNDATION TRUST","Mental Health & Learning Disability and Mental Health, Learning Disability & Community Trusts",187,5533,6.5062388591800362]
["Y59","SOUTH EAST COMMISSIONING REGION","QNX","NHS SUSSEX INTEGRATED CARE BOARD","RYR","UNIVERSITY HOSPITALS SUSSEX NHS FOUNDATION TRUST","Acute and Acute & Community Trusts",220,16095,5.4545454545454541]
["Y59","SOUTH EAST COMMISSIONING REGION","QRL","NHS HAMPSHIRE AND ISLE OF WIGHT INTEGRATED CARE BOARD","RN5","HAMPSHIRE HOSPITALS NHS FOUNDATION TRUST","Acute and Acute & Community Trusts",816,7394,6.3582516339869279]
["Y59","SOUTH EAST COMMISSIONING REGION","QRL","NHS HAMPSHIRE AND ISLE OF WIGHT INTEGRATED CARE BOARD","R1F","ISLE OF WIGHT NHS TRUST","Acute and Acute & Community Trusts",484,3620,6.604683195592286]
["Y59","SOUTH EAST COMMISSIONING REGION","QRL","NHS HAMPSHIRE AND ISLE OF WIGHT INTEGRATED CARE BOARD","RHU","PORTSMOUTH HOSPITALS UNIVERSITY NATIONAL HEALTH SERVICE TRUST","Acute and Acute & Community Trusts",1032,7994,6.2209302325581399]
["Y59","SOUTH EAST COMMISSIONING REGION","QRL","NHS HAMPSHIRE AND ISLE OF WIGHT INTEGRATED CARE BOARD","R1C","SOLENT NHS TRUST","Mental Health & Learning Disability and Mental Health, Learning Disability & Community Trusts",429,4041,7.1289821289821296]
["Y59","SOUTH EAST COMMISSIONING REGION","QRL","NHS HAMPSHIRE AND ISLE OF WIGHT INTEGRATED CARE BOARD","RW1","SOUTHERN HEALTH NHS FOUNDATION TRUST","Mental Health & Learning Disability and Mental Health, Learning Disability & Community Trusts",1830,6321,7.4234972677595632]
["Y59","SOUTH EAST COMMISSIONING REGION","QRL","NHS HAMPSHIRE AND ISLE OF WIGHT INTEGRATED CARE BOARD","RHM","UNIVERSITY HOSPITAL SOUTHAMPTON NHS FOUNDATION TRUST","Acute and Acute & Community Trusts",2833,12425,6.7193199199905864]
["Y59","SOUTH EAST COMMISSIONING REGION","QU9","NHS BUCKINGHAMSHIRE, OXFORDSHIRE AND BERKSHIRE WEST INTEGRATED CARE BOARD","RXQ","BUCKINGHAMSHIRE HEALTHCARE NHS TRUST","Acute and Acute & Community Trusts",705,6239,6.4988179669030739]
["Y59","SOUTH EAST COMMISSIONING REGION","QU9","NHS BUCKINGHAMSHIRE, OXFORDSHIRE AND BERKSHIRE WEST INTEGRATED CARE BOARD","RNU","OXFORD HEALTH NHS FOUNDATION TRUST","Mental Health & Learning Disability and Mental Health, Learning Disability & Community Trusts",1002,6072,6.6009647371922826]
["Y59","SOUTH EAST COMMISSIONING REGION","QU9","NHS BUCKINGHAMSHIRE, OXFORDSHIRE AND BERKSHIRE WEST INTEGRATED CARE BOARD","RTH","OXFORD UNIVERSITY HOSPITALS NHS FOUNDATION TRUST","Acute and Acute & Community Trusts",2245,13438,6.5764662212323683]
["Y59","SOUTH EAST COMMISSIONING REGION","QU9","NHS BUCKINGHAMSHIRE, OXFORDSHIRE AND BERKSHIRE WEST INTEGRATED CARE BOARD","RHW","ROYAL BERKSHIRE NHS FOUNDATION TRUST","Acute and Acute & Community Trusts",143,5899,5.9673659673659678]
["Y59","SOUTH EAST COMMISSIONING REGION","QU9","NHS BUCKINGHAMSHIRE, OXFORDSHIRE AND BERKSHIRE WEST INTEGRATED CARE BOARD","RYE","SOUTH CENTRAL AMBULANCE SERVICE NHS FOUNDATION TRUST","Ambulance Trusts",277,4516,5.0421179302045731]
["Y60","MIDLANDS COMMISSIONING REGION","QGH","NHS HEREFORDSHIRE AND WORCESTERSHIRE INTEGRATED CARE BOARD","R1A","HEREFORDSHIRE AND WORCESTERSHIRE HEALTH AND CARE NHS TRUST","Mental Health & Learning Disability and Mental Health, Learning Disability & Community Trusts",373,4434,6.7314566577301163]
["Y60","MIDLANDS COMMISSIONING REGION","QGH","NHS HEREFORDSHIRE AND WORCESTERSHIRE INTEGRATED CARE BOARD","RWP","WORCESTERSHIRE ACUTE HOSPITALS NHS TRUST","Acute and Acute & Community Trusts",259,6633,6.1068211068211067]
["Y60","MIDLANDS COMMISSIONING REGION","QGH","NHS HEREFORDSHIRE AND WORCESTERSHIRE INTEGRATED CARE BOARD","RLQ","WYE VALLEY NHS TRUST","Acute and Acute & Community Trusts",474,3642,6.5101969057665263]
["Y60","MIDLANDS COMMISSIONING REGION","QHL","NHS BIRMINGHAM AND SOLIHULL INTEGRATED CARE BOARD","RYW","BIRMINGHAM COMMUNITY HEALTHCARE NHS FOUNDATION TRUST","Community Trusts",620,4888,6.318548387096774]
["Y60","MIDLANDS COMMISSIONING REGION","QHL","NHS BIRMINGHAM AND SOLIHULL INTEGRATED CARE BOARD","RRJ","THE ROYAL ORTHOPAEDIC HOSPITAL NHS FOUNDATION TRUST","Acute Specialist Trusts",413,1218,6.6404358353510897]
["Y60","MIDLANDS COMMISSIONING REGION","QHL","NHS BIRMINGHAM AND SOLIHULL INTEGRATED CARE BOARD","RRK","UNIVERSITY HOSPITALS BIRMINGHAM NHS FOUNDATION TRUST","Acute and Acute & Community Trusts",1908,21568,5.7525331935709296]
["Y60","MIDLANDS COMMISSIONING REGION","QJ2","NHS DERBY AND DERBYSHIRE INTEGRATED CARE BOARD","RFS","CHESTERFIELD ROYAL HOSPITAL NHS FOUNDATION TRUST","Acute and Acute & Community Trusts",44,3968,6.7234848484848477]
["Y60","MIDLANDS COMMISSIONING REGION","QJ2","NHS DERBY AND DERBYSHIRE INTEGRATED CARE BOARD","RY8","DERBYSHIRE COMMUNITY HEALTH SERVICES NHS FOUNDATION TRUST","Community Trusts",1433,4235,7.0434984880204707]
["Y60","MIDLANDS COMMISSIONING REGION","QJ2","NHS DERBY AND DERBYSHIRE INTEGRATED CARE BOARD","RXM","DERBYSHIRE HEALTHCARE NHS FOUNDATION TRUST","Mental Health & Learning Disability and Mental Health, Learning Disability & Community Trusts",835,2839,7.1197604790419158]
["Y60","MIDLANDS COMMISSIONING REGION","QJ2","NHS DERBY AND DERBYSHIRE INTEGRATED CARE BOARD","RTG","UNIVERSITY HOSPITALS OF DERBY AND BURTON NHS FOUNDATION TRUST","Acute and Acute & Community Trusts",1817,13473,6.0470555861309849]
["Y60","MIDLANDS COMMISSIONING REGION","QJM","NHS LINCOLNSHIRE INTEGRATED CARE BOARD","RY5","LINCOLNSHIRE COMMUNITY HEALTH SERVICES NHS TRUST","Community Trusts",823,2245,6.9714459295261237]
["Y60","MIDLANDS COMMISSIONING REGION","QJM","NHS LINCOLNSHIRE INTEGRATED CARE BOARD","RP7","LINCOLNSHIRE PARTNERSHIP NHS FOUNDATION TRUST","Mental Health & Learning Disability and Mental Health, Learning Disability & Community Trusts",862,2351,7.0253286929621037]
["Y60","MIDLANDS COMMISSIONING REGION","QJM","NHS LINCOLNSHIRE INTEGRATED CARE BOARD","RWD","UNITED LINCOLNSHIRE HOSPITALS NHS TRUST","Acute and Acute & Community Trusts",2165,8389,6.2066974595842952]
["Y60","MIDLANDS COMMISSIONING REGION","QK1","NHS LEICESTER, LEICESTERSHIRE AND RUTLAND INTEGRATED CARE BOARD","RT5","LEICESTERSHIRE PARTNERSHIP NHS TRUST","Mental Health & Learning Disability and Mental Health, Learning Disability & Community Trusts",904,5558,6.4159292035398234]
["Y60","MIDLANDS COMMISSIONING REGION","QK1","NHS LEICESTER, LEICESTERSHIRE AND RUTLAND INTEGRATED CARE BOARD","RWE","UNIVERSITY HOSPITALS OF LEICESTER NHS TRUST","Acute and Acute & Community Trusts",49,16152,6.462585034013606]
["Y60","MIDLANDS COMMISSIONING REGION","QNC","NHS STAFFORDSHIRE AND STOKE-ON-TRENT INTEGRATED CARE BOARD","RRE","MIDLANDS PARTNERSHIP NHS FOUNDATION TRUST","Mental Health & Learning Disability and Mental Health, Learning Disability & Community Trusts",826,9008,7.3335351089588379]
["Y60","MIDLANDS COMMISSIONING REGION","QOC","NHS SHROPSHIRE, TELFORD AND WREKIN INTEGRATED CARE BOARD","R1D","SHROPSHIRE COMMUNITY HEALTH NHS TRUST","Community Trusts",17,1559,6.1764705882352944]
["Y60","MIDLANDS COMMISSIONING REGION","QOC","NHS SHROPSHIRE, TELFORD AND WREKIN INTEGRATED CARE BOARD","RL1","THE ROBERT JONES AND AGNES HUNT ORTHOPAEDIC HOSPITAL NHS FOUNDATION TRUST","Acute Specialist Trusts",10,1618,4.5833333333333339]
["Y60","MIDLANDS COMMISSIONING REGION","QOC","NHS SHROPSHIRE, TELFORD AND WREKIN INTEGRATED CARE BOARD","RXW","THE SHREWSBURY AND TELFORD HOSPITAL NHS TRUST","Acute and Acute & Community Trusts",1193,6873,6.0603520536462696]
["Y60","MIDLANDS COMMISSIONING REGION","QPM","NHS NORTHAMPTONSHIRE INTEGRATED CARE BOARD","RNQ","KETTERING GENERAL HOSPITAL NHS FOUNDATION TRUST","Acute and Acute & Community Trusts",1246,4791,6.2051899411449973]
["Y60","MIDLANDS COMMISSIONING REGION","QPM","NHS NORTHAMPTONSHIRE INTEGRATED CARE BOARD","RNS","NORTHAMPTON GENERAL HOSPITAL NHS TRUST","Acute and Acute & Community Trusts",1217,5584,6.1079156395508081]
["Y60","MIDLANDS COMMISSIONING REGION","QPM","NHS NORTHAMPTONSHIRE INTEGRATED CARE BOARD","RP1","NORTHAMPTONSHIRE HEALTHCARE NHS FOUNDATION TRUST","Mental Health & Learning Disability and Mental Health, Learning Disability & Community Trusts",1515,4485,7.0731573157315735]
["Y60","MIDLANDS COMMISSIONING REGION","QT1","NHS NOTTINGHAM AND NOTTINGHAMSHIRE INTEGRATED CARE BOARD","RX9","EAST MIDLANDS AMBULANCE SERVICE NHS TRUST","Ambulance Trusts",203,3960,4.8973727422003286]
["Y60","MIDLANDS COMMISSIONING REGION","QT1","NHS NOTTINGHAM AND NOTTINGHAMSHIRE INTEGRATED CARE BOARD","RX1","NOTTINGHAM UNIVERSITY HOSPITALS NHS TRUST","Acute and Acute & Community Trusts",2407,17419,6.3606148732862486]
["Y60","MIDLANDS COMMISSIONING REGION","QT1","NHS NOTTINGHAM AND NOTTINGHAMSHIRE INTEGRATED CARE BOARD","RHA","NOTTINGHAMSHIRE HEALTHCARE NHS FOUNDATION TRUST","Mental Health & Learning Disability and Mental Health, Learning Disability & Community Trusts",717,8875,6.5074384007438395]
["Y60","MIDLANDS COMMISSIONING REGION","QT1","NHS NOTTINGHAM AND NOTTINGHAMSHIRE INTEGRATED CARE BOARD","RK5","SHERWOOD FOREST HOSPITALS NHS FOUNDATION TRUST","Acute and Acute & Community Trusts",1302,5618,6.7447516641065022]
["Y60","MIDLANDS COMMISSIONING REGION","QUA","NHS BLACK COUNTRY INTEGRATED CARE BOARD","RXT","BIRMINGHAM AND SOLIHULL MENTAL HEALTH NHS FOUNDATION TRUST","Mental Health & Learning Disability and Mental Health, Learning Disability & Community Trusts",316,4438,5.9704641350210972]
["Y60","MIDLANDS COMMISSIONING REGION","QUA","NHS BLACK COUNTRY INTEGRATED CARE BOARD","TAJ","BLACK COUNTRY HEALTHCARE NHS FOUNDATION TRUST","Mental Health & Learning Disability and Mental Health, Learning Disability & Community Trusts",508,3621,6.2352362204724407]
["Y60","MIDLANDS COMMISSIONING REGION","QUA","NHS BLACK COUNTRY INTEGRATED CARE BOARD","RYK","DUDLEY INTEGRATED HEALTH AND CARE NHS TRUST","Acute and Acute & Community Trusts",61,401,6.4890710382513657]
["Y60","MIDLANDS COMMISSIONING REGION","QUA","NHS BLACK COUNTRY INTEGRATED CARE BOARD","RXK","SANDWELL AND WEST BIRMINGHAM HOSPITALS NHS TRUST","Acute and Acute & Community Trusts",1589,7301,6.4605621984476613]
["Y60","MIDLANDS COMMISSIONING REGION","QUA","NHS BLACK COUNTRY INTEGRATED CARE BOARD","RNA","THE DUDLEY GROUP NHS FOUNDATION TRUST","Acute and Acute & Community Trusts",360,5467,6.4629629629629628]
["Y60","MIDLANDS COMMISSIONING REGION","QUA","NHS BLACK COUNTRY INTEGRATED CARE BOARD","RL4","THE ROYAL WOLVERHAMPTON NHS TRUST","Acute and Acute & Community Trusts",204,10270,6.5359477124183005]
["Y60","MIDLANDS COMMISSIONING REGION","QUA","NHS BLACK COUNTRY INTEGRATED CARE BOARD","RBK","WALSALL HEALTHCARE NHS TRUST","Acute and Acute & Community Trusts",853,4595,6.174286830793279]
["Y60","MIDLANDS COMMISSIONING REGION","QWU","NHS COVENTRY AND WARWICKSHIRE INTEGRATED CARE BOARD","RYG","COVENTRY AND WARWICKSHIRE PARTNERSHIP NHS TRUST","Mental Health & Learning Disability and Mental Health, Learning Disability & Community Trusts",176,3972,6.4109848484848477]
["Y60","MIDLANDS COMMISSIONING REGION","QWU","NHS COVENTRY AND WARWICKSHIRE INTEGRATED CARE BOARD","RLT","GEORGE ELIOT HOSPITAL NHS TRUST","Acute and Acute & Community Trusts",318,2659,6.2080712788259964]
["Y60","MIDLANDS COMMISSIONING REGION","QWU","NHS COVENTRY AND WARWICKSHIRE INTEGRATED CARE BOARD","RJC","SOUTH WARWICKSHIRE NHS FOUNDATION TRUST","Acute and Acute & Community Trusts",222,4891,6.4527027027027026]
["Y60","MIDLANDS COMMISSIONING REGION","QWU","NHS COVENTRY AND WARWICKSHIRE INTEGRATED CARE BOARD","RKB","UNIVERSITY HOSPITALS COVENTRY AND WARWICKSHIRE NHS TRUST","Acute and Acute & Community Trusts",77,9237,5.8225108225108224]
["Y61","EAST OF ENGLAND COMMISSIONING REGION","QH8","NHS MID AND SOUTH ESSEX INTEGRATED CARE BOARD","R1L","ESSEX PARTNERSHIP UNIVERSITY NHS FOUNDATION TRUST","Mental Health & Learning Disability and Mental Health, Learning Disability & Community Trusts",449,5894,6.3994060876020793]
["Y61","EAST OF ENGLAND COMMISSIONING REGION","QHG","NHS BEDFORDSHIRE, LUTON AND MILTON KEYNES INTEGRATED CARE BOARD","RD8","MILTON KEYNES UNIVERSITY HOSPITAL NHS FOUNDATION TRUST","Acute and Acute & Community Trusts",162,3805,6.0956790123456788]
["Y61","EAST OF ENGLAND COMMISSIONING REGION","QJG","NHS SUFFOLK AND NORTH EAST ESSEX INTEGRATED CARE BOARD","RDE","EAST SUFFOLK AND NORTH ESSEX NHS FOUNDATION TRUST","Acute and Acute & Community Trusts",47,11162,5.9397163120567376]
["Y61","EAST OF ENGLAND COMMISSIONING REGION","QJG","NHS SUFFOLK AND NORTH EAST ESSEX INTEGRATED CARE BOARD","RGR","WEST SUFFOLK NHS FOUNDATION TRUST","Acute and Acute & Community Trusts",1329,4779,6.753824931025834]
["Y61","EAST OF ENGLAND COMMISSIONING REGION","QM7","NHS HERTFORDSHIRE AND WEST ESSEX INTEGRATED CARE BOARD","RWH","EAST AND NORTH HERTFORDSHIRE NHS TRUST","Acute and Acute & Community Trusts",120,6324,6.354166666666667]
["Y61","EAST OF ENGLAND COMMISSIONING REGION","QM7","NHS HERTFORDSHIRE AND WEST ESSEX INTEGRATED CARE BOARD","RY4","HERTFORDSHIRE COMMUNITY NHS TRUST","Community Trusts",117,2680,6.5811965811965809]
["Y61","EAST OF ENGLAND COMMISSIONING REGION","QM7","NHS HERTFORDSHIRE AND WEST ESSEX INTEGRATED CARE BOARD","RWR","HERTFORDSHIRE PARTNERSHIP UNIVERSITY NHS FOUNDATION TRUST","Mental Health & Learning Disability and Mental Health, Learning Disability & Community Trusts",646,3659,6.9930340557275539]
["Y61","EAST OF ENGLAND COMMISSIONING REGION","QM7","NHS HERTFORDSHIRE AND WEST ESSEX INTEGRATED CARE BOARD","RQW","THE PRINCESS ALEXANDRA HOSPITAL NHS TRUST","Acute and Acute & Community Trusts",267,3739,6.4076154806491878]
["Y61","EAST OF ENGLAND COMMISSIONING REGION","QM7","NHS HERTFORDSHIRE AND WEST ESSEX INTEGRATED CARE BOARD","RWG","WEST HERTFORDSHIRE TEACHING HOSPITALS NHS TRUST","Acute and Acute & Community Trusts",645,5221,5.9547803617571065]
["Y61","EAST OF ENGLAND COMMISSIONING REGION","QMM","NHS NORFOLK AND WAVENEY INTEGRATED CARE BOARD","RM1","NORFOLK AND NORWICH UNIVERSITY HOSPITALS NHS FOUNDATION TRUST","Acute and Acute & Community Trusts",186,8926,5.470430107526882]
["Y61","EAST OF ENGLAND COMMISSIONING REGION","QMM","NHS NORFOLK AND WAVENEY INTEGRATED CARE BOARD","RMY","NORFOLK AND SUFFOLK NHS FOUNDATION TRUST","Mental Health & Learning Disability and Mental Health, Learning Disability & Community Trusts",1106,4681,6.7020795660036168]
["Y61","EAST OF ENGLAND COMMISSIONING REGION","QMM","NHS NORFOLK AND WAVENEY INTEGRATED CARE BOARD","RY3","NORFOLK COMMUNITY HEALTH AND CARE NHS TRUST","Community Trusts",276,2363,6.9172705314009661]
["Y61","EAST OF ENGLAND COMMISSIONING REGION","QMM","NHS NORFOLK AND WAVENEY INTEGRATED CARE BOARD","RCX","THE QUEEN ELIZABETH HOSPITAL, KING'S LYNN, NHS FOUNDATION TRUST","Acute and Acute & Community Trusts",406,3741,5.8415435139573066]
["Y61","EAST OF ENGLAND COMMISSIONING REGION","QUE","NHS CAMBRIDGESHIRE AND PETERBOROUGH INTEGRATED CARE BOARD","RGT","CAMBRIDGE UNIVERSITY HOSPITALS NHS FOUNDATION TRUST","Acute and Acute & Community Trusts",3762,11468,6.3430356193514088]
["Y61","EAST OF ENGLAND COMMISSIONING REGION","QUE","NHS CAMBRIDGESHIRE AND PETERBOROUGH INTEGRATED CARE BOARD","RT1","CAMBRIDGESHIRE AND PETERBOROUGH NHS FOUNDATION TRUST","Mental Health & Learning Disability and Mental Health, Learning Disability & Community Trusts",2275,4368,7.1681318681318684]
["Y61","EAST OF ENGLAND COMMISSIONING REGION","QUE","NHS CAMBRIDGESHIRE AND PETERBOROUGH INTEGRATED CARE BOARD","RYV","CAMBRIDGESHIRE COMMUNITY SERVICES NHS TRUST","Community Trusts",89,2775,6.8164794007490634]
["Y61","EAST OF ENGLAND COMMISSIONING REGION","QUE","NHS CAMBRIDGESHIRE AND PETERBOROUGH INTEGRATED CARE BOARD","RYC","EAST OF ENGLAND AMBULANCE SERVICE NHS TRUST","Ambulance Trusts",1120,5575,4.4055059523809526]
["Y61","EAST OF ENGLAND COMMISSIONING REGION","QUE","NHS CAMBRIDGESHIRE AND PETERBOROUGH INTEGRATED CARE BOARD","RGN","NORTH WEST ANGLIA NHS FOUNDATION TRUST","Acute and Acute & Community Trusts",359,6935,5.6429897864438257]
["Y62","NORTH WEST COMMISSIONING REGION","QE1","NHS LANCASHIRE AND SOUTH CUMBRIA INTEGRATED CARE BOARD","RXL","BLACKPOOL TEACHING HOSPITALS NHS FOUNDATION TRUST","Acute and Acute & Community Trusts",265,7856,6.8301886792452828]
["Y62","NORTH WEST COMMISSIONING REGION","QE1","NHS LANCASHIRE AND SOUTH CUMBRIA INTEGRATED CARE BOARD","RXR","EAST LANCASHIRE HOSPITALS NHS TRUST","Acute and Acute & Community Trusts",27,9614,6.2345679012345681]
["Y62","NORTH WEST COMMISSIONING REGION","QE1","NHS LANCASHIRE AND SOUTH CUMBRIA INTEGRATED CARE BOARD","RW5","LANCASHIRE & SOUTH CUMBRIA NHS FOUNDATION TRUST","Mental Health & Learning Disability and Mental Health, Learning Disability & Community Trusts",1070,7066,6.7702492211838008]
["Y62","NORTH WEST COMMISSIONING REGION","QE1","NHS LANCASHIRE AND SOUTH CUMBRIA INTEGRATED CARE BOARD","RXN","LANCASHIRE TEACHING HOSPITALS NHS FOUNDATION TRUST","Acute and Acute & Community Trusts",1401,9294,6.7225791101594101]
["Y62","NORTH WEST COMMISSIONING REGION","QE1","NHS LANCASHIRE AND SOUTH CUMBRIA INTEGRATED CARE BOARD","RTX","UNIVERSITY HOSPITALS OF MORECAMBE BAY NHS FOUNDATION TRUST","Acute and Acute & Community Trusts",348,7106,6.6235632183908049]
["Y62","NORTH WEST COMMISSIONING REGION","QOP","NHS GREATER MANCHESTER INTEGRATED CARE BOARD","RMC","BOLTON NHS FOUNDATION TRUST","Acute and Acute & Community Trusts",1200,6357,7.135416666666667]
["Y62","NORTH WEST COMMISSIONING REGION","QOP","NHS GREATER MANCHESTER INTEGRATED CARE BOARD","RXV","GREATER MANCHESTER MENTAL HEALTH NHS FOUNDATION TRUST","Mental Health & Learning Disability and Mental Health, Learning Disability & Community Trusts",1326,6258,6.7615635997988948]
["Y62","NORTH WEST COMMISSIONING REGION","QOP","NHS GREATER MANCHESTER INTEGRATED CARE BOARD","R0A","MANCHESTER UNIVERSITY NHS FOUNDATION TRUST","Acute and Acute & Community Trusts",3648,27674,6.3845486111111107]
["Y62","NORTH WEST COMMISSIONING REGION","QOP","NHS GREATER MANCHESTER INTEGRATED CARE BOARD","RX7","NORTH WEST AMBULANCE SERVICE NHS TRUST","Ambulance Trusts",856,6686,5.69898753894081]
["Y62","NORTH WEST COMMISSIONING REGION","QOP","NHS GREATER MANCHESTER INTEGRATED CARE BOARD","RM3","NORTHERN CARE ALLIANCE NHS FOUNDATION TRUST","Acute and Acute & Community Trusts",2227,19067,6.1427929950606197]
["Y62","NORTH WEST COMMISSIONING REGION","QOP","NHS GREATER MANCHESTER INTEGRATED CARE BOARD","RT2","PENNINE CARE NHS FOUNDATION TRUST","Mental Health & Learning Disability and Mental Health, Learning Disability & Community Trusts",204,3614,6.409313725490196]
["Y62","NORTH WEST COMMISSIONING REGION","QOP","NHS GREATER MANCHESTER INTEGRATED CARE BOARD","RMP","TAMESIDE AND GLOSSOP INTEGRATED CARE NHS FOUNDATION TRUST","Acute and Acute & Community Trusts",66,4061,5.9217171717171713]
["Y62","NORTH WEST COMMISSIONING REGION","QOP","NHS GREATER MANCHESTER INTEGRATED CARE BOARD","RBV","THE CHRISTIE NHS FOUNDATION TRUST","Acute Specialist Trusts",122,3271,6.3456284153005464]
["Y62","NORTH WEST COMMISSIONING REGION","QOP","NHS GREATER MANCHESTER INTEGRATED CARE BOARD","RRF","WRIGHTINGTON, WIGAN AND LEIGH NHS FOUNDATION TRUST","Acute and Acute & Community Trusts",91,6789,6.7948717948717956]
["Y62","NORTH WEST COMMISSIONING REGION","QYG","NHS CHESHIRE AND MERSEYSIDE INTEGRATED CARE BOARD","RBS","ALDER HEY CHILDREN'S NHS FOUNDATION TRUST","Acute and Acute & Community Trusts",340,4147,6.4950980392156863]
["Y62","NORTH WEST COMMISSIONING REGION","QYG","NHS CHESHIRE AND MERSEYSIDE INTEGRATED CARE BOARD","RY2","BRIDGEWATER COMMUNITY HEALTHCARE NHS FOUNDATION TRUST","Community Trusts",228,1484,6.4619883040935671]
["Y62","NORTH WEST COMMISSIONING REGION","QYG","NHS CHESHIRE AND MERSEYSIDE INTEGRATED CARE BOARD","RXA","CHESHIRE AND WIRRAL PARTNERSHIP NHS FOUNDATION TRUST","Mental Health & Learning Disability and Mental Health, Learning Disability & Community Trusts",685,4047,6.8978102189781021]
["Y62","NORTH WEST COMMISSIONING REGION","QYG","NHS CHESHIRE AND MERSEYSIDE INTEGRATED CARE BOARD","RJR","COUNTESS OF CHESTER HOSPITAL NHS FOUNDATION TRUST","Acute and Acute & Community Trusts",329,4488,5.7168186423505567]
["Y62","NORTH WEST COMMISSIONING REGION","QYG","NHS CHESHIRE AND MERSEYSIDE INTEGRATED CARE BOARD","RJN","EAST CHESHIRE NHS TRUST","Acute and Acute & Community Trusts",49,2549,6.2414965986394551]
["Y62","NORTH WEST COMMISSIONING REGION","QYG","NHS CHESHIRE AND MERSEYSIDE INTEGRATED CARE BOARD","RBQ","LIVERPOOL HEART AND CHEST HOSPITAL NHS FOUNDATION TRUST","Acute Specialist Trusts",48,1888,6.8923611111111107]
["Y62","NORTH WEST COMMISSIONING REGION","QYG","NHS CHESHIRE AND MERSEYSIDE INTEGRATED CARE BOARD","REM","LIVERPOOL UNIVERSITY HOSPITALS NHS FOUNDATION TRUST","Acute and Acute & Community Trusts",1696,13593,6.1306014150943398]
["Y62","NORTH WEST COMMISSIONING REGION","QYG","NHS CHESHIRE AND MERSEYSIDE INTEGRATED CARE BOARD","REP","LIVERPOOL WOMEN'S NHS FOUNDATION TRUST","Acute Specialist Trusts",204,1598,5.625]
["Y62","NORTH WEST COMMISSIONING REGION","QYG","NHS CHESHIRE AND MERSEYSIDE INTEGRATED CARE BOARD","RW4","MERSEY CARE NHS FOUNDATION TRUST","Mental Health & Learning Disability and Mental Health, Learning Disability & Community Trusts",2715,10479,6.8753836709637817]
["Y62","NORTH WEST COMMISSIONING REGION","QYG","NHS CHESHIRE AND MERSEYSIDE INTEGRATED CARE BOARD","RBT","MID CHESHIRE HOSPITALS NHS FOUNDATION TRUST","Acute and Acute & Community Trusts",337,5119,6.7012858555885266]
["Y62","NORTH WEST COMMISSIONING REGION","QYG","NHS CHESHIRE AND MERSEYSIDE INTEGRATED CARE BOARD","RVY","SOUTHPORT AND ORMSKIRK HOSPITAL NHS TRUST","Acute and Acute & Community Trusts",250,3339,6.1466666666666674]
["Y62","NORTH WEST COMMISSIONING REGION","QYG","NHS CHESHIRE AND MERSEYSIDE INTEGRATED CARE BOARD","RBN","ST HELENS AND KNOWSLEY TEACHING HOSPITALS NHS TRUST","Acute and Acute & Community Trusts",241,6818,6.2586445366528354]
["Y62","NORTH WEST COMMISSIONING REGION","QYG","NHS CHESHIRE AND MERSEYSIDE INTEGRATED CARE BOARD","REN","THE CLATTERBRIDGE CANCER CENTRE NHS FOUNDATION TRUST","Acute Specialist Trusts",393,1629,6.9274809160305342]
["Y62","NORTH WEST COMMISSIONING REGION","QYG","NHS CHESHIRE AND MERSEYSIDE INTEGRATED CARE BOARD","RET","THE WALTON CENTRE NHS FOUNDATION TRUST","Acute Specialist Trusts",84,1515,7.0337301587301591]
["Y62","NORTH WEST COMMISSIONING REGION","QYG","NHS CHESHIRE AND MERSEYSIDE INTEGRATED CARE BOARD","RWW","WARRINGTON AND HALTON TEACHING HOSPITALS NHS FOUNDATION TRUST","Acute and Acute & Community Trusts",65,4380,6.7307692307692308]
["Y62","NORTH WEST COMMISSIONING REGION","QYG","NHS CHESHIRE AND MERSEYSIDE INTEGRATED CARE BOARD","RY7","WIRRAL COMMUNITY HEALTH AND CARE NHS FOUNDATION TRUST","Community Trusts",199,1904,6.4740368509212729]
["Y62","NORTH WEST COMMISSIONING REGION","QYG","NHS CHESHIRE AND MERSEYSIDE INTEGRATED CARE BOARD","RBL","WIRRAL UNIVERSITY TEACHING HOSPITAL NHS FOUNDATION TRUST","Acute and Acute & Community Trusts",28,6619,4.9107142857142856]
["Y63","NORTH EAST AND YORKSHIRE COMMISSIONING REGION","QF7","NHS SOUTH YORKSHIRE INTEGRATED CARE BOARD","RFF","BARNSLEY HOSPITAL NHS FOUNDATION TRUST","Acute and Acute & Community Trusts",341,4083,6.5762463343108504]
["Y63","NORTH EAST AND YORKSHIRE COMMISSIONING REGION","QF7","NHS SOUTH YORKSHIRE INTEGRATED CARE BOARD","RP5","DONCASTER AND BASSETLAW TEACHING HOSPITALS NHS FOUNDATION TRUST","Acute and Acute & Community Trusts",495,6583,5.9326599326599325]
["Y63","NORTH EAST AND YORKSHIRE COMMISSIONING REGION","QF7","NHS SOUTH YORKSHIRE INTEGRATED CARE BOARD","RXE","ROTHERHAM DONCASTER AND SOUTH HUMBER NHS FOUNDATION TRUST","Mental Health & Learning Disability and Mental Health, Learning Disability & Community Trusts",127,3572,6.7847769028871392]
["Y63","NORTH EAST AND YORKSHIRE COMMISSIONING REGION","QF7","NHS SOUTH YORKSHIRE INTEGRATED CARE BOARD","RCU","SHEFFIELD CHILDREN'S NHS FOUNDATION TRUST","Acute and Acute & Community Trusts",119,3724,6.757703081232493]
["Y63","NORTH EAST AND YORKSHIRE COMMISSIONING REGION","QF7","NHS SOUTH YORKSHIRE INTEGRATED CARE BOARD","TAH","SHEFFIELD HEALTH & SOCIAL CARE NHS FOUNDATION TRUST","Mental Health & Learning Disability and Mental Health, Learning Disability & Community Trusts",190,2529,6.4868421052631575]
["Y63","NORTH EAST AND YORKSHIRE COMMISSIONING REGION","QF7","NHS SOUTH YORKSHIRE INTEGRATED CARE BOARD","RHQ","SHEFFIELD TEACHING HOSPITALS NHS FOUNDATION TRUST","Acute and Acute & Community Trusts",809,17279,6.0805521219612695]
["Y63","NORTH EAST AND YORKSHIRE COMMISSIONING REGION","QF7","NHS SOUTH YORKSHIRE INTEGRATED CARE BOARD","RFR","THE ROTHERHAM NHS FOUNDATION TRUST","Acute and Acute & Community Trusts",613,4700,6.3607939097335509]
["Y63","NORTH EAST AND YORKSHIRE COMMISSIONING REGION","QHM","NHS NORTH EAST AND NORTH CUMBRIA INTEGRATED CARE BOARD","RXP","COUNTY DURHAM AND DARLINGTON NHS FOUNDATION TRUST","Acute and Acute & Community Trusts",1080,7667,6.091049382716049]
["Y63","NORTH EAST AND YORKSHIRE COMMISSIONING REGION","QHM","NHS NORTH EAST AND NORTH CUMBRIA INTEGRATED CARE BOARD","RX4","CUMBRIA, NORTHUMBERLAND, TYNE AND WEAR NHS FOUNDATION TRUST","Mental Health & Learning Disability and Mental Health, Learning Disability & Community Trusts",341,7475,6.6593352883675472]
["Y63","NORTH EAST AND YORKSHIRE COMMISSIONING REGION","QHM","NHS NORTH EAST AND NORTH CUMBRIA INTEGRATED CARE BOARD","RR7","GATESHEAD HEALTH NHS FOUNDATION TRUST","Acute and Acute & Community Trusts",85,4937,6.4411764705882355]
["Y63","NORTH EAST AND YORKSHIRE COMMISSIONING REGION","QHM","NHS NORTH EAST AND NORTH CUMBRIA INTEGRATED CARE BOARD","RNN","NORTH CUMBRIA INTEGRATED CARE NHS FOUNDATION TRUST","Acute and Acute & Community Trusts",16,6701,6.40625]
["Y63","NORTH EAST AND YORKSHIRE COMMISSIONING REGION","QHM","NHS NORTH EAST AND NORTH CUMBRIA INTEGRATED CARE BOARD","RX6","NORTH EAST AMBULANCE SERVICE NHS FOUNDATION TRUST","Ambulance Trusts",225,2941,4.7777777777777777]
["Y63","NORTH EAST AND YORKSHIRE COMMISSIONING REGION","QHM","NHS NORTH EAST AND NORTH CUMBRIA INTEGRATED CARE BOARD","RVW","NORTH TEES AND HARTLEPOOL NHS FOUNDATION TRUST","Acute and Acute & Community Trusts",193,5503,6.2392055267702942]
["Y63","NORTH EAST AND YORKSHIRE COMMISSIONING REGION","QHM","NHS NORTH EAST AND NORTH CUMBRIA INTEGRATED CARE BOARD","RTF","NORTHUMBRIA HEALTHCARE NHS FOUNDATION TRUST","Acute and Acute & Community Trusts",3844,8414,6.661680541103018]
["Y63","NORTH EAST AND YORKSHIRE COMMISSIONING REGION","QHM","NHS NORTH EAST AND NORTH CUMBRIA INTEGRATED CARE BOARD","RTR","SOUTH TEES HOSPITALS NHS FOUNDATION TRUST","Acute and Acute & Community Trusts",10,9570,6.833333333333333]
["Y63","NORTH EAST AND YORKSHIRE COMMISSIONING REGION","QHM","NHS NORTH EAST AND NORTH CUMBRIA INTEGRATED CARE BOARD","R0B","SOUTH TYNESIDE AND SUNDERLAND NHS FOUNDATION TRUST","Acute and Acute & Community Trusts",430,8896,6.1492248062015502]
["Y63","NORTH EAST AND YORKSHIRE COMMISSIONING REGION","QHM","NHS NORTH EAST AND NORTH CUMBRIA INTEGRATED CARE BOARD","RX3","TEES, ESK AND WEAR VALLEYS NHS FOUNDATION TRUST","Mental Health & Learning Disability and Mental Health, Learning Disability & Community Trusts",2079,7604,6.774490941157608]
["Y63","NORTH EAST AND YORKSHIRE COMMISSIONING REGION","QHM","NHS NORTH EAST AND NORTH CUMBRIA INTEGRATED CARE BOARD","RTD","THE NEWCASTLE UPON TYNE HOSPITALS NHS FOUNDATION TRUST","Acute and Acute & Community Trusts",535,16274,6.0171339563862922]
["Y63","NORTH EAST AND YORKSHIRE COMMISSIONING REGION","QOQ","NHS HUMBER AND NORTH YORKSHIRE INTEGRATED CARE BOARD","RCD","HARROGATE AND DISTRICT NHS FOUNDATION TRUST","Acute and Acute & Community Trusts",1225,4729,6.7741496598639461]
["Y63","NORTH EAST AND YORKSHIRE COMMISSIONING REGION","QOQ","NHS HUMBER AND NORTH YORKSHIRE INTEGRATED CARE BOARD","RWA","HULL UNIVERSITY TEACHING HOSPITALS NHS TRUST","Acute and Acute & Community Trusts",1500,8825,6.335]
["Y63","NORTH EAST AND YORKSHIRE COMMISSIONING REGION","QOQ","NHS HUMBER AND NORTH YORKSHIRE INTEGRATED CARE BOARD","RV9","HUMBER TEACHING NHS FOUNDATION TRUST","Mental Health & Learning Disability and Mental Health, Learning Disability & Community Trusts",593,3062,7.0489038785834737]
["Y63","NORTH EAST AND YORKSHIRE COMMISSIONING REGION","QOQ","NHS HUMBER AND NORTH YORKSHIRE INTEGRATED CARE BOARD","RJL","NORTHERN LINCOLNSHIRE AND GOOLE NHS FOUNDATION TRUST","Acute and Acute & Community Trusts",318,6514,5.4061844863731663]
["Y63","NORTH EAST AND YORKSHIRE COMMISSIONING REGION","QOQ","NHS HUMBER AND NORTH YORKSHIRE INTEGRATED CARE BOARD","RCB","YORK AND SCARBOROUGH TEACHING HOSPITALS NHS FOUNDATION TRUST","Acute and Acute & Community Trusts",155,9445,5.5053763440860219]
["Y63","NORTH EAST AND YORKSHIRE COMMISSIONING REGION","QWO","NHS WEST YORKSHIRE INTEGRATED CARE BOARD","RCF","AIREDALE NHS FOUNDATION TRUST","Acute and Acute & Community Trusts",163,3486,6.6002044989775044]
["Y63","NORTH EAST AND YORKSHIRE COMMISSIONING REGION","QWO","NHS WEST YORKSHIRE INTEGRATED CARE BOARD","TAD","BRADFORD DISTRICT CARE NHS FOUNDATION TRUST","Mental Health & Learning Disability and Mental Health, Learning Disability & Community Trusts",401,3247,6.7622610141313375]
["Y63","NORTH EAST AND YORKSHIRE COMMISSIONING REGION","QWO","NHS WEST YORKSHIRE INTEGRATED CARE BOARD","RAE","BRADFORD TEACHING HOSPITALS NHS FOUNDATION TRUST","Acute and Acute & Community Trusts",164,6226,6.4430894308943092]
["Y63","NORTH EAST AND YORKSHIRE COMMISSIONING REGION","QWO","NHS WEST YORKSHIRE INTEGRATED CARE BOARD","RWY","CALDERDALE AND HUDDERSFIELD NHS FOUNDATION TRUST","Acute and Acute & Community Trusts",236,6344,6.2394067796610173]
["Y63","NORTH EAST AND YORKSHIRE COMMISSIONING REGION","QWO","NHS WEST YORKSHIRE INTEGRATED CARE BOARD","RGD","LEEDS AND YORK PARTNERSHIP NHS FOUNDATION TRUST","Mental Health & Learning Disability and Mental Health, Learning Disability & Community Trusts",132,3088,7.1212121212121211]
["Y63","NORTH EAST AND YORKSHIRE COMMISSIONING REGION","QWO","NHS WEST YORKSHIRE INTEGRATED CARE BOARD","RY6","LEEDS COMMUNITY HEALTHCARE NHS TRUST","Community Trusts",941,3146,6.6374424371236271]
["Y63","NORTH EAST AND YORKSHIRE COMMISSIONING REGION","QWO","NHS WEST YORKSHIRE INTEGRATED CARE BOARD","RXF","MID YORKSHIRE HOSPITALS NHS TRUST","Acute and Acute & Community Trusts",1868,8839,6.3365453247680223]
["Y63","NORTH EAST AND YORKSHIRE COMMISSIONING REGION","QWO","NHS WEST YORKSHIRE INTEGRATED CARE BOARD","RXG","SOUTH WEST YORKSHIRE PARTNERSHIP NHS FOUNDATION TRUST","Mental Health & Learning Disability and Mental Health, Learning Disability & Community Trusts",169,4520,7.4654832347140045]
["Y63","NORTH EAST AND YORKSHIRE COMMISSIONING REGION","QWO","NHS WEST YORKSHIRE INTEGRATED CARE BOARD","RX8","YORKSHIRE AMBULANCE SERVICE NHS TRUST","Ambulance Trusts",395,5792,5.3164556962025316]

{"sheet":"Motivation","index":6,"n_rows":196,"n_cols":10,"rows_kept":196,"cut":false,"hidden":false,"merged":[[6,6,7,6],[6,7,7,7],[6,8,7,8],[6,9,7,9],[6,5,7,5],[6,0,7,0],[6,1,7,1],[6,2,7,2],[6,3,7,3],[6,4,7,4]]}
[]
[]
[]
[]
[]
[]
["Region Code","Region Name","STP Code","STP Name","Org Code","Org Name","Care Setting","Total Responses","HSCIC Workforce Headcount","Motivation Score"]
[]
[null,null,null,null,null,"England",null,127539,1180653,6.7365733880094201]
["Y56","LONDON COMMISSIONING REGION","QKK","NHS SOUTH EAST LONDON INTEGRATED CARE BOARD","RJ1","GUY'S AND ST THOMAS' NHS FOUNDATION TRUST","Acute and Acute & Community Trusts",2705,22169,6.8062230437461491]
["Y56","LONDON COMMISSIONING REGION","QKK","NHS SOUTH EAST LONDON INTEGRATED CARE BOARD","RJZ","KING'S COLLEGE HOSPITAL NHS FOUNDATION TRUST","Acute and Acute & Community Trusts",1285,13297,6.4468223086900123]
["Y56","LONDON COMMISSIONING REGION","QKK","NHS SOUTH EAST LONDON INTEGRATED CARE BOARD","RJ2","LEWISHAM AND GREENWICH NHS TRUST","Acute and Acute & Community Trusts",433,6850,6.2702078521939955]
["Y56","LONDON COMMISSIONING REGION","QKK","NHS SOUTH EAST LONDON INTEGRATED CARE BOARD","RV5","SOUTH LONDON AND MAUDSLEY NHS FOUNDATION TRUST","Mental Health & Learning Disability and Mental Health, Learning Disability & Community Trusts",195,5486,6.4145299145299139]
["Y56","LONDON COMMISSIONING REGION","QMF","NHS NORTH EAST LONDON INTEGRATED CARE BOARD","R1H","BARTS HEALTH NHS TRUST","Acute and Acute & Community Trusts",435,17203,6.2298850574712645]
["Y56","LONDON COMMISSIONING REGION","QMF","NHS NORTH EAST LONDON INTEGRATED CARE BOARD","RWK","EAST LONDON NHS FOUNDATION TRUST","Mental Health & Learning Disability and Mental Health, Learning Disability & Community Trusts",924,6545,7.1518759018759015]
["Y56","LONDON COMMISSIONING REGION","QMF","NHS NORTH EAST LONDON INTEGRATED CARE BOARD","RQX","HOMERTON HEALTHCARE NHS FOUNDATION TRUST","Acute and Acute & Community Trusts",693,3922,6.747234247234247]
["Y56","LONDON COMMISSIONING REGION","QMF","NHS NORTH EAST LONDON INTEGRATED CARE BOARD","RAT","NORTH EAST LONDON NHS FOUNDATION TRUST","Mental Health & Learning Disability and Mental Health, Learning Disability & Community Trusts",616,6702,6.7897727272727275]
["Y56","LONDON COMMISSIONING REGION","QMJ","NHS NORTH CENTRAL LONDON INTEGRATED CARE BOARD","RRP","BARNET, ENFIELD AND HARINGEY MENTAL HEALTH NHS TRUST","Mental Health & Learning Disability and Mental Health, Learning Disability & Community Trusts",154,3407,6.4935064935064934]
["Y56","LONDON COMMISSIONING REGION","QMJ","NHS NORTH CENTRAL LONDON INTEGRATED CARE BOARD","TAF","CAMDEN AND ISLINGTON NHS FOUNDATION TRUST","Mental Health & Learning Disability and Mental Health, Learning Disability & Community Trusts",445,2293,7.0299625468164795]
["Y56","LONDON COMMISSIONING REGION","QMJ","NHS NORTH CENTRAL LONDON INTEGRATED CARE BOARD","RP4","GREAT ORMOND STREET HOSPITAL FOR CHILDREN NHS FOUNDATION TRUST","Acute Specialist Trusts",954,5520,6.8920335429769395]
["Y56","LONDON COMMISSIONING REGION","QMJ","NHS NORTH CENTRAL LONDON INTEGRATED CARE BOARD","RP6","MOORFIELDS EYE HOSPITAL NHS FOUNDATION TRUST","Acute Specialist Trusts",31,2283,5.860215053763441]
["Y56","LONDON COMMISSIONING REGION","QMJ","NHS NORTH CENTRAL LONDON INTEGRATED CARE BOARD","RAP","NORTH MIDDLESEX UNIVERSITY HOSPITAL NHS TRUST","Acute and Acute & Community Trusts",658,3818,6.9794832826747717]
["Y56","LONDON COMMISSIONING REGION","QMJ","NHS NORTH CENTRAL LONDON INTEGRATED CARE BOARD","RAL","ROYAL FREE LONDON NHS FOUNDATION TRUST","Acute and Acute & Community Trusts",672,10684,6.3107638888888884]
["Y56","LONDON COMMISSIONING REGION","QMJ","NHS NORTH CENTRAL LONDON INTEGRATED CARE BOARD","RNK","TAVISTOCK AND PORTMAN NHS FOUNDATION TRUST","Mental Health & Learning Disability and Mental Health, Learning Disability & Community Trusts",95,767,5.4473684210526319]
["Y56","LONDON COMMISSIONING REGION","QMJ","NHS NORTH CENTRAL LONDON INTEGRATED CARE BOARD","RRV","UNIVERSITY COLLEGE LONDON HOSPITALS NHS FOUNDATION TRUST","Acute and Acute & Community Trusts",508,10115,6.7979002624671923]
["Y56","LONDON COMMISSIONING REGION","QMJ","NHS NORTH CENTRAL LONDON INTEGRATED CARE BOARD","RKE","WHITTINGTON HEALTH NHS TRUST","Acute and Acute & Community Trusts",688,4464,6.7514534883720927]
["Y56","LONDON COMMISSIONING REGION","QRV","NHS NORTH WEST LONDON INTEGRATED CARE BOARD","RYX","CENTRAL LONDON COMMUNITY HEALTHCARE NHS TRUST","Community Trusts",223,4376,7.0964125560538118]
["Y56","LONDON COMMISSIONING REGION","QRV","NHS NORTH WEST LONDON INTEGRATED CARE BOARD","RYJ","IMPERIAL COLLEGE HEALTHCARE NHS TRUST","Acute and Acute & Community Trusts",91,12988,6.4010989010989015]
["Y56","LONDON COMMISSIONING REGION","QRV","NHS NORTH WEST LONDON INTEGRATED CARE BOARD","RAN","ROYAL NATIONAL ORTHOPAEDIC HOSPITAL NHS TRUST","Acute Specialist Trusts",74,1574,6.6554054054054053]
["Y56","LONDON COMMISSIONING REGION","QRV","NHS NORTH WEST LONDON INTEGRATED CARE BOARD","RAS","THE HILLINGDON HOSPITALS NHS FOUNDATION TRUST","Acute and Acute & Community Trusts",62,3572,7.029569892473118]
["Y56","LONDON COMMISSIONING REGION","QRV","NHS NORTH WEST LONDON INTEGRATED CARE BOARD","RPY","THE ROYAL MARSDEN NHS FOUNDATION TRUST","Acute Specialist Trusts",362,4293,6.3558931860036836]
["Y56","LONDON COMMISSIONING REGION","QWE","NHS SOUTH WEST LONDON INTEGRATED CARE BOARD","RVR","EPSOM AND ST HELIER UNIVERSITY HOSPITALS NHS TRUST","Acute and Acute & Community Trusts",521,6858,6.4251439539347412]
["Y56","LONDON COMMISSIONING REGION","QWE","NHS SOUTH WEST LONDON INTEGRATED CARE BOARD","RY9","HOUNSLOW AND RICHMOND COMMUNITY HEALTHCARE NHS TRUST","Community Trusts",96,1244,7.109375]
["Y56","LONDON COMMISSIONING REGION","QWE","NHS SOUTH WEST LONDON INTEGRATED CARE BOARD","RQY","SOUTH WEST LONDON AND ST GEORGE'S MENTAL HEALTH NHS TRUST","Mental Health & Learning Disability and Mental Health, Learning Disability & Community Trusts",126,2612,6.6468253968253972]
["Y56","LONDON COMMISSIONING REGION","QWE","NHS SOUTH WEST LONDON INTEGRATED CARE BOARD","RJ7","ST GEORGE'S UNIVERSITY HOSPITALS NHS FOUNDATION TRUST","Acute and Acute & Community Trusts",901,9298,6.4160192378838321]
["Y58","SOUTH WEST COMMISSIONING REGION","QJK","NHS DEVON INTEGRATED CARE BOARD","RWV","DEVON PARTNERSHIP NHS TRUST","Mental Health & Learning Disability and Mental Health, Learning Disability & Community Trusts",94,3602,6.9326241134751765]
["Y58","SOUTH WEST COMMISSIONING REGION","QJK","NHS DEVON INTEGRATED CARE BOARD","RBZ","NORTHERN DEVON HEALTHCARE NHS TRUST","Acute and Acute & Community Trusts",1373,0,6.6964068948773967]
["Y58","SOUTH WEST COMMISSIONING REGION","QJK","NHS DEVON INTEGRATED CARE BOARD","RA9","TORBAY AND SOUTH DEVON NHS FOUNDATION TRUST","Acute and Acute & Community Trusts",224,6744,6.1197916666666661]
["Y58","SOUTH WEST COMMISSIONING REGION","QJK","NHS DEVON INTEGRATED CARE BOARD","RK9","UNIVERSITY HOSPITALS PLYMOUTH NHS TRUST","Acute and Acute & Community Trusts",1321,9376,6.794726217511986]
["Y58","SOUTH WEST COMMISSIONING REGION","QOX","NHS BATH AND NORTH EAST SOMERSET, SWINDON AND WILTSHIRE INTEGRATED CARE BOARD","RVN","AVON AND WILTSHIRE MENTAL HEALTH PARTNERSHIP NHS TRUST","Mental Health & Learning Disability and Mental Health, Learning Disability & Community Trusts",256,4555,6.285807291666667]
["Y58","SOUTH WEST COMMISSIONING REGION","QOX","NHS BATH AND NORTH EAST SOMERSET, SWINDON AND WILTSHIRE INTEGRATED CARE BOARD","RN3","GREAT WESTERN HOSPITALS NHS FOUNDATION TRUST","Acute and Acute & Community Trusts",1265,5305,6.8221343873517784]
["Y58","SOUTH WEST COMMISSIONING REGION","QOX","NHS BATH AND NORTH EAST SOMERSET, SWINDON AND WILTSHIRE INTEGRATED CARE BOARD","RNZ","SALISBURY NHS FOUNDATION TRUST","Acute and Acute & Community Trusts",274,3875,6.0979318734793182]
["Y58","SOUTH WEST COMMISSIONING REGION","QR1","NHS GLOUCESTERSHIRE INTEGRATED CARE BOARD","RTQ","GLOUCESTERSHIRE HEALTH AND CARE NHS FOUNDATION TRUST","Mental Health & Learning Disability and Mental Health, Learning Disability & Community Trusts",69,4513,7.016908212560387]
["Y58","SOUTH WEST COMMISSIONING REGION","QR1","NHS GLOUCESTERSHIRE INTEGRATED CARE BOARD","RTE","GLOUCESTERSHIRE HOSPITALS NHS FOUNDATION TRUST","Acute and Acute & Community Trusts",947,8225,6.3199577613516364]
["Y58","SOUTH WEST COMMISSIONING REGION","QSL","NHS SOMERSET INTEGRATED CARE BOARD","RH5","SOMERSET NHS FOUNDATION TRUST","Acute and Acute & Community Trusts",634,9671,6.94794952681388]
["Y58","SOUTH WEST COMMISSIONING REGION","QSL","NHS SOMERSET INTEGRATED CARE BOARD","RA4","YEOVIL DISTRICT HOSPITAL NHS FOUNDATION TRUST","Acute and Acute & Community Trusts",239,2715,6.6631799163179917]
["Y58","SOUTH WEST COMMISSIONING REGION","QT6","NHS CORNWALL AND THE ISLES OF SCILLY INTEGRATED CARE BOARD","RJ8","CORNWALL PARTNERSHIP NHS FOUNDATION TRUST","Mental Health & Learning Disability and Mental Health, Learning Disability & Community Trusts",16,4113,6.041666666666667]
["Y58","SOUTH WEST COMMISSIONING REGION","QT6","NHS CORNWALL AND THE ISLES OF SCILLY INTEGRATED CARE BOARD","REF","ROYAL CORNWALL HOSPITALS NHS TRUST","Acute and Acute & Community Trusts",790,6833,6.5]
["Y58","SOUTH WEST COMMISSIONING REGION","QUY","NHS BRISTOL, NORTH SOMERSET AND SOUTH GLOUCESTERSHIRE INTEGRATED CARE BOARD","RVJ","NORTH BRISTOL NHS TRUST","Acute and Acute & Community Trusts",303,9308,6.2293729372937294]
["Y58","SOUTH WEST COMMISSIONING REGION","QUY","NHS BRISTOL, NORTH SOMERSET AND SOUTH GLOUCESTERSHIRE INTEGRATED CARE BOARD","RA7","UNIVERSITY HOSPITALS BRISTOL AND WESTON NHS FOUNDATION TRUST","Acute and Acute & Community Trusts",1212,11560,6.8371837183718362]
["Y58","SOUTH WEST COMMISSIONING REGION","QVV","NHS DORSET INTEGRATED CARE BOARD","RBD","DORSET COUNTY HOSPITAL NHS FOUNDATION TRUST","Acute and Acute & Community Trusts",476,3212,6.7752100840336134]
["Y58","SOUTH WEST COMMISSIONING REGION","QVV","NHS DORSET INTEGRATED CARE BOARD","RDY","DORSET HEALTHCARE UNIVERSITY NHS FOUNDATION TRUST","Mental Health & Learning Disability and Mental Health, Learning Disability & Community Trusts",1074,6427,7.1322160148975788]
["Y58","SOUTH WEST COMMISSIONING REGION","QVV","NHS DORSET INTEGRATED CARE BOARD","R0D","UNIVERSITY HOSPITALS DORSET NHS FOUNDATION TRUST","Acute and Acute & Community Trusts",179,9217,5.9031657355679705]
["Y59","SOUTH EAST COMMISSIONING REGION","QKS","NHS KENT AND MEDWAY INTEGRATED CARE BOARD","RN7","DARTFORD AND GRAVESHAM NHS TRUST","Acute and Acute & Community Trusts",230,3966,6.5905797101449268]
["Y59","SOUTH EAST COMMISSIONING REGION","QKS","NHS KENT AND MEDWAY INTEGRATED CARE BOARD","RVV","EAST KENT HOSPITALS UNIVERSITY NHS FOUNDATION TRUST","Acute and Acute & Community Trusts",2477,10356,6.7857623469250434]
["Y59","SOUTH EAST COMMISSIONING REGION","QKS","NHS KENT AND MEDWAY INTEGRATED CARE BOARD","RXY","KENT AND MEDWAY NHS AND SOCIAL CARE PARTNERSHIP TRUST","Mental Health & Learning Disability and Mental Health, Learning Disability & Community Trusts",174,3451,6.6139846743295019]
["Y59","SOUTH EAST COMMISSIONING REGION","QKS","NHS KENT AND MEDWAY INTEGRATED CARE BOARD","RYY","KENT COMMUNITY HEALTH NHS FOUNDATION TRUST","Community Trusts",820,4913,6.6595528455284549]
["Y59","SOUTH EAST COMMISSIONING REGION","QKS","NHS KENT AND MEDWAY INTEGRATED CARE BOARD","RWF","MAIDSTONE AND TUNBRIDGE WELLS NHS TRUST","Acute and Acute & Community Trusts",1039,6709,7.0484440166827076]
["Y59","SOUTH EAST COMMISSIONING REGION","QKS","NHS KENT AND MEDWAY INTEGRATED CARE BOARD","RPA","MEDWAY NHS FOUNDATION TRUST","Acute and Acute & Community Trusts",41,4620,6.0365853658536581]
["Y59","SOUTH EAST COMMISSIONING REGION","QNQ","NHS FRIMLEY INTEGRATED CARE BOARD","RWX","BERKSHIRE HEALTHCARE NHS FOUNDATION TRUST","Mental Health & Learning Disability and Mental Health, Learning Disability & Community Trusts",1528,4670,7.2889397905759159]
["Y59","SOUTH EAST COMMISSIONING REGION","QNQ","NHS FRIMLEY INTEGRATED CARE BOARD","RDU","FRIMLEY HEALTH NHS FOUNDATION TRUST","Acute and Acute & Community Trusts",1517,9971,6.7781806196440346]
["Y59","SOUTH EAST COMMISSIONING REGION","QNX","NHS SUSSEX INTEGRATED CARE BOARD","RXC","EAST SUSSEX HEALTHCARE NHS TRUST","Acute and Acute & Community Trusts",301,7875,6.3981173864894796]
["Y59","SOUTH EAST COMMISSIONING REGION","QNX","NHS SUSSEX INTEGRATED CARE BOARD","RPC","QUEEN VICTORIA HOSPITAL NHS FOUNDATION TRUST","Acute Specialist Trusts",159,1074,7.2064989517819704]
["Y59","SOUTH EAST COMMISSIONING REGION","QNX","NHS SUSSEX INTEGRATED CARE BOARD","RYD","SOUTH EAST COAST AMBULANCE SERVICE NHS FOUNDATION TRUST","Ambulance Trusts",111,4198,4.9174174174174174]
["Y59","SOUTH EAST COMMISSIONING REGION","QNX","NHS SUSSEX INTEGRATED CARE BOARD","RDR","SUSSEX COMMUNITY NHS FOUNDATION TRUST","Community Trusts",90,5318,6.9259259259259265]
["Y59","SOUTH EAST COMMISSIONING REGION","QNX","NHS SUSSEX INTEGRATED CARE BOARD","RX2","SUSSEX PARTNERSHIP NHS FOUNDATION TRUST","Mental Health & Learning Disability and Mental Health, Learning Disability & Community Trusts",187,5533,6.5106951871657754]
["Y59","SOUTH EAST COMMISSIONING REGION","QNX","NHS SUSSEX INTEGRATED CARE BOARD","RYR","UNIVERSITY HOSPITALS SUSSEX NHS FOUNDATION TRUST","Acute and Acute & Community Trusts",220,16095,5.4659090909090908]
["Y59","SOUTH EAST COMMISSIONING REGION","QRL","NHS HAMPSHIRE AND ISLE OF WIGHT INTEGRATED CARE BOARD","RN5","HAMPSHIRE HOSPITALS NHS FOUNDATION TRUST","Acute and Acute & Community Trusts",816,7394,6.6605392156862742]
["Y59","SOUTH EAST COMMISSIONING REGION","QRL","NHS HAMPSHIRE AND ISLE OF WIGHT INTEGRATED CARE BOARD","R1F","ISLE OF WIGHT NHS TRUST","Acute and Acute & Community Trusts",482,3620,7.0487551867219915]
["Y59","SOUTH EAST COMMISSIONING REGION","QRL","NHS HAMPSHIRE AND ISLE OF WIGHT INTEGRATED CARE BOARD","RHU","PORTSMOUTH HOSPITALS UNIVERSITY NATIONAL HEALTH SERVICE TRUST","Acute and Acute & Community Trusts",1032,7994,6.5358527131782944]
["Y59","SOUTH EAST COMMISSIONING REGION","QRL","NHS HAMPSHIRE AND ISLE OF WIGHT INTEGRATED CARE BOARD","R1C","SOLENT NHS TRUST","Mental Health & Learning Disability and Mental Health, Learning Disability & Community Trusts",429,4041,7.1114996114996121]
["Y59","SOUTH EAST COMMISSIONING REGION","QRL","NHS HAMPSHIRE AND ISLE OF WIGHT INTEGRATED CARE BOARD","RW1","SOUTHERN HEALTH NHS FOUNDATION TRUST","Mental Health & Learning Disability and Mental Health, Learning Disability & Community Trusts",1890,6321,6.7526455026455023]
["Y59","SOUTH EAST COMMISSIONING REGION","QRL","NHS HAMPSHIRE AND ISLE OF WIGHT INTEGRATED CARE BOARD","RHM","UNIVERSITY HOSPITAL SOUTHAMPTON NHS FOUNDATION TRUST","Acute and Acute & Community Trusts",2822,12425,6.8928655799669274]
["Y59","SOUTH EAST COMMISSIONING REGION","QU9","NHS BUCKINGHAMSHIRE, OXFORDSHIRE AND BERKSHIRE WEST INTEGRATED CARE BOARD","RXQ","BUCKINGHAMSHIRE HEALTHCARE NHS TRUST","Acute and Acute & Community Trusts",705,6239,6.8286052009456268]
["Y59","SOUTH EAST COMMISSIONING REGION","QU9","NHS BUCKINGHAMSHIRE, OXFORDSHIRE AND BERKSHIRE WEST INTEGRATED CARE BOARD","RNU","OXFORD HEALTH NHS FOUNDATION TRUST","Mental Health & Learning Disability and Mental Health, Learning Disability & Community Trusts",1002,6072,6.8271789753825676]
["Y59","SOUTH EAST COMMISSIONING REGION","QU9","NHS BUCKINGHAMSHIRE, OXFORDSHIRE AND BERKSHIRE WEST INTEGRATED CARE BOARD","RTH","OXFORD UNIVERSITY HOSPITALS NHS FOUNDATION TRUST","Acute and Acute & Community Trusts",2259,13438,6.8636564851704298]
["Y59","SOUTH EAST COMMISSIONING REGION","QU9","NHS BUCKINGHAMSHIRE, OXFORDSHIRE AND BERKSHIRE WEST INTEGRATED CARE BOARD","RHW","ROYAL BERKSHIRE NHS FOUNDATION TRUST","Acute and Acute & Community Trusts",143,5899,6.2995337995337994]
["Y59","SOUTH EAST COMMISSIONING REGION","QU9","NHS BUCKINGHAMSHIRE, OXFORDSHIRE AND BERKSHIRE WEST INTEGRATED CARE BOARD","RYE","SOUTH CENTRAL AMBULANCE SERVICE NHS FOUNDATION TRUST","Ambulance Trusts",277,4516,5.7430806257521052]
["Y60","MIDLANDS COMMISSIONING REGION","QGH","NHS HEREFORDSHIRE AND WORCESTERSHIRE INTEGRATED CARE BOARD","R1A","HEREFORDSHIRE AND WORCESTERSHIRE HEALTH AND CARE NHS TRUST","Mental Health & Learning Disability and Mental Health, Learning Disability & Community Trusts",372,4434,7.0542114695340494]
["Y60","MIDLANDS COMMISSIONING REGION","QGH","NHS HEREFORDSHIRE AND WORCESTERSHIRE INTEGRATED CARE BOARD","RWP","WORCESTERSHIRE ACUTE HOSPITALS NHS TRUST","Acute and Acute & Community Trusts",259,6633,6.4189189189189193]
["Y60","MIDLANDS COMMISSIONING REGION","QGH","NHS HEREFORDSHIRE AND WORCESTERSHIRE INTEGRATED CARE BOARD","RLQ","WYE VALLEY NHS TRUST","Acute and Acute & Community Trusts",474,3642,6.5101969057665263]
["Y60","MIDLANDS COMMISSIONING REGION","QHL","NHS BIRMINGHAM AND SOLIHULL INTEGRATED CARE BOARD","RYW","BIRMINGHAM COMMUNITY HEALTHCARE NHS FOUNDATION TRUST","Community Trusts",620,4888,6.5658602150537639]
["Y60","MIDLANDS COMMISSIONING REGION","QHL","NHS BIRMINGHAM AND SOLIHULL INTEGRATED CARE BOARD","RRJ","THE ROYAL ORTHOPAEDIC HOSPITAL NHS FOUNDATION TRUST","Acute Specialist Trusts",408,1218,6.9444444444444446]
["Y60","MIDLANDS COMMISSIONING REGION","QHL","NHS BIRMINGHAM AND SOLIHULL INTEGRATED CARE BOARD","RRK","UNIVERSITY HOSPITALS BIRMINGHAM NHS FOUNDATION TRUST","Acute and Acute & Community Trusts",1908,21568,6.066561844863732]
["Y60","MIDLANDS COMMISSIONING REGION","QJ2","NHS DERBY AND DERBYSHIRE INTEGRATED CARE BOARD","RFS","CHESTERFIELD ROYAL HOSPITAL NHS FOUNDATION TRUST","Acute and Acute & Community Trusts",44,3968,6.7045454545454541]
["Y60","MIDLANDS COMMISSIONING REGION","QJ2","NHS DERBY AND DERBYSHIRE INTEGRATED CARE BOARD","RY8","DERBYSHIRE COMMUNITY HEALTH SERVICES NHS FOUNDATION TRUST","Community Trusts",1422,4235,7.325949367088608]
["Y60","MIDLANDS COMMISSIONING REGION","QJ2","NHS DERBY AND DERBYSHIRE INTEGRATED CARE BOARD","RXM","DERBYSHIRE HEALTHCARE NHS FOUNDATION TRUST","Mental Health & Learning Disability and Mental Health, Learning Disability & Community Trusts",828,2839,7.2685185185185182]
["Y60","MIDLANDS COMMISSIONING REGION","QJ2","NHS DERBY AND DERBYSHIRE INTEGRATED CARE BOARD","RTG","UNIVERSITY HOSPITALS OF DERBY AND BURTON NHS FOUNDATION TRUST","Acute and Acute & Community Trusts",1856,13473,6.575520833333333]
["Y60","MIDLANDS COMMISSIONING REGION","QJM","NHS LINCOLNSHIRE INTEGRATED CARE BOARD","RY5","LINCOLNSHIRE COMMUNITY HEALTH SERVICES NHS TRUST","Community Trusts",820,2245,7.3048780487804876]
["Y60","MIDLANDS COMMISSIONING REGION","QJM","NHS LINCOLNSHIRE INTEGRATED CARE BOARD","RP7","LINCOLNSHIRE PARTNERSHIP NHS FOUNDATION TRUST","Mental Health & Learning Disability and Mental Health, Learning Disability & Community Trusts",862,2351,7.23414539829853]
["Y60","MIDLANDS COMMISSIONING REGION","QJM","NHS LINCOLNSHIRE INTEGRATED CARE BOARD","RWD","UNITED LINCOLNSHIRE HOSPITALS NHS TRUST","Acute and Acute & Community Trusts",2162,8389,6.7988744989207524]
["Y60","MIDLANDS COMMISSIONING REGION","QK1","NHS LEICESTER, LEICESTERSHIRE AND RUTLAND INTEGRATED CARE BOARD","RT5","LEICESTERSHIRE PARTNERSHIP NHS TRUST","Mental Health & Learning Disability and Mental Health, Learning Disability & Community Trusts",904,5558,6.6509955752212386]
["Y60","MIDLANDS COMMISSIONING REGION","QK1","NHS LEICESTER, LEICESTERSHIRE AND RUTLAND INTEGRATED CARE BOARD","RWE","UNIVERSITY HOSPITALS OF LEICESTER NHS TRUST","Acute and Acute & Community Trusts",49,16152,7.3469387755102042]
["Y60","MIDLANDS COMMISSIONING REGION","QNC","NHS STAFFORDSHIRE AND STOKE-ON-TRENT INTEGRATED CARE BOARD","RRE","MIDLANDS PARTNERSHIP NHS FOUNDATION TRUST","Mental Health & Learning Disability and Mental Health, Learning Disability & Community Trusts",829,9008,7.3441897868918371]
["Y60","MIDLANDS COMMISSIONING REGION","QOC","NHS SHROPSHIRE, TELFORD AND WREKIN INTEGRATED CARE BOARD","R1D","SHROPSHIRE COMMUNITY HEALTH NHS TRUST","Community Trusts",17,1559,5.6372549019607838]
["Y60","MIDLANDS COMMISSIONING REGION","QOC","NHS SHROPSHIRE, TELFORD AND WREKIN INTEGRATED CARE BOARD","RL1","THE ROBERT JONES AND AGNES HUNT ORTHOPAEDIC HOSPITAL NHS FOUNDATION TRUST","Acute Specialist Trusts",10,1618,5.5833333333333339]
["Y60","MIDLANDS COMMISSIONING REGION","QOC","NHS SHROPSHIRE, TELFORD AND WREKIN INTEGRATED CARE BOARD","RXW","THE SHREWSBURY AND TELFORD HOSPITAL NHS TRUST","Acute and Acute & Community Trusts",1193,6873,6.561190276613579]
["Y60","MIDLANDS COMMISSIONING REGION","QPM","NHS NORTHAMPTONSHIRE INTEGRATED CARE BOARD","RNQ","KETTERING GENERAL HOSPITAL NHS FOUNDATION TRUST","Acute and Acute & Community Trusts",1244,4791,6.312968917470525]
["Y60","MIDLANDS COMMISSIONING REGION","QPM","NHS NORTHAMPTONSHIRE INTEGRATED CARE BOARD","RNS","NORTHAMPTON GENERAL HOSPITAL NHS TRUST","Acute and Acute & Community Trusts",1215,5584,6.1632373113854593]
["Y60","MIDLANDS COMMISSIONING REGION","QPM","NHS NORTHAMPTONSHIRE INTEGRATED CARE BOARD","RP1","NORTHAMPTONSHIRE HEALTHCARE NHS FOUNDATION TRUST","Mental Health & Learning Disability and Mental Health, Learning Disability & Community Trusts",1505,4485,7.3150609080841633]
["Y60","MIDLANDS COMMISSIONING REGION","QT1","NHS NOTTINGHAM AND NOTTINGHAMSHIRE INTEGRATED CARE BOARD","RX9","EAST MIDLANDS AMBULANCE SERVICE NHS TRUST","Ambulance Trusts",203,3960,5.6486042692939247]
["Y60","MIDLANDS COMMISSIONING REGION","QT1","NHS NOTTINGHAM AND NOTTINGHAMSHIRE INTEGRATED CARE BOARD","RX1","NOTTINGHAM UNIVERSITY HOSPITALS NHS TRUST","Acute and Acute & Community Trusts",2407,17419,6.4918293865115642]
["Y60","MIDLANDS COMMISSIONING REGION","QT1","NHS NOTTINGHAM AND NOTTINGHAMSHIRE INTEGRATED CARE BOARD","RHA","NOTTINGHAMSHIRE HEALTHCARE NHS FOUNDATION TRUST","Mental Health & Learning Disability and Mental Health, Learning Disability & Community Trusts",717,8875,6.2982333798233379]
["Y60","MIDLANDS COMMISSIONING REGION","QT1","NHS NOTTINGHAM AND NOTTINGHAMSHIRE INTEGRATED CARE BOARD","RK5","SHERWOOD FOREST HOSPITALS NHS FOUNDATION TRUST","Acute and Acute & Community Trusts",1304,5618,6.906313905930471]
["Y60","MIDLANDS COMMISSIONING REGION","QUA","NHS BLACK COUNTRY INTEGRATED CARE BOARD","RXT","BIRMINGHAM AND SOLIHULL MENTAL HEALTH NHS FOUNDATION TRUST","Mental Health & Learning Disability and Mental Health, Learning Disability & Community Trusts",316,4438,6.3633966244725739]
["Y60","MIDLANDS COMMISSIONING REGION","QUA","NHS BLACK COUNTRY INTEGRATED CARE BOARD","TAJ","BLACK COUNTRY HEALTHCARE NHS FOUNDATION TRUST","Mental Health & Learning Disability and Mental Health, Learning Disability & Community Trusts",508,3621,6.5075459317585302]
["Y60","MIDLANDS COMMISSIONING REGION","QUA","NHS BLACK COUNTRY INTEGRATED CARE BOARD","RYK","DUDLEY INTEGRATED HEALTH AND CARE NHS TRUST","Acute and Acute & Community Trusts",61,401,6.9262295081967213]
["Y60","MIDLANDS COMMISSIONING REGION","QUA","NHS BLACK COUNTRY INTEGRATED CARE BOARD","RXK","SANDWELL AND WEST BIRMINGHAM HOSPITALS NHS TRUST","Acute and Acute & Community Trusts",1554,7301,6.9020806520806524]
["Y60","MIDLANDS COMMISSIONING REGION","QUA","NHS BLACK COUNTRY INTEGRATED CARE BOARD","RNA","THE DUDLEY GROUP NHS FOUNDATION TRUST","Acute and Acute & Community Trusts",360,5467,6.5370370370370372]
["Y60","MIDLANDS COMMISSIONING REGION","QUA","NHS BLACK COUNTRY INTEGRATED CARE BOARD","RL4","THE ROYAL WOLVERHAMPTON NHS TRUST","Acute and Acute & Community Trusts",204,10270,6.6013071895424842]
["Y60","MIDLANDS COMMISSIONING REGION","QUA","NHS BLACK COUNTRY INTEGRATED CARE BOARD","RBK","WALSALL HEALTHCARE NHS TRUST","Acute and Acute & Community Trusts",853,4595,6.3569753810082066]
["Y60","MIDLANDS COMMISSIONING REGION","QWU","NHS COVENTRY AND WARWICKSHIRE INTEGRATED CARE BOARD","RYG","COVENTRY AND WARWICKSHIRE PARTNERSHIP NHS TRUST","Mental Health & Learning Disability and Mental Health, Learning Disability & Community Trusts",176,3972,6.7566287878787881]
["Y60","MIDLANDS COMMISSIONING REGION","QWU","NHS COVENTRY AND WARWICKSHIRE INTEGRATED CARE BOARD","RLT","GEORGE ELIOT HOSPITAL NHS TRUST","Acute and Acute & Community Trusts",318,2659,6.2578616352201255]
["Y60","MIDLANDS COMMISSIONING REGION","QWU","NHS COVENTRY AND WARWICKSHIRE INTEGRATED CARE BOARD","RJC","SOUTH WARWICKSHIRE NHS FOUNDATION TRUST","Acute and Acute & Community Trusts",222,4891,6.7530030030030037]
["Y60","MIDLANDS COMMISSIONING REGION","QWU","NHS COVENTRY AND WARWICKSHIRE INTEGRATED CARE BOARD","RKB","UNIVERSITY HOSPITALS COVENTRY AND WARWICKSHIRE NHS TRUST","Acute and Acute & Community Trusts",77,9237,6.0930735930735933]
["Y61","EAST OF ENGLAND COMMISSIONING REGION","QH8","NHS MID AND SOUTH ESSEX INTEGRATED CARE BOARD","R1L","ESSEX PARTNERSHIP UNIVERSITY NHS FOUNDATION TRUST","Mental Health & Learning Disability and Mental Health, Learning Disability & Community Trusts",449,5894,6.5404602821083886]
["Y61","EAST OF ENGLAND COMMISSIONING REGION","QHG","NHS BEDFORDSHIRE, LUTON AND MILTON KEYNES INTEGRATED CARE BOARD","RD8","MILTON KEYNES UNIVERSITY HOSPITAL NHS FOUNDATION TRUST","Acute and Acute & Community Trusts",162,3805,6.32201646090535]
["Y61","EAST OF ENGLAND COMMISSIONING REGION","QJG","NHS SUFFOLK AND NORTH EAST ESSEX INTEGRATED CARE BOARD","RDE","EAST SUFFOLK AND NORTH ESSEX NHS FOUNDATION TRUST","Acute and Acute & Community Trusts",47,11162,5.8156028368794326]
["Y61","EAST OF ENGLAND COMMISSIONING REGION","QJG","NHS SUFFOLK AND NORTH EAST ESSEX INTEGRATED CARE BOARD","RGR","WEST SUFFOLK NHS FOUNDATION TRUST","Acute and Acute & Community Trusts",1330,4779,7.0294486215538843]
["Y61","EAST OF ENGLAND COMMISSIONING REGION","QM7","NHS HERTFORDSHIRE AND WEST ESSEX INTEGRATED CARE BOARD","RWH","EAST AND NORTH HERTFORDSHIRE NHS TRUST","Acute and Acute & Community Trusts",120,6324,6.3611111111111116]
["Y61","EAST OF ENGLAND COMMISSIONING REGION","QM7","NHS HERTFORDSHIRE AND WEST ESSEX INTEGRATED CARE BOARD","RY4","HERTFORDSHIRE COMMUNITY NHS TRUST","Community Trusts",117,2680,6.8874643874643882]
["Y61","EAST OF ENGLAND COMMISSIONING REGION","QM7","NHS HERTFORDSHIRE AND WEST ESSEX INTEGRATED CARE BOARD","RWR","HERTFORDSHIRE PARTNERSHIP UNIVERSITY NHS FOUNDATION TRUST","Mental Health & Learning Disability and Mental Health, Learning Disability & Community Trusts",648,3659,7.2543724279835384]
["Y61","EAST OF ENGLAND COMMISSIONING REGION","QM7","NHS HERTFORDSHIRE AND WEST ESSEX INTEGRATED CARE BOARD","RQW","THE PRINCESS ALEXANDRA HOSPITAL NHS TRUST","Acute and Acute & Community Trusts",267,3739,6.5699126092384521]
["Y61","EAST OF ENGLAND COMMISSIONING REGION","QM7","NHS HERTFORDSHIRE AND WEST ESSEX INTEGRATED CARE BOARD","RWG","WEST HERTFORDSHIRE TEACHING HOSPITALS NHS TRUST","Acute and Acute & Community Trusts",645,5221,6.3901808785529717]
["Y61","EAST OF ENGLAND COMMISSIONING REGION","QMM","NHS NORFOLK AND WAVENEY INTEGRATED CARE BOARD","RM1","NORFOLK AND NORWICH UNIVERSITY HOSPITALS NHS FOUNDATION TRUST","Acute and Acute & Community Trusts",186,8926,5.9632616487455206]
["Y61","EAST OF ENGLAND COMMISSIONING REGION","QMM","NHS NORFOLK AND WAVENEY INTEGRATED CARE BOARD","RMY","NORFOLK AND SUFFOLK NHS FOUNDATION TRUST","Mental Health & Learning Disability and Mental Health, Learning Disability & Community Trusts",1094,4681,6.8639549055453992]
["Y61","EAST OF ENGLAND COMMISSIONING REGION","QMM","NHS NORFOLK AND WAVENEY INTEGRATED CARE BOARD","RY3","NORFOLK COMMUNITY HEALTH AND CARE NHS TRUST","Community Trusts",276,2363,7.095410628019323]
["Y61","EAST OF ENGLAND COMMISSIONING REGION","QMM","NHS NORFOLK AND WAVENEY INTEGRATED CARE BOARD","RCX","THE QUEEN ELIZABETH HOSPITAL, KING'S LYNN, NHS FOUNDATION TRUST","Acute and Acute & Community Trusts",406,3741,6.4265188834154348]
["Y61","EAST OF ENGLAND COMMISSIONING REGION","QUE","NHS CAMBRIDGESHIRE AND PETERBOROUGH INTEGRATED CARE BOARD","RGT","CAMBRIDGE UNIVERSITY HOSPITALS NHS FOUNDATION TRUST","Acute and Acute & Community Trusts",3749,11468,6.8853916599982217]
["Y61","EAST OF ENGLAND COMMISSIONING REGION","QUE","NHS CAMBRIDGESHIRE AND PETERBOROUGH INTEGRATED CARE BOARD","RT1","CAMBRIDGESHIRE AND PETERBOROUGH NHS FOUNDATION TRUST","Mental Health & Learning Disability and Mental Health, Learning Disability & Community Trusts",2275,4368,7.3318681318681316]
["Y61","EAST OF ENGLAND COMMISSIONING REGION","QUE","NHS CAMBRIDGESHIRE AND PETERBOROUGH INTEGRATED CARE BOARD","RYV","CAMBRIDGESHIRE COMMUNITY SERVICES NHS TRUST","Community Trusts",89,2775,7.5]
["Y61","EAST OF ENGLAND COMMISSIONING REGION","QUE","NHS CAMBRIDGESHIRE AND PETERBOROUGH INTEGRATED CARE BOARD","RYC","EAST OF ENGLAND AMBULANCE SERVICE NHS TRUST","Ambulance Trusts",1120,5575,5.4709821428571432]
["Y61","EAST OF ENGLAND COMMISSIONING REGION","QUE","NHS CAMBRIDGESHIRE AND PETERBOROUGH INTEGRATED CARE BOARD","RGN","NORTH WEST ANGLIA NHS FOUNDATION TRUST","Acute and Acute & Community Trusts",359,6935,6.0492107706592382]
["Y62","NORTH WEST COMMISSIONING REGION","QE1","NHS LANCASHIRE AND SOUTH CUMBRIA INTEGRATED CARE BOARD","RXL","BLACKPOOL TEACHING HOSPITALS NHS FOUNDATION TRUST","Acute and Acute & Community Trusts",265,7856,6.9150943396226419]
["Y62","NORTH WEST COMMISSIONING REGION","QE1","NHS LANCASHIRE AND SOUTH CUMBRIA INTEGRATED CARE BOARD","RXR","EAST LANCASHIRE HOSPITALS NHS TRUST","Acute and Acute & Community Trusts",27,9614,6.5740740740740744]
["Y62","NORTH WEST COMMISSIONING REGION","QE1","NHS LANCASHIRE AND SOUTH CUMBRIA INTEGRATED CARE BOARD","RW5","LANCASHIRE & SOUTH CUMBRIA NHS FOUNDATION TRUST","Mental Health & Learning Disability and Mental Health, Learning Disability & Community Trusts",1070,7066,7.064641744548287]
["Y62","NORTH WEST COMMISSIONING REGION","QE1","NHS LANCASHIRE AND SOUTH CUMBRIA INTEGRATED CARE BOARD","RXN","LANCASHIRE TEACHING HOSPITALS NHS FOUNDATION TRUST","Acute and Acute & Community Trusts",1406,9294,6.9019677572309144]
["Y62","NORTH WEST COMMISSIONING REGION","QE1","NHS LANCASHIRE AND SOUTH CUMBRIA INTEGRATED CARE BOARD","RTX","UNIVERSITY HOSPITALS OF MORECAMBE BAY NHS FOUNDATION TRUST","Acute and Acute & Community Trusts",348,7106,6.5876436781609193]
["Y62","NORTH WEST COMMISSIONING REGION","QOP","NHS GREATER MANCHESTER INTEGRATED CARE BOARD","RMC","BOLTON NHS FOUNDATION TRUST","Acute and Acute & Community Trusts",1200,6357,7.3270833333333334]
["Y62","NORTH WEST COMMISSIONING REGION","QOP","NHS GREATER MANCHESTER INTEGRATED CARE BOARD","RXV","GREATER MANCHESTER MENTAL HEALTH NHS FOUNDATION TRUST","Mental Health & Learning Disability and Mental Health, Learning Disability & Community Trusts",1311,6258,6.8173150266971776]
["Y62","NORTH WEST COMMISSIONING REGION","QOP","NHS GREATER MANCHESTER INTEGRATED CARE BOARD","R0A","MANCHESTER UNIVERSITY NHS FOUNDATION TRUST","Acute and Acute & Community Trusts",3639,27674,6.6897957314280481]
["Y62","NORTH WEST COMMISSIONING REGION","QOP","NHS GREATER MANCHESTER INTEGRATED CARE BOARD","RX7","NORTH WEST AMBULANCE SERVICE NHS TRUST","Ambulance Trusts",855,6686,6.3908382066276808]
["Y62","NORTH WEST COMMISSIONING REGION","QOP","NHS GREATER MANCHESTER INTEGRATED CARE BOARD","RM3","NORTHERN CARE ALLIANCE NHS FOUNDATION TRUST","Acute and Acute & Community Trusts",2227,19067,6.1682382876814845]
["Y62","NORTH WEST COMMISSIONING REGION","QOP","NHS GREATER MANCHESTER INTEGRATED CARE BOARD","RT2","PENNINE CARE NHS FOUNDATION TRUST","Mental Health & Learning Disability and Mental Health, Learning Disability & Community Trusts",204,3614,6.4950980392156863]
["Y62","NORTH WEST COMMISSIONING REGION","QOP","NHS GREATER MANCHESTER INTEGRATED CARE BOARD","RMP","TAMESIDE AND GLOSSOP INTEGRATED CARE NHS FOUNDATION TRUST","Acute and Acute & Community Trusts",66,4061,6.5277777777777777]
["Y62","NORTH WEST COMMISSIONING REGION","QOP","NHS GREATER MANCHESTER INTEGRATED CARE BOARD","RBV","THE CHRISTIE NHS FOUNDATION TRUST","Acute Specialist Trusts",122,3271,6.0928961748633883]
["Y62","NORTH WEST COMMISSIONING REGION","QOP","NHS GREATER MANCHESTER INTEGRATED CARE BOARD","RRF","WRIGHTINGTON, WIGAN AND LEIGH NHS FOUNDATION TRUST","Acute and Acute & Community Trusts",91,6789,6.8315018315018312]
["Y62","NORTH WEST COMMISSIONING REGION","QYG","NHS CHESHIRE AND MERSEYSIDE INTEGRATED CARE BOARD","RBS","ALDER HEY CHILDREN'S NHS FOUNDATION TRUST","Acute and Acute & Community Trusts",340,4147,6.8431372549019605]
["Y62","NORTH WEST COMMISSIONING REGION","QYG","NHS CHESHIRE AND MERSEYSIDE INTEGRATED CARE BOARD","RY2","BRIDGEWATER COMMUNITY HEALTHCARE NHS FOUNDATION TRUST","Community Trusts",228,1484,6.7726608187134509]
["Y62","NORTH WEST COMMISSIONING REGION","QYG","NHS CHESHIRE AND MERSEYSIDE INTEGRATED CARE BOARD","RXA","CHESHIRE AND WIRRAL PARTNERSHIP NHS FOUNDATION TRUST","Mental Health & Learning Disability and Mental Health, Learning Disability & Community Trusts",680,4047,7.2512254901960782]
["Y62","NORTH WEST COMMISSIONING REGION","QYG","NHS CHESHIRE AND MERSEYSIDE INTEGRATED CARE BOARD","RJR","COUNTESS OF CHESTER HOSPITAL NHS FOUNDATION TRUST","Acute and Acute & Community Trusts",329,4488,5.9802431610942248]
["Y62","NORTH WEST COMMISSIONING REGION","QYG","NHS CHESHIRE AND MERSEYSIDE INTEGRATED CARE BOARD","RJN","EAST CHESHIRE NHS TRUST","Acute and Acute & Community Trusts",49,2549,6.6326530612244898]
["Y62","NORTH WEST COMMISSIONING REGION","QYG","NHS CHESHIRE AND MERSEYSIDE INTEGRATED CARE BOARD","RBQ","LIVERPOOL HEART AND CHEST HOSPITAL NHS FOUNDATION TRUST","Acute Specialist Trusts",48,1888,7.1006944444444438]
["Y62","NORTH WEST COMMISSIONING REGION","QYG","NHS CHESHIRE AND MERSEYSIDE INTEGRATED CARE BOARD","REM","LIVERPOOL UNIVERSITY HOSPITALS NHS FOUNDATION TRUST","Acute and Acute & Community Trusts",1684,13593,6.4954473475851149]
["Y62","NORTH WEST COMMISSIONING REGION","QYG","NHS CHESHIRE AND MERSEYSIDE INTEGRATED CARE BOARD","REP","LIVERPOOL WOMEN'S NHS FOUNDATION TRUST","Acute Specialist Trusts",207,1598,6.3607085346215788]
["Y62","NORTH WEST COMMISSIONING REGION","QYG","NHS CHESHIRE AND MERSEYSIDE INTEGRATED CARE BOARD","RW4","MERSEY CARE NHS FOUNDATION TRUST","Mental Health & Learning Disability and Mental Health, Learning Disability & Community Trusts",2716,10479,7.26926853215513]
["Y62","NORTH WEST COMMISSIONING REGION","QYG","NHS CHESHIRE AND MERSEYSIDE INTEGRATED CARE BOARD","RBT","MID CHESHIRE HOSPITALS NHS FOUNDATION TRUST","Acute and Acute & Community Trusts",337,5119,6.8694362017804158]
["Y62","NORTH WEST COMMISSIONING REGION","QYG","NHS CHESHIRE AND MERSEYSIDE INTEGRATED CARE BOARD","RVY","SOUTHPORT AND ORMSKIRK HOSPITAL NHS TRUST","Acute and Acute & Community Trusts",247,3339,7.0276653171390011]
["Y62","NORTH WEST COMMISSIONING REGION","QYG","NHS CHESHIRE AND MERSEYSIDE INTEGRATED CARE BOARD","RBN","ST HELENS AND KNOWSLEY TEACHING HOSPITALS NHS TRUST","Acute and Acute & Community Trusts",241,6818,6.3485477178423233]
["Y62","NORTH WEST COMMISSIONING REGION","QYG","NHS CHESHIRE AND MERSEYSIDE INTEGRATED CARE BOARD","REN","THE CLATTERBRIDGE CANCER CENTRE NHS FOUNDATION TRUST","Acute Specialist Trusts",393,1629,6.9486853265479223]
["Y62","NORTH WEST COMMISSIONING REGION","QYG","NHS CHESHIRE AND MERSEYSIDE INTEGRATED CARE BOARD","RET","THE WALTON CENTRE NHS FOUNDATION TRUST","Acute Specialist Trusts",84,1515,6.8452380952380949]
["Y62","NORTH WEST COMMISSIONING REGION","QYG","NHS CHESHIRE AND MERSEYSIDE INTEGRATED CARE BOARD","RWW","WARRINGTON AND HALTON TEACHING HOSPITALS NHS FOUNDATION TRUST","Acute and Acute & Community Trusts",65,4380,6.2564102564102564]
["Y62","NORTH WEST COMMISSIONING REGION","QYG","NHS CHESHIRE AND MERSEYSIDE INTEGRATED CARE BOARD","RY7","WIRRAL COMMUNITY HEALTH AND CARE NHS FOUNDATION TRUST","Community Trusts",199,1904,6.4112227805695134]
["Y62","NORTH WEST COMMISSIONING REGION","QYG","NHS CHESHIRE AND MERSEYSIDE INTEGRATED CARE BOARD","RBL","WIRRAL UNIVERSITY TEACHING HOSPITAL NHS FOUNDATION TRUST","Acute and Acute & Community Trusts",28,6619,5.8035714285714288]
["Y63","NORTH EAST AND YORKSHIRE COMMISSIONING REGION","QF7","NHS SOUTH YORKSHIRE INTEGRATED CARE BOARD","RFF","BARNSLEY HOSPITAL NHS FOUNDATION TRUST","Acute and Acute & Community Trusts",341,4083,6.6520039100684265]
["Y63","NORTH EAST AND YORKSHIRE COMMISSIONING REGION","QF7","NHS SOUTH YORKSHIRE INTEGRATED CARE BOARD","RP5","DONCASTER AND BASSETLAW TEACHING HOSPITALS NHS FOUNDATION TRUST","Acute and Acute & Community Trusts",495,6583,6.1885521885521886]
["Y63","NORTH EAST AND YORKSHIRE COMMISSIONING REGION","QF7","NHS SOUTH YORKSHIRE INTEGRATED CARE BOARD","RXE","ROTHERHAM DONCASTER AND SOUTH HUMBER NHS FOUNDATION TRUST","Mental Health & Learning Disability and Mental Health, Learning Disability & Community Trusts",127,3572,6.9422572178477688]
["Y63","NORTH EAST AND YORKSHIRE COMMISSIONING REGION","QF7","NHS SOUTH YORKSHIRE INTEGRATED CARE BOARD","RCU","SHEFFIELD CHILDREN'S NHS FOUNDATION TRUST","Acute and Acute & Community Trusts",119,3724,6.7366946778711485]
["Y63","NORTH EAST AND YORKSHIRE COMMISSIONING REGION","QF7","NHS SOUTH YORKSHIRE INTEGRATED CARE BOARD","TAH","SHEFFIELD HEALTH & SOCIAL CARE NHS FOUNDATION TRUST","Mental Health & Learning Disability and Mental Health, Learning Disability & Community Trusts",190,2529,6.6140350877192988]
["Y63","NORTH EAST AND YORKSHIRE COMMISSIONING REGION","QF7","NHS SOUTH YORKSHIRE INTEGRATED CARE BOARD","RHQ","SHEFFIELD TEACHING HOSPITALS NHS FOUNDATION TRUST","Acute and Acute & Community Trusts",809,17279,6.2793572311495671]
["Y63","NORTH EAST AND YORKSHIRE COMMISSIONING REGION","QF7","NHS SOUTH YORKSHIRE INTEGRATED CARE BOARD","RFR","THE ROTHERHAM NHS FOUNDATION TRUST","Acute and Acute & Community Trusts",613,4700,6.411092985318108]
["Y63","NORTH EAST AND YORKSHIRE COMMISSIONING REGION","QHM","NHS NORTH EAST AND NORTH CUMBRIA INTEGRATED CARE BOARD","RXP","COUNTY DURHAM AND DARLINGTON NHS FOUNDATION TRUST","Acute and Acute & Community Trusts",1080,7667,6.4961419753086416]
["Y63","NORTH EAST AND YORKSHIRE COMMISSIONING REGION","QHM","NHS NORTH EAST AND NORTH CUMBRIA INTEGRATED CARE BOARD","RX4","CUMBRIA, NORTHUMBERLAND, TYNE AND WEAR NHS FOUNDATION TRUST","Mental Health & Learning Disability and Mental Health, Learning Disability & Community Trusts",341,7475,6.8523949169110452]
["Y63","NORTH EAST AND YORKSHIRE COMMISSIONING REGION","QHM","NHS NORTH EAST AND NORTH CUMBRIA INTEGRATED CARE BOARD","RR7","GATESHEAD HEALTH NHS FOUNDATION TRUST","Acute and Acute & Community Trusts",85,4937,6.1372549019607838]
["Y63","NORTH EAST AND YORKSHIRE COMMISSIONING REGION","QHM","NHS NORTH EAST AND NORTH CUMBRIA INTEGRATED CARE BOARD","RNN","NORTH CUMBRIA INTEGRATED CARE NHS FOUNDATION TRUST","Acute and Acute & Community Trusts",16,6701,5.989583333333333]
["Y63","NORTH EAST AND YORKSHIRE COMMISSIONING REGION","QHM","NHS NORTH EAST AND NORTH CUMBRIA INTEGRATED CARE BOARD","RX6","NORTH EAST AMBULANCE SERVICE NHS FOUNDATION TRUST","Ambulance Trusts",225,2941,5.4851851851851858]
["Y63","NORTH EAST AND YORKSHIRE COMMISSIONING REGION","QHM","NHS NORTH EAST AND NORTH CUMBRIA INTEGRATED CARE BOARD","RVW","NORTH TEES AND HARTLEPOOL NHS FOUNDATION TRUST","Acute and Acute & Community Trusts",193,5503,6.3298791018998273]
["Y63","NORTH EAST AND YORKSHIRE COMMISSIONING REGION","QHM","NHS NORTH EAST AND NORTH CUMBRIA INTEGRATED CARE BOARD","RTF","NORTHUMBRIA HEALTHCARE NHS FOUNDATION TRUST","Acute and Acute & Community Trusts",3844,8414,6.9144554283732225]
["Y63","NORTH EAST AND YORKSHIRE COMMISSIONING REGION","QHM","NHS NORTH EAST AND NORTH CUMBRIA INTEGRATED CARE BOARD","RTR","SOUTH TEES HOSPITALS NHS FOUNDATION TRUST","Acute and Acute & Community Trusts",10,9570,6.833333333333333]
["Y63","NORTH EAST AND YORKSHIRE COMMISSIONING REGION","QHM","NHS NORTH EAST AND NORTH CUMBRIA INTEGRATED CARE BOARD","R0B","SOUTH TYNESIDE AND SUNDERLAND NHS FOUNDATION TRUST","Acute and Acute & Community Trusts",430,8896,6.4709302325581399]
["Y63","NORTH EAST AND YORKSHIRE COMMISSIONING REGION","QHM","NHS NORTH EAST AND NORTH CUMBRIA INTEGRATED CARE BOARD","RX3","TEES, ESK AND WEAR VALLEYS NHS FOUNDATION TRUST","Mental Health & Learning Disability and Mental Health, Learning Disability & Community Trusts",2080,7604,6.9463141025641031]
["Y63","NORTH EAST AND YORKSHIRE COMMISSIONING REGION","QHM","NHS NORTH EAST AND NORTH CUMBRIA INTEGRATED CARE BOARD","RTD","THE NEWCASTLE UPON TYNE HOSPITALS NHS FOUNDATION TRUST","Acute and Acute & Community Trusts",535,16274,6.2445482866043616]
["Y63","NORTH EAST AND YORKSHIRE COMMISSIONING REGION","QOQ","NHS HUMBER AND NORTH YORKSHIRE INTEGRATED CARE BOARD","RCD","HARROGATE AND DISTRICT NHS FOUNDATION TRUST","Acute and Acute & Community Trusts",1226,4729,7.2267536704730828]
["Y63","NORTH EAST AND YORKSHIRE COMMISSIONING REGION","QOQ","NHS HUMBER AND NORTH YORKSHIRE INTEGRATED CARE BOARD","RWA","HULL UNIVERSITY TEACHING HOSPITALS NHS TRUST","Acute and Acute & Community Trusts",1494,8825,6.6527219991075413]
["Y63","NORTH EAST AND YORKSHIRE COMMISSIONING REGION","QOQ","NHS HUMBER AND NORTH YORKSHIRE INTEGRATED CARE BOARD","RV9","HUMBER TEACHING NHS FOUNDATION TRUST","Mental Health & Learning Disability and Mental Health, Learning Disability & Community Trusts",591,3062,7.1728708403835313]
["Y63","NORTH EAST AND YORKSHIRE COMMISSIONING REGION","QOQ","NHS HUMBER AND NORTH YORKSHIRE INTEGRATED CARE BOARD","RJL","NORTHERN LINCOLNSHIRE AND GOOLE NHS FOUNDATION TRUST","Acute and Acute & Community Trusts",318,6514,6.0980083857442349]
["Y63","NORTH EAST AND YORKSHIRE COMMISSIONING REGION","QOQ","NHS HUMBER AND NORTH YORKSHIRE INTEGRATED CARE BOARD","RCB","YORK AND SCARBOROUGH TEACHING HOSPITALS NHS FOUNDATION TRUST","Acute and Acute & Community Trusts",155,9445,5.7526881720430101]
["Y63","NORTH EAST AND YORKSHIRE COMMISSIONING REGION","QWO","NHS WEST YORKSHIRE INTEGRATED CARE BOARD","RCF","AIREDALE NHS FOUNDATION TRUST","Acute and Acute & Community Trusts",163,3486,6.7382413087934552]
["Y63","NORTH EAST AND YORKSHIRE COMMISSIONING REGION","QWO","NHS WEST YORKSHIRE INTEGRATED CARE BOARD","TAD","BRADFORD DISTRICT CARE NHS FOUNDATION TRUST","Mental Health & Learning Disability and Mental Health, Learning Disability & Community Trusts",401,3247,6.8848711554447215]
["Y63","NORTH EAST AND YORKSHIRE COMMISSIONING REGION","QWO","NHS WEST YORKSHIRE INTEGRATED CARE BOARD","RAE","BRADFORD TEACHING HOSPITALS NHS FOUNDATION TRUST","Acute and Acute & Community Trusts",164,6226,6.7022357723577244]
["Y63","NORTH EAST AND YORKSHIRE COMMISSIONING REGION","QWO","NHS WEST YORKSHIRE INTEGRATED CARE BOARD","RWY","CALDERDALE AND HUDDERSFIELD NHS FOUNDATION TRUST","Acute and Acute & Community Trusts",236,6344,6.2605932203389827]
["Y63","NORTH EAST AND YORKSHIRE COMMISSIONING REGION","QWO","NHS WEST YORKSHIRE INTEGRATED CARE BOARD","RGD","LEEDS AND YORK PARTNERSHIP NHS FOUNDATION TRUST","Mental Health & Learning Disability and Mental Health, Learning Disability & Community Trusts",132,3088,6.8055555555555562]
["Y63","NORTH EAST AND YORKSHIRE COMMISSIONING REGION","QWO","NHS WEST YORKSHIRE INTEGRATED CARE BOARD","RY6","LEEDS COMMUNITY HEALTHCARE NHS TRUST","Community Trusts",935,3146,6.8039215686274517]
["Y63","NORTH EAST AND YORKSHIRE COMMISSIONING REGION","QWO","NHS WEST YORKSHIRE INTEGRATED CARE BOARD","RXF","MID YORKSHIRE HOSPITALS NHS TRUST","Acute and Acute & Community Trusts",1857,8839,6.9134805241428827]
["Y63","NORTH EAST AND YORKSHIRE COMMISSIONING REGION","QWO","NHS WEST YORKSHIRE INTEGRATED CARE BOARD","RXG","SOUTH WEST YORKSHIRE PARTNERSHIP NHS FOUNDATION TRUST","Mental Health & Learning Disability and Mental Health, Learning Disability & Community Trusts",169,4520,7.4457593688362911]
["Y63","NORTH EAST AND YORKSHIRE COMMISSIONING REGION","QWO","NHS WEST YORKSHIRE INTEGRATED CARE BOARD","RX8","YORKSHIRE AMBULANCE SERVICE NHS TRUST","Ambulance Trusts",395,5792,5.9282700421940921]

{"sheet":"BS","index":7,"n_rows":188,"n_cols":41,"rows_kept":188,"cut":false,"hidden":true,"merged":[]}
[null,"Sort","Region (Geography) code","Region (Geography) name","Org code","Org name","STP Code","STP Name","Org Type",null,"Sort Lists:","Sort range…","Sort range…","Region (Geography) Reference Lists:","Code…","Name…","Region (Geography) Linked Lists:","Code…","Name…","STP Reference List:","Code…","Code…","Name…","STP Linked List:","Code…","Name…","Orgs Reference List:","Code…","Code…","Code…","Name…","Type…","Orgs Linked List:","Code…","Name…","Type…","Org Type Reference List:","Type…",null,"Org Type Linked List:","Type…"]
["Engagement Score Breakdown",1,1,1,1,1,1,1,1,null,null,"Region Code","Region Code",null,"Y56","LONDON COMMISSIONING REGION",null,"Y56","LONDON COMMISSIONING REGION",null,"Y60","QNC","NHS STAFFORDSHIRE AND STOKE-ON-TRENT INTEGRATED CARE BOARD",null,"QE1","NHS LANCASHIRE AND SOUTH CUMBRIA INTEGRATED CARE BOARD",null,"Y56","QMF","R1H","BARTS HEALTH NHS TRUST","Acute and Acute & Community Trusts",null,"R0A","AIREDALE NHS FOUNDATION TRUST","Acute and Acute & Community Trusts",null,"Acute",null,null,"Acute and Acute & Community Trusts"]
["All Engagement Scores",1,1,1,1,1,1,1,1,null,null,"Region Name","Region Name",null,"Y58","SOUTH WEST COMMISSIONING REGION",null,"Y58","SOUTH WEST COMMISSIONING REGION",null,"Y58","QT6","NHS CORNWALL AND THE ISLES OF SCILLY INTEGRATED CARE BOARD",null,"QF7","NHS SOUTH YORKSHIRE INTEGRATED CARE BOARD",null,"Y56","QMJ","RAL","ROYAL FREE LONDON NHS FOUNDATION TRUST","Acute and Acute & Community Trusts",null,"R0B","ALDER HEY CHILDREN'S NHS FOUNDATION TRUST","Acute and Acute & Community Trusts",null,"Mental Health",null,null,"Acute Specialist Trusts"]
["Engagement Score",1,1,1,1,1,1,1,1,null,null,"STP Code","STP Code",null,"Y59","SOUTH EAST COMMISSIONING REGION",null,"Y59","SOUTH EAST COMMISSIONING REGION",null,"Y61","QHG","NHS BEDFORDSHIRE, LUTON AND MILTON KEYNES INTEGRATED CARE BOARD",null,"QGH","NHS HEREFORDSHIRE AND WORCESTERSHIRE INTEGRATED CARE BOARD",null,"Y56","QRV","RAN","ROYAL NATIONAL ORTHOPAEDIC HOSPITAL NHS TRUST","Acute Specialist Trusts",null,"R0D","AVON AND WILTSHIRE MENTAL HEALTH PARTNERSHIP NHS TRUST","Acute and Acute & Community Trusts",null,"Ambulance",null,null,"Mental Health & Learning Disability and Mental Health, Learning Disability & Community Trusts"]
["Advocacy",1,1,1,1,1,1,1,1,null,null,"STP Name","STP Name",null,"Y60","MIDLANDS COMMISSIONING REGION",null,"Y60","MIDLANDS COMMISSIONING REGION",null,"Y61","QH8","NHS MID AND SOUTH ESSEX INTEGRATED CARE BOARD",null,"QH8","NHS MID AND SOUTH ESSEX INTEGRATED CARE BOARD",null,"Y56","QMJ","RAP","NORTH MIDDLESEX UNIVERSITY HOSPITAL NHS TRUST","Acute and Acute & Community Trusts",null,"R1A","BARNET, ENFIELD AND HARINGEY MENTAL HEALTH NHS TRUST","Acute and Acute & Community Trusts",null,"Community",null,null,"Community Trusts"]
["Involvement",1,1,1,1,1,1,1,1,null,null,"Org Code","Org Code",null,"Y61","EAST OF ENGLAND COMMISSIONING REGION",null,"Y61","EAST OF ENGLAND COMMISSIONING REGION",null,"Y58","QUY","NHS BRISTOL, NORTH SOMERSET AND SOUTH GLOUCESTERSHIRE INTEGRATED CARE BOARD",null,"QHG","NHS BEDFORDSHIRE, LUTON AND MILTON KEYNES INTEGRATED CARE BOARD",null,"Y56","QRV","RAS","THE HILLINGDON HOSPITALS NHS FOUNDATION TRUST","Acute and Acute & Community Trusts",null,"R1C","BARNSLEY HOSPITAL NHS FOUNDATION TRUST","Acute and Acute & Community Trusts",null,null,null,null,"Ambulance Trusts"]
["Motivation",1,1,1,1,1,1,1,1,null,null,"Org Name","Org Name",null,"Y62","NORTH WEST COMMISSIONING REGION",null,"Y62","NORTH WEST COMMISSIONING REGION",null,"Y58","QR1","NHS GLOUCESTERSHIRE INTEGRATED CARE BOARD",null,"QHL","NHS BIRMINGHAM AND SOLIHULL INTEGRATED CARE BOARD",null,"Y56","QMF","RAT","NORTH EAST LONDON NHS FOUNDATION TRUST","Mental Health & Learning Disability and Mental Health, Learning Disability & Community Trusts",null,"R1D","BARTS HEALTH NHS TRUST","Acute and Acute & Community Trusts"]
[null,null,null,null,null,null,null,null,null,null,null,"Org Type","Org Type",null,"Y63","NORTH EAST AND YORKSHIRE COMMISSIONING REGION",null,"Y63","NORTH EAST AND YORKSHIRE COMMISSIONING REGION",null,"Y60","QOC","NHS SHROPSHIRE, TELFORD AND WREKIN INTEGRATED CARE BOARD",null,"QHM","NHS NORTH EAST AND NORTH CUMBRIA INTEGRATED CARE BOARD",null,"Y56","QKK","RJ1","GUY'S AND ST THOMAS' NHS FOUNDATION TRUST","Acute and Acute & Community Trusts",null,"R1F","BERKSHIRE HEALTHCARE NHS FOUNDATION TRUST","Acute and Acute & Community Trusts"]
[null,null,null,null,null,null,null,null,null,null,null,"Total Responses","Total Responses",null,null,null,null,null,null,null,"Y58","QSL","NHS SOMERSET INTEGRATED CARE BOARD",null,"QJ2","NHS DERBY AND DERBYSHIRE INTEGRATED CARE BOARD",null,"Y56","QKK","RJ2","LEWISHAM AND GREENWICH NHS TRUST","Acute and Acute & Community Trusts",null,"R1H","BIRMINGHAM AND SOLIHULL MENTAL HEALTH NHS FOUNDATION TRUST","Acute and Acute & Community Trusts"]
[null,null,null,null,null,null,null,null,null,null,null,"HSCIC Workforce Headcount","HSCIC Workforce Headcount",null,null,null,null,null,null,null,"Y60","QGH","NHS HEREFORDSHIRE AND WORCESTERSHIRE INTEGRATED CARE BOARD",null,"QJG","NHS SUFFOLK AND NORTH EAST ESSEX INTEGRATED CARE BOARD",null,"Y56","QWE","RJ7","ST GEORGE'S UNIVERSITY HOSPITALS NHS FOUNDATION TRUST","Acute and Acute & Community Trusts",null,"R1L","BIRMINGHAM COMMUNITY HEALTHCARE NHS FOUNDATION TRUST","Acute and Acute & Community Trusts"]
[null,null,null,null,null,null,null,null,null,null,null,"Score","Score",null,null,null,null,null,null,null,"Y59","QXU","NHS SURREY HEARTLANDS INTEGRATED CARE BOARD",null,"QJK","NHS DEVON INTEGRATED CARE BOARD",null,"Y56","QKK","RJZ","KING'S COLLEGE HOSPITAL NHS FOUNDATION TRUST","Acute and Acute & Community Trusts",null,"RA4","BLACK COUNTRY HEALTHCARE NHS FOUNDATION TRUST","Acute and Acute & Community Trusts"]
[null,null,null,null,null,null,null,null,null,null,null,null,null,null,null,null,null,null,null,null,"Y60","QWU","NHS COVENTRY AND WARWICKSHIRE INTEGRATED CARE BOARD",null,"QJM","NHS LINCOLNSHIRE INTEGRATED CARE BOARD",null,"Y56","QMJ","RKE","WHITTINGTON HEALTH NHS TRUST","Acute and Acute & Community Trusts",null,"RA7","BLACKPOOL TEACHING HOSPITALS NHS FOUNDATION TRUST","Acute and Acute & Community Trusts"]
[null,null,null,null,null,null,null,null,null,null,null,null,null,null,null,null,null,null,null,null,"Y60","QK1","NHS LEICESTER, LEICESTERSHIRE AND RUTLAND INTEGRATED CARE BOARD",null,"QK1","NHS LEICESTER, LEICESTERSHIRE AND RUTLAND INTEGRATED CARE BOARD",null,"Y56","QMJ","RNK","TAVISTOCK AND PORTMAN NHS FOUNDATION TRUST","Mental Health & Learning Disability and Mental Health, Learning Disability & Community Trusts",null,"RA9","BOLTON NHS FOUNDATION TRUST","Acute and Acute & Community Trusts"]
[null,null,null,null,null,null,null,null,null,null,null,null,null,null,null,null,null,null,null,null,"Y63","QOQ","NHS HUMBER AND NORTH YORKSHIRE INTEGRATED CARE BOARD",null,"QKK","NHS SOUTH EAST LONDON INTEGRATED CARE BOARD",null,"Y56","QMJ","RP4","GREAT ORMOND STREET HOSPITAL FOR CHILDREN NHS FOUNDATION TRUST","Acute Specialist Trusts",null,"RAE","BRADFORD DISTRICT CARE NHS FOUNDATION TRUST","Acute and Acute & Community Trusts"]
[null,null,null,null,null,null,null,null,null,null,null,null,null,null,null,null,null,null,null,null,"Y60","QHL","NHS BIRMINGHAM AND SOLIHULL INTEGRATED CARE BOARD",null,"QKS","NHS KENT AND MEDWAY INTEGRATED CARE BOARD",null,"Y56","QMJ","RP6","MOORFIELDS EYE HOSPITAL NHS FOUNDATION TRUST","Acute Specialist Trusts",null,"RAL","BRADFORD TEACHING HOSPITALS NHS FOUNDATION TRUST","Acute and Acute & Community Trusts"]
[null,null,null,null,null,null,null,null,null,null,null,null,null,null,null,null,null,null,null,null,"Y60","QPM","NHS NORTHAMPTONSHIRE INTEGRATED CARE BOARD",null,"QM7","NHS HERTFORDSHIRE AND WEST ESSEX INTEGRATED CARE BOARD",null,"Y56","QRV","RPY","THE ROYAL MARSDEN NHS FOUNDATION TRUST","Acute Specialist Trusts",null,"RAN","BRIDGEWATER COMMUNITY HEALTHCARE NHS FOUNDATION TRUST","Acute and Acute & Community Trusts"]
[null,null,null,null,null,null,null,null,null,null,null,null,null,null,null,null,null,null,null,null,"Y56","QWE","NHS SOUTH WEST LONDON INTEGRATED CARE BOARD",null,"QMF","NHS NORTH EAST LONDON INTEGRATED CARE BOARD",null,"Y56","QMF","RQX","HOMERTON HEALTHCARE NHS FOUNDATION TRUST","Acute and Acute & Community Trusts",null,"RAP","BUCKINGHAMSHIRE HEALTHCARE NHS TRUST","Acute and Acute & Community Trusts"]
[null,null,null,null,null,null,null,null,null,null,null,null,null,null,null,null,null,null,null,null,"Y62","QE1","NHS LANCASHIRE AND SOUTH CUMBRIA INTEGRATED CARE BOARD",null,"QMJ","NHS NORTH CENTRAL LONDON INTEGRATED CARE BOARD",null,"Y56","QWE","RQY","SOUTH WEST LONDON AND ST GEORGE'S MENTAL HEALTH NHS TRUST","Mental Health & Learning Disability and Mental Health, Learning Disability & Community Trusts",null,"RAS","CALDERDALE AND HUDDERSFIELD NHS FOUNDATION TRUST","Acute and Acute & Community Trusts"]
[null,null,null,null,null,null,null,null,null,null,null,null,null,null,null,null,null,null,null,null,"Y61","QJG","NHS SUFFOLK AND NORTH EAST ESSEX INTEGRATED CARE BOARD",null,"QMM","NHS NORFOLK AND WAVENEY INTEGRATED CARE BOARD",null,"Y56","QMJ","RRP","BARNET, ENFIELD AND HARINGEY MENTAL HEALTH NHS TRUST","Mental Health & Learning Disability and Mental Health, Learning Disability & Community Trusts",null,"RAT","CAMBRIDGE UNIVERSITY HOSPITALS NHS FOUNDATION TRUST","Acute and Acute & Community Trusts"]
[null,null,null,null,null,null,null,null,null,null,null,null,null,null,null,null,null,null,null,null,"Y56","QMF","NHS NORTH EAST LONDON INTEGRATED CARE BOARD",null,"QNC","NHS STAFFORDSHIRE AND STOKE-ON-TRENT INTEGRATED CARE BOARD",null,"Y56","QMJ","RRV","UNIVERSITY COLLEGE LONDON HOSPITALS NHS FOUNDATION TRUST","Acute and Acute & Community Trusts",null,"RBD","CAMBRIDGESHIRE AND PETERBOROUGH NHS FOUNDATION TRUST","Acute and Acute & Community Trusts"]
[null,null,null,null,null,null,null,null,null,null,null,null,null,null,null,null,null,null,null,null,"Y58","QVV","NHS DORSET INTEGRATED CARE BOARD",null,"QNQ","NHS FRIMLEY INTEGRATED CARE BOARD",null,"Y56","QKK","RV5","SOUTH LONDON AND MAUDSLEY NHS FOUNDATION TRUST","Mental Health & Learning Disability and Mental Health, Learning Disability & Community Trusts",null,"RBK","CAMBRIDGESHIRE COMMUNITY SERVICES NHS TRUST","Acute and Acute & Community Trusts"]
[null,null,null,null,null,null,null,null,null,null,null,null,null,null,null,null,null,null,null,null,"Y56","QMJ","NHS NORTH CENTRAL LONDON INTEGRATED CARE BOARD",null,"QNX","NHS SUSSEX INTEGRATED CARE BOARD",null,"Y56","QWE","RVR","EPSOM AND ST HELIER UNIVERSITY HOSPITALS NHS TRUST","Acute and Acute & Community Trusts",null,"RBL","CAMDEN AND ISLINGTON NHS FOUNDATION TRUST","Acute and Acute & Community Trusts"]
[null,null,null,null,null,null,null,null,null,null,null,null,null,null,null,null,null,null,null,null,"Y59","QNX","NHS SUSSEX INTEGRATED CARE BOARD",null,"QOC","NHS SHROPSHIRE, TELFORD AND WREKIN INTEGRATED CARE BOARD",null,"Y56","QMF","RWK","EAST LONDON NHS FOUNDATION TRUST","Mental Health & Learning Disability and Mental Health, Learning Disability & Community Trusts",null,"RBN","CENTRAL LONDON COMMUNITY HEALTHCARE NHS TRUST","Acute and Acute & Community Trusts"]
[null,null,null,null,null,null,null,null,null,null,null,null,null,null,null,null,null,null,null,null,"Y58","QOX","NHS BATH AND NORTH EAST SOMERSET, SWINDON AND WILTSHIRE INTEGRATED CARE BOARD",null,"QOP","NHS GREATER MANCHESTER INTEGRATED CARE BOARD",null,"Y56","QWE","RY9","HOUNSLOW AND RICHMOND COMMUNITY HEALTHCARE NHS TRUST","Community Trusts",null,"RBQ","CHESHIRE AND WIRRAL PARTNERSHIP NHS FOUNDATION TRUST","Acute and Acute & Community Trusts"]
[null,null,null,null,null,null,null,null,null,null,null,null,null,null,null,null,null,null,null,null,"Y61","QM7","NHS HERTFORDSHIRE AND WEST ESSEX INTEGRATED CARE BOARD",null,"QOQ","NHS HUMBER AND NORTH YORKSHIRE INTEGRATED CARE BOARD",null,"Y56","QRV","RYJ","IMPERIAL COLLEGE HEALTHCARE NHS TRUST","Acute and Acute & Community Trusts",null,"RBS","CHESTERFIELD ROYAL HOSPITAL NHS FOUNDATION TRUST","Acute and Acute & Community Trusts"]
[null,null,null,null,null,null,null,null,null,null,null,null,null,null,null,null,null,null,null,null,"Y63","QWO","NHS WEST YORKSHIRE INTEGRATED CARE BOARD",null,"QOX","NHS BATH AND NORTH EAST SOMERSET, SWINDON AND WILTSHIRE INTEGRATED CARE BOARD",null,"Y56","QRV","RYX","CENTRAL LONDON COMMUNITY HEALTHCARE NHS TRUST","Community Trusts",null,"RBT","CORNWALL PARTNERSHIP NHS FOUNDATION TRUST","Acute and Acute & Community Trusts"]
[null,null,null,null,null,null,null,null,null,null,null,null,null,null,null,null,null,null,null,null,"Y59","QNQ","NHS FRIMLEY INTEGRATED CARE BOARD",null,"QPM","NHS NORTHAMPTONSHIRE INTEGRATED CARE BOARD",null,"Y56","QMJ","TAF","CAMDEN AND ISLINGTON NHS FOUNDATION TRUST","Mental Health & Learning Disability and Mental Health, Learning Disability & Community Trusts",null,"RBV","COUNTESS OF CHESTER HOSPITAL NHS FOUNDATION TRUST","Acute and Acute & Community Trusts"]
[null,null,null,null,null,null,null,null,null,null,null,null,null,null,null,null,null,null,null,null,"Y61","QMM","NHS NORFOLK AND WAVENEY INTEGRATED CARE BOARD",null,"QR1","NHS GLOUCESTERSHIRE INTEGRATED CARE BOARD",null,"Y58","QVV","R0D","UNIVERSITY HOSPITALS DORSET NHS FOUNDATION TRUST","Acute and Acute & Community Trusts",null,"RBZ","COUNTY DURHAM AND DARLINGTON NHS FOUNDATION TRUST","Acute and Acute & Community Trusts"]
[null,null,null,null,null,null,null,null,null,null,null,null,null,null,null,null,null,null,null,null,"Y63","QF7","NHS SOUTH YORKSHIRE INTEGRATED CARE BOARD",null,"QRL","NHS HAMPSHIRE AND ISLE OF WIGHT INTEGRATED CARE BOARD",null,"Y58","QSL","RA4","YEOVIL DISTRICT HOSPITAL NHS FOUNDATION TRUST","Acute and Acute & Community Trusts",null,"RCB","COVENTRY AND WARWICKSHIRE PARTNERSHIP NHS TRUST","Acute and Acute & Community Trusts"]
[null,null,null,null,null,null,null,null,null,null,null,null,null,null,null,null,null,null,null,null,"Y59","QU9","NHS BUCKINGHAMSHIRE, OXFORDSHIRE AND BERKSHIRE WEST INTEGRATED CARE BOARD",null,"QRV","NHS NORTH WEST LONDON INTEGRATED CARE BOARD",null,"Y58","QUY","RA7","UNIVERSITY HOSPITALS BRISTOL AND WESTON NHS FOUNDATION TRUST","Acute and Acute & Community Trusts",null,"RCD","CUMBRIA, NORTHUMBERLAND, TYNE AND WEAR NHS FOUNDATION TRUST","Acute and Acute & Community Trusts"]
[null,null,null,null,null,null,null,null,null,null,null,null,null,null,null,null,null,null,null,null,"Y56","QRV","NHS NORTH WEST LONDON INTEGRATED CARE BOARD",null,"QSL","NHS SOMERSET INTEGRATED CARE BOARD",null,"Y58","QJK","RA9","TORBAY AND SOUTH DEVON NHS FOUNDATION TRUST","Acute and Acute & Community Trusts",null,"RCF","DARTFORD AND GRAVESHAM NHS TRUST","Acute and Acute & Community Trusts"]
[null,null,null,null,null,null,null,null,null,null,null,null,null,null,null,null,null,null,null,null,"Y60","QT1","NHS NOTTINGHAM AND NOTTINGHAMSHIRE INTEGRATED CARE BOARD",null,"QT1","NHS NOTTINGHAM AND NOTTINGHAMSHIRE INTEGRATED CARE BOARD",null,"Y58","QVV","RBD","DORSET COUNTY HOSPITAL NHS FOUNDATION TRUST","Acute and Acute & Community Trusts",null,"RCU","DERBYSHIRE COMMUNITY HEALTH SERVICES NHS FOUNDATION TRUST","Acute and Acute & Community Trusts"]
[null,null,null,null,null,null,null,null,null,null,null,null,null,null,null,null,null,null,null,null,"Y59","QKS","NHS KENT AND MEDWAY INTEGRATED CARE BOARD",null,"QT6","NHS CORNWALL AND THE ISLES OF SCILLY INTEGRATED CARE BOARD",null,"Y58","QJK","RBZ","NORTHERN DEVON HEALTHCARE NHS TRUST","Acute and Acute & Community Trusts",null,"RCX","DERBYSHIRE HEALTHCARE NHS FOUNDATION TRUST","Acute and Acute & Community Trusts"]
[null,null,null,null,null,null,null,null,null,null,null,null,null,null,null,null,null,null,null,null,"Y58","QJK","NHS DEVON INTEGRATED CARE BOARD",null,"QU9","NHS BUCKINGHAMSHIRE, OXFORDSHIRE AND BERKSHIRE WEST INTEGRATED CARE BOARD",null,"Y58","QVV","RDY","DORSET HEALTHCARE UNIVERSITY NHS FOUNDATION TRUST","Mental Health & Learning Disability and Mental Health, Learning Disability & Community Trusts",null,"RD8","DEVON PARTNERSHIP NHS TRUST","Acute and Acute & Community Trusts"]
[null,null,null,null,null,null,null,null,null,null,null,null,null,null,null,null,null,null,null,null,"Y60","QJ2","NHS DERBY AND DERBYSHIRE INTEGRATED CARE BOARD",null,"QUA","NHS BLACK COUNTRY INTEGRATED CARE BOARD",null,"Y58","QT6","REF","ROYAL CORNWALL HOSPITALS NHS TRUST","Acute and Acute & Community Trusts",null,"RDE","DONCASTER AND BASSETLAW TEACHING HOSPITALS NHS FOUNDATION TRUST","Acute and Acute & Community Trusts"]
[null,null,null,null,null,null,null,null,null,null,null,null,null,null,null,null,null,null,null,null,"Y60","QJM","NHS LINCOLNSHIRE INTEGRATED CARE BOARD",null,"QUE","NHS CAMBRIDGESHIRE AND PETERBOROUGH INTEGRATED CARE BOARD",null,"Y58","QSL","RH5","SOMERSET NHS FOUNDATION TRUST","Acute and Acute & Community Trusts",null,"RDR","DORSET COUNTY HOSPITAL NHS FOUNDATION TRUST","Acute and Acute & Community Trusts"]
[null,null,null,null,null,null,null,null,null,null,null,null,null,null,null,null,null,null,null,null,"Y60","QUA","NHS BLACK COUNTRY INTEGRATED CARE BOARD",null,"QUY","NHS BRISTOL, NORTH SOMERSET AND SOUTH GLOUCESTERSHIRE INTEGRATED CARE BOARD",null,"Y58","QT6","RJ8","CORNWALL PARTNERSHIP NHS FOUNDATION TRUST","Mental Health & Learning Disability and Mental Health, Learning Disability & Community Trusts",null,"RDU","DORSET HEALTHCARE UNIVERSITY NHS FOUNDATION TRUST","Acute and Acute & Community Trusts"]
[null,null,null,null,null,null,null,null,null,null,null,null,null,null,null,null,null,null,null,null,"Y56","QKK","NHS SOUTH EAST LONDON INTEGRATED CARE BOARD",null,"QVV","NHS DORSET INTEGRATED CARE BOARD",null,"Y58","QJK","RK9","UNIVERSITY HOSPITALS PLYMOUTH NHS TRUST","Acute and Acute & Community Trusts",null,"RDY","DUDLEY INTEGRATED HEALTH AND CARE NHS TRUST","Acute and Acute & Community Trusts"]
[null,null,null,null,null,null,null,null,null,null,null,null,null,null,null,null,null,null,null,null,"Y61","QUE","NHS CAMBRIDGESHIRE AND PETERBOROUGH INTEGRATED CARE BOARD",null,"QWE","NHS SOUTH WEST LONDON INTEGRATED CARE BOARD",null,"Y58","QOX","RN3","GREAT WESTERN HOSPITALS NHS FOUNDATION TRUST","Acute and Acute & Community Trusts",null,"REF","EAST AND NORTH HERTFORDSHIRE NHS TRUST","Acute and Acute & Community Trusts"]
[null,null,null,null,null,null,null,null,null,null,null,null,null,null,null,null,null,null,null,null,"Y59","QRL","NHS HAMPSHIRE AND ISLE OF WIGHT INTEGRATED CARE BOARD",null,"QWO","NHS WEST YORKSHIRE INTEGRATED CARE BOARD",null,"Y58","QOX","RNZ","SALISBURY NHS FOUNDATION TRUST","Acute and Acute & Community Trusts",null,"REM","EAST CHESHIRE NHS TRUST","Acute and Acute & Community Trusts"]
[null,null,null,null,null,null,null,null,null,null,null,null,null,null,null,null,null,null,null,null,"Y62","QYG","NHS CHESHIRE AND MERSEYSIDE INTEGRATED CARE BOARD",null,"QWU","NHS COVENTRY AND WARWICKSHIRE INTEGRATED CARE BOARD",null,"Y58","QR1","RTE","GLOUCESTERSHIRE HOSPITALS NHS FOUNDATION TRUST","Acute and Acute & Community Trusts",null,"REN","EAST KENT HOSPITALS UNIVERSITY NHS FOUNDATION TRUST","Acute and Acute & Community Trusts"]
[null,null,null,null,null,null,null,null,null,null,null,null,null,null,null,null,null,null,null,null,"Y63","QHM","NHS NORTH EAST AND NORTH CUMBRIA INTEGRATED CARE BOARD",null,"QXU","NHS SURREY HEARTLANDS INTEGRATED CARE BOARD",null,"Y58","QR1","RTQ","GLOUCESTERSHIRE HEALTH AND CARE NHS FOUNDATION TRUST","Mental Health & Learning Disability and Mental Health, Learning Disability & Community Trusts",null,"REP","EAST LANCASHIRE HOSPITALS NHS TRUST","Acute and Acute & Community Trusts"]
[null,null,null,null,null,null,null,null,null,null,null,null,null,null,null,null,null,null,null,null,"Y62","QOP","NHS GREATER MANCHESTER INTEGRATED CARE BOARD",null,"QYG","NHS CHESHIRE AND MERSEYSIDE INTEGRATED CARE BOARD",null,"Y58","QUY","RVJ","NORTH BRISTOL NHS TRUST","Acute and Acute & Community Trusts",null,"RET","EAST LONDON NHS FOUNDATION TRUST","Acute and Acute & Community Trusts"]
[null,null,null,null,null,null,null,null,null,null,null,null,null,null,null,null,null,null,null,null,null,null,null,null,null,null,null,"Y58","QOX","RVN","AVON AND WILTSHIRE MENTAL HEALTH PARTNERSHIP NHS TRUST","Mental Health & Learning Disability and Mental Health, Learning Disability & Community Trusts",null,"RFF","EAST MIDLANDS AMBULANCE SERVICE NHS TRUST","Acute and Acute & Community Trusts"]
[null,null,null,null,null,null,null,null,null,null,null,null,null,null,null,null,null,null,null,null,null,null,null,null,null,null,null,"Y58","QJK","RWV","DEVON PARTNERSHIP NHS TRUST","Mental Health & Learning Disability and Mental Health, Learning Disability & Community Trusts",null,"RFR","EAST OF ENGLAND AMBULANCE SERVICE NHS TRUST","Acute and Acute & Community Trusts"]
[null,null,null,null,null,null,null,null,null,null,null,null,null,null,null,null,null,null,null,null,null,null,null,null,null,null,null,"Y59","QRL","R1C","SOLENT NHS TRUST","Mental Health & Learning Disability and Mental Health, Learning Disability & Community Trusts",null,"RFS","EAST SUFFOLK AND NORTH ESSEX NHS FOUNDATION TRUST","Acute and Acute & Community Trusts"]
[null,null,null,null,null,null,null,null,null,null,null,null,null,null,null,null,null,null,null,null,null,null,null,null,null,null,null,"Y59","QRL","R1F","ISLE OF WIGHT NHS TRUST","Acute and Acute & Community Trusts",null,"RGD","EAST SUSSEX HEALTHCARE NHS TRUST","Acute and Acute & Community Trusts"]
[null,null,null,null,null,null,null,null,null,null,null,null,null,null,null,null,null,null,null,null,null,null,null,null,null,null,null,"Y59","QNX","RDR","SUSSEX COMMUNITY NHS FOUNDATION TRUST","Community Trusts",null,"RGN","EPSOM AND ST HELIER UNIVERSITY HOSPITALS NHS TRUST","Acute and Acute & Community Trusts"]
[null,null,null,null,null,null,null,null,null,null,null,null,null,null,null,null,null,null,null,null,null,null,null,null,null,null,null,"Y59","QNQ","RDU","FRIMLEY HEALTH NHS FOUNDATION TRUST","Acute and Acute & Community Trusts",null,"RGR","ESSEX PARTNERSHIP UNIVERSITY NHS FOUNDATION TRUST","Acute and Acute & Community Trusts"]
[null,null,null,null,null,null,null,null,null,null,null,null,null,null,null,null,null,null,null,null,null,null,null,null,null,null,null,"Y59","QRL","RHM","UNIVERSITY HOSPITAL SOUTHAMPTON NHS FOUNDATION TRUST","Acute and Acute & Community Trusts",null,"RGT","FRIMLEY HEALTH NHS FOUNDATION TRUST","Acute and Acute & Community Trusts"]
[null,null,null,null,null,null,null,null,null,null,null,null,null,null,null,null,null,null,null,null,null,null,null,null,null,null,null,"Y59","QRL","RHU","PORTSMOUTH HOSPITALS UNIVERSITY NATIONAL HEALTH SERVICE TRUST","Acute and Acute & Community Trusts",null,"RH5","GATESHEAD HEALTH NHS FOUNDATION TRUST","Acute and Acute & Community Trusts"]
[null,null,null,null,null,null,null,null,null,null,null,null,null,null,null,null,null,null,null,null,null,null,null,null,null,null,null,"Y59","QU9","RHW","ROYAL BERKSHIRE NHS FOUNDATION TRUST","Acute and Acute & Community Trusts",null,"RHA","GEORGE ELIOT HOSPITAL NHS TRUST","Acute and Acute & Community Trusts"]
[null,null,null,null,null,null,null,null,null,null,null,null,null,null,null,null,null,null,null,null,null,null,null,null,null,null,null,"Y59","QRL","RN5","HAMPSHIRE HOSPITALS NHS FOUNDATION TRUST","Acute and Acute & Community Trusts",null,"RHM","GLOUCESTERSHIRE HEALTH AND CARE NHS FOUNDATION TRUST","Acute and Acute & Community Trusts"]
[null,null,null,null,null,null,null,null,null,null,null,null,null,null,null,null,null,null,null,null,null,null,null,null,null,null,null,"Y59","QKS","RN7","DARTFORD AND GRAVESHAM NHS TRUST","Acute and Acute & Community Trusts",null,"RHQ","GLOUCESTERSHIRE HOSPITALS NHS FOUNDATION TRUST","Acute and Acute & Community Trusts"]
[null,null,null,null,null,null,null,null,null,null,null,null,null,null,null,null,null,null,null,null,null,null,null,null,null,null,null,"Y59","QU9","RNU","OXFORD HEALTH NHS FOUNDATION TRUST","Mental Health & Learning Disability and Mental Health, Learning Disability & Community Trusts",null,"RHU","GREAT ORMOND STREET HOSPITAL FOR CHILDREN NHS FOUNDATION TRUST","Acute and Acute & Community Trusts"]
[null,null,null,null,null,null,null,null,null,null,null,null,null,null,null,null,null,null,null,null,null,null,null,null,null,null,null,"Y59","QKS","RPA","MEDWAY NHS FOUNDATION TRUST","Acute and Acute & Community Trusts",null,"RHW","GREAT WESTERN HOSPITALS NHS FOUNDATION TRUST","Acute and Acute & Community Trusts"]
[null,null,null,null,null,null,null,null,null,null,null,null,null,null,null,null,null,null,null,null,null,null,null,null,null,null,null,"Y59","QNX","RPC","QUEEN VICTORIA HOSPITAL NHS FOUNDATION TRUST","Acute Specialist Trusts",null,"RJ1","GREATER MANCHESTER MENTAL HEALTH NHS FOUNDATION TRUST","Acute and Acute & Community Trusts"]
[null,null,null,null,null,null,null,null,null,null,null,null,null,null,null,null,null,null,null,null,null,null,null,null,null,null,null,"Y59","QU9","RTH","OXFORD UNIVERSITY HOSPITALS NHS FOUNDATION TRUST","Acute and Acute & Community Trusts",null,"RJ2","GUY'S AND ST THOMAS' NHS FOUNDATION TRUST","Acute and Acute & Community Trusts"]
[null,null,null,null,null,null,null,null,null,null,null,null,null,null,null,null,null,null,null,null,null,null,null,null,null,null,null,"Y59","QKS","RVV","EAST KENT HOSPITALS UNIVERSITY NHS FOUNDATION TRUST","Acute and Acute & Community Trusts",null,"RJ7","HAMPSHIRE HOSPITALS NHS FOUNDATION TRUST","Acute and Acute & Community Trusts"]
[null,null,null,null,null,null,null,null,null,null,null,null,null,null,null,null,null,null,null,null,null,null,null,null,null,null,null,"Y59","QRL","RW1","SOUTHERN HEALTH NHS FOUNDATION TRUST","Mental Health & Learning Disability and Mental Health, Learning Disability & Community Trusts",null,"RJ8","HARROGATE AND DISTRICT NHS FOUNDATION TRUST","Acute and Acute & Community Trusts"]
[null,null,null,null,null,null,null,null,null,null,null,null,null,null,null,null,null,null,null,null,null,null,null,null,null,null,null,"Y59","QKS","RWF","MAIDSTONE AND TUNBRIDGE WELLS NHS TRUST","Acute and Acute & Community Trusts",null,"RJC","HEREFORDSHIRE AND WORCESTERSHIRE HEALTH AND CARE NHS TRUST","Acute and Acute & Community Trusts"]
[null,null,null,null,null,null,null,null,null,null,null,null,null,null,null,null,null,null,null,null,null,null,null,null,null,null,null,"Y59","QNQ","RWX","BERKSHIRE HEALTHCARE NHS FOUNDATION TRUST","Mental Health & Learning Disability and Mental Health, Learning Disability & Community Trusts",null,"RJL","HERTFORDSHIRE COMMUNITY NHS TRUST","Acute and Acute & Community Trusts"]
[null,null,null,null,null,null,null,null,null,null,null,null,null,null,null,null,null,null,null,null,null,null,null,null,null,null,null,"Y59","QNX","RX2","SUSSEX PARTNERSHIP NHS FOUNDATION TRUST","Mental Health & Learning Disability and Mental Health, Learning Disability & Community Trusts",null,"RJN","HERTFORDSHIRE PARTNERSHIP UNIVERSITY NHS FOUNDATION TRUST","Acute and Acute & Community Trusts"]
[null,null,null,null,null,null,null,null,null,null,null,null,null,null,null,null,null,null,null,null,null,null,null,null,null,null,null,"Y59","QNX","RXC","EAST SUSSEX HEALTHCARE NHS TRUST","Acute and Acute & Community Trusts",null,"RJR","HOMERTON HEALTHCARE NHS FOUNDATION TRUST","Acute and Acute & Community Trusts"]
[null,null,null,null,null,null,null,null,null,null,null,null,null,null,null,null,null,null,null,null,null,null,null,null,null,null,null,"Y59","QU9","RXQ","BUCKINGHAMSHIRE HEALTHCARE NHS TRUST","Acute and Acute & Community Trusts",null,"RJZ","HOUNSLOW AND RICHMOND COMMUNITY HEALTHCARE NHS TRUST","Acute and Acute & Community Trusts"]
[null,null,null,null,null,null,null,null,null,null,null,null,null,null,null,null,null,null,null,null,null,null,null,null,null,null,null,"Y59","QKS","RXY","KENT AND MEDWAY NHS AND SOCIAL CARE PARTNERSHIP TRUST","Mental Health & Learning Disability and Mental Health, Learning Disability & Community Trusts",null,"RK5","HULL UNIVERSITY TEACHING HOSPITALS NHS TRUST","Acute and Acute & Community Trusts"]
[null,null,null,null,null,null,null,null,null,null,null,null,null,null,null,null,null,null,null,null,null,null,null,null,null,null,null,"Y59","QNX","RYD","SOUTH EAST COAST AMBULANCE SERVICE NHS FOUNDATION TRUST","Ambulance Trusts",null,"RK9","HUMBER TEACHING NHS FOUNDATION TRUST","Acute and Acute & Community Trusts"]
[null,null,null,null,null,null,null,null,null,null,null,null,null,null,null,null,null,null,null,null,null,null,null,null,null,null,null,"Y59","QU9","RYE","SOUTH CENTRAL AMBULANCE SERVICE NHS FOUNDATION TRUST","Ambulance Trusts",null,"RKB","IMPERIAL COLLEGE HEALTHCARE NHS TRUST","Acute and Acute & Community Trusts"]
[null,null,null,null,null,null,null,null,null,null,null,null,null,null,null,null,null,null,null,null,null,null,null,null,null,null,null,"Y59","QNX","RYR","UNIVERSITY HOSPITALS SUSSEX NHS FOUNDATION TRUST","Acute and Acute & Community Trusts",null,"RKE","ISLE OF WIGHT NHS TRUST","Acute and Acute & Community Trusts"]
[null,null,null,null,null,null,null,null,null,null,null,null,null,null,null,null,null,null,null,null,null,null,null,null,null,null,null,"Y59","QKS","RYY","KENT COMMUNITY HEALTH NHS FOUNDATION TRUST","Community Trusts",null,"RL1","KENT AND MEDWAY NHS AND SOCIAL CARE PARTNERSHIP TRUST","Acute and Acute & Community Trusts"]
[null,null,null,null,null,null,null,null,null,null,null,null,null,null,null,null,null,null,null,null,null,null,null,null,null,null,null,"Y60","QGH","R1A","HEREFORDSHIRE AND WORCESTERSHIRE HEALTH AND CARE NHS TRUST","Mental Health & Learning Disability and Mental Health, Learning Disability & Community Trusts",null,"RL4","KENT COMMUNITY HEALTH NHS FOUNDATION TRUST","Acute and Acute & Community Trusts"]
[null,null,null,null,null,null,null,null,null,null,null,null,null,null,null,null,null,null,null,null,null,null,null,null,null,null,null,"Y60","QOC","R1D","SHROPSHIRE COMMUNITY HEALTH NHS TRUST","Community Trusts",null,"RLQ","KETTERING GENERAL HOSPITAL NHS FOUNDATION TRUST","Acute and Acute & Community Trusts"]
[null,null,null,null,null,null,null,null,null,null,null,null,null,null,null,null,null,null,null,null,null,null,null,null,null,null,null,"Y60","QUA","RBK","WALSALL HEALTHCARE NHS TRUST","Acute and Acute & Community Trusts",null,"RLT","KING'S COLLEGE HOSPITAL NHS FOUNDATION TRUST","Acute and Acute & Community Trusts"]
[null,null,null,null,null,null,null,null,null,null,null,null,null,null,null,null,null,null,null,null,null,null,null,null,null,null,null,"Y60","QJ2","RFS","CHESTERFIELD ROYAL HOSPITAL NHS FOUNDATION TRUST","Acute and Acute & Community Trusts",null,"RM1","LANCASHIRE & SOUTH CUMBRIA NHS FOUNDATION TRUST","Acute and Acute & Community Trusts"]
[null,null,null,null,null,null,null,null,null,null,null,null,null,null,null,null,null,null,null,null,null,null,null,null,null,null,null,"Y60","QT1","RHA","NOTTINGHAMSHIRE HEALTHCARE NHS FOUNDATION TRUST","Mental Health & Learning Disability and Mental Health, Learning Disability & Community Trusts",null,"RM3","LANCASHIRE TEACHING HOSPITALS NHS FOUNDATION TRUST","Acute and Acute & Community Trusts"]
[null,null,null,null,null,null,null,null,null,null,null,null,null,null,null,null,null,null,null,null,null,null,null,null,null,null,null,"Y60","QWU","RJC","SOUTH WARWICKSHIRE NHS FOUNDATION TRUST","Acute and Acute & Community Trusts",null,"RMC","LEEDS AND YORK PARTNERSHIP NHS FOUNDATION TRUST","Acute and Acute & Community Trusts"]
[null,null,null,null,null,null,null,null,null,null,null,null,null,null,null,null,null,null,null,null,null,null,null,null,null,null,null,"Y60","QT1","RK5","SHERWOOD FOREST HOSPITALS NHS FOUNDATION TRUST","Acute and Acute & Community Trusts",null,"RMP","LEEDS COMMUNITY HEALTHCARE NHS TRUST","Acute and Acute & Community Trusts"]
[null,null,null,null,null,null,null,null,null,null,null,null,null,null,null,null,null,null,null,null,null,null,null,null,null,null,null,"Y60","QWU","RKB","UNIVERSITY HOSPITALS COVENTRY AND WARWICKSHIRE NHS TRUST","Acute and Acute & Community Trusts",null,"RMY","LEICESTERSHIRE PARTNERSHIP NHS TRUST","Acute and Acute & Community Trusts"]
[null,null,null,null,null,null,null,null,null,null,null,null,null,null,null,null,null,null,null,null,null,null,null,null,null,null,null,"Y60","QOC","RL1","THE ROBERT JONES AND AGNES HUNT ORTHOPAEDIC HOSPITAL NHS FOUNDATION TRUST","Acute Specialist Trusts",null,"RN3","LEWISHAM AND GREENWICH NHS TRUST","Acute and Acute & Community Trusts"]
[null,null,null,null,null,null,null,null,null,null,null,null,null,null,null,null,null,null,null,null,null,null,null,null,null,null,null,"Y60","QUA","RL4","THE ROYAL WOLVERHAMPTON NHS TRUST","Acute and Acute & Community Trusts",null,"RN5","LINCOLNSHIRE COMMUNITY HEALTH SERVICES NHS TRUST","Acute and Acute & Community Trusts"]
[null,null,null,null,null,null,null,null,null,null,null,null,null,null,null,null,null,null,null,null,null,null,null,null,null,null,null,"Y60","QGH","RLQ","WYE VALLEY NHS TRUST","Acute and Acute & Community Trusts",null,"RN7","LINCOLNSHIRE PARTNERSHIP NHS FOUNDATION TRUST","Acute and Acute & Community Trusts"]
[null,null,null,null,null,null,null,null,null,null,null,null,null,null,null,null,null,null,null,null,null,null,null,null,null,null,null,"Y60","QWU","RLT","GEORGE ELIOT HOSPITAL NHS TRUST","Acute and Acute & Community Trusts",null,"RNA","LIVERPOOL HEART AND CHEST HOSPITAL NHS FOUNDATION TRUST","Acute and Acute & Community Trusts"]
[null,null,null,null,null,null,null,null,null,null,null,null,null,null,null,null,null,null,null,null,null,null,null,null,null,null,null,"Y60","QUA","RNA","THE DUDLEY GROUP NHS FOUNDATION TRUST","Acute and Acute & Community Trusts",null,"RNK","LIVERPOOL UNIVERSITY HOSPITALS NHS FOUNDATION TRUST","Acute and Acute & Community Trusts"]
[null,null,null,null,null,null,null,null,null,null,null,null,null,null,null,null,null,null,null,null,null,null,null,null,null,null,null,"Y60","QPM","RNQ","KETTERING GENERAL HOSPITAL NHS FOUNDATION TRUST","Acute and Acute & Community Trusts",null,"RNN","LIVERPOOL WOMEN'S NHS FOUNDATION TRUST","Acute and Acute & Community Trusts"]
[null,null,null,null,null,null,null,null,null,null,null,null,null,null,null,null,null,null,null,null,null,null,null,null,null,null,null,"Y60","QPM","RNS","NORTHAMPTON GENERAL HOSPITAL NHS TRUST","Acute and Acute & Community Trusts",null,"RNQ","MAIDSTONE AND TUNBRIDGE WELLS NHS TRUST","Acute and Acute & Community Trusts"]
[null,null,null,null,null,null,null,null,null,null,null,null,null,null,null,null,null,null,null,null,null,null,null,null,null,null,null,"Y60","QPM","RP1","NORTHAMPTONSHIRE HEALTHCARE NHS FOUNDATION TRUST","Mental Health & Learning Disability and Mental Health, Learning Disability & Community Trusts",null,"RNS","MANCHESTER UNIVERSITY NHS FOUNDATION TRUST","Acute and Acute & Community Trusts"]
[null,null,null,null,null,null,null,null,null,null,null,null,null,null,null,null,null,null,null,null,null,null,null,null,null,null,null,"Y60","QJM","RP7","LINCOLNSHIRE PARTNERSHIP NHS FOUNDATION TRUST","Mental Health & Learning Disability and Mental Health, Learning Disability & Community Trusts",null,"RNU","MEDWAY NHS FOUNDATION TRUST","Acute and Acute & Community Trusts"]
[null,null,null,null,null,null,null,null,null,null,null,null,null,null,null,null,null,null,null,null,null,null,null,null,null,null,null,"Y60","QNC","RRE","MIDLANDS PARTNERSHIP NHS FOUNDATION TRUST","Mental Health & Learning Disability and Mental Health, Learning Disability & Community Trusts",null,"RNZ","MERSEY CARE NHS FOUNDATION TRUST","Acute and Acute & Community Trusts"]
[null,null,null,null,null,null,null,null,null,null,null,null,null,null,null,null,null,null,null,null,null,null,null,null,null,null,null,"Y60","QHL","RRJ","THE ROYAL ORTHOPAEDIC HOSPITAL NHS FOUNDATION TRUST","Acute Specialist Trusts",null,"RP1","MID CHESHIRE HOSPITALS NHS FOUNDATION TRUST","Acute and Acute & Community Trusts"]
[null,null,null,null,null,null,null,null,null,null,null,null,null,null,null,null,null,null,null,null,null,null,null,null,null,null,null,"Y60","QHL","RRK","UNIVERSITY HOSPITALS BIRMINGHAM NHS FOUNDATION TRUST","Acute and Acute & Community Trusts",null,"RP4","MID YORKSHIRE HOSPITALS NHS TRUST","Acute and Acute & Community Trusts"]
[null,null,null,null,null,null,null,null,null,null,null,null,null,null,null,null,null,null,null,null,null,null,null,null,null,null,null,"Y60","QK1","RT5","LEICESTERSHIRE PARTNERSHIP NHS TRUST","Mental Health & Learning Disability and Mental Health, Learning Disability & Community Trusts",null,"RP5","MIDLANDS PARTNERSHIP NHS FOUNDATION TRUST","Acute and Acute & Community Trusts"]
[null,null,null,null,null,null,null,null,null,null,null,null,null,null,null,null,null,null,null,null,null,null,null,null,null,null,null,"Y60","QJ2","RTG","UNIVERSITY HOSPITALS OF DERBY AND BURTON NHS FOUNDATION TRUST","Acute and Acute & Community Trusts",null,"RP6","MILTON KEYNES UNIVERSITY HOSPITAL NHS FOUNDATION TRUST","Acute and Acute & Community Trusts"]
[null,null,null,null,null,null,null,null,null,null,null,null,null,null,null,null,null,null,null,null,null,null,null,null,null,null,null,"Y60","QJM","RWD","UNITED LINCOLNSHIRE HOSPITALS NHS TRUST","Acute and Acute & Community Trusts",null,"RP7","MOORFIELDS EYE HOSPITAL NHS FOUNDATION TRUST","Acute and Acute & Community Trusts"]
[null,null,null,null,null,null,null,null,null,null,null,null,null,null,null,null,null,null,null,null,null,null,null,null,null,null,null,"Y60","QK1","RWE","UNIVERSITY HOSPITALS OF LEICESTER NHS TRUST","Acute and Acute & Community Trusts",null,"RPA","NORFOLK AND NORWICH UNIVERSITY HOSPITALS NHS FOUNDATION TRUST","Acute and Acute & Community Trusts"]
[null,null,null,null,null,null,null,null,null,null,null,null,null,null,null,null,null,null,null,null,null,null,null,null,null,null,null,"Y60","QGH","RWP","WORCESTERSHIRE ACUTE HOSPITALS NHS TRUST","Acute and Acute & Community Trusts",null,"RPC","NORFOLK AND SUFFOLK NHS FOUNDATION TRUST","Acute and Acute & Community Trusts"]
[null,null,null,null,null,null,null,null,null,null,null,null,null,null,null,null,null,null,null,null,null,null,null,null,null,null,null,"Y60","QT1","RX1","NOTTINGHAM UNIVERSITY HOSPITALS NHS TRUST","Acute and Acute & Community Trusts",null,"RPY","NORFOLK COMMUNITY HEALTH AND CARE NHS TRUST","Acute and Acute & Community Trusts"]
[null,null,null,null,null,null,null,null,null,null,null,null,null,null,null,null,null,null,null,null,null,null,null,null,null,null,null,"Y60","QT1","RX9","EAST MIDLANDS AMBULANCE SERVICE NHS TRUST","Ambulance Trusts",null,"RQW","NORTH BRISTOL NHS TRUST","Acute and Acute & Community Trusts"]
[null,null,null,null,null,null,null,null,null,null,null,null,null,null,null,null,null,null,null,null,null,null,null,null,null,null,null,"Y60","QUA","RXK","SANDWELL AND WEST BIRMINGHAM HOSPITALS NHS TRUST","Acute and Acute & Community Trusts",null,"RQX","NORTH CUMBRIA INTEGRATED CARE NHS FOUNDATION TRUST","Acute and Acute & Community Trusts"]
[null,null,null,null,null,null,null,null,null,null,null,null,null,null,null,null,null,null,null,null,null,null,null,null,null,null,null,"Y60","QJ2","RXM","DERBYSHIRE HEALTHCARE NHS FOUNDATION TRUST","Mental Health & Learning Disability and Mental Health, Learning Disability & Community Trusts",null,"RQY","NORTH EAST AMBULANCE SERVICE NHS FOUNDATION TRUST","Acute and Acute & Community Trusts"]
[null,null,null,null,null,null,null,null,null,null,null,null,null,null,null,null,null,null,null,null,null,null,null,null,null,null,null,"Y60","QUA","RXT","BIRMINGHAM AND SOLIHULL MENTAL HEALTH NHS FOUNDATION TRUST","Mental Health & Learning Disability and Mental Health, Learning Disability & Community Trusts",null,"RR7","NORTH EAST LONDON NHS FOUNDATION TRUST","Acute and Acute & Community Trusts"]
[null,null,null,null,null,null,null,null,null,null,null,null,null,null,null,null,null,null,null,null,null,null,null,null,null,null,null,"Y60","QOC","RXW","THE SHREWSBURY AND TELFORD HOSPITAL NHS TRUST","Acute and Acute & Community Trusts",null,"RRE","NORTH MIDDLESEX UNIVERSITY HOSPITAL NHS TRUST","Acute and Acute & Community Trusts"]
[null,null,null,null,null,null,null,null,null,null,null,null,null,null,null,null,null,null,null,null,null,null,null,null,null,null,null,"Y60","QJM","RY5","LINCOLNSHIRE COMMUNITY HEALTH SERVICES NHS TRUST","Community Trusts",null,"RRF","NORTH TEES AND HARTLEPOOL NHS FOUNDATION TRUST","Acute and Acute & Community Trusts"]
[null,null,null,null,null,null,null,null,null,null,null,null,null,null,null,null,null,null,null,null,null,null,null,null,null,null,null,"Y60","QJ2","RY8","DERBYSHIRE COMMUNITY HEALTH SERVICES NHS FOUNDATION TRUST","Community Trusts",null,"RRJ","NORTH WEST AMBULANCE SERVICE NHS TRUST","Acute and Acute & Community Trusts"]
[null,null,null,null,null,null,null,null,null,null,null,null,null,null,null,null,null,null,null,null,null,null,null,null,null,null,null,"Y60","QWU","RYG","COVENTRY AND WARWICKSHIRE PARTNERSHIP NHS TRUST","Mental Health & Learning Disability and Mental Health, Learning Disability & Community Trusts",null,"RRK","NORTH WEST ANGLIA NHS FOUNDATION TRUST","Acute and Acute & Community Trusts"]
[null,null,null,null,null,null,null,null,null,null,null,null,null,null,null,null,null,null,null,null,null,null,null,null,null,null,null,"Y60","QUA","RYK","DUDLEY INTEGRATED HEALTH AND CARE NHS TRUST","Acute and Acute & Community Trusts",null,"RRP","NORTHAMPTON GENERAL HOSPITAL NHS TRUST","Acute and Acute & Community Trusts"]
[null,null,null,null,null,null,null,null,null,null,null,null,null,null,null,null,null,null,null,null,null,null,null,null,null,null,null,"Y60","QHL","RYW","BIRMINGHAM COMMUNITY HEALTHCARE NHS FOUNDATION TRUST","Community Trusts",null,"RRV","NORTHAMPTONSHIRE HEALTHCARE NHS FOUNDATION TRUST","Acute and Acute & Community Trusts"]
[null,null,null,null,null,null,null,null,null,null,null,null,null,null,null,null,null,null,null,null,null,null,null,null,null,null,null,"Y60","QUA","TAJ","BLACK COUNTRY HEALTHCARE NHS FOUNDATION TRUST","Mental Health & Learning Disability and Mental Health, Learning Disability & Community Trusts",null,"RT1","NORTHERN CARE ALLIANCE NHS FOUNDATION TRUST","Acute and Acute & Community Trusts"]
[null,null,null,null,null,null,null,null,null,null,null,null,null,null,null,null,null,null,null,null,null,null,null,null,null,null,null,"Y61","QH8","R1L","ESSEX PARTNERSHIP UNIVERSITY NHS FOUNDATION TRUST","Mental Health & Learning Disability and Mental Health, Learning Disability & Community Trusts",null,"RT2","NORTHERN DEVON HEALTHCARE NHS TRUST","Acute and Acute & Community Trusts"]
[null,null,null,null,null,null,null,null,null,null,null,null,null,null,null,null,null,null,null,null,null,null,null,null,null,null,null,"Y61","QMM","RCX","THE QUEEN ELIZABETH HOSPITAL, KING'S LYNN, NHS FOUNDATION TRUST","Acute and Acute & Community Trusts",null,"RT5","NORTHERN LINCOLNSHIRE AND GOOLE NHS FOUNDATION TRUST","Acute and Acute & Community Trusts"]
[null,null,null,null,null,null,null,null,null,null,null,null,null,null,null,null,null,null,null,null,null,null,null,null,null,null,null,"Y61","QHG","RD8","MILTON KEYNES UNIVERSITY HOSPITAL NHS FOUNDATION TRUST","Acute and Acute & Community Trusts",null,"RTD","NORTHUMBRIA HEALTHCARE NHS FOUNDATION TRUST","Acute and Acute & Community Trusts"]
[null,null,null,null,null,null,null,null,null,null,null,null,null,null,null,null,null,null,null,null,null,null,null,null,null,null,null,"Y61","QJG","RDE","EAST SUFFOLK AND NORTH ESSEX NHS FOUNDATION TRUST","Acute and Acute & Community Trusts",null,"RTE","NOTTINGHAM UNIVERSITY HOSPITALS NHS TRUST","Acute Specialist Trusts"]
[null,null,null,null,null,null,null,null,null,null,null,null,null,null,null,null,null,null,null,null,null,null,null,null,null,null,null,"Y61","QUE","RGN","NORTH WEST ANGLIA NHS FOUNDATION TRUST","Acute and Acute & Community Trusts",null,"RTF","NOTTINGHAMSHIRE HEALTHCARE NHS FOUNDATION TRUST","Acute Specialist Trusts"]
[null,null,null,null,null,null,null,null,null,null,null,null,null,null,null,null,null,null,null,null,null,null,null,null,null,null,null,"Y61","QJG","RGR","WEST SUFFOLK NHS FOUNDATION TRUST","Acute and Acute & Community Trusts",null,"RTG","OXFORD HEALTH NHS FOUNDATION TRUST","Acute Specialist Trusts"]
[null,null,null,null,null,null,null,null,null,null,null,null,null,null,null,null,null,null,null,null,null,null,null,null,null,null,null,"Y61","QUE","RGT","CAMBRIDGE UNIVERSITY HOSPITALS NHS FOUNDATION TRUST","Acute and Acute & Community Trusts",null,"RTH","OXFORD UNIVERSITY HOSPITALS NHS FOUNDATION TRUST","Acute Specialist Trusts"]
[null,null,null,null,null,null,null,null,null,null,null,null,null,null,null,null,null,null,null,null,null,null,null,null,null,null,null,"Y61","QMM","RM1","NORFOLK AND NORWICH UNIVERSITY HOSPITALS NHS FOUNDATION TRUST","Acute and Acute & Community Trusts",null,"RTQ","PENNINE CARE NHS FOUNDATION TRUST","Acute Specialist Trusts"]
[null,null,null,null,null,null,null,null,null,null,null,null,null,null,null,null,null,null,null,null,null,null,null,null,null,null,null,"Y61","QMM","RMY","NORFOLK AND SUFFOLK NHS FOUNDATION TRUST","Mental Health & Learning Disability and Mental Health, Learning Disability & Community Trusts",null,"RTR","PORTSMOUTH HOSPITALS UNIVERSITY NATIONAL HEALTH SERVICE TRUST","Acute Specialist Trusts"]
[null,null,null,null,null,null,null,null,null,null,null,null,null,null,null,null,null,null,null,null,null,null,null,null,null,null,null,"Y61","QM7","RQW","THE PRINCESS ALEXANDRA HOSPITAL NHS TRUST","Acute and Acute & Community Trusts",null,"RTX","QUEEN VICTORIA HOSPITAL NHS FOUNDATION TRUST","Acute Specialist Trusts"]
[null,null,null,null,null,null,null,null,null,null,null,null,null,null,null,null,null,null,null,null,null,null,null,null,null,null,null,"Y61","QUE","RT1","CAMBRIDGESHIRE AND PETERBOROUGH NHS FOUNDATION TRUST","Mental Health & Learning Disability and Mental Health, Learning Disability & Community Trusts",null,"RV5","ROTHERHAM DONCASTER AND SOUTH HUMBER NHS FOUNDATION TRUST","Acute Specialist Trusts"]
[null,null,null,null,null,null,null,null,null,null,null,null,null,null,null,null,null,null,null,null,null,null,null,null,null,null,null,"Y61","QM7","RWG","WEST HERTFORDSHIRE TEACHING HOSPITALS NHS TRUST","Acute and Acute & Community Trusts",null,"RV9","ROYAL BERKSHIRE NHS FOUNDATION TRUST","Acute Specialist Trusts"]
[null,null,null,null,null,null,null,null,null,null,null,null,null,null,null,null,null,null,null,null,null,null,null,null,null,null,null,"Y61","QM7","RWH","EAST AND NORTH HERTFORDSHIRE NHS TRUST","Acute and Acute & Community Trusts",null,"RVJ","ROYAL CORNWALL HOSPITALS NHS TRUST","Acute Specialist Trusts"]
[null,null,null,null,null,null,null,null,null,null,null,null,null,null,null,null,null,null,null,null,null,null,null,null,null,null,null,"Y61","QM7","RWR","HERTFORDSHIRE PARTNERSHIP UNIVERSITY NHS FOUNDATION TRUST","Mental Health & Learning Disability and Mental Health, Learning Disability & Community Trusts",null,"RVN","ROYAL FREE LONDON NHS FOUNDATION TRUST","Acute Specialist Trusts"]
[null,null,null,null,null,null,null,null,null,null,null,null,null,null,null,null,null,null,null,null,null,null,null,null,null,null,null,"Y61","QMM","RY3","NORFOLK COMMUNITY HEALTH AND CARE NHS TRUST","Community Trusts",null,"RVR","ROYAL NATIONAL ORTHOPAEDIC HOSPITAL NHS TRUST","Acute Specialist Trusts"]
[null,null,null,null,null,null,null,null,null,null,null,null,null,null,null,null,null,null,null,null,null,null,null,null,null,null,null,"Y61","QM7","RY4","HERTFORDSHIRE COMMUNITY NHS TRUST","Community Trusts",null,"RVV","SALISBURY NHS FOUNDATION TRUST","Ambulance Trusts"]
[null,null,null,null,null,null,null,null,null,null,null,null,null,null,null,null,null,null,null,null,null,null,null,null,null,null,null,"Y61","QUE","RYC","EAST OF ENGLAND AMBULANCE SERVICE NHS TRUST","Ambulance Trusts",null,"RVW","SANDWELL AND WEST BIRMINGHAM HOSPITALS NHS TRUST","Ambulance Trusts"]
[null,null,null,null,null,null,null,null,null,null,null,null,null,null,null,null,null,null,null,null,null,null,null,null,null,null,null,"Y61","QUE","RYV","CAMBRIDGESHIRE COMMUNITY SERVICES NHS TRUST","Community Trusts",null,"RVY","SHEFFIELD CHILDREN'S NHS FOUNDATION TRUST","Ambulance Trusts"]
[null,null,null,null,null,null,null,null,null,null,null,null,null,null,null,null,null,null,null,null,null,null,null,null,null,null,null,"Y62","QOP","R0A","MANCHESTER UNIVERSITY NHS FOUNDATION TRUST","Acute and Acute & Community Trusts",null,"RW1","SHEFFIELD HEALTH & SOCIAL CARE NHS FOUNDATION TRUST","Ambulance Trusts"]
[null,null,null,null,null,null,null,null,null,null,null,null,null,null,null,null,null,null,null,null,null,null,null,null,null,null,null,"Y62","QYG","RBL","WIRRAL UNIVERSITY TEACHING HOSPITAL NHS FOUNDATION TRUST","Acute and Acute & Community Trusts",null,"RW4","SHEFFIELD TEACHING HOSPITALS NHS FOUNDATION TRUST","Ambulance Trusts"]
[null,null,null,null,null,null,null,null,null,null,null,null,null,null,null,null,null,null,null,null,null,null,null,null,null,null,null,"Y62","QYG","RBN","ST HELENS AND KNOWSLEY TEACHING HOSPITALS NHS TRUST","Acute and Acute & Community Trusts",null,"RW5","SHERWOOD FOREST HOSPITALS NHS FOUNDATION TRUST","Ambulance Trusts"]
[null,null,null,null,null,null,null,null,null,null,null,null,null,null,null,null,null,null,null,null,null,null,null,null,null,null,null,"Y62","QYG","RBQ","LIVERPOOL HEART AND CHEST HOSPITAL NHS FOUNDATION TRUST","Acute Specialist Trusts",null,"RWA","SHROPSHIRE COMMUNITY HEALTH NHS TRUST","Ambulance Trusts"]
[null,null,null,null,null,null,null,null,null,null,null,null,null,null,null,null,null,null,null,null,null,null,null,null,null,null,null,"Y62","QYG","RBS","ALDER HEY CHILDREN'S NHS FOUNDATION TRUST","Acute and Acute & Community Trusts",null,"RWD","SOLENT NHS TRUST","Community Trusts"]
[null,null,null,null,null,null,null,null,null,null,null,null,null,null,null,null,null,null,null,null,null,null,null,null,null,null,null,"Y62","QYG","RBT","MID CHESHIRE HOSPITALS NHS FOUNDATION TRUST","Acute and Acute & Community Trusts",null,"RWE","SOMERSET NHS FOUNDATION TRUST","Community Trusts"]
[null,null,null,null,null,null,null,null,null,null,null,null,null,null,null,null,null,null,null,null,null,null,null,null,null,null,null,"Y62","QOP","RBV","THE CHRISTIE NHS FOUNDATION TRUST","Acute Specialist Trusts",null,"RWF","SOUTH CENTRAL AMBULANCE SERVICE NHS FOUNDATION TRUST","Community Trusts"]
[null,null,null,null,null,null,null,null,null,null,null,null,null,null,null,null,null,null,null,null,null,null,null,null,null,null,null,"Y62","QYG","REM","LIVERPOOL UNIVERSITY HOSPITALS NHS FOUNDATION TRUST","Acute and Acute & Community Trusts",null,"RWG","SOUTH EAST COAST AMBULANCE SERVICE NHS FOUNDATION TRUST","Community Trusts"]
[null,null,null,null,null,null,null,null,null,null,null,null,null,null,null,null,null,null,null,null,null,null,null,null,null,null,null,"Y62","QYG","REN","THE CLATTERBRIDGE CANCER CENTRE NHS FOUNDATION TRUST","Acute Specialist Trusts",null,"RWH","SOUTH LONDON AND MAUDSLEY NHS FOUNDATION TRUST","Community Trusts"]
[null,null,null,null,null,null,null,null,null,null,null,null,null,null,null,null,null,null,null,null,null,null,null,null,null,null,null,"Y62","QYG","REP","LIVERPOOL WOMEN'S NHS FOUNDATION TRUST","Acute Specialist Trusts",null,"RWK","SOUTH TEES HOSPITALS NHS FOUNDATION TRUST","Community Trusts"]
[null,null,null,null,null,null,null,null,null,null,null,null,null,null,null,null,null,null,null,null,null,null,null,null,null,null,null,"Y62","QYG","RET","THE WALTON CENTRE NHS FOUNDATION TRUST","Acute Specialist Trusts",null,"RWP","SOUTH TYNESIDE AND SUNDERLAND NHS FOUNDATION TRUST","Community Trusts"]
[null,null,null,null,null,null,null,null,null,null,null,null,null,null,null,null,null,null,null,null,null,null,null,null,null,null,null,"Y62","QYG","RJN","EAST CHESHIRE NHS TRUST","Acute and Acute & Community Trusts",null,"RWR","SOUTH WARWICKSHIRE NHS FOUNDATION TRUST","Community Trusts"]
[null,null,null,null,null,null,null,null,null,null,null,null,null,null,null,null,null,null,null,null,null,null,null,null,null,null,null,"Y62","QYG","RJR","COUNTESS OF CHESTER HOSPITAL NHS FOUNDATION TRUST","Acute and Acute & Community Trusts",null,"RWV","SOUTH WEST LONDON AND ST GEORGE'S MENTAL HEALTH NHS TRUST","Community Trusts"]
[null,null,null,null,null,null,null,null,null,null,null,null,null,null,null,null,null,null,null,null,null,null,null,null,null,null,null,"Y62","QOP","RM3","NORTHERN CARE ALLIANCE NHS FOUNDATION TRUST","Acute and Acute & Community Trusts",null,"RWW","SOUTH WEST YORKSHIRE PARTNERSHIP NHS FOUNDATION TRUST","Community Trusts"]
[null,null,null,null,null,null,null,null,null,null,null,null,null,null,null,null,null,null,null,null,null,null,null,null,null,null,null,"Y62","QOP","RMC","BOLTON NHS FOUNDATION TRUST","Acute and Acute & Community Trusts",null,"RWX","SOUTHERN HEALTH NHS FOUNDATION TRUST","Community Trusts"]
[null,null,null,null,null,null,null,null,null,null,null,null,null,null,null,null,null,null,null,null,null,null,null,null,null,null,null,"Y62","QOP","RMP","TAMESIDE AND GLOSSOP INTEGRATED CARE NHS FOUNDATION TRUST","Acute and Acute & Community Trusts",null,"RWY","SOUTHPORT AND ORMSKIRK HOSPITAL NHS TRUST","Community Trusts"]
[null,null,null,null,null,null,null,null,null,null,null,null,null,null,null,null,null,null,null,null,null,null,null,null,null,null,null,"Y62","QOP","RRF","WRIGHTINGTON, WIGAN AND LEIGH NHS FOUNDATION TRUST","Acute and Acute & Community Trusts",null,"RX1","ST GEORGE'S UNIVERSITY HOSPITALS NHS FOUNDATION TRUST","Community Trusts"]
[null,null,null,null,null,null,null,null,null,null,null,null,null,null,null,null,null,null,null,null,null,null,null,null,null,null,null,"Y62","QOP","RT2","PENNINE CARE NHS FOUNDATION TRUST","Mental Health & Learning Disability and Mental Health, Learning Disability & Community Trusts",null,"RX2","ST HELENS AND KNOWSLEY TEACHING HOSPITALS NHS TRUST","Community Trusts"]
[null,null,null,null,null,null,null,null,null,null,null,null,null,null,null,null,null,null,null,null,null,null,null,null,null,null,null,"Y62","QE1","RTX","UNIVERSITY HOSPITALS OF MORECAMBE BAY NHS FOUNDATION TRUST","Acute and Acute & Community Trusts",null,"RX3","SUSSEX COMMUNITY NHS FOUNDATION TRUST","Mental Health & Learning Disability and Mental Health, Learning Disability & Community Trusts"]
[null,null,null,null,null,null,null,null,null,null,null,null,null,null,null,null,null,null,null,null,null,null,null,null,null,null,null,"Y62","QYG","RVY","SOUTHPORT AND ORMSKIRK HOSPITAL NHS TRUST","Acute and Acute & Community Trusts",null,"RX4","SUSSEX PARTNERSHIP NHS FOUNDATION TRUST","Mental Health & Learning Disability and Mental Health, Learning Disability & Community Trusts"]
[null,null,null,null,null,null,null,null,null,null,null,null,null,null,null,null,null,null,null,null,null,null,null,null,null,null,null,"Y62","QYG","RW4","MERSEY CARE NHS FOUNDATION TRUST","Mental Health & Learning Disability and Mental Health, Learning Disability & Community Trusts",null,"RX6","TAMESIDE AND GLOSSOP INTEGRATED CARE NHS FOUNDATION TRUST","Mental Health & Learning Disability and Mental Health, Learning Disability & Community Trusts"]
[null,null,null,null,null,null,null,null,null,null,null,null,null,null,null,null,null,null,null,null,null,null,null,null,null,null,null,"Y62","QE1","RW5","LANCASHIRE & SOUTH CUMBRIA NHS FOUNDATION TRUST","Mental Health & Learning Disability and Mental Health, Learning Disability & Community Trusts",null,"RX7","TAVISTOCK AND PORTMAN NHS FOUNDATION TRUST","Mental Health & Learning Disability and Mental Health, Learning Disability & Community Trusts"]
[null,null,null,null,null,null,null,null,null,null,null,null,null,null,null,null,null,null,null,null,null,null,null,null,null,null,null,"Y62","QYG","RWW","WARRINGTON AND HALTON TEACHING HOSPITALS NHS FOUNDATION TRUST","Acute and Acute & Community Trusts",null,"RX8","TEES, ESK AND WEAR VALLEYS NHS FOUNDATION TRUST","Mental Health & Learning Disability and Mental Health, Learning Disability & Community Trusts"]
[null,null,null,null,null,null,null,null,null,null,null,null,null,null,null,null,null,null,null,null,null,null,null,null,null,null,null,"Y62","QOP","RX7","NORTH WEST AMBULANCE SERVICE NHS TRUST","Ambulance Trusts",null,"RX9","THE CHRISTIE NHS FOUNDATION TRUST","Mental Health & Learning Disability and Mental Health, Learning Disability & Community Trusts"]
[null,null,null,null,null,null,null,null,null,null,null,null,null,null,null,null,null,null,null,null,null,null,null,null,null,null,null,"Y62","QYG","RXA","CHESHIRE AND WIRRAL PARTNERSHIP NHS FOUNDATION TRUST","Mental Health & Learning Disability and Mental Health, Learning Disability & Community Trusts",null,"RXA","THE CLATTERBRIDGE CANCER CENTRE NHS FOUNDATION TRUST","Mental Health & Learning Disability and Mental Health, Learning Disability & Community Trusts"]
[null,null,null,null,null,null,null,null,null,null,null,null,null,null,null,null,null,null,null,null,null,null,null,null,null,null,null,"Y62","QE1","RXL","BLACKPOOL TEACHING HOSPITALS NHS FOUNDATION TRUST","Acute and Acute & Community Trusts",null,"RXC","THE DUDLEY GROUP NHS FOUNDATION TRUST","Mental Health & Learning Disability and Mental Health, Learning Disability & Community Trusts"]
[null,null,null,null,null,null,null,null,null,null,null,null,null,null,null,null,null,null,null,null,null,null,null,null,null,null,null,"Y62","QE1","RXN","LANCASHIRE TEACHING HOSPITALS NHS FOUNDATION TRUST","Acute and Acute & Community Trusts",null,"RXE","THE HILLINGDON HOSPITALS NHS FOUNDATION TRUST","Mental Health & Learning Disability and Mental Health, Learning Disability & Community Trusts"]
[null,null,null,null,null,null,null,null,null,null,null,null,null,null,null,null,null,null,null,null,null,null,null,null,null,null,null,"Y62","QE1","RXR","EAST LANCASHIRE HOSPITALS NHS TRUST","Acute and Acute & Community Trusts",null,"RXF","THE NEWCASTLE UPON TYNE HOSPITALS NHS FOUNDATION TRUST","Mental Health & Learning Disability and Mental Health, Learning Disability & Community Trusts"]
[null,null,null,null,null,null,null,null,null,null,null,null,null,null,null,null,null,null,null,null,null,null,null,null,null,null,null,"Y62","QOP","RXV","GREATER MANCHESTER MENTAL HEALTH NHS FOUNDATION TRUST","Mental Health & Learning Disability and Mental Health, Learning Disability & Community Trusts",null,"RXG","THE PRINCESS ALEXANDRA HOSPITAL NHS TRUST","Mental Health & Learning Disability and Mental Health, Learning Disability & Community Trusts"]
[null,null,null,null,null,null,null,null,null,null,null,null,null,null,null,null,null,null,null,null,null,null,null,null,null,null,null,"Y62","QYG","RY2","BRIDGEWATER COMMUNITY HEALTHCARE NHS FOUNDATION TRUST","Community Trusts",null,"RXK","THE QUEEN ELIZABETH HOSPITAL, KING'S LYNN, NHS FOUNDATION TRUST","Mental Health & Learning Disability and Mental Health, Learning Disability & Community Trusts"]
[null,null,null,null,null,null,null,null,null,null,null,null,null,null,null,null,null,null,null,null,null,null,null,null,null,null,null,"Y62","QYG","RY7","WIRRAL COMMUNITY HEALTH AND CARE NHS FOUNDATION TRUST","Community Trusts",null,"RXL","THE ROBERT JONES AND AGNES HUNT ORTHOPAEDIC HOSPITAL NHS FOUNDATION TRUST","Mental Health & Learning Disability and Mental Health, Learning Disability & Community Trusts"]
[null,null,null,null,null,null,null,null,null,null,null,null,null,null,null,null,null,null,null,null,null,null,null,null,null,null,null,"Y63","QHM","R0B","SOUTH TYNESIDE AND SUNDERLAND NHS FOUNDATION TRUST","Acute and Acute & Community Trusts",null,"RXM","THE ROTHERHAM NHS FOUNDATION TRUST","Mental Health & Learning Disability and Mental Health, Learning Disability & Community Trusts"]
[null,null,null,null,null,null,null,null,null,null,null,null,null,null,null,null,null,null,null,null,null,null,null,null,null,null,null,"Y63","QWO","RAE","BRADFORD TEACHING HOSPITALS NHS FOUNDATION TRUST","Acute and Acute & Community Trusts",null,"RXN","THE ROYAL MARSDEN NHS FOUNDATION TRUST","Mental Health & Learning Disability and Mental Health, Learning Disability & Community Trusts"]
[null,null,null,null,null,null,null,null,null,null,null,null,null,null,null,null,null,null,null,null,null,null,null,null,null,null,null,"Y63","QOQ","RCB","YORK AND SCARBOROUGH TEACHING HOSPITALS NHS FOUNDATION TRUST","Acute and Acute & Community Trusts",null,"RXP","THE ROYAL ORTHOPAEDIC HOSPITAL NHS FOUNDATION TRUST","Mental Health & Learning Disability and Mental Health, Learning Disability & Community Trusts"]
[null,null,null,null,null,null,null,null,null,null,null,null,null,null,null,null,null,null,null,null,null,null,null,null,null,null,null,"Y63","QOQ","RCD","HARROGATE AND DISTRICT NHS FOUNDATION TRUST","Acute and Acute & Community Trusts",null,"RXQ","THE ROYAL WOLVERHAMPTON NHS TRUST","Mental Health & Learning Disability and Mental Health, Learning Disability & Community Trusts"]
[null,null,null,null,null,null,null,null,null,null,null,null,null,null,null,null,null,null,null,null,null,null,null,null,null,null,null,"Y63","QWO","RCF","AIREDALE NHS FOUNDATION TRUST","Acute and Acute & Community Trusts",null,"RXR","THE SHREWSBURY AND TELFORD HOSPITAL NHS TRUST","Mental Health & Learning Disability and Mental Health, Learning Disability & Community Trusts"]
[null,null,null,null,null,null,null,null,null,null,null,null,null,null,null,null,null,null,null,null,null,null,null,null,null,null,null,"Y63","QF7","RCU","SHEFFIELD CHILDREN'S NHS FOUNDATION TRUST","Acute and Acute & Community Trusts",null,"RXT","THE WALTON CENTRE NHS FOUNDATION TRUST","Mental Health & Learning Disability and Mental Health, Learning Disability & Community Trusts"]
[null,null,null,null,null,null,null,null,null,null,null,null,null,null,null,null,null,null,null,null,null,null,null,null,null,null,null,"Y63","QF7","RFF","BARNSLEY HOSPITAL NHS FOUNDATION TRUST","Acute and Acute & Community Trusts",null,"RXV","TORBAY AND SOUTH DEVON NHS FOUNDATION TRUST","Mental Health & Learning Disability and Mental Health, Learning Disability & Community Trusts"]
[null,null,null,null,null,null,null,null,null,null,null,null,null,null,null,null,null,null,null,null,null,null,null,null,null,null,null,"Y63","QF7","RFR","THE ROTHERHAM NHS FOUNDATION TRUST","Acute and Acute & Community Trusts",null,"RXW","UNITED LINCOLNSHIRE HOSPITALS NHS TRUST","Mental Health & Learning Disability and Mental Health, Learning Disability & Community Trusts"]
[null,null,null,null,null,null,null,null,null,null,null,null,null,null,null,null,null,null,null,null,null,null,null,null,null,null,null,"Y63","QWO","RGD","LEEDS AND YORK PARTNERSHIP NHS FOUNDATION TRUST","Mental Health & Learning Disability and Mental Health, Learning Disability & Community Trusts",null,"RXY","UNIVERSITY COLLEGE LONDON HOSPITALS NHS FOUNDATION TRUST","Mental Health & Learning Disability and Mental Health, Learning Disability & Community Trusts"]
[null,null,null,null,null,null,null,null,null,null,null,null,null,null,null,null,null,null,null,null,null,null,null,null,null,null,null,"Y63","QF7","RHQ","SHEFFIELD TEACHING HOSPITALS NHS FOUNDATION TRUST","Acute and Acute & Community Trusts",null,"RY2","UNIVERSITY HOSPITAL SOUTHAMPTON NHS FOUNDATION TRUST","Mental Health & Learning Disability and Mental Health, Learning Disability & Community Trusts"]
[null,null,null,null,null,null,null,null,null,null,null,null,null,null,null,null,null,null,null,null,null,null,null,null,null,null,null,"Y63","QOQ","RJL","NORTHERN LINCOLNSHIRE AND GOOLE NHS FOUNDATION TRUST","Acute and Acute & Community Trusts",null,"RY3","UNIVERSITY HOSPITALS BIRMINGHAM NHS FOUNDATION TRUST","Mental Health & Learning Disability and Mental Health, Learning Disability & Community Trusts"]
[null,null,null,null,null,null,null,null,null,null,null,null,null,null,null,null,null,null,null,null,null,null,null,null,null,null,null,"Y63","QHM","RNN","NORTH CUMBRIA INTEGRATED CARE NHS FOUNDATION TRUST","Acute and Acute & Community Trusts",null,"RY4","UNIVERSITY HOSPITALS BRISTOL AND WESTON NHS FOUNDATION TRUST","Mental Health & Learning Disability and Mental Health, Learning Disability & Community Trusts"]
[null,null,null,null,null,null,null,null,null,null,null,null,null,null,null,null,null,null,null,null,null,null,null,null,null,null,null,"Y63","QF7","RP5","DONCASTER AND BASSETLAW TEACHING HOSPITALS NHS FOUNDATION TRUST","Acute and Acute & Community Trusts",null,"RY5","UNIVERSITY HOSPITALS COVENTRY AND WARWICKSHIRE NHS TRUST","Mental Health & Learning Disability and Mental Health, Learning Disability & Community Trusts"]
[null,null,null,null,null,null,null,null,null,null,null,null,null,null,null,null,null,null,null,null,null,null,null,null,null,null,null,"Y63","QHM","RR7","GATESHEAD HEALTH NHS FOUNDATION TRUST","Acute and Acute & Community Trusts",null,"RY6","UNIVERSITY HOSPITALS DORSET NHS FOUNDATION TRUST","Mental Health & Learning Disability and Mental Health, Learning Disability & Community Trusts"]
[null,null,null,null,null,null,null,null,null,null,null,null,null,null,null,null,null,null,null,null,null,null,null,null,null,null,null,"Y63","QHM","RTD","THE NEWCASTLE UPON TYNE HOSPITALS NHS FOUNDATION TRUST","Acute and Acute & Community Trusts",null,"RY7","UNIVERSITY HOSPITALS OF DERBY AND BURTON NHS FOUNDATION TRUST","Mental Health & Learning Disability and Mental Health, Learning Disability & Community Trusts"]
[null,null,null,null,null,null,null,null,null,null,null,null,null,null,null,null,null,null,null,null,null,null,null,null,null,null,null,"Y63","QHM","RTF","NORTHUMBRIA HEALTHCARE NHS FOUNDATION TRUST","Acute and Acute & Community Trusts",null,"RY8","UNIVERSITY HOSPITALS OF LEICESTER NHS TRUST","Mental Health & Learning Disability and Mental Health, Learning Disability & Community Trusts"]
[null,null,null,null,null,null,null,null,null,null,null,null,null,null,null,null,null,null,null,null,null,null,null,null,null,null,null,"Y63","QHM","RTR","SOUTH TEES HOSPITALS NHS FOUNDATION TRUST","Acute and Acute & Community Trusts",null,"RY9","UNIVERSITY HOSPITALS OF MORECAMBE BAY NHS FOUNDATION TRUST","Mental Health & Learning Disability and Mental Health, Learning Disability & Community Trusts"]
[null,null,null,null,null,null,null,null,null,null,null,null,null,null,null,null,null,null,null,null,null,null,null,null,null,null,null,"Y63","QOQ","RV9","HUMBER TEACHING NHS FOUNDATION TRUST","Mental Health & Learning Disability and Mental Health, Learning Disability & Community Trusts",null,"RYC","UNIVERSITY HOSPITALS PLYMOUTH NHS TRUST","Mental Health & Learning Disability and Mental Health, Learning Disability & Community Trusts"]
[null,null,null,null,null,null,null,null,null,null,null,null,null,null,null,null,null,null,null,null,null,null,null,null,null,null,null,"Y63","QHM","RVW","NORTH TEES AND HARTLEPOOL NHS FOUNDATION TRUST","Acute and Acute & Community Trusts",null,"RYD","UNIVERSITY HOSPITALS SUSSEX NHS FOUNDATION TRUST","Mental Health & Learning Disability and Mental Health, Learning Disability & Community Trusts"]
[null,null,null,null,null,null,null,null,null,null,null,null,null,null,null,null,null,null,null,null,null,null,null,null,null,null,null,"Y63","QOQ","RWA","HULL UNIVERSITY TEACHING HOSPITALS NHS TRUST","Acute and Acute & Community Trusts",null,"RYE","WALSALL HEALTHCARE NHS TRUST","Mental Health & Learning Disability and Mental Health, Learning Disability & Community Trusts"]
[null,null,null,null,null,null,null,null,null,null,null,null,null,null,null,null,null,null,null,null,null,null,null,null,null,null,null,"Y63","QWO","RWY","CALDERDALE AND HUDDERSFIELD NHS FOUNDATION TRUST","Acute and Acute & Community Trusts",null,"RYG","WARRINGTON AND HALTON TEACHING HOSPITALS NHS FOUNDATION TRUST","Mental Health & Learning Disability and Mental Health, Learning Disability & Community Trusts"]
[null,null,null,null,null,null,null,null,null,null,null,null,null,null,null,null,null,null,null,null,null,null,null,null,null,null,null,"Y63","QHM","RX3","TEES, ESK AND WEAR VALLEYS NHS FOUNDATION TRUST","Mental Health & Learning Disability and Mental Health, Learning Disability & Community Trusts",null,"RYJ","WEST HERTFORDSHIRE TEACHING HOSPITALS NHS TRUST","Mental Health & Learning Disability and Mental Health, Learning Disability & Community Trusts"]
[null,null,null,null,null,null,null,null,null,null,null,null,null,null,null,null,null,null,null,null,null,null,null,null,null,null,null,"Y63","QHM","RX4","CUMBRIA, NORTHUMBERLAND, TYNE AND WEAR NHS FOUNDATION TRUST","Mental Health & Learning Disability and Mental Health, Learning Disability & Community Trusts",null,"RYK","WEST SUFFOLK NHS FOUNDATION TRUST","Mental Health & Learning Disability and Mental Health, Learning Disability & Community Trusts"]
[null,null,null,null,null,null,null,null,null,null,null,null,null,null,null,null,null,null,null,null,null,null,null,null,null,null,null,"Y63","QHM","RX6","NORTH EAST AMBULANCE SERVICE NHS FOUNDATION TRUST","Ambulance Trusts",null,"RYR","WHITTINGTON HEALTH NHS TRUST","Mental Health & Learning Disability and Mental Health, Learning Disability & Community Trusts"]
[null,null,null,null,null,null,null,null,null,null,null,null,null,null,null,null,null,null,null,null,null,null,null,null,null,null,null,"Y63","QWO","RX8","YORKSHIRE AMBULANCE SERVICE NHS TRUST","Ambulance Trusts",null,"RYV","WIRRAL COMMUNITY HEALTH AND CARE NHS FOUNDATION TRUST","Mental Health & Learning Disability and Mental Health, Learning Disability & Community Trusts"]
[null,null,null,null,null,null,null,null,null,null,null,null,null,null,null,null,null,null,null,null,null,null,null,null,null,null,null,"Y63","QF7","RXE","ROTHERHAM DONCASTER AND SOUTH HUMBER NHS FOUNDATION TRUST","Mental Health & Learning Disability and Mental Health, Learning Disability & Community Trusts",null,"RYW","WIRRAL UNIVERSITY TEACHING HOSPITAL NHS FOUNDATION TRUST","Mental Health & Learning Disability and Mental Health, Learning Disability & Community Trusts"]
[null,null,null,null,null,null,null,null,null,null,null,null,null,null,null,null,null,null,null,null,null,null,null,null,null,null,null,"Y63","QWO","RXF","MID YORKSHIRE HOSPITALS NHS TRUST","Acute and Acute & Community Trusts",null,"RYX","WORCESTERSHIRE ACUTE HOSPITALS NHS TRUST","Mental Health & Learning Disability and Mental Health, Learning Disability & Community Trusts"]
[null,null,null,null,null,null,null,null,null,null,null,null,null,null,null,null,null,null,null,null,null,null,null,null,null,null,null,"Y63","QWO","RXG","SOUTH WEST YORKSHIRE PARTNERSHIP NHS FOUNDATION TRUST","Mental Health & Learning Disability and Mental Health, Learning Disability & Community Trusts",null,"RYY","WRIGHTINGTON, WIGAN AND LEIGH NHS FOUNDATION TRUST","Mental Health & Learning Disability and Mental Health, Learning Disability & Community Trusts"]
[null,null,null,null,null,null,null,null,null,null,null,null,null,null,null,null,null,null,null,null,null,null,null,null,null,null,null,"Y63","QHM","RXP","COUNTY DURHAM AND DARLINGTON NHS FOUNDATION TRUST","Acute and Acute & Community Trusts",null,"TAD","WYE VALLEY NHS TRUST","Mental Health & Learning Disability and Mental Health, Learning Disability & Community Trusts"]
[null,null,null,null,null,null,null,null,null,null,null,null,null,null,null,null,null,null,null,null,null,null,null,null,null,null,null,"Y63","QWO","RY6","LEEDS COMMUNITY HEALTHCARE NHS TRUST","Community Trusts",null,"TAF","YEOVIL DISTRICT HOSPITAL NHS FOUNDATION TRUST","Mental Health & Learning Disability and Mental Health, Learning Disability & Community Trusts"]
[null,null,null,null,null,null,null,null,null,null,null,null,null,null,null,null,null,null,null,null,null,null,null,null,null,null,null,"Y63","QWO","TAD","BRADFORD DISTRICT CARE NHS FOUNDATION TRUST","Mental Health & Learning Disability and Mental Health, Learning Disability & Community Trusts",null,"TAH","YORK AND SCARBOROUGH TEACHING HOSPITALS NHS FOUNDATION TRUST","Mental Health & Learning Disability and Mental Health, Learning Disability & Community Trusts"]
[null,null,null,null,null,null,null,null,null,null,null,null,null,null,null,null,null,null,null,null,null,null,null,null,null,null,null,"Y63","QF7","TAH","SHEFFIELD HEALTH & SOCIAL CARE NHS FOUNDATION TRUST","Mental Health & Learning Disability and Mental Health, Learning Disability & Community Trusts",null,"TAJ","YORKSHIRE AMBULANCE SERVICE NHS TRUST","Mental Health & Learning Disability and Mental Health, Learning Disability & Community Trusts"]